Workbook

Sheet Guide
B1: ="" -> 
B2: Delayed Discharges in NHSScotland - Annual summary of occupied bed days and census figures Figures up to March 2020
B4: Data presented in this publication have been collated from previously published monthly figures. Additional information such as the bed day rate per 1,000 population (age 75+), delayed discharge bed days as a proportion of all hospital bed days and latest available estimated cost information (2017/18) are also included. A detailed breakdown is available for 2016/17, 2017/18, 2018/19 and 2019/20 and some annual comparisons are available in the tables however due to definitional changes across this time period these are limited.
B5: Background:
B6: A delayed discharge is a hospital inpatient who is clinically ready for discharge from inpatient hospital care and who continues to occupy a hospital bed beyond the ready for discharge date. | I6: Link to data definitions
B7: Public Health Scotland (PHS) receive monthly delayed discharge data from the 14 territorial Health Boards for all adults (aged 18 years and over), in all hospital specialities as per the data definitions and national data requirements. | I7: Link to national data requirements
B8: Data are available at Scotland, NHS Board (of Treatment) and Local Authority (of Residence) levels, and are shown by delay type (health and social care reasons, patient and family related reasons and code 9 (complex) delays), length of delay and census month.
B9: Revised data definitions and national data requirements were introduced from 1 July 2016 and figures presented in these tables reflect the updated guidance, unless otherwise stated. The revised definitions ensure improved data quality and alignment of census information and associated bed days and provide more robust and consistent reporting across Scotland.
B10: A summary of these changes can be found a detailed technical paper is available via this link: | I10: Link to technical document
B12: The workbook includes the following information:
B13: Tab 1 | C13: Delayed discharge bed days: Annual summary; Jul 2016 - Mar 2017 to Apr 2019 - Mar 2020 ; by age and reason grouping
B14: Tab 2 | C14: Delayed discharge bed days: Comparable trend; Scotland; 2016/17 to 2019/20
B15: Tab 3 | C15: Delayed discharge bed days as a proportion of all occupied bed days; 2016/17 - 2018/19 The information in this tab has not been updated in this release. Updated figures will be available in a planned revision of this publication due to be released in October 2020.
B16: Tab 4 | C16: Delayed discharge bed days attributed to mental health specialties; Jul 2016 - Mar 2017 to Apr 2019 - Mar 2020
B17: Tab 5 | C17: Delayed discharge bed day rate per 1,000 population (Age 75+): 2016/17 to 2019/20
B18: Tab 6 | C18: Delayed discharge bed days: Monthly and average daily number of beds (unadjusted for definitional changes); 2012/13 - 2019/20
B19: Tab 7 | C19: Average number of census delays by reason for delay: Jul 2016 - Mar 2017 to Apr 2019 - Mar 2020
B20: Tab 8 | C20: Average number of census delays by reason for delay; Jul 2016 - Mar 2017 to Apr 2019 - Mar 2020
B21: Tab 9 | C21: Length of delay at census: Scotland - Jul 2016 - Mar 2017 to Apr 2019 - Mar 2020
B22: Tab 10 | C22: Estimated cost of delayed discharge; Scotland 2012/13 - 2018/19 The information in this tab has not been updated in this release. Updated figures will be available in a planned revision of this publication due to be released in October 2020.
B23: Glossary | C23: Key terms used and link to further background information
B25: Problems with drop down lists / viewing charts
B26: Excel 2003 users - If the drop down lists are not working please ensure that Macro security settings are set to medium. To do this, go to ‘Tools’ menu and select ‘macro’. Then select ‘Security’ and ensure that the security setting is set to either ‘Medium’ or ‘Low’ (Medium is the recommended option). If your settings were set to ‘High’ you should reset the level when you have finished working with the template. Also when opening the file you will be asked whether you wish to “enable” or disable” macros. You must select “Enable macros”, otherwise the template will not function correctly.
B27: Excel 2007 & 2010 users - need to enable macros via the Options button on the pop-up menu below which will appear below the main Ribbon menu.
B29: Help with workbook If you need any help accessing these tables or have any comments, suggestions or questions, please email nss.delayeddischarges@nhs.net

Sheet Tab3Data (hidden)
A1: lookup | B1: year | C1: areaname | D1: OBD | E1: occupied beds
A2: =C2&B2 -> NHS Ayrshire & Arran2016/17 | B2: 2016/17 | C2: NHS Ayrshire & Arran | D2: 32430 | E2: 482308
A3: =C3&B3 -> NHS Borders2016/17 | B3: 2016/17 | C3: NHS Borders | D3: 10163 | E3: 130104
A4: NHS Dumfries & Galloway2016/17 | B4: 2016/17 | C4: NHS Dumfries & Galloway | D4: 12753 | E4: 173764
A5: NHS Fife2016/17 | B5: 2016/17 | C5: NHS Fife | D5: 35465 | E5: 377199
A6: NHS Forth Valley2016/17 | B6: 2016/17 | C6: NHS Forth Valley | D6: 30923 | E6: 339078
A7: NHS Grampian2016/17 | B7: 2016/17 | C7: NHS Grampian | D7: 59096 | E7: 586327
A8: NHS Greater Glasgow & Clyde2016/17 | B8: 2016/17 | C8: NHS Greater Glasgow & Clyde | D8: 65026 | E8: 1855032
A9: NHS Highland2016/17 | B9: 2016/17 | C9: NHS Highland | D9: 48457 | E9: 311932
A10: NHS Lanarkshire2016/17 | B10: 2016/17 | C10: NHS Lanarkshire | D10: 74785 | E10: 652898.4544
A11: NHS Lothian2016/17 | B11: 2016/17 | C11: NHS Lothian | D11: 110786 | E11: 1072758.082
A12: NHS Orkney2016/17 | B12: 2016/17 | C12: NHS Orkney | D12: 1149 | E12: 15071
A13: NHS Shetland2016/17 | B13: 2016/17 | C13: NHS Shetland | D13: 1057 | E13: 10911
A14: NHS Tayside2016/17 | B14: 2016/17 | C14: NHS Tayside | D14: 41437 | E14: 442974
A15: NHS Western Isles2016/17 | B15: 2016/17 | C15: NHS Western Isles | D15: 8896 | E15: 31206
A16: NHS Ayrshire & Arran2017/18 | B16: 2017/18 | C16: NHS Ayrshire & Arran | D16: 33699 | E16: 487185
A17: NHS Borders2017/18 | B17: 2017/18 | C17: NHS Borders | D17: 13853 | E17: 130382
A18: NHS Dumfries & Galloway2017/18 | B18: 2017/18 | C18: NHS Dumfries & Galloway | D18: 12099 | E18: 172423
A19: NHS Fife2017/18 | B19: 2017/18 | C19: NHS Fife | D19: 27077 | E19: 359995
A20: NHS Forth Valley2017/18 | B20: 2017/18 | C20: NHS Forth Valley | D20: 26220 | E20: 336577
A21: NHS Grampian2017/18 | B21: 2017/18 | C21: NHS Grampian | D21: 47791 | E21: 562158
A22: NHS Greater Glasgow & Clyde2017/18 | B22: 2017/18 | C22: NHS Greater Glasgow & Clyde | D22: 54261 | E22: 1773973
A23: NHS Highland2017/18 | B23: 2017/18 | C23: NHS Highland | D23: 42953 | E23: 298436
A24: NHS Lanarkshire2017/18 | B24: 2017/18 | C24: NHS Lanarkshire | D24: 72285 | E24: 623982.4543
A25: NHS Lothian2017/18 | B25: 2017/18 | C25: NHS Lothian | D25: 120210 | E25: 1043130.082
A26: NHS Orkney2017/18 | B26: 2017/18 | C26: NHS Orkney | D26: 653 | E26: 13959
A27: NHS Shetland2017/18 | B27: 2017/18 | C27: NHS Shetland | D27: 1103 | E27: 9800
A28: NHS Tayside2017/18 | B28: 2017/18 | C28: NHS Tayside | D28: 36096 | E28: 485846
A29: NHS Western Isles2017/18 | B29: 2017/18 | C29: NHS Western Isles | D29: 5823 | E29: 30745
A30: NHS Ayrshire & Arran2018/19 | B30: 2018/19 | C30: NHS Ayrshire & Arran | D30: 42831 | E30: 455119
A31: NHS Borders2018/19 | B31: 2018/19 | C31: NHS Borders | D31: 12644 | E31: 124757
A32: NHS Dumfries & Galloway2018/19 | B32: 2018/19 | C32: NHS Dumfries & Galloway | D32: 15573 | E32: 175368
A33: NHS Fife2018/19 | B33: 2018/19 | C33: NHS Fife | D33: 32336 | E33: 363474.4419
A34: NHS Forth Valley2018/19 | B34: 2018/19 | C34: NHS Forth Valley | D34: 32174 | E34: 330795
A35: NHS Grampian2018/19 | B35: 2018/19 | C35: NHS Grampian | D35: 43535 | E35: 542489
A36: NHS Greater Glasgow & Clyde2018/19 | B36: 2018/19 | C36: NHS Greater Glasgow & Clyde | D36: 67852 | E36: 1720665
A37: NHS Highland2018/19 | B37: 2018/19 | C37: NHS Highland | D37: 45534 | E37: 294373
A38: NHS Lanarkshire2018/19 | B38: 2018/19 | C38: NHS Lanarkshire | D38: 66302 | E38: 607557.4543
A39: NHS Lothian2018/19 | B39: 2018/19 | C39: NHS Lothian | D39: 124048 | E39: 1028292.082
A40: NHS Orkney2018/19 | B40: 2018/19 | C40: NHS Orkney | D40: 235 | E40: 14915
A41: NHS Shetland2018/19 | B41: 2018/19 | C41: NHS Shetland | D41: 1375 | E41: 9875
A42: NHS Tayside2018/19 | B42: 2018/19 | C42: NHS Tayside | D42: 30170 | E42: 468623
A43: NHS Western Isles2018/19 | B43: 2018/19 | C43: NHS Western Isles | D43: 7163 | E43: 28274

Sheet Tab 1
B1: =Guide!B1 -> 
B2: ="Table 1. Annual summary of bed days occupied by delayed discharges: "&A5 -> Table 1. Annual summary of bed days occupied by delayed discharges: April 2019 - March 2020
B3: =IF($A$7=1, "Health board and local authority figures have not been adjusted for the definitional changes therefore it is not possible to compare 2016/17 with other financial years at this level.", " ") -> 
B4: Select year:
A5: =VLOOKUP(A7, lookups!A2:C5, 3, FALSE) -> April 2019 - March 2020 | C5: All | D5: All | E5: 18-74 | G5: 75+ | I5: All | K5: All
A6: =VLOOKUP(A7, lookups!A2:B5, 2, FALSE) -> 2019/20 | C6: All | D6: All | E6: All | G6: All | I6: Standard | K6: Code 9
A7: 4 | E7: Age4 | I7: Reason for delay5
A8: =A7 + 4 -> 8 | B8: NHS Board of treatment1 | C8: ="Delayed discharge bed days "&A6 -> Delayed discharge bed days 2019/20 | D8: ="Average daily number of beds occupied " &A6 -> Average daily number of beds occupied 2019/20 | E8: ="Delayed discharge bed days "&A6&": ages 18 to 74" -> Delayed discharge bed days 2019/20: ages 18 to 74 | F8: % of total | G8: ="Delayed discharge bed days "&A6&": age 75+" -> Delayed discharge bed days 2019/20: age 75+ | H8: % of total | I8: Health, social care, patient and family related reasons | J8: % of total | K8: Code 9 reasons | L8: % of total
A9: =IF(A6 = "2019/20", 366, 365) -> 366 | B9: Scotland | C9: =SUM(C10:C23) -> 542204 | D9: =C9/$A$9 -> 1481.431694 | E9: =SUM(E10:E23) -> 181471 | F9: =E9/$C9 -> 0.3346913708 | G9: =SUM(G10:G23) -> 360733 | H9: =G9/$C9 -> 0.6653086292 | I9: =SUM(I10:I23) -> 434833 | J9: =I9/$C9 -> 0.8019730581 | K9: =SUM(K10:K23) -> 107371 | L9: =K9/$C9 -> 0.1980269419
B10: NHS Ayrshire & Arran | C10: =_xlfn.IFNA(VLOOKUP(CONCATENATE($B10,C$5,C$6), Tab1Data!$A$2:$H$721, $A$8, FALSE), 0) -> 53821 | D10: =C10/$A$9 -> 147.0519126 | E10: =_xlfn.IFNA(VLOOKUP(CONCATENATE($B10,E$5,E$6), Tab1Data!$A$2:$H$721, $A$8, FALSE), 0) -> 13813 | F10: =E10/$C10 -> 0.2566470337 | G10: =_xlfn.IFNA(VLOOKUP(CONCATENATE($B10,G$5,G$6), Tab1Data!$A$2:$H$721, $A$8, FALSE), 0) -> 40008 | H10: =G10/$C10 -> 0.7433529663 | I10: =_xlfn.IFNA(VLOOKUP(CONCATENATE($B10,I$5,I$6), Tab1Data!$A$2:$H$721, $A$8, FALSE), 0) -> 45434 | J10: =I10/$C10 -> 0.8441686331 | K10: =_xlfn.IFNA(VLOOKUP(CONCATENATE($B10,K$5,K$6), Tab1Data!$A$2:$H$721, $A$8, FALSE), 0) -> 8387 | L10: =K10/$C10 -> 0.1558313669
B11: NHS Borders | C11: =_xlfn.IFNA(VLOOKUP(CONCATENATE($B11,C$5,C$6), Tab1Data!$A$2:$H$721, $A$8, FALSE), 0) -> 11860 | D11: 32.40437158 | E11: =_xlfn.IFNA(VLOOKUP(CONCATENATE($B11,E$5,E$6), Tab1Data!$A$2:$H$721, $A$8, FALSE), 0) -> 3725 | F11: =E11/$C11 -> 0.3140809444 | G11: =_xlfn.IFNA(VLOOKUP(CONCATENATE($B11,G$5,G$6), Tab1Data!$A$2:$H$721, $A$8, FALSE), 0) -> 8135 | H11: =G11/$C11 -> 0.6859190556 | I11: =_xlfn.IFNA(VLOOKUP(CONCATENATE($B11,I$5,I$6), Tab1Data!$A$2:$H$721, $A$8, FALSE), 0) -> 10217 | J11: 0.8614671164 | K11: =_xlfn.IFNA(VLOOKUP(CONCATENATE($B11,K$5,K$6), Tab1Data!$A$2:$H$721, $A$8, FALSE), 0) -> 1643 | L11: 0.1385328836
B12: NHS Dumfries & Galloway | C12: =_xlfn.IFNA(VLOOKUP(CONCATENATE($B12,C$5,C$6), Tab1Data!$A$2:$H$721, $A$8, FALSE), 0) -> 19610 | D12: 53.57923497 | E12: =_xlfn.IFNA(VLOOKUP(CONCATENATE($B12,E$5,E$6), Tab1Data!$A$2:$H$721, $A$8, FALSE), 0) -> 5675 | F12: 0.2893931668 | G12: =_xlfn.IFNA(VLOOKUP(CONCATENATE($B12,G$5,G$6), Tab1Data!$A$2:$H$721, $A$8, FALSE), 0) -> 13935 | H12: 0.7106068332 | I12: =_xlfn.IFNA(VLOOKUP(CONCATENATE($B12,I$5,I$6), Tab1Data!$A$2:$H$721, $A$8, FALSE), 0) -> 16613 | J12: 0.8471698113 | K12: =_xlfn.IFNA(VLOOKUP(CONCATENATE($B12,K$5,K$6), Tab1Data!$A$2:$H$721, $A$8, FALSE), 0) -> 2997 | L12: 0.1528301887
B13: NHS Fife | C13: =_xlfn.IFNA(VLOOKUP(CONCATENATE($B13,C$5,C$6), Tab1Data!$A$2:$H$721, $A$8, FALSE), 0) -> 39805 | D13: 108.7568306 | E13: =_xlfn.IFNA(VLOOKUP(CONCATENATE($B13,E$5,E$6), Tab1Data!$A$2:$H$721, $A$8, FALSE), 0) -> 17236 | F13: 0.4330109283 | G13: =_xlfn.IFNA(VLOOKUP(CONCATENATE($B13,G$5,G$6), Tab1Data!$A$2:$H$721, $A$8, FALSE), 0) -> 22569 | H13: 0.5669890717 | I13: =_xlfn.IFNA(VLOOKUP(CONCATENATE($B13,I$5,I$6), Tab1Data!$A$2:$H$721, $A$8, FALSE), 0) -> 27763 | J13: 0.6974751916 | K13: =_xlfn.IFNA(VLOOKUP(CONCATENATE($B13,K$5,K$6), Tab1Data!$A$2:$H$721, $A$8, FALSE), 0) -> 12042 | L13: 0.3025248084
B14: NHS Forth Valley | C14: =_xlfn.IFNA(VLOOKUP(CONCATENATE($B14,C$5,C$6), Tab1Data!$A$2:$H$721, $A$8, FALSE), 0) -> 32590 | D14: 89.04371585 | E14: =_xlfn.IFNA(VLOOKUP(CONCATENATE($B14,E$5,E$6), Tab1Data!$A$2:$H$721, $A$8, FALSE), 0) -> 9923 | F14: 0.3044799018 | G14: =_xlfn.IFNA(VLOOKUP(CONCATENATE($B14,G$5,G$6), Tab1Data!$A$2:$H$721, $A$8, FALSE), 0) -> 22667 | H14: 0.6955200982 | I14: =_xlfn.IFNA(VLOOKUP(CONCATENATE($B14,I$5,I$6), Tab1Data!$A$2:$H$721, $A$8, FALSE), 0) -> 24167 | J14: 0.7415464867 | K14: =_xlfn.IFNA(VLOOKUP(CONCATENATE($B14,K$5,K$6), Tab1Data!$A$2:$H$721, $A$8, FALSE), 0) -> 8423 | L14: 0.2584535133
B15: NHS Grampian | C15: =_xlfn.IFNA(VLOOKUP(CONCATENATE($B15,C$5,C$6), Tab1Data!$A$2:$H$721, $A$8, FALSE), 0) -> 40709 | D15: 111.226776 | E15: =_xlfn.IFNA(VLOOKUP(CONCATENATE($B15,E$5,E$6), Tab1Data!$A$2:$H$721, $A$8, FALSE), 0) -> 11994 | F15: 0.2946277236 | G15: =_xlfn.IFNA(VLOOKUP(CONCATENATE($B15,G$5,G$6), Tab1Data!$A$2:$H$721, $A$8, FALSE), 0) -> 28715 | H15: 0.7053722764 | I15: =_xlfn.IFNA(VLOOKUP(CONCATENATE($B15,I$5,I$6), Tab1Data!$A$2:$H$721, $A$8, FALSE), 0) -> 34272 | J15: 0.8418777175 | K15: =_xlfn.IFNA(VLOOKUP(CONCATENATE($B15,K$5,K$6), Tab1Data!$A$2:$H$721, $A$8, FALSE), 0) -> 6437 | L15: 0.1581222825
B16: NHS Greater Glasgow & Clyde | C16: =_xlfn.IFNA(VLOOKUP(CONCATENATE($B16,C$5,C$6), Tab1Data!$A$2:$H$721, $A$8, FALSE), 0) -> 82540 | D16: 225.5191257 | E16: =_xlfn.IFNA(VLOOKUP(CONCATENATE($B16,E$5,E$6), Tab1Data!$A$2:$H$721, $A$8, FALSE), 0) -> 35241 | F16: 0.4269566271 | G16: =_xlfn.IFNA(VLOOKUP(CONCATENATE($B16,G$5,G$6), Tab1Data!$A$2:$H$721, $A$8, FALSE), 0) -> 47299 | H16: 0.5730433729 | I16: =_xlfn.IFNA(VLOOKUP(CONCATENATE($B16,I$5,I$6), Tab1Data!$A$2:$H$721, $A$8, FALSE), 0) -> 60927 | J16: 0.7381511994 | K16: =_xlfn.IFNA(VLOOKUP(CONCATENATE($B16,K$5,K$6), Tab1Data!$A$2:$H$721, $A$8, FALSE), 0) -> 21613 | L16: 0.2618488006
B17: NHS Highland | C17: =_xlfn.IFNA(VLOOKUP(CONCATENATE($B17,C$5,C$6), Tab1Data!$A$2:$H$721, $A$8, FALSE), 0) -> 48722 | D17: 133.1202186 | E17: =_xlfn.IFNA(VLOOKUP(CONCATENATE($B17,E$5,E$6), Tab1Data!$A$2:$H$721, $A$8, FALSE), 0) -> 14392 | F17: 0.2953901728 | G17: =_xlfn.IFNA(VLOOKUP(CONCATENATE($B17,G$5,G$6), Tab1Data!$A$2:$H$721, $A$8, FALSE), 0) -> 34330 | H17: 0.7046098272 | I17: =_xlfn.IFNA(VLOOKUP(CONCATENATE($B17,I$5,I$6), Tab1Data!$A$2:$H$721, $A$8, FALSE), 0) -> 37138 | J17: 0.7622429293 | K17: =_xlfn.IFNA(VLOOKUP(CONCATENATE($B17,K$5,K$6), Tab1Data!$A$2:$H$721, $A$8, FALSE), 0) -> 11584 | L17: 0.2377570707
B18: NHS Lanarkshire | C18: =_xlfn.IFNA(VLOOKUP(CONCATENATE($B18,C$5,C$6), Tab1Data!$A$2:$H$721, $A$8, FALSE), 0) -> 80772 | D18: 220.6885246 | E18: =_xlfn.IFNA(VLOOKUP(CONCATENATE($B18,E$5,E$6), Tab1Data!$A$2:$H$721, $A$8, FALSE), 0) -> 27011 | F18: 0.3344104393 | G18: =_xlfn.IFNA(VLOOKUP(CONCATENATE($B18,G$5,G$6), Tab1Data!$A$2:$H$721, $A$8, FALSE), 0) -> 53761 | H18: 0.6655895607 | I18: =_xlfn.IFNA(VLOOKUP(CONCATENATE($B18,I$5,I$6), Tab1Data!$A$2:$H$721, $A$8, FALSE), 0) -> 68847 | J18: 0.8523622047 | K18: =_xlfn.IFNA(VLOOKUP(CONCATENATE($B18,K$5,K$6), Tab1Data!$A$2:$H$721, $A$8, FALSE), 0) -> 11925 | L18: 0.1476377953
B19: NHS Lothian | C19: =_xlfn.IFNA(VLOOKUP(CONCATENATE($B19,C$5,C$6), Tab1Data!$A$2:$H$721, $A$8, FALSE), 0) -> 93809 | D19: 256.3087432 | E19: =_xlfn.IFNA(VLOOKUP(CONCATENATE($B19,E$5,E$6), Tab1Data!$A$2:$H$721, $A$8, FALSE), 0) -> 28701 | F19: 0.3059514546 | G19: =_xlfn.IFNA(VLOOKUP(CONCATENATE($B19,G$5,G$6), Tab1Data!$A$2:$H$721, $A$8, FALSE), 0) -> 65108 | H19: 0.6940485454 | I19: =_xlfn.IFNA(VLOOKUP(CONCATENATE($B19,I$5,I$6), Tab1Data!$A$2:$H$721, $A$8, FALSE), 0) -> 81906 | J19: 0.8731145199 | K19: =_xlfn.IFNA(VLOOKUP(CONCATENATE($B19,K$5,K$6), Tab1Data!$A$2:$H$721, $A$8, FALSE), 0) -> 11903 | L19: 0.1268854801
B20: NHS Orkney | C20: =_xlfn.IFNA(VLOOKUP(CONCATENATE($B20,C$5,C$6), Tab1Data!$A$2:$H$721, $A$8, FALSE), 0) -> 593 | D20: 1.620218579 | E20: =_xlfn.IFNA(VLOOKUP(CONCATENATE($B20,E$5,E$6), Tab1Data!$A$2:$H$721, $A$8, FALSE), 0) -> 109 | F20: 0.1838111298 | G20: =_xlfn.IFNA(VLOOKUP(CONCATENATE($B20,G$5,G$6), Tab1Data!$A$2:$H$721, $A$8, FALSE), 0) -> 484 | H20: 0.8161888702 | I20: =_xlfn.IFNA(VLOOKUP(CONCATENATE($B20,I$5,I$6), Tab1Data!$A$2:$H$721, $A$8, FALSE), 0) -> 409 | J20: 0.6897133221 | K20: =_xlfn.IFNA(VLOOKUP(CONCATENATE($B20,K$5,K$6), Tab1Data!$A$2:$H$721, $A$8, FALSE), 0) -> 184 | L20: 0.3102866779
B21: NHS Shetland | C21: =_xlfn.IFNA(VLOOKUP(CONCATENATE($B21,C$5,C$6), Tab1Data!$A$2:$H$721, $A$8, FALSE), 0) -> 1505 | D21: 4.112021858 | E21: =_xlfn.IFNA(VLOOKUP(CONCATENATE($B21,E$5,E$6), Tab1Data!$A$2:$H$721, $A$8, FALSE), 0) -> 494 | F21: 0.3282392027 | G21: =_xlfn.IFNA(VLOOKUP(CONCATENATE($B21,G$5,G$6), Tab1Data!$A$2:$H$721, $A$8, FALSE), 0) -> 1011 | H21: 0.6717607973 | I21: =_xlfn.IFNA(VLOOKUP(CONCATENATE($B21,I$5,I$6), Tab1Data!$A$2:$H$721, $A$8, FALSE), 0) -> 1502 | J21: 0.9980066445 | K21: =_xlfn.IFNA(VLOOKUP(CONCATENATE($B21,K$5,K$6), Tab1Data!$A$2:$H$721, $A$8, FALSE), 0) -> 3 | L21: 0.001993355482
B22: NHS Tayside | C22: =_xlfn.IFNA(VLOOKUP(CONCATENATE($B22,C$5,C$6), Tab1Data!$A$2:$H$721, $A$8, FALSE), 0) -> 29280 | D22: 80 | E22: =_xlfn.IFNA(VLOOKUP(CONCATENATE($B22,E$5,E$6), Tab1Data!$A$2:$H$721, $A$8, FALSE), 0) -> 11446 | F22: 0.3909153005 | G22: =_xlfn.IFNA(VLOOKUP(CONCATENATE($B22,G$5,G$6), Tab1Data!$A$2:$H$721, $A$8, FALSE), 0) -> 17834 | H22: 0.6090846995 | I22: =_xlfn.IFNA(VLOOKUP(CONCATENATE($B22,I$5,I$6), Tab1Data!$A$2:$H$721, $A$8, FALSE), 0) -> 22361 | J22: 0.7636953552 | K22: =_xlfn.IFNA(VLOOKUP(CONCATENATE($B22,K$5,K$6), Tab1Data!$A$2:$H$721, $A$8, FALSE), 0) -> 6919 | L22: 0.2363046448
B23: NHS Western Isles | C23: =_xlfn.IFNA(VLOOKUP(CONCATENATE($B23,C$5,C$6), Tab1Data!$A$2:$H$721, $A$8, FALSE), 0) -> 6588 | D23: 18 | E23: =_xlfn.IFNA(VLOOKUP(CONCATENATE($B23,E$5,E$6), Tab1Data!$A$2:$H$721, $A$8, FALSE), 0) -> 1711 | F23: 0.2597146327 | G23: =_xlfn.IFNA(VLOOKUP(CONCATENATE($B23,G$5,G$6), Tab1Data!$A$2:$H$721, $A$8, FALSE), 0) -> 4877 | H23: 0.7402853673 | I23: =_xlfn.IFNA(VLOOKUP(CONCATENATE($B23,I$5,I$6), Tab1Data!$A$2:$H$721, $A$8, FALSE), 0) -> 3277 | J23: 0.4974195507 | K23: =_xlfn.IFNA(VLOOKUP(CONCATENATE($B23,K$5,K$6), Tab1Data!$A$2:$H$721, $A$8, FALSE), 0) -> 3311 | L23: 0.5025804493
B24: Scotland (adjusted to reflect revised definitions across the whole year)6,7&8 | C24: 527099 | D24: =C24/365 -> 1444.106849 | E24: 159091 | F24: 0.3018237561 | G24: 368008 | H24: 0.6981762439 | I24: 408351 | J24: 0.774714048 | K24: 118748 | L24: 0.225285952
E27: Age4 | I27: Reason for delay5
B28: Local authority of residence1 | C28: ="Delayed discharge bed days "&A6 -> Delayed discharge bed days 2019/20 | D28: ="Average daily number of beds occupied " &A6 -> Average daily number of beds occupied 2019/20 | E28: ="Delayed discharge bed days "&A6&": ages 18 to 74" -> Delayed discharge bed days 2019/20: ages 18 to 74 | F28: % of total | G28: ="Delayed discharge bed days "&A6&": age 75+" -> Delayed discharge bed days 2019/20: age 75+ | H28: % of total | I28: Health, social care, patient and family related reasons | J28: % of total | K28: Code 9 reasons | L28: % of total
B29: Scotland | C29: =SUM(C30:C62) -> 542204 | D29: =C29/$A$9 -> 1481.431694 | E29: =SUM(E30:E62) -> 181471 | F29: =E29/$C29 -> 0.3346913708 | G29: =SUM(G30:G62) -> 360733 | H29: =G29/$C29 -> 0.6653086292 | I29: =SUM(I30:I62) -> 434833 | J29: =I29/$C29 -> 0.8019730581 | K29: =SUM(K30:K62) -> 107371 | L29: =K29/$C29 -> 0.1980269419
B30: Aberdeen City | C30: =_xlfn.IFNA(VLOOKUP(CONCATENATE($B30,C$5,C$6), Tab1Data!$A$2:$H$721, $A$8, FALSE), 0) -> 12272 | D30: =C30/$A$9 -> 33.53005464 | E30: =_xlfn.IFNA(VLOOKUP(CONCATENATE($B30,E$5,E$6), Tab1Data!$A$2:$H$721, $A$8, FALSE), 0) -> 2784 | F30: 0.2268578879 | G30: =_xlfn.IFNA(VLOOKUP(CONCATENATE($B30,G$5,G$6), Tab1Data!$A$2:$H$721, $A$8, FALSE), 0) -> 9488 | H30: 0.7731421121 | I30: =_xlfn.IFNA(VLOOKUP(CONCATENATE($B30,I$5,I$6), Tab1Data!$A$2:$H$721, $A$8, FALSE), 0) -> 11219 | J30: 0.9141949153 | K30: =_xlfn.IFNA(VLOOKUP(CONCATENATE($B30,K$5,K$6), Tab1Data!$A$2:$H$721, $A$8, FALSE), 0) -> 1053 | L30: 0.08580508475
B31: Aberdeenshire | C31: =_xlfn.IFNA(VLOOKUP(CONCATENATE($B31,C$5,C$6), Tab1Data!$A$2:$H$721, $A$8, FALSE), 0) -> 16381 | D31: 44.7568306 | E31: =_xlfn.IFNA(VLOOKUP(CONCATENATE($B31,E$5,E$6), Tab1Data!$A$2:$H$721, $A$8, FALSE), 0) -> 5090 | F31: 0.3107258409 | G31: =_xlfn.IFNA(VLOOKUP(CONCATENATE($B31,G$5,G$6), Tab1Data!$A$2:$H$721, $A$8, FALSE), 0) -> 11291 | H31: 0.6892741591 | I31: =_xlfn.IFNA(VLOOKUP(CONCATENATE($B31,I$5,I$6), Tab1Data!$A$2:$H$721, $A$8, FALSE), 0) -> 12964 | J31: 0.7914046761 | K31: =_xlfn.IFNA(VLOOKUP(CONCATENATE($B31,K$5,K$6), Tab1Data!$A$2:$H$721, $A$8, FALSE), 0) -> 3417 | L31: 0.2085953239
B32: Angus | C32: =_xlfn.IFNA(VLOOKUP(CONCATENATE($B32,C$5,C$6), Tab1Data!$A$2:$H$721, $A$8, FALSE), 0) -> 5731 | D32: 15.65846995 | E32: =_xlfn.IFNA(VLOOKUP(CONCATENATE($B32,E$5,E$6), Tab1Data!$A$2:$H$721, $A$8, FALSE), 0) -> 2567 | F32: 0.4479148491 | G32: =_xlfn.IFNA(VLOOKUP(CONCATENATE($B32,G$5,G$6), Tab1Data!$A$2:$H$721, $A$8, FALSE), 0) -> 3164 | H32: 0.5520851509 | I32: =_xlfn.IFNA(VLOOKUP(CONCATENATE($B32,I$5,I$6), Tab1Data!$A$2:$H$721, $A$8, FALSE), 0) -> 4933 | J32: 0.8607572849 | K32: =_xlfn.IFNA(VLOOKUP(CONCATENATE($B32,K$5,K$6), Tab1Data!$A$2:$H$721, $A$8, FALSE), 0) -> 798 | L32: 0.1392427151
B33: Argyll & Bute | C33: =_xlfn.IFNA(VLOOKUP(CONCATENATE($B33,C$5,C$6), Tab1Data!$A$2:$H$721, $A$8, FALSE), 0) -> 7863 | D33: 21.48360656 | E33: =_xlfn.IFNA(VLOOKUP(CONCATENATE($B33,E$5,E$6), Tab1Data!$A$2:$H$721, $A$8, FALSE), 0) -> 2515 | F33: 0.3198524736 | G33: =_xlfn.IFNA(VLOOKUP(CONCATENATE($B33,G$5,G$6), Tab1Data!$A$2:$H$721, $A$8, FALSE), 0) -> 5348 | H33: 0.6801475264 | I33: =_xlfn.IFNA(VLOOKUP(CONCATENATE($B33,I$5,I$6), Tab1Data!$A$2:$H$721, $A$8, FALSE), 0) -> 6166 | J33: 0.7841790665 | K33: =_xlfn.IFNA(VLOOKUP(CONCATENATE($B33,K$5,K$6), Tab1Data!$A$2:$H$721, $A$8, FALSE), 0) -> 1697 | L33: 0.2158209335
B34: City of Edinburgh | C34: =_xlfn.IFNA(VLOOKUP(CONCATENATE($B34,C$5,C$6), Tab1Data!$A$2:$H$721, $A$8, FALSE), 0) -> 62120 | D34: 169.726776 | E34: =_xlfn.IFNA(VLOOKUP(CONCATENATE($B34,E$5,E$6), Tab1Data!$A$2:$H$721, $A$8, FALSE), 0) -> 19259 | F34: 0.3100289762 | G34: =_xlfn.IFNA(VLOOKUP(CONCATENATE($B34,G$5,G$6), Tab1Data!$A$2:$H$721, $A$8, FALSE), 0) -> 42861 | H34: 0.6899710238 | I34: =_xlfn.IFNA(VLOOKUP(CONCATENATE($B34,I$5,I$6), Tab1Data!$A$2:$H$721, $A$8, FALSE), 0) -> 53541 | J34: 0.8618963297 | K34: =_xlfn.IFNA(VLOOKUP(CONCATENATE($B34,K$5,K$6), Tab1Data!$A$2:$H$721, $A$8, FALSE), 0) -> 8579 | L34: 0.1381036703
B35: Clackmannanshire | C35: =_xlfn.IFNA(VLOOKUP(CONCATENATE($B35,C$5,C$6), Tab1Data!$A$2:$H$721, $A$8, FALSE), 0) -> 2412 | D35: 6.590163934 | E35: =_xlfn.IFNA(VLOOKUP(CONCATENATE($B35,E$5,E$6), Tab1Data!$A$2:$H$721, $A$8, FALSE), 0) -> 1073 | F35: 0.4448590381 | G35: =_xlfn.IFNA(VLOOKUP(CONCATENATE($B35,G$5,G$6), Tab1Data!$A$2:$H$721, $A$8, FALSE), 0) -> 1339 | H35: 0.5551409619 | I35: =_xlfn.IFNA(VLOOKUP(CONCATENATE($B35,I$5,I$6), Tab1Data!$A$2:$H$721, $A$8, FALSE), 0) -> 1746 | J35: 0.723880597 | K35: =_xlfn.IFNA(VLOOKUP(CONCATENATE($B35,K$5,K$6), Tab1Data!$A$2:$H$721, $A$8, FALSE), 0) -> 666 | L35: 0.276119403
B36: Comhairle nan Eilean Siar | C36: =_xlfn.IFNA(VLOOKUP(CONCATENATE($B36,C$5,C$6), Tab1Data!$A$2:$H$721, $A$8, FALSE), 0) -> 6782 | D36: 18.53005464 | E36: =_xlfn.IFNA(VLOOKUP(CONCATENATE($B36,E$5,E$6), Tab1Data!$A$2:$H$721, $A$8, FALSE), 0) -> 1905 | F36: 0.2808905927 | G36: =_xlfn.IFNA(VLOOKUP(CONCATENATE($B36,G$5,G$6), Tab1Data!$A$2:$H$721, $A$8, FALSE), 0) -> 4877 | H36: 0.7191094073 | I36: =_xlfn.IFNA(VLOOKUP(CONCATENATE($B36,I$5,I$6), Tab1Data!$A$2:$H$721, $A$8, FALSE), 0) -> 3404 | J36: 0.5019168387 | K36: =_xlfn.IFNA(VLOOKUP(CONCATENATE($B36,K$5,K$6), Tab1Data!$A$2:$H$721, $A$8, FALSE), 0) -> 3378 | L36: 0.4980831613
B37: Dumfries & Galloway | C37: =_xlfn.IFNA(VLOOKUP(CONCATENATE($B37,C$5,C$6), Tab1Data!$A$2:$H$721, $A$8, FALSE), 0) -> 19506 | D37: 53.29508197 | E37: =_xlfn.IFNA(VLOOKUP(CONCATENATE($B37,E$5,E$6), Tab1Data!$A$2:$H$721, $A$8, FALSE), 0) -> 5714 | F37: 0.292935507 | G37: =_xlfn.IFNA(VLOOKUP(CONCATENATE($B37,G$5,G$6), Tab1Data!$A$2:$H$721, $A$8, FALSE), 0) -> 13792 | H37: 0.707064493 | I37: =_xlfn.IFNA(VLOOKUP(CONCATENATE($B37,I$5,I$6), Tab1Data!$A$2:$H$721, $A$8, FALSE), 0) -> 16544 | J37: 0.8481492874 | K37: =_xlfn.IFNA(VLOOKUP(CONCATENATE($B37,K$5,K$6), Tab1Data!$A$2:$H$721, $A$8, FALSE), 0) -> 2962 | L37: 0.1518507126
B38: Dundee City | C38: =_xlfn.IFNA(VLOOKUP(CONCATENATE($B38,C$5,C$6), Tab1Data!$A$2:$H$721, $A$8, FALSE), 0) -> 9861 | D38: 26.94262295 | E38: =_xlfn.IFNA(VLOOKUP(CONCATENATE($B38,E$5,E$6), Tab1Data!$A$2:$H$721, $A$8, FALSE), 0) -> 4423 | F38: 0.4485346314 | G38: =_xlfn.IFNA(VLOOKUP(CONCATENATE($B38,G$5,G$6), Tab1Data!$A$2:$H$721, $A$8, FALSE), 0) -> 5438 | H38: 0.5514653686 | I38: =_xlfn.IFNA(VLOOKUP(CONCATENATE($B38,I$5,I$6), Tab1Data!$A$2:$H$721, $A$8, FALSE), 0) -> 6154 | J38: 0.6240746375 | K38: =_xlfn.IFNA(VLOOKUP(CONCATENATE($B38,K$5,K$6), Tab1Data!$A$2:$H$721, $A$8, FALSE), 0) -> 3707 | L38: 0.3759253625
B39: East Ayrshire | C39: =_xlfn.IFNA(VLOOKUP(CONCATENATE($B39,C$5,C$6), Tab1Data!$A$2:$H$721, $A$8, FALSE), 0) -> 3701 | D39: 10.11202186 | E39: =_xlfn.IFNA(VLOOKUP(CONCATENATE($B39,E$5,E$6), Tab1Data!$A$2:$H$721, $A$8, FALSE), 0) -> 1134 | F39: 0.3064036747 | G39: =_xlfn.IFNA(VLOOKUP(CONCATENATE($B39,G$5,G$6), Tab1Data!$A$2:$H$721, $A$8, FALSE), 0) -> 2567 | H39: 0.6935963253 | I39: =_xlfn.IFNA(VLOOKUP(CONCATENATE($B39,I$5,I$6), Tab1Data!$A$2:$H$721, $A$8, FALSE), 0) -> 1528 | J39: 0.4128613888 | K39: =_xlfn.IFNA(VLOOKUP(CONCATENATE($B39,K$5,K$6), Tab1Data!$A$2:$H$721, $A$8, FALSE), 0) -> 2173 | L39: 0.5871386112
B40: East Dunbartonshire | C40: =_xlfn.IFNA(VLOOKUP(CONCATENATE($B40,C$5,C$6), Tab1Data!$A$2:$H$721, $A$8, FALSE), 0) -> 5458 | D40: 14.91256831 | E40: =_xlfn.IFNA(VLOOKUP(CONCATENATE($B40,E$5,E$6), Tab1Data!$A$2:$H$721, $A$8, FALSE), 0) -> 1652 | F40: 0.3026749725 | G40: =_xlfn.IFNA(VLOOKUP(CONCATENATE($B40,G$5,G$6), Tab1Data!$A$2:$H$721, $A$8, FALSE), 0) -> 3806 | H40: 0.6973250275 | I40: =_xlfn.IFNA(VLOOKUP(CONCATENATE($B40,I$5,I$6), Tab1Data!$A$2:$H$721, $A$8, FALSE), 0) -> 4103 | J40: 0.7517405643 | K40: =_xlfn.IFNA(VLOOKUP(CONCATENATE($B40,K$5,K$6), Tab1Data!$A$2:$H$721, $A$8, FALSE), 0) -> 1355 | L40: 0.2482594357
B41: East Lothian | C41: =_xlfn.IFNA(VLOOKUP(CONCATENATE($B41,C$5,C$6), Tab1Data!$A$2:$H$721, $A$8, FALSE), 0) -> 4781 | D41: 13.06284153 | E41: =_xlfn.IFNA(VLOOKUP(CONCATENATE($B41,E$5,E$6), Tab1Data!$A$2:$H$721, $A$8, FALSE), 0) -> 1554 | F41: 0.3250366032 | G41: =_xlfn.IFNA(VLOOKUP(CONCATENATE($B41,G$5,G$6), Tab1Data!$A$2:$H$721, $A$8, FALSE), 0) -> 3227 | H41: 0.6749633968 | I41: =_xlfn.IFNA(VLOOKUP(CONCATENATE($B41,I$5,I$6), Tab1Data!$A$2:$H$721, $A$8, FALSE), 0) -> 4532 | J41: 0.9479188454 | K41: =_xlfn.IFNA(VLOOKUP(CONCATENATE($B41,K$5,K$6), Tab1Data!$A$2:$H$721, $A$8, FALSE), 0) -> 249 | L41: 0.05208115457
B42: East Renfrewshire | C42: =_xlfn.IFNA(VLOOKUP(CONCATENATE($B42,C$5,C$6), Tab1Data!$A$2:$H$721, $A$8, FALSE), 0) -> 1788 | D42: 4.885245902 | E42: =_xlfn.IFNA(VLOOKUP(CONCATENATE($B42,E$5,E$6), Tab1Data!$A$2:$H$721, $A$8, FALSE), 0) -> 353 | F42: 0.1974272931 | G42: =_xlfn.IFNA(VLOOKUP(CONCATENATE($B42,G$5,G$6), Tab1Data!$A$2:$H$721, $A$8, FALSE), 0) -> 1435 | H42: 0.8025727069 | I42: =_xlfn.IFNA(VLOOKUP(CONCATENATE($B42,I$5,I$6), Tab1Data!$A$2:$H$721, $A$8, FALSE), 0) -> 1475 | J42: 0.8249440716 | K42: =_xlfn.IFNA(VLOOKUP(CONCATENATE($B42,K$5,K$6), Tab1Data!$A$2:$H$721, $A$8, FALSE), 0) -> 313 | L42: 0.1750559284
B43: Falkirk | C43: =_xlfn.IFNA(VLOOKUP(CONCATENATE($B43,C$5,C$6), Tab1Data!$A$2:$H$721, $A$8, FALSE), 0) -> 19081 | D43: 52.13387978 | E43: =_xlfn.IFNA(VLOOKUP(CONCATENATE($B43,E$5,E$6), Tab1Data!$A$2:$H$721, $A$8, FALSE), 0) -> 5557 | F43: 0.2912321157 | G43: =_xlfn.IFNA(VLOOKUP(CONCATENATE($B43,G$5,G$6), Tab1Data!$A$2:$H$721, $A$8, FALSE), 0) -> 13524 | H43: 0.7087678843 | I43: =_xlfn.IFNA(VLOOKUP(CONCATENATE($B43,I$5,I$6), Tab1Data!$A$2:$H$721, $A$8, FALSE), 0) -> 13797 | J43: 0.7230753105 | K43: =_xlfn.IFNA(VLOOKUP(CONCATENATE($B43,K$5,K$6), Tab1Data!$A$2:$H$721, $A$8, FALSE), 0) -> 5284 | L43: 0.2769246895
B44: Fife | C44: =_xlfn.IFNA(VLOOKUP(CONCATENATE($B44,C$5,C$6), Tab1Data!$A$2:$H$721, $A$8, FALSE), 0) -> 41735 | D44: 114.0300546 | E44: =_xlfn.IFNA(VLOOKUP(CONCATENATE($B44,E$5,E$6), Tab1Data!$A$2:$H$721, $A$8, FALSE), 0) -> 17582 | F44: 0.4212771055 | G44: =_xlfn.IFNA(VLOOKUP(CONCATENATE($B44,G$5,G$6), Tab1Data!$A$2:$H$721, $A$8, FALSE), 0) -> 24153 | H44: 0.5787228945 | I44: =_xlfn.IFNA(VLOOKUP(CONCATENATE($B44,I$5,I$6), Tab1Data!$A$2:$H$721, $A$8, FALSE), 0) -> 29689 | J44: 0.7113693543 | K44: =_xlfn.IFNA(VLOOKUP(CONCATENATE($B44,K$5,K$6), Tab1Data!$A$2:$H$721, $A$8, FALSE), 0) -> 12046 | L44: 0.2886306457
B45: Glasgow City | C45: =_xlfn.IFNA(VLOOKUP(CONCATENATE($B45,C$5,C$6), Tab1Data!$A$2:$H$721, $A$8, FALSE), 0) -> 45318 | D45: 123.8196721 | E45: =_xlfn.IFNA(VLOOKUP(CONCATENATE($B45,E$5,E$6), Tab1Data!$A$2:$H$721, $A$8, FALSE), 0) -> 24193 | F45: 0.5338496845 | G45: =_xlfn.IFNA(VLOOKUP(CONCATENATE($B45,G$5,G$6), Tab1Data!$A$2:$H$721, $A$8, FALSE), 0) -> 21125 | H45: 0.4661503155 | I45: =_xlfn.IFNA(VLOOKUP(CONCATENATE($B45,I$5,I$6), Tab1Data!$A$2:$H$721, $A$8, FALSE), 0) -> 30509 | J45: 0.6732203539 | K45: =_xlfn.IFNA(VLOOKUP(CONCATENATE($B45,K$5,K$6), Tab1Data!$A$2:$H$721, $A$8, FALSE), 0) -> 14809 | L45: 0.3267796461
B46: Highland | C46: =_xlfn.IFNA(VLOOKUP(CONCATENATE($B46,C$5,C$6), Tab1Data!$A$2:$H$721, $A$8, FALSE), 0) -> 42611 | D46: 116.4234973 | E46: =_xlfn.IFNA(VLOOKUP(CONCATENATE($B46,E$5,E$6), Tab1Data!$A$2:$H$721, $A$8, FALSE), 0) -> 12709 | F46: 0.2982563188 | G46: =_xlfn.IFNA(VLOOKUP(CONCATENATE($B46,G$5,G$6), Tab1Data!$A$2:$H$721, $A$8, FALSE), 0) -> 29902 | H46: 0.7017436812 | I46: =_xlfn.IFNA(VLOOKUP(CONCATENATE($B46,I$5,I$6), Tab1Data!$A$2:$H$721, $A$8, FALSE), 0) -> 32462 | J46: 0.7618220647 | K46: =_xlfn.IFNA(VLOOKUP(CONCATENATE($B46,K$5,K$6), Tab1Data!$A$2:$H$721, $A$8, FALSE), 0) -> 10149 | L46: 0.2381779353
B47: Inverclyde | C47: =_xlfn.IFNA(VLOOKUP(CONCATENATE($B47,C$5,C$6), Tab1Data!$A$2:$H$721, $A$8, FALSE), 0) -> 1499 | D47: 4.095628415 | E47: =_xlfn.IFNA(VLOOKUP(CONCATENATE($B47,E$5,E$6), Tab1Data!$A$2:$H$721, $A$8, FALSE), 0) -> 275 | F47: 0.1834556371 | G47: =_xlfn.IFNA(VLOOKUP(CONCATENATE($B47,G$5,G$6), Tab1Data!$A$2:$H$721, $A$8, FALSE), 0) -> 1224 | H47: 0.8165443629 | I47: =_xlfn.IFNA(VLOOKUP(CONCATENATE($B47,I$5,I$6), Tab1Data!$A$2:$H$721, $A$8, FALSE), 0) -> 1292 | J47: 0.8619079386 | K47: =_xlfn.IFNA(VLOOKUP(CONCATENATE($B47,K$5,K$6), Tab1Data!$A$2:$H$721, $A$8, FALSE), 0) -> 207 | L47: 0.1380920614
B48: Midlothian | C48: =_xlfn.IFNA(VLOOKUP(CONCATENATE($B48,C$5,C$6), Tab1Data!$A$2:$H$721, $A$8, FALSE), 0) -> 10412 | D48: 28.44808743 | E48: =_xlfn.IFNA(VLOOKUP(CONCATENATE($B48,E$5,E$6), Tab1Data!$A$2:$H$721, $A$8, FALSE), 0) -> 3306 | F48: 0.3175182482 | G48: =_xlfn.IFNA(VLOOKUP(CONCATENATE($B48,G$5,G$6), Tab1Data!$A$2:$H$721, $A$8, FALSE), 0) -> 7106 | H48: 0.6824817518 | I48: =_xlfn.IFNA(VLOOKUP(CONCATENATE($B48,I$5,I$6), Tab1Data!$A$2:$H$721, $A$8, FALSE), 0) -> 9082 | J48: 0.8722627737 | K48: =_xlfn.IFNA(VLOOKUP(CONCATENATE($B48,K$5,K$6), Tab1Data!$A$2:$H$721, $A$8, FALSE), 0) -> 1330 | L48: 0.1277372263
B49: Moray | C49: =_xlfn.IFNA(VLOOKUP(CONCATENATE($B49,C$5,C$6), Tab1Data!$A$2:$H$721, $A$8, FALSE), 0) -> 11046 | D49: 30.18032787 | E49: =_xlfn.IFNA(VLOOKUP(CONCATENATE($B49,E$5,E$6), Tab1Data!$A$2:$H$721, $A$8, FALSE), 0) -> 3812 | F49: 0.3451022995 | G49: =_xlfn.IFNA(VLOOKUP(CONCATENATE($B49,G$5,G$6), Tab1Data!$A$2:$H$721, $A$8, FALSE), 0) -> 7234 | H49: 0.6548977005 | I49: =_xlfn.IFNA(VLOOKUP(CONCATENATE($B49,I$5,I$6), Tab1Data!$A$2:$H$721, $A$8, FALSE), 0) -> 9079 | J49: 0.8219264892 | K49: =_xlfn.IFNA(VLOOKUP(CONCATENATE($B49,K$5,K$6), Tab1Data!$A$2:$H$721, $A$8, FALSE), 0) -> 1967 | L49: 0.1780735108
B50: North Ayrshire | C50: =_xlfn.IFNA(VLOOKUP(CONCATENATE($B50,C$5,C$6), Tab1Data!$A$2:$H$721, $A$8, FALSE), 0) -> 24339 | D50: 66.5 | E50: =_xlfn.IFNA(VLOOKUP(CONCATENATE($B50,E$5,E$6), Tab1Data!$A$2:$H$721, $A$8, FALSE), 0) -> 6602 | F50: 0.2712519002 | G50: =_xlfn.IFNA(VLOOKUP(CONCATENATE($B50,G$5,G$6), Tab1Data!$A$2:$H$721, $A$8, FALSE), 0) -> 17737 | H50: 0.7287480998 | I50: =_xlfn.IFNA(VLOOKUP(CONCATENATE($B50,I$5,I$6), Tab1Data!$A$2:$H$721, $A$8, FALSE), 0) -> 21582 | J50: 0.8867250092 | K50: =_xlfn.IFNA(VLOOKUP(CONCATENATE($B50,K$5,K$6), Tab1Data!$A$2:$H$721, $A$8, FALSE), 0) -> 2757 | L50: 0.1132749908
B51: North Lanarkshire | C51: =_xlfn.IFNA(VLOOKUP(CONCATENATE($B51,C$5,C$6), Tab1Data!$A$2:$H$721, $A$8, FALSE), 0) -> 42124 | D51: 115.0928962 | E51: =_xlfn.IFNA(VLOOKUP(CONCATENATE($B51,E$5,E$6), Tab1Data!$A$2:$H$721, $A$8, FALSE), 0) -> 14183 | F51: 0.3366964201 | G51: =_xlfn.IFNA(VLOOKUP(CONCATENATE($B51,G$5,G$6), Tab1Data!$A$2:$H$721, $A$8, FALSE), 0) -> 27941 | H51: 0.6633035799 | I51: =_xlfn.IFNA(VLOOKUP(CONCATENATE($B51,I$5,I$6), Tab1Data!$A$2:$H$721, $A$8, FALSE), 0) -> 35329 | J51: 0.8386905327 | K51: =_xlfn.IFNA(VLOOKUP(CONCATENATE($B51,K$5,K$6), Tab1Data!$A$2:$H$721, $A$8, FALSE), 0) -> 6795 | L51: 0.1613094673
B52: Orkney | C52: =_xlfn.IFNA(VLOOKUP(CONCATENATE($B52,C$5,C$6), Tab1Data!$A$2:$H$721, $A$8, FALSE), 0) -> 1375 | D52: 3.756830601 | E52: =_xlfn.IFNA(VLOOKUP(CONCATENATE($B52,E$5,E$6), Tab1Data!$A$2:$H$721, $A$8, FALSE), 0) -> 240 | F52: 0.1745454545 | G52: =_xlfn.IFNA(VLOOKUP(CONCATENATE($B52,G$5,G$6), Tab1Data!$A$2:$H$721, $A$8, FALSE), 0) -> 1135 | H52: 0.8254545455 | I52: =_xlfn.IFNA(VLOOKUP(CONCATENATE($B52,I$5,I$6), Tab1Data!$A$2:$H$721, $A$8, FALSE), 0) -> 1191 | J52: 0.8661818182 | K52: =_xlfn.IFNA(VLOOKUP(CONCATENATE($B52,K$5,K$6), Tab1Data!$A$2:$H$721, $A$8, FALSE), 0) -> 184 | L52: 0.1338181818
B53: Other | C53: =_xlfn.IFNA(VLOOKUP(CONCATENATE($B53,C$5,C$6), Tab1Data!$A$2:$H$721, $A$8, FALSE), 0) -> 642 | D53: 1.754098361 | E53: =_xlfn.IFNA(VLOOKUP(CONCATENATE($B53,E$5,E$6), Tab1Data!$A$2:$H$721, $A$8, FALSE), 0) -> 372 | F53: 0.5794392523 | G53: =_xlfn.IFNA(VLOOKUP(CONCATENATE($B53,G$5,G$6), Tab1Data!$A$2:$H$721, $A$8, FALSE), 0) -> 270 | H53: 0.4205607477 | I53: =_xlfn.IFNA(VLOOKUP(CONCATENATE($B53,I$5,I$6), Tab1Data!$A$2:$H$721, $A$8, FALSE), 0) -> 434 | J53: 0.6760124611 | K53: =_xlfn.IFNA(VLOOKUP(CONCATENATE($B53,K$5,K$6), Tab1Data!$A$2:$H$721, $A$8, FALSE), 0) -> 208 | L53: 0.3239875389
B54: Perth & Kinross | C54: =_xlfn.IFNA(VLOOKUP(CONCATENATE($B54,C$5,C$6), Tab1Data!$A$2:$H$721, $A$8, FALSE), 0) -> 12414 | D54: 33.91803279 | E54: =_xlfn.IFNA(VLOOKUP(CONCATENATE($B54,E$5,E$6), Tab1Data!$A$2:$H$721, $A$8, FALSE), 0) -> 4045 | F54: 0.3258417915 | G54: =_xlfn.IFNA(VLOOKUP(CONCATENATE($B54,G$5,G$6), Tab1Data!$A$2:$H$721, $A$8, FALSE), 0) -> 8369 | H54: 0.6741582085 | I54: =_xlfn.IFNA(VLOOKUP(CONCATENATE($B54,I$5,I$6), Tab1Data!$A$2:$H$721, $A$8, FALSE), 0) -> 9712 | J54: 0.7823425165 | K54: =_xlfn.IFNA(VLOOKUP(CONCATENATE($B54,K$5,K$6), Tab1Data!$A$2:$H$721, $A$8, FALSE), 0) -> 2702 | L54: 0.2176574835
B55: Renfrewshire | C55: =_xlfn.IFNA(VLOOKUP(CONCATENATE($B55,C$5,C$6), Tab1Data!$A$2:$H$721, $A$8, FALSE), 0) -> 9221 | D55: 25.19398907 | E55: =_xlfn.IFNA(VLOOKUP(CONCATENATE($B55,E$5,E$6), Tab1Data!$A$2:$H$721, $A$8, FALSE), 0) -> 3369 | F55: 0.3653616744 | G55: =_xlfn.IFNA(VLOOKUP(CONCATENATE($B55,G$5,G$6), Tab1Data!$A$2:$H$721, $A$8, FALSE), 0) -> 5852 | H55: 0.6346383256 | I55: =_xlfn.IFNA(VLOOKUP(CONCATENATE($B55,I$5,I$6), Tab1Data!$A$2:$H$721, $A$8, FALSE), 0) -> 7472 | J55: 0.8103242598 | K55: =_xlfn.IFNA(VLOOKUP(CONCATENATE($B55,K$5,K$6), Tab1Data!$A$2:$H$721, $A$8, FALSE), 0) -> 1749 | L55: 0.1896757402
B56: Scottish Borders | C56: =_xlfn.IFNA(VLOOKUP(CONCATENATE($B56,C$5,C$6), Tab1Data!$A$2:$H$721, $A$8, FALSE), 0) -> 11811 | D56: 32.2704918 | E56: =_xlfn.IFNA(VLOOKUP(CONCATENATE($B56,E$5,E$6), Tab1Data!$A$2:$H$721, $A$8, FALSE), 0) -> 3542 | F56: 0.2998899331 | G56: =_xlfn.IFNA(VLOOKUP(CONCATENATE($B56,G$5,G$6), Tab1Data!$A$2:$H$721, $A$8, FALSE), 0) -> 8269 | H56: 0.7001100669 | I56: =_xlfn.IFNA(VLOOKUP(CONCATENATE($B56,I$5,I$6), Tab1Data!$A$2:$H$721, $A$8, FALSE), 0) -> 10341 | J56: 0.8755397511 | K56: =_xlfn.IFNA(VLOOKUP(CONCATENATE($B56,K$5,K$6), Tab1Data!$A$2:$H$721, $A$8, FALSE), 0) -> 1470 | L56: 0.1244602489
B57: Shetland | C57: =_xlfn.IFNA(VLOOKUP(CONCATENATE($B57,C$5,C$6), Tab1Data!$A$2:$H$721, $A$8, FALSE), 0) -> 1533 | D57: 4.18852459 | E57: =_xlfn.IFNA(VLOOKUP(CONCATENATE($B57,E$5,E$6), Tab1Data!$A$2:$H$721, $A$8, FALSE), 0) -> 509 | F57: 0.3320287019 | G57: =_xlfn.IFNA(VLOOKUP(CONCATENATE($B57,G$5,G$6), Tab1Data!$A$2:$H$721, $A$8, FALSE), 0) -> 1024 | H57: 0.6679712981 | I57: =_xlfn.IFNA(VLOOKUP(CONCATENATE($B57,I$5,I$6), Tab1Data!$A$2:$H$721, $A$8, FALSE), 0) -> 1530 | J57: 0.9980430528 | K57: =_xlfn.IFNA(VLOOKUP(CONCATENATE($B57,K$5,K$6), Tab1Data!$A$2:$H$721, $A$8, FALSE), 0) -> 3 | L57: 0.001956947162
B58: South Ayrshire | C58: =_xlfn.IFNA(VLOOKUP(CONCATENATE($B58,C$5,C$6), Tab1Data!$A$2:$H$721, $A$8, FALSE), 0) -> 29458 | D58: 80.4863388 | E58: =_xlfn.IFNA(VLOOKUP(CONCATENATE($B58,E$5,E$6), Tab1Data!$A$2:$H$721, $A$8, FALSE), 0) -> 7061 | F58: 0.239697196 | G58: =_xlfn.IFNA(VLOOKUP(CONCATENATE($B58,G$5,G$6), Tab1Data!$A$2:$H$721, $A$8, FALSE), 0) -> 22397 | H58: 0.760302804 | I58: =_xlfn.IFNA(VLOOKUP(CONCATENATE($B58,I$5,I$6), Tab1Data!$A$2:$H$721, $A$8, FALSE), 0) -> 25832 | J58: 0.8769094983 | K58: =_xlfn.IFNA(VLOOKUP(CONCATENATE($B58,K$5,K$6), Tab1Data!$A$2:$H$721, $A$8, FALSE), 0) -> 3626 | L58: 0.1230905017
B59: South Lanarkshire | C59: =_xlfn.IFNA(VLOOKUP(CONCATENATE($B59,C$5,C$6), Tab1Data!$A$2:$H$721, $A$8, FALSE), 0) -> 46570 | D59: 127.2404372 | E59: =_xlfn.IFNA(VLOOKUP(CONCATENATE($B59,E$5,E$6), Tab1Data!$A$2:$H$721, $A$8, FALSE), 0) -> 14665 | F59: 0.3149022976 | G59: =_xlfn.IFNA(VLOOKUP(CONCATENATE($B59,G$5,G$6), Tab1Data!$A$2:$H$721, $A$8, FALSE), 0) -> 31905 | H59: 0.6850977024 | I59: =_xlfn.IFNA(VLOOKUP(CONCATENATE($B59,I$5,I$6), Tab1Data!$A$2:$H$721, $A$8, FALSE), 0) -> 39632 | J59: 0.8510199699 | K59: =_xlfn.IFNA(VLOOKUP(CONCATENATE($B59,K$5,K$6), Tab1Data!$A$2:$H$721, $A$8, FALSE), 0) -> 6938 | L59: 0.1489800301
B60: Stirling | C60: =_xlfn.IFNA(VLOOKUP(CONCATENATE($B60,C$5,C$6), Tab1Data!$A$2:$H$721, $A$8, FALSE), 0) -> 10218 | D60: 27.91803279 | E60: =_xlfn.IFNA(VLOOKUP(CONCATENATE($B60,E$5,E$6), Tab1Data!$A$2:$H$721, $A$8, FALSE), 0) -> 3112 | F60: 0.3045605794 | G60: =_xlfn.IFNA(VLOOKUP(CONCATENATE($B60,G$5,G$6), Tab1Data!$A$2:$H$721, $A$8, FALSE), 0) -> 7106 | H60: 0.6954394206 | I60: =_xlfn.IFNA(VLOOKUP(CONCATENATE($B60,I$5,I$6), Tab1Data!$A$2:$H$721, $A$8, FALSE), 0) -> 8344 | J60: 0.8165981601 | K60: =_xlfn.IFNA(VLOOKUP(CONCATENATE($B60,K$5,K$6), Tab1Data!$A$2:$H$721, $A$8, FALSE), 0) -> 1874 | L60: 0.1834018399
B61: West Dunbartonshire | C61: =_xlfn.IFNA(VLOOKUP(CONCATENATE($B61,C$5,C$6), Tab1Data!$A$2:$H$721, $A$8, FALSE), 0) -> 5839 | D61: 15.95355191 | E61: =_xlfn.IFNA(VLOOKUP(CONCATENATE($B61,E$5,E$6), Tab1Data!$A$2:$H$721, $A$8, FALSE), 0) -> 1967 | F61: 0.3368727522 | G61: =_xlfn.IFNA(VLOOKUP(CONCATENATE($B61,G$5,G$6), Tab1Data!$A$2:$H$721, $A$8, FALSE), 0) -> 3872 | H61: 0.6631272478 | I61: =_xlfn.IFNA(VLOOKUP(CONCATENATE($B61,I$5,I$6), Tab1Data!$A$2:$H$721, $A$8, FALSE), 0) -> 4751 | J61: 0.8136667238 | K61: =_xlfn.IFNA(VLOOKUP(CONCATENATE($B61,K$5,K$6), Tab1Data!$A$2:$H$721, $A$8, FALSE), 0) -> 1088 | L61: 0.1863332762
B62: West Lothian | C62: =_xlfn.IFNA(VLOOKUP(CONCATENATE($B62,C$5,C$6), Tab1Data!$A$2:$H$721, $A$8, FALSE), 0) -> 16302 | D62: 44.54098361 | E62: =_xlfn.IFNA(VLOOKUP(CONCATENATE($B62,E$5,E$6), Tab1Data!$A$2:$H$721, $A$8, FALSE), 0) -> 4347 | F62: 0.2666543982 | G62: =_xlfn.IFNA(VLOOKUP(CONCATENATE($B62,G$5,G$6), Tab1Data!$A$2:$H$721, $A$8, FALSE), 0) -> 11955 | H62: 0.7333456018 | I62: =_xlfn.IFNA(VLOOKUP(CONCATENATE($B62,I$5,I$6), Tab1Data!$A$2:$H$721, $A$8, FALSE), 0) -> 14464 | J62: 0.8872530978 | K62: =_xlfn.IFNA(VLOOKUP(CONCATENATE($B62,K$5,K$6), Tab1Data!$A$2:$H$721, $A$8, FALSE), 0) -> 1838 | L62: 0.1127469022
B63: Scotland (adjusted to reflect revised definitions across the whole year)6,7&8 | C63: 527099 | D63: 1444.106849 | E63: 159091 | F63: 0.3018237561 | G63: 368008 | H63: 0.6981762439 | I63: 408351 | J63: 0.774714048 | K63: 118748 | L63: 0.225285952
B65: Source: Public Health Scotland Delayed Discharge Data
B66: Notes:
B67: 1. Health Board figures are based on NHS Board area of treatment; Local Authority figures are based on Local Authority of residence.
B68: 2. Delayed discharge bed days are the number of days people spend delayed in hospital following their ready for discharge date. Bed days occupied by delayed discharges are reported by calendar month; these figures have been summed to produce the annual figures above.
B69: 3. The average daily number of beds occupied by delayed discharges is calculated by dividing the total number of delayed discharge bed days in the financial year by the number of days in the year.
B70: 4. Age is calculated as at the Ready for Discharge date.
B71: 5. Reasons for delay reflect the integration of health and social care in April 2016. All bed days are assigned to the latest reason code recorded at the end of each monthly reporting period.
B72: 6. The Scotland-adjusted figure for 2016/17 consists of a 4% reduction applied to the April-June 2016 bed days to allow comparability with other financial years. This figure should be used when drawing any comparisons with the data (See note 7).
B73: 7. Revised data definitions and national data requirements were introduced on 1 July 2016. As part of the revision, the following patients are no longer recorded as delayed discharges: - Delays in non-hospital locations (e.g. care homes) - Delays for healthcare reasons. At Scotland level, the definitional changes are estimated to have resulted in a 4% reduction in bed days from July 2016 onwards. An adjusted Scotland figure has been included for 2016/17, which includes a 4% reduction applied to April-June 2016 bed days figures, making them more comparable to figures for July 2016 onwards (as per Note 6). NB: The impact of these changes varied between partnerships, with some being more affected than others; therefore comparisons before and after July 2016 may not be possible at partnership level.
B75: Link to Glossary

Sheet Tab1Data (hidden)
A1: lookup | B1: Healthboard | C1: AgeGroup | D1: ComplexNeedsFlag | E1: 2016/17 | F1: 2017/18 | G1: 2018/19 | H1: 2019/20
A2: =CONCATENATE(B2, C2, D2) -> NHS Ayrshire & Arran18-74All | B2: NHS Ayrshire & Arran | C2: 18-74 | D2: All | E2: 5809 | F2: 6668 | G2: 8865 | H2: 13813
A3: =CONCATENATE(B3, C3, D3) -> NHS Ayrshire & Arran18-74Code 9 | B3: NHS Ayrshire & Arran | C3: 18-74 | D3: Code 9 | E3: 2219 | F3: 1976 | G3: 1610 | H3: 2877
A4: NHS Ayrshire & Arran18-74Health and Social Care Reasons | B4: NHS Ayrshire & Arran | C4: 18-74 | D4: Health and Social Care Reasons | E4: 2685 | F4: 4692 | G4: 7193 | H4: 10893
A5: NHS Ayrshire & Arran18-74Patient/Carer/Family-related reasons | B5: NHS Ayrshire & Arran | C5: 18-74 | D5: Patient/Carer/Family-related reasons | E5: 0 | F5: 0 | G5: 62 | H5: 43
A6: NHS Ayrshire & Arran18-74Standard | B6: NHS Ayrshire & Arran | C6: 18-74 | D6: Standard | E6: 3590 | F6: 4692 | G6: 7255 | H6: 10936
A7: NHS Ayrshire & Arran75+All | B7: NHS Ayrshire & Arran | C7: 75+ | D7: All | E7: 26621 | F7: 27031 | G7: 33966 | H7: 40008
A8: NHS Ayrshire & Arran75+Code 9 | B8: NHS Ayrshire & Arran | C8: 75+ | D8: Code 9 | E8: 6998 | F8: 6198 | G8: 5364 | H8: 5510
A9: NHS Ayrshire & Arran75+Health and Social Care Reasons | B9: NHS Ayrshire & Arran | C9: 75+ | D9: Health and Social Care Reasons | E9: 15277 | F9: 20740 | G9: 28359 | H9: 34228
A10: NHS Ayrshire & Arran75+Patient/Carer/Family-related reasons | B10: NHS Ayrshire & Arran | C10: 75+ | D10: Patient/Carer/Family-related reasons | E10: 74 | F10: 93 | G10: 243 | H10: 270
A11: NHS Ayrshire & Arran75+Standard | B11: NHS Ayrshire & Arran | C11: 75+ | D11: Standard | E11: 19623 | F11: 20833 | G11: 28602 | H11: 34498
A12: NHS Ayrshire & ArranAllAll | B12: NHS Ayrshire & Arran | C12: All | D12: All | E12: 32430 | F12: 33699 | G12: 42831 | H12: 53821
A13: NHS Ayrshire & ArranAllCode 9 | B13: NHS Ayrshire & Arran | C13: All | D13: Code 9 | E13: 9217 | F13: 8174 | G13: 6974 | H13: 8387
A14: NHS Ayrshire & ArranAllHealth and Social Care Reasons | B14: NHS Ayrshire & Arran | C14: All | D14: Health and Social Care Reasons | E14: 17962 | F14: 25432 | G14: 35552 | H14: 45121
A15: NHS Ayrshire & ArranAllPatient/Carer/Family-related reasons | B15: NHS Ayrshire & Arran | C15: All | D15: Patient/Carer/Family-related reasons | E15: 74 | F15: 93 | G15: 305 | H15: 313
A16: NHS Ayrshire & ArranAllStandard | B16: NHS Ayrshire & Arran | C16: All | D16: Standard | E16: 23213 | F16: 25525 | G16: 35857 | H16: 45434
A17: NHS Borders18-74All | B17: NHS Borders | C17: 18-74 | D17: All | E17: 2551 | F17: 3977 | G17: 3409 | H17: 3725
A18: NHS Borders18-74Code 9 | B18: NHS Borders | C18: 18-74 | D18: Code 9 | E18: 1116 | F18: 1301 | G18: 1353 | H18: 720
A19: NHS Borders18-74Health and Social Care Reasons | B19: NHS Borders | C19: 18-74 | D19: Health and Social Care Reasons | E19: 1132 | F19: 2317 | G19: 1647 | H19: 2632
A20: NHS Borders18-74Patient/Carer/Family-related reasons | B20: NHS Borders | C20: 18-74 | D20: Patient/Carer/Family-related reasons | E20: 167 | F20: 359 | G20: 409 | H20: 373
A21: NHS Borders18-74Standard | B21: NHS Borders | C21: 18-74 | D21: Standard | E21: 1435 | F21: 2676 | G21: 2056 | H21: 3005
A22: NHS Borders75+All | B22: NHS Borders | C22: 75+ | D22: All | E22: 7612 | F22: 9876 | G22: 9235 | H22: 8135
A23: NHS Borders75+Code 9 | B23: NHS Borders | C23: 75+ | D23: Code 9 | E23: 1350 | F23: 2328 | G23: 1534 | H23: 923
A24: NHS Borders75+Health and Social Care Reasons | B24: NHS Borders | C24: 75+ | D24: Health and Social Care Reasons | E24: 4679 | F24: 7145 | G24: 7367 | H24: 6927
A25: NHS Borders75+Patient/Carer/Family-related reasons | B25: NHS Borders | C25: 75+ | D25: Patient/Carer/Family-related reasons | E25: 200 | F25: 403 | G25: 334 | H25: 285
A26: NHS Borders75+Standard | B26: NHS Borders | C26: 75+ | D26: Standard | E26: 6262 | F26: 7548 | G26: 7701 | H26: 7212
A27: NHS BordersAllAll | B27: NHS Borders | C27: All | D27: All | E27: 10163 | F27: 13853 | G27: 12644 | H27: 11860
A28: NHS BordersAllCode 9 | B28: NHS Borders | C28: All | D28: Code 9 | E28: 2466 | F28: 3629 | G28: 2887 | H28: 1643
A29: NHS BordersAllHealth and Social Care Reasons | B29: NHS Borders | C29: All | D29: Health and Social Care Reasons | E29: 5811 | F29: 9462 | G29: 9014 | H29: 9559
A30: NHS BordersAllPatient/Carer/Family-related reasons | B30: NHS Borders | C30: All | D30: Patient/Carer/Family-related reasons | E30: 367 | F30: 762 | G30: 743 | H30: 658
A31: NHS BordersAllStandard | B31: NHS Borders | C31: All | D31: Standard | E31: 7697 | F31: 10224 | G31: 9757 | H31: 10217
A32: NHS Dumfries & Galloway18-74All | B32: NHS Dumfries & Galloway | C32: 18-74 | D32: All | E32: 3034 | F32: 2947 | G32: 5226 | H32: 5675
A33: NHS Dumfries & Galloway18-74Code 9 | B33: NHS Dumfries & Galloway | C33: 18-74 | D33: Code 9 | E33: 643 | F33: 571 | G33: 1521 | H33: 1291
A34: NHS Dumfries & Galloway18-74Health and Social Care Reasons | B34: NHS Dumfries & Galloway | C34: 18-74 | D34: Health and Social Care Reasons | E34: 1540 | F34: 2299 | G34: 3568 | H34: 4241
A35: NHS Dumfries & Galloway18-74Patient/Carer/Family-related reasons | B35: NHS Dumfries & Galloway | C35: 18-74 | D35: Patient/Carer/Family-related reasons | E35: 115 | F35: 77 | G35: 137 | H35: 143
A36: NHS Dumfries & Galloway18-74Standard | B36: NHS Dumfries & Galloway | C36: 18-74 | D36: Standard | E36: 2391 | F36: 2376 | G36: 3705 | H36: 4384
A37: NHS Dumfries & Galloway75+All | B37: NHS Dumfries & Galloway | C37: 75+ | D37: All | E37: 9719 | F37: 9152 | G37: 10347 | H37: 13935
A38: NHS Dumfries & Galloway75+Code 9 | B38: NHS Dumfries & Galloway | C38: 75+ | D38: Code 9 | E38: 2081 | F38: 1157 | G38: 1278 | H38: 1706
A39: NHS Dumfries & Galloway75+Health and Social Care Reasons | B39: NHS Dumfries & Galloway | C39: 75+ | D39: Health and Social Care Reasons | E39: 5689 | F39: 7757 | G39: 8745 | H39: 11899
A40: NHS Dumfries & Galloway75+Patient/Carer/Family-related reasons | B40: NHS Dumfries & Galloway | C40: 75+ | D40: Patient/Carer/Family-related reasons | E40: 0 | F40: 238 | G40: 324 | H40: 330
A41: NHS Dumfries & Galloway75+Standard | B41: NHS Dumfries & Galloway | C41: 75+ | D41: Standard | E41: 7638 | F41: 7995 | G41: 9069 | H41: 12229
A42: NHS Dumfries & GallowayAllAll | B42: NHS Dumfries & Galloway | C42: All | D42: All | E42: 12753 | F42: 12099 | G42: 15573 | H42: 19610
A43: NHS Dumfries & GallowayAllCode 9 | B43: NHS Dumfries & Galloway | C43: All | D43: Code 9 | E43: 2724 | F43: 1728 | G43: 2799 | H43: 2997
A44: NHS Dumfries & GallowayAllHealth and Social Care Reasons | B44: NHS Dumfries & Galloway | C44: All | D44: Health and Social Care Reasons | E44: 7229 | F44: 10056 | G44: 12313 | H44: 16140
A45: NHS Dumfries & GallowayAllPatient/Carer/Family-related reasons | B45: NHS Dumfries & Galloway | C45: All | D45: Patient/Carer/Family-related reasons | E45: 115 | F45: 315 | G45: 461 | H45: 473
A46: NHS Dumfries & GallowayAllStandard | B46: NHS Dumfries & Galloway | C46: All | D46: Standard | E46: 10029 | F46: 10371 | G46: 12774 | H46: 16613
A47: NHS Fife18-74All | B47: NHS Fife | C47: 18-74 | D47: All | E47: 12066 | F47: 9077 | G47: 12845 | H47: 17236
A48: NHS Fife18-74Code 9 | B48: NHS Fife | C48: 18-74 | D48: Code 9 | E48: 3381 | F48: 3434 | G48: 4188 | H48: 6657
A49: NHS Fife18-74Health and Social Care Reasons | B49: NHS Fife | C49: 18-74 | D49: Health and Social Care Reasons | E49: 6094 | F49: 5582 | G49: 8567 | H49: 10353
A50: NHS Fife18-74Patient/Carer/Family-related reasons | B50: NHS Fife | C50: 18-74 | D50: Patient/Carer/Family-related reasons | E50: 177 | F50: 61 | G50: 90 | H50: 226
A51: NHS Fife18-74Standard | B51: NHS Fife | C51: 18-74 | D51: Standard | E51: 8685 | F51: 5643 | G51: 8657 | H51: 10579
A52: NHS Fife75+All | B52: NHS Fife | C52: 75+ | D52: All | E52: 23399 | F52: 18000 | G52: 19491 | H52: 22569
A53: NHS Fife75+Code 9 | B53: NHS Fife | C53: 75+ | D53: Code 9 | E53: 5838 | F53: 4704 | G53: 5425 | H53: 5385
A54: NHS Fife75+Health and Social Care Reasons | B54: NHS Fife | C54: 75+ | D54: Health and Social Care Reasons | E54: 13348 | F54: 13096 | G54: 13913 | H54: 16999
A55: NHS Fife75+Patient/Carer/Family-related reasons | B55: NHS Fife | C55: 75+ | D55: Patient/Carer/Family-related reasons | E55: 152 | F55: 200 | G55: 153 | H55: 185
A56: NHS Fife75+Standard | B56: NHS Fife | C56: 75+ | D56: Standard | E56: 17561 | F56: 13296 | G56: 14066 | H56: 17184
A57: NHS FifeAllAll | B57: NHS Fife | C57: All | D57: All | E57: 35465 | F57: 27077 | G57: 32336 | H57: 39805
A58: NHS FifeAllCode 9 | B58: NHS Fife | C58: All | D58: Code 9 | E58: 9219 | F58: 8138 | G58: 9613 | H58: 12042
A59: NHS FifeAllHealth and Social Care Reasons | B59: NHS Fife | C59: All | D59: Health and Social Care Reasons | E59: 19442 | F59: 18678 | G59: 22480 | H59: 27352
A60: NHS FifeAllPatient/Carer/Family-related reasons | B60: NHS Fife | C60: All | D60: Patient/Carer/Family-related reasons | E60: 329 | F60: 261 | G60: 243 | H60: 411
A61: NHS FifeAllStandard | B61: NHS Fife | C61: All | D61: Standard | E61: 26246 | F61: 18939 | G61: 22723 | H61: 27763
A62: NHS Forth Valley18-74All | B62: NHS Forth Valley | C62: 18-74 | D62: All | E62: 9316 | F62: 7352 | G62: 8850 | H62: 9923
A63: NHS Forth Valley18-74Code 9 | B63: NHS Forth Valley | C63: 18-74 | D63: Code 9 | E63: 4021 | F63: 3399 | G63: 3984 | H63: 4182
A64: NHS Forth Valley18-74Health and Social Care Reasons | B64: NHS Forth Valley | C64: 18-74 | D64: Health and Social Care Reasons | E64: 3785 | F64: 3625 | G64: 4605 | H64: 5616
A65: NHS Forth Valley18-74Patient/Carer/Family-related reasons | B65: NHS Forth Valley | C65: 18-74 | D65: Patient/Carer/Family-related reasons | E65: 410 | F65: 328 | G65: 261 | H65: 125
A66: NHS Forth Valley18-74Standard | B66: NHS Forth Valley | C66: 18-74 | D66: Standard | E66: 5295 | F66: 3953 | G66: 4866 | H66: 5741
A67: =CONCATENATE(B67, C67, D67) -> NHS Forth Valley75+All | B67: NHS Forth Valley | C67: 75+ | D67: All | E67: 21607 | F67: 18868 | G67: 23324 | H67: 22667
A68: NHS Forth Valley75+Code 9 | B68: NHS Forth Valley | C68: 75+ | D68: Code 9 | E68: 4469 | F68: 4467 | G68: 4544 | H68: 4241
A69: NHS Forth Valley75+Health and Social Care Reasons | B69: NHS Forth Valley | C69: 75+ | D69: Health and Social Care Reasons | E69: 12140 | F69: 13323 | G69: 15751 | H69: 18032
A70: NHS Forth Valley75+Patient/Carer/Family-related reasons | B70: NHS Forth Valley | C70: 75+ | D70: Patient/Carer/Family-related reasons | E70: 1088 | F70: 1078 | G70: 3029 | H70: 394
A71: NHS Forth Valley75+Standard | B71: NHS Forth Valley | C71: 75+ | D71: Standard | E71: 17138 | F71: 14401 | G71: 18780 | H71: 18426
A72: NHS Forth ValleyAllAll | B72: NHS Forth Valley | C72: All | D72: All | E72: 30923 | F72: 26220 | G72: 32174 | H72: 32590
A73: NHS Forth ValleyAllCode 9 | B73: NHS Forth Valley | C73: All | D73: Code 9 | E73: 8490 | F73: 7866 | G73: 8528 | H73: 8423
A74: NHS Forth ValleyAllHealth and Social Care Reasons | B74: NHS Forth Valley | C74: All | D74: Health and Social Care Reasons | E74: 15925 | F74: 16948 | G74: 20356 | H74: 23648
A75: NHS Forth ValleyAllPatient/Carer/Family-related reasons | B75: NHS Forth Valley | C75: All | D75: Patient/Carer/Family-related reasons | E75: 1498 | F75: 1406 | G75: 3290 | H75: 519
A76: NHS Forth ValleyAllStandard | B76: NHS Forth Valley | C76: All | D76: Standard | E76: 22433 | F76: 18354 | G76: 23646 | H76: 24167
A77: NHS Grampian18-74All | B77: NHS Grampian | C77: 18-74 | D77: All | E77: 17374 | F77: 13191 | G77: 10885 | H77: 11994
A78: NHS Grampian18-74Code 9 | B78: NHS Grampian | C78: 18-74 | D78: Code 9 | E78: 4055 | F78: 3689 | G78: 3402 | H78: 3221
A79: NHS Grampian18-74Health and Social Care Reasons | B79: NHS Grampian | C79: 18-74 | D79: Health and Social Care Reasons | E79: 9448 | F79: 8835 | G79: 7306 | H79: 8517
A80: NHS Grampian18-74Patient/Carer/Family-related reasons | B80: NHS Grampian | C80: 18-74 | D80: Patient/Carer/Family-related reasons | E80: 447 | F80: 667 | G80: 177 | H80: 256
A81: NHS Grampian18-74Standard | B81: NHS Grampian | C81: 18-74 | D81: Standard | E81: 13319 | F81: 9502 | G81: 7483 | H81: 8773
A82: NHS Grampian75+All | B82: NHS Grampian | C82: 75+ | D82: All | E82: 41722 | F82: 34600 | G82: 32650 | H82: 28715
A83: NHS Grampian75+Code 9 | B83: NHS Grampian | C83: 75+ | D83: Code 9 | E83: 6290 | F83: 4981 | G83: 3742 | H83: 3216
A84: NHS Grampian75+Health and Social Care Reasons | B84: NHS Grampian | C84: 75+ | D84: Health and Social Care Reasons | E84: 24769 | F84: 28711 | G84: 27720 | H84: 24716
A85: NHS Grampian75+Patient/Carer/Family-related reasons | B85: NHS Grampian | C85: 75+ | D85: Patient/Carer/Family-related reasons | E85: 802 | F85: 908 | G85: 1188 | H85: 783
A86: NHS Grampian75+Standard | B86: NHS Grampian | C86: 75+ | D86: Standard | E86: 35432 | F86: 29619 | G86: 28908 | H86: 25499
A87: NHS GrampianAllAll | B87: NHS Grampian | C87: All | D87: All | E87: 59096 | F87: 47791 | G87: 43535 | H87: 40709
A88: NHS GrampianAllCode 9 | B88: NHS Grampian | C88: All | D88: Code 9 | E88: 10345 | F88: 8670 | G88: 7144 | H88: 6437
A89: NHS GrampianAllHealth and Social Care Reasons | B89: NHS Grampian | C89: All | D89: Health and Social Care Reasons | E89: 34217 | F89: 37546 | G89: 35026 | H89: 33233
A90: NHS GrampianAllPatient/Carer/Family-related reasons | B90: NHS Grampian | C90: All | D90: Patient/Carer/Family-related reasons | E90: 1249 | F90: 1575 | G90: 1365 | H90: 1039
A91: NHS GrampianAllStandard | B91: NHS Grampian | C91: All | D91: Standard | E91: 48751 | F91: 39121 | G91: 36391 | H91: 34272
A92: NHS Greater Glasgow & Clyde18-74All | B92: NHS Greater Glasgow & Clyde | C92: 18-74 | D92: All | E92: 29711 | F92: 26067 | G92: 30509 | H92: 35241
A93: NHS Greater Glasgow & Clyde18-74Code 9 | B93: NHS Greater Glasgow & Clyde | C93: 18-74 | D93: Code 9 | E93: 14403 | F93: 10811 | G93: 12108 | H93: 12244
A94: NHS Greater Glasgow & Clyde18-74Health and Social Care Reasons | B94: NHS Greater Glasgow & Clyde | C94: 18-74 | D94: Health and Social Care Reasons | E94: 11582 | F94: 14431 | G94: 17207 | H94: 21442
A95: NHS Greater Glasgow & Clyde18-74Patient/Carer/Family-related reasons | B95: NHS Greater Glasgow & Clyde | C95: 18-74 | D95: Patient/Carer/Family-related reasons | E95: 492 | F95: 825 | G95: 1194 | H95: 1555
A96: NHS Greater Glasgow & Clyde18-74Standard | B96: NHS Greater Glasgow & Clyde | C96: 18-74 | D96: Standard | E96: 15308 | F96: 15256 | G96: 18401 | H96: 22997
A97: NHS Greater Glasgow & Clyde75+All | B97: NHS Greater Glasgow & Clyde | C97: 75+ | D97: All | E97: 35315 | F97: 28194 | G97: 37343 | H97: 47299
A98: NHS Greater Glasgow & Clyde75+Code 9 | B98: NHS Greater Glasgow & Clyde | C98: 75+ | D98: Code 9 | E98: 8840 | F98: 5150 | G98: 7704 | H98: 9369
A99: NHS Greater Glasgow & Clyde75+Health and Social Care Reasons | B99: NHS Greater Glasgow & Clyde | C99: 75+ | D99: Health and Social Care Reasons | E99: 17572 | F99: 21660 | G99: 27439 | H99: 35647
A100: NHS Greater Glasgow & Clyde75+Patient/Carer/Family-related reasons | B100: NHS Greater Glasgow & Clyde | C100: 75+ | D100: Patient/Carer/Family-related reasons | E100: 1061 | F100: 1384 | G100: 2200 | H100: 2283
A101: NHS Greater Glasgow & Clyde75+Standard | B101: NHS Greater Glasgow & Clyde | C101: 75+ | D101: Standard | E101: 26475 | F101: 23044 | G101: 29639 | H101: 37930
A102: NHS Greater Glasgow & ClydeAllAll | B102: NHS Greater Glasgow & Clyde | C102: All | D102: All | E102: 65026 | F102: 54261 | G102: 67852 | H102: 82540
A103: NHS Greater Glasgow & ClydeAllCode 9 | B103: NHS Greater Glasgow & Clyde | C103: All | D103: Code 9 | E103: 23243 | F103: 15961 | G103: 19812 | H103: 21613
A104: NHS Greater Glasgow & ClydeAllHealth and Social Care Reasons | B104: NHS Greater Glasgow & Clyde | C104: All | D104: Health and Social Care Reasons | E104: 29154 | F104: 36091 | G104: 44646 | H104: 57089
A105: NHS Greater Glasgow & ClydeAllPatient/Carer/Family-related reasons | B105: NHS Greater Glasgow & Clyde | C105: All | D105: Patient/Carer/Family-related reasons | E105: 1553 | F105: 2209 | G105: 3394 | H105: 3838
A106: NHS Greater Glasgow & ClydeAllStandard | B106: NHS Greater Glasgow & Clyde | C106: All | D106: Standard | E106: 41783 | F106: 38300 | G106: 48040 | H106: 60927
A107: NHS Highland18-74All | B107: NHS Highland | C107: 18-74 | D107: All | E107: 9582 | F107: 9302 | G107: 12106 | H107: 14392
A108: NHS Highland18-74Code 9 | B108: NHS Highland | C108: 18-74 | D108: Code 9 | E108: 4003 | F108: 4185 | G108: 4234 | H108: 5000
A109: NHS Highland18-74Health and Social Care Reasons | B109: NHS Highland | C109: 18-74 | D109: Health and Social Care Reasons | E109: 3825 | F109: 4685 | G109: 7554 | H109: 9292
A110: NHS Highland18-74Patient/Carer/Family-related reasons | B110: NHS Highland | C110: 18-74 | D110: Patient/Carer/Family-related reasons | E110: 556 | F110: 432 | G110: 318 | H110: 100
A111: NHS Highland18-74Standard | B111: NHS Highland | C111: 18-74 | D111: Standard | E111: 5579 | F111: 5117 | G111: 7872 | H111: 9392
A112: NHS Highland75+All | B112: NHS Highland | C112: 75+ | D112: All | E112: 38875 | F112: 33651 | G112: 33428 | H112: 34330
A113: NHS Highland75+Code 9 | B113: NHS Highland | C113: 75+ | D113: Code 9 | E113: 12033 | F113: 12987 | G113: 7480 | H113: 6584
A114: NHS Highland75+Health and Social Care Reasons | B114: NHS Highland | C114: 75+ | D114: Health and Social Care Reasons | E114: 17256 | F114: 18528 | G114: 25267 | H114: 26700
A115: NHS Highland75+Patient/Carer/Family-related reasons | B115: NHS Highland | C115: 75+ | D115: Patient/Carer/Family-related reasons | E115: 3780 | F115: 2136 | G115: 681 | H115: 1046
A116: NHS Highland75+Standard | B116: NHS Highland | C116: 75+ | D116: Standard | E116: 26842 | F116: 20664 | G116: 25948 | H116: 27746
A117: NHS HighlandAllAll | B117: NHS Highland | C117: All | D117: All | E117: 48457 | F117: 42953 | G117: 45534 | H117: 48722
A118: NHS HighlandAllCode 9 | B118: NHS Highland | C118: All | D118: Code 9 | E118: 16036 | F118: 17172 | G118: 11714 | H118: 11584
A119: NHS HighlandAllHealth and Social Care Reasons | B119: NHS Highland | C119: All | D119: Health and Social Care Reasons | E119: 21081 | F119: 23213 | G119: 32821 | H119: 35992
A120: NHS HighlandAllPatient/Carer/Family-related reasons | B120: NHS Highland | C120: All | D120: Patient/Carer/Family-related reasons | E120: 4336 | F120: 2568 | G120: 999 | H120: 1146
A121: NHS HighlandAllStandard | B121: NHS Highland | C121: All | D121: Standard | E121: 32421 | F121: 25781 | G121: 33820 | H121: 37138
A122: NHS Lanarkshire18-74All | B122: NHS Lanarkshire | C122: 18-74 | D122: All | E122: 20840 | F122: 21157 | G122: 19245 | H122: 27011
A123: NHS Lanarkshire18-74Code 9 | B123: NHS Lanarkshire | C123: 18-74 | D123: Code 9 | E123: 3690 | F123: 4518 | G123: 3573 | H123: 5999
A124: NHS Lanarkshire18-74Health and Social Care Reasons | B124: NHS Lanarkshire | C124: 18-74 | D124: Health and Social Care Reasons | E124: 12296 | F124: 15995 | G124: 15553 | H124: 20647
A125: NHS Lanarkshire18-74Patient/Carer/Family-related reasons | B125: NHS Lanarkshire | C125: 18-74 | D125: Patient/Carer/Family-related reasons | E125: 468 | F125: 644 | G125: 119 | H125: 365
A126: NHS Lanarkshire18-74Standard | B126: NHS Lanarkshire | C126: 18-74 | D126: Standard | E126: 17150 | F126: 16639 | G126: 15672 | H126: 21012
A127: NHS Lanarkshire75+All | B127: NHS Lanarkshire | C127: 75+ | D127: All | E127: 53945 | F127: 51128 | G127: 47057 | H127: 53761
A128: NHS Lanarkshire75+Code 9 | B128: NHS Lanarkshire | C128: 75+ | D128: Code 9 | E128: 4752 | F128: 4794 | G128: 5018 | H128: 5926
A129: NHS Lanarkshire75+Health and Social Care Reasons | B129: NHS Lanarkshire | C129: 75+ | D129: Health and Social Care Reasons | E129: 32384 | F129: 43012 | G129: 41156 | H129: 46697
A130: NHS Lanarkshire75+Patient/Carer/Family-related reasons | B130: NHS Lanarkshire | C130: 75+ | D130: Patient/Carer/Family-related reasons | E130: 3375 | F130: 3322 | G130: 883 | H130: 1138
A131: =CONCATENATE(B131, C131, D131) -> NHS Lanarkshire75+Standard | B131: NHS Lanarkshire | C131: 75+ | D131: Standard | E131: 49193 | F131: 46334 | G131: 42039 | H131: 47835
A132: NHS LanarkshireAllAll | B132: NHS Lanarkshire | C132: All | D132: All | E132: 74785 | F132: 72285 | G132: 66302 | H132: 80772
A133: NHS LanarkshireAllCode 9 | B133: NHS Lanarkshire | C133: All | D133: Code 9 | E133: 8442 | F133: 9312 | G133: 8591 | H133: 11925
A134: NHS LanarkshireAllHealth and Social Care Reasons | B134: NHS Lanarkshire | C134: All | D134: Health and Social Care Reasons | E134: 44680 | F134: 59007 | G134: 56709 | H134: 67344
A135: NHS LanarkshireAllPatient/Carer/Family-related reasons | B135: NHS Lanarkshire | C135: All | D135: Patient/Carer/Family-related reasons | E135: 3843 | F135: 3966 | G135: 1002 | H135: 1503
A136: NHS LanarkshireAllStandard | B136: NHS Lanarkshire | C136: All | D136: Standard | E136: 66343 | F136: 62973 | G136: 57711 | H136: 68847
A137: NHS Lothian18-74All | B137: NHS Lothian | C137: 18-74 | D137: All | E137: 34130 | F137: 35899 | G137: 35170 | H137: 28701
A138: NHS Lothian18-74Code 9 | B138: NHS Lothian | C138: 18-74 | D138: Code 9 | E138: 4344 | F138: 6450 | G138: 3611 | H138: 4196
A139: NHS Lothian18-74Health and Social Care Reasons | B139: NHS Lothian | C139: 18-74 | D139: Health and Social Care Reasons | E139: 22958 | F139: 28905 | G139: 30549 | H139: 23713
A140: NHS Lothian18-74Patient/Carer/Family-related reasons | B140: NHS Lothian | C140: 18-74 | D140: Patient/Carer/Family-related reasons | E140: 302 | F140: 544 | G140: 1010 | H140: 792
A141: NHS Lothian18-74Standard | B141: NHS Lothian | C141: 18-74 | D141: Standard | E141: 29786 | F141: 29449 | G141: 31559 | H141: 24505
A142: NHS Lothian75+All | B142: NHS Lothian | C142: 75+ | D142: All | E142: 76656 | F142: 84311 | G142: 88878 | H142: 65108
A143: NHS Lothian75+Code 9 | B143: NHS Lothian | C143: 75+ | D143: Code 9 | E143: 7815 | F143: 7963 | G143: 6742 | H143: 7707
A144: NHS Lothian75+Health and Social Care Reasons | B144: NHS Lothian | C144: 75+ | D144: Health and Social Care Reasons | E144: 53422 | F144: 74769 | G144: 80119 | H144: 55424
A145: NHS Lothian75+Patient/Carer/Family-related reasons | B145: NHS Lothian | C145: 75+ | D145: Patient/Carer/Family-related reasons | E145: 848 | F145: 1579 | G145: 2017 | H145: 1977
A146: NHS Lothian75+Standard | B146: NHS Lothian | C146: 75+ | D146: Standard | E146: 68841 | F146: 76348 | G146: 82136 | H146: 57401
A147: NHS LothianAllAll | B147: NHS Lothian | C147: All | D147: All | E147: 110786 | F147: 120210 | G147: 124048 | H147: 93809
A148: NHS LothianAllCode 9 | B148: NHS Lothian | C148: All | D148: Code 9 | E148: 12159 | F148: 14413 | G148: 10353 | H148: 11903
A149: NHS LothianAllHealth and Social Care Reasons | B149: NHS Lothian | C149: All | D149: Health and Social Care Reasons | E149: 76380 | F149: 103674 | G149: 110668 | H149: 79137
A150: NHS LothianAllPatient/Carer/Family-related reasons | B150: NHS Lothian | C150: All | D150: Patient/Carer/Family-related reasons | E150: 1150 | F150: 2123 | G150: 3027 | H150: 2769
A151: NHS LothianAllStandard | B151: NHS Lothian | C151: All | D151: Standard | E151: 98627 | F151: 105797 | G151: 113695 | H151: 81906
A152: NHS Orkney18-74All | B152: NHS Orkney | C152: 18-74 | D152: All | E152: 308 | F152: 232 | G152: 70 | H152: 109
A153: NHS Orkney18-74Code 9 | B153: NHS Orkney | C153: 18-74 | D153: Code 9 | E153: 200 | F153: 177 | G153: 52 | H153: 52
A154: NHS Orkney18-74Health and Social Care Reasons | B154: NHS Orkney | C154: 18-74 | D154: Health and Social Care Reasons | E154: 101 | F154: 55 | G154: 18 | H154: 57
A155: NHS Orkney18-74Patient/Carer/Family-related reasons | B155: NHS Orkney | C155: 18-74 | D155: Patient/Carer/Family-related reasons | E155: 3 | F155: 0 | G155: 0 | H155: 0
A156: NHS Orkney18-74Standard | B156: NHS Orkney | C156: 18-74 | D156: Standard | E156: 108 | F156: 55 | G156: 18 | H156: 57
A157: NHS Orkney75+All | B157: NHS Orkney | C157: 75+ | D157: All | E157: 841 | F157: 421 | G157: 165 | H157: 484
A158: NHS Orkney75+Code 9 | B158: NHS Orkney | C158: 75+ | D158: Code 9 | E158: 351 | F158: 322 | G158: 34 | H158: 132
A159: NHS Orkney75+Health and Social Care Reasons | B159: NHS Orkney | C159: 75+ | D159: Health and Social Care Reasons | E159: 341 | F159: 99 | G159: 126 | H159: 349
A160: NHS Orkney75+Patient/Carer/Family-related reasons | B160: NHS Orkney | C160: 75+ | D160: Patient/Carer/Family-related reasons | E160: 24 | F160: 0 | G160: 5 | H160: 3
A161: NHS Orkney75+Standard | B161: NHS Orkney | C161: 75+ | D161: Standard | E161: 490 | F161: 99 | G161: 131 | H161: 352
A162: NHS OrkneyAllAll | B162: NHS Orkney | C162: All | D162: All | E162: 1149 | F162: 653 | G162: 235 | H162: 593
A163: NHS OrkneyAllCode 9 | B163: NHS Orkney | C163: All | D163: Code 9 | E163: 551 | F163: 499 | G163: 86 | H163: 184
A164: NHS OrkneyAllHealth and Social Care Reasons | B164: NHS Orkney | C164: All | D164: Health and Social Care Reasons | E164: 442 | F164: 154 | G164: 144 | H164: 406
A165: NHS OrkneyAllPatient/Carer/Family-related reasons | B165: NHS Orkney | C165: All | D165: Patient/Carer/Family-related reasons | E165: 27 | F165: 0 | G165: 5 | H165: 3
A166: NHS OrkneyAllStandard | B166: NHS Orkney | C166: All | D166: Standard | E166: 598 | F166: 154 | G166: 149 | H166: 409
A167: NHS Scotland18-74All | B167: NHS Scotland | C167: 18-74 | D167: All | E167: 160632 | F167: 152685 | G167: 161190 | H167: 181471
A168: NHS Scotland18-74Code 9 | B168: NHS Scotland | C168: 18-74 | D168: Code 9 | E168: 49129 | F168: 48386 | G168: 47170 | H168: 52060
A169: NHS Scotland18-74Health and Social Care Reasons | B169: NHS Scotland | C169: 18-74 | D169: Health and Social Care Reasons | E169: 82461 | F169: 99756 | G169: 109842 | H169: 125321
A170: NHS Scotland18-74Patient/Carer/Family-related reasons | B170: NHS Scotland | C170: 18-74 | D170: Patient/Carer/Family-related reasons | E170: 3485 | F170: 4543 | G170: 4178 | H170: 4090
A171: NHS Scotland18-74Standard | B171: NHS Scotland | C171: 18-74 | D171: Standard | E171: 111503 | F171: 104299 | G171: 114020 | H171: 129411
A172: NHS Scotland75+All | B172: NHS Scotland | C172: 75+ | D172: All | E172: 371791 | F172: 341438 | G172: 360582 | H172: 360733
A173: NHS Scotland75+Code 9 | B173: NHS Scotland | C173: 75+ | D173: Code 9 | E173: 70953 | F173: 60279 | G173: 54445 | H173: 55311
A174: NHS Scotland75+Health and Social Care Reasons | B174: NHS Scotland | C174: 75+ | D174: Health and Social Care Reasons | E174: 214615 | F174: 269052 | G174: 293871 | H174: 295972
A175: NHS Scotland75+Patient/Carer/Family-related reasons | B175: NHS Scotland | C175: 75+ | D175: Patient/Carer/Family-related reasons | E175: 12023 | F175: 12107 | G175: 12266 | H175: 9450
A176: NHS Scotland75+Standard | B176: NHS Scotland | C176: 75+ | D176: Standard | E176: 300838 | F176: 281159 | G176: 306137 | H176: 305422
A177: NHS ScotlandAllAll | B177: NHS Scotland | C177: All | D177: All | E177: 532423 | F177: 494123 | G177: 521772 | H177: 542204
A178: NHS ScotlandAllCode 9 | B178: NHS Scotland | C178: All | D178: Code 9 | E178: 120082 | F178: 108665 | G178: 101615 | H178: 107371
A179: NHS ScotlandAllHealth and Social Care Reasons | B179: NHS Scotland | C179: All | D179: Health and Social Care Reasons | E179: 297076 | F179: 368808 | G179: 403713 | H179: 421293
A180: NHS ScotlandAllPatient/Carer/Family-related reasons | B180: NHS Scotland | C180: All | D180: Patient/Carer/Family-related reasons | E180: 15508 | F180: 16650 | G180: 16444 | H180: 13540
A181: NHS ScotlandAllStandard | B181: NHS Scotland | C181: All | D181: Standard | E181: 412341 | F181: 385458 | G181: 420157 | H181: 434833
A182: NHS Shetland18-74All | B182: NHS Shetland | C182: 18-74 | D182: All | E182: 166 | F182: 341 | G182: 249 | H182: 494
A183: NHS Shetland18-74Code 9 | B183: NHS Shetland | C183: 18-74 | D183: Code 9 | E183: 0 | F183: 12 | G183: 40 | H183: 3
A184: NHS Shetland18-74Health and Social Care Reasons | B184: NHS Shetland | C184: 18-74 | D184: Health and Social Care Reasons | E184: 155 | F184: 238 | G184: 194 | H184: 488
A185: NHS Shetland18-74Patient/Carer/Family-related reasons | B185: NHS Shetland | C185: 18-74 | D185: Patient/Carer/Family-related reasons | E185: 0 | F185: 91 | G185: 15 | H185: 3
A186: NHS Shetland18-74Standard | B186: NHS Shetland | C186: 18-74 | D186: Standard | E186: 166 | F186: 329 | G186: 209 | H186: 491
A187: NHS Shetland75+All | B187: NHS Shetland | C187: 75+ | D187: All | E187: 891 | F187: 762 | G187: 1126 | H187: 1011
A188: NHS Shetland75+Code 9 | B188: NHS Shetland | C188: 75+ | D188: Code 9 | E188: 0 | F188: 9 | G188: 37 | H188: 0
A189: NHS Shetland75+Health and Social Care Reasons | B189: NHS Shetland | C189: 75+ | D189: Health and Social Care Reasons | E189: 691 | F189: 710 | G189: 1019 | H189: 922
A190: NHS Shetland75+Patient/Carer/Family-related reasons | B190: NHS Shetland | C190: 75+ | D190: Patient/Carer/Family-related reasons | E190: 41 | F190: 43 | G190: 70 | H190: 89
A191: NHS Shetland75+Standard | B191: NHS Shetland | C191: 75+ | D191: Standard | E191: 891 | F191: 753 | G191: 1089 | H191: 1011
A192: NHS ShetlandAllAll | B192: NHS Shetland | C192: All | D192: All | E192: 1057 | F192: 1103 | G192: 1375 | H192: 1505
A193: NHS ShetlandAllCode 9 | B193: NHS Shetland | C193: All | D193: Code 9 | E193: 0 | F193: 21 | G193: 77 | H193: 3
A194: NHS ShetlandAllHealth and Social Care Reasons | B194: NHS Shetland | C194: All | D194: Health and Social Care Reasons | E194: 846 | F194: 948 | G194: 1213 | H194: 1410
A195: =CONCATENATE(B195, C195, D195) -> NHS ShetlandAllPatient/Carer/Family-related reasons | B195: NHS Shetland | C195: All | D195: Patient/Carer/Family-related reasons | E195: 41 | F195: 134 | G195: 85 | H195: 92
A196: NHS ShetlandAllStandard | B196: NHS Shetland | C196: All | D196: Standard | E196: 1057 | F196: 1082 | G196: 1298 | H196: 1502
A197: NHS Tayside18-74All | B197: NHS Tayside | C197: 18-74 | D197: All | E197: 13546 | F197: 15451 | G197: 12317 | H197: 11446
A198: NHS Tayside18-74Code 9 | B198: NHS Tayside | C198: 18-74 | D198: Code 9 | E198: 6639 | F198: 7501 | G198: 6833 | H198: 4816
A199: NHS Tayside18-74Health and Social Care Reasons | B199: NHS Tayside | C199: 18-74 | D199: Health and Social Care Reasons | E199: 5175 | F199: 7486 | G199: 5105 | H199: 6539
A200: NHS Tayside18-74Patient/Carer/Family-related reasons | B200: NHS Tayside | C200: 18-74 | D200: Patient/Carer/Family-related reasons | E200: 348 | F200: 464 | G200: 379 | H200: 91
... 521 more rows

Sheet Tab 2
B1: =Guide!B1 -> 
B2: Table 2. Delayed discharge bed days: Comparable trend, Scotland (adjusted); 2016/17- 2019/20
B3: Revised data definitions and national data requirements were introduced from 1 July 2016. At Scotland level, the definitional changes are estimated to have resulted in a 4% reduction in bed days from July 2016 onwards. To enable a year-on-year comparison, figures for Apr 2016 - Jun 2016 have been reduced by 4% and the annual total for 2016-17 are shown in italics.
B5: Bed days occupied by delayed discharges | C5: Month | O5: Total
B6: Year 1,2 | C6: Apr | D6: May | E6: Jun | F6: Jul | G6: Aug | H6: Sep | I6: Oct | J6: Nov | K6: Dec | L6: Jan | M6: Feb | N6: Mar
B7: 2016-17 - adjusted to reflect revised definitions across the whole year | C7: 42220.8 | D7: 42532.8 | E7: 43030.08 | F7: 43919 | G7: 45551 | H7: 45074 | I7: 48104 | J7: 45639 | K7: 45067 | L7: 44222 | M7: 40246 | N7: 41493 | O7: =SUM(C7:N7) -> 527098.68
B8: 2017-18 | C8: 40925 | D8: 39651 | E8: 39252 | F8: 40667 | G8: 41632 | H8: 42110 | I8: 44494 | J8: 42320 | K8: 41898 | L8: 40152 | M8: 38394 | N8: 42628 | O8: =SUM(C8:N8) -> 494123
B9: 2018-19 | C9: 41453 | D9: 43244 | E9: 42375 | F9: 43511 | G9: 43672 | H9: 45470 | I9: 47302 | J9: 43918 | K9: 42732 | L9: 43863 | M9: 40813 | N9: 43419 | O9: =SUM(C9:N9) -> 521772
B10: 2019-20 | C10: 40994 | D10: 45061 | E10: 42252 | F10: 45396 | G10: 46897 | H10: 45632 | I10: 46240 | J10: 44915 | K10: 45404 | L10: 47529 | M10: 46875 | N10: 45009 | O10: =SUM(C10:N10) -> 542204
B12: Average daily number of beds occupied by delayed discharges3 | C12: Month | O12: Comparable annual average | P12: Annual percentage change to previous year
B13: Year 1,2 | C13: Apr | D13: May | E13: Jun | F13: Jul | G13: Aug | H13: Sep | I13: Oct | J13: Nov | K13: Dec | L13: Jan | M13: Feb | N13: Mar
B14: 2016-17 - adjusted to reflect revised definitions across the whole year | C14: =C7/30 -> 1407.36 | D14: =D7/31 -> 1372.025806 | E14: =E7/30 -> 1434.336 | F14: =F7/31 -> 1416.741935 | G14: 1469.387097 | H14: =H7/30 -> 1502.466667 | I14: =I7/31 -> 1551.741935 | J14: =J7/30 -> 1521.3 | K14: =K7/31 -> 1453.774194 | L14: 1426.516129 | M14: =M7/28 -> 1437.357143 | N14: =N7/31 -> 1338.483871 | O14: =O7/365 -> 1444.105973
B15: 2017-18 | C15: =C8/30 -> 1364.166667 | D15: =D8/31 -> 1279.064516 | E15: =E8/30 -> 1308.4 | F15: 1311.83871 | G15: 1342.967742 | H15: =H8/30 -> 1403.666667 | I15: =I8/31 -> 1435.290323 | J15: =J8/30 -> 1410.666667 | K15: 1351.548387 | L15: 1295.225806 | M15: =M8/28 -> 1371.214286 | N15: =N8/31 -> 1375.096774 | O15: =O8/365 -> 1353.761644 | P15: =(O15-O14)/O14 -> -0.06256073341
B16: 2018-19 | C16: =C9/30 -> 1381.766667 | D16: =D9/31 -> 1394.967742 | E16: =E9/30 -> 1412.5 | F16: 1403.580645 | G16: 1408.774194 | H16: =H9/30 -> 1515.666667 | I16: =I9/31 -> 1525.870968 | J16: =J9/30 -> 1463.933333 | K16: 1378.451613 | L16: 1414.935484 | M16: =M9/28 -> 1457.607143 | N16: =N9/31 -> 1400.612903 | O16: 1429.512329 | P16: =(O16-O15)/O15 -> 0.05595570334
B17: 2019-20 | C17: =C10/30 -> 1366.466667 | D17: =D10/31 -> 1453.580645 | E17: =E10/30 -> 1408.4 | F17: 1464.387097 | G17: 1512.806452 | H17: =H10/30 -> 1521.066667 | I17: =I10/31 -> 1491.612903 | J17: =J10/30 -> 1497.166667 | K17: 1464.645161 | L17: 1533.193548 | M17: =M10/29 -> 1616.37931 | N17: =N10/31 -> 1451.903226 | O17: =O10/366 -> 1481.431694 | P17: =(O17-O16)/O16 -> 0.03631963445
B19: Source: Public Health Scotland Delayed Discharge Data
B41: Notes:
B42: 1. Revised data definitions and national data requirements were introduced on 1 July 2016. - At Scotland level, the definitional changes are estimated to have resulted in a 4% reduction in bed days from July 2016 onwards (see link to Technical Document below). - To enable a year-on-year comparison, figures from Apr 2016 - Jun 2016 have been reduced by 4% and are shown in italics. NB: The impact of these changes varied between partnerships, with some being more affected than others; therefore comparisons before and after July 2016 may not be possible at partnership level.
B43: 2. Previous annual comparisons are available in the 2016/17 annual publication.
B44: 3. PHS considers the daily average a better statistic for comparing month on month differences as the number of days in a month varies.
B45: Link to Technical Document
B46: Link to Glossary

Sheet Tab 3
B1: =Guide!B1 -> 
B2: ="Table 3. Delayed discharge bed days as a proportion of all occupied bed days: "&$A$5 -> Table 3. Delayed discharge bed days as a proportion of all occupied bed days: April 2018 - March 2019
B3: The information in this tab has not been updated in this release. Please note that 2019/20 data for all occupied bed days will be available in a planned revision of this publication due to be released in October 2020.
B4: =IF($A$7=1, "Healthboard and local authority figures have not been adjusted for the definitional changes therefore it is not possible to compare 2016/17 with other financial years at this level.", " ") -> 
A5: =VLOOKUP(A7, lookups!A2:C4, 3, FALSE) -> April 2018 - March 2019
A6: =VLOOKUP(A7, lookups!A2:C4, 2, FALSE) -> 2018/19 | B6: Select year:
A7: 3 | C7: 4 | D7: 5
A8: ="Delayed discharge bed days as a percentage of all occupied bed days;"&" "&$A$5 -> Delayed discharge bed days as a percentage of all occupied bed days; April 2018 - March 2019 | B8: NHS Board of treatment1 | C8: ="Delayed discharge bed days " &$A$6 -> Delayed discharge bed days 2018/19 | D8: ="All occupied beds "&IF(A7=4,$A$6&" p",$A$6) -> All occupied beds 2018/19 | E8: Delayed discharge bed days as a percentage of all occupied bed days | Q8: NHS Board of treatment | R8: Annual number of bed days occupied by delayed discharges | S8: Total number of occupied beds (staffed beds x occupancy rate) | T8: Delayed discharge bed days as a percentage of total occupied bed days | V8: Scotland | W8: 2016/17 | AA8: 2017/18 | AE8: 2018/19
A9: ="Scotland " & TEXT(E9, "0.0%") -> Scotland 8.5% | B9: Scotland | C9: =SUM(C10:C23) -> 521772 | D9: =SUM(D10:D23) -> 6164576.978 | E9: =C9/D9 -> 0.08464035762 | Q9: =IF($A$7=2,AA9,IF($A$7=3,AE9,W9)) -> NHS Orkney | R9: =IF($A$7=2,AB9,IF($A$7=3,AF9,X9)) -> 235 | S9: =IF($A$7=2,AC9,IF($A$7=3,AG9,Y9)) -> 14915 | T9: =IF($A$7=2,AD9,IF($A$7=3,AH9,Z9)) -> 0.01575595039 | U9: =SUM(100%-T9) -> 0.9842440496 | V9: =$E$9 -> 0.08464035762 | W9: NHS Greater Glasgow & Clyde | X9: 65026 | Y9: 1855543.2 | Z9: 0.03504418544 | AA9: NHS Greater Glasgow & Clyde | AB9: 54261 | AC9: 1773726.333 | AD9: 0.03059152868 | AE9: NHS Orkney | AF9: 235 | AG9: 14915 | AH9: =AF9/AG9 -> 0.01575595039
B10: NHS Ayrshire & Arran | C10: =VLOOKUP($B10 & $A$6, Tab3Data!$A$2:$E$43, C$7, FALSE) -> 42831 | D10: =VLOOKUP($B10 & $A$6, Tab3Data!$A$2:$E$43, D$7, FALSE) -> 455119 | E10: 0.09410945269 | Q10: =IF($A$7=2,AA10,IF($A$7=3,AE10,W10)) -> NHS Greater Glasgow & Clyde | R10: =IF($A$7=2,AB10,IF($A$7=3,AF10,X10)) -> 67852 | S10: =IF($A$7=2,AC10,IF($A$7=3,AG10,Y10)) -> 1720665 | T10: =IF($A$7=2,AD10,IF($A$7=3,AH10,Z10)) -> 0.03943359108 | U10: =SUM(100%-T10) -> 0.9605664089 | V10: =$E$9 -> 0.08464035762 | W10: NHS Ayrshire & Arran | X10: 32430 | Y10: 484898.85 | Z10: 0.06687992764 | AA10: NHS Orkney | AB10: 653 | AC10: 13959 | AD10: 0.04677985529 | AE10: NHS Greater Glasgow & Clyde | AF10: 67852 | AG10: 1720665 | AH10: 0.03943359108
B11: NHS Borders | C11: =VLOOKUP($B11 & $A$6, Tab3Data!$A$2:$E$43, C$7, FALSE) -> 12644 | D11: =VLOOKUP($B11 & $A$6, Tab3Data!$A$2:$E$43, D$7, FALSE) -> 124757 | E11: 0.1013490225 | Q11: NHS Tayside | R11: 30170 | S11: 468623 | T11: 0.06438010938 | U11: 0.9356198906 | V11: 0.08464035762 | W11: NHS Dumfries & Galloway | X11: 12753 | Y11: 174148.8 | Z11: 0.07323047876 | AA11: NHS Ayrshire & Arran | AB11: 33699 | AC11: 487185 | AD11: 0.06917084886 | AE11: NHS Tayside | AF11: 30170 | AG11: 468623 | AH11: 0.06438010938
B12: NHS Dumfries & Galloway | C12: =VLOOKUP($B12 & $A$6, Tab3Data!$A$2:$E$43, C$7, FALSE) -> 15573 | D12: =VLOOKUP($B12 & $A$6, Tab3Data!$A$2:$E$43, D$7, FALSE) -> 175368 | E12: 0.08880183386 | Q12: NHS Grampian | R12: 43535 | S12: 542489 | T12: 0.08025047512 | U12: 0.9197495249 | V12: 0.08464035762 | W12: NHS Orkney | X12: 1149 | Y12: 15023.4 | Z12: 0.07648069012 | AA12: NHS Dumfries & Galloway | AB12: 12099 | AC12: 172423 | AD12: 0.0701704529 | AE12: NHS Grampian | AF12: 43535 | AG12: 542489 | AH12: 0.08025047512
B13: NHS Fife | C13: =VLOOKUP($B13 & $A$6, Tab3Data!$A$2:$E$43, C$7, FALSE) -> 32336 | D13: =VLOOKUP($B13 & $A$6, Tab3Data!$A$2:$E$43, D$7, FALSE) -> 363474.4419 | E13: 0.08896361414 | Q13: NHS Dumfries & Galloway | R13: 15573 | S13: 175368 | T13: 0.08880183386 | U13: 0.9111981661 | V13: 0.08464035762 | W13: NHS Borders | X13: 10163 | Y13: 130582.4 | Z13: 0.07782825251 | AA13: NHS Tayside | AB13: 36096 | AC13: 485846 | AD13: 0.07429514702 | AE13: NHS Dumfries & Galloway | AF13: 15573 | AG13: 175368 | AH13: 0.08880183386
B14: NHS Forth Valley | C14: =VLOOKUP($B14 & $A$6, Tab3Data!$A$2:$E$43, C$7, FALSE) -> 32174 | D14: =VLOOKUP($B14 & $A$6, Tab3Data!$A$2:$E$43, D$7, FALSE) -> 330795 | E14: 0.09726265512 | Q14: NHS Fife | R14: 32336 | S14: 363474.4419 | T14: 0.08896361414 | U14: 0.9110363859 | V14: 0.08464035762 | W14: NHS Forth Valley | X14: 30923 | Y14: 340767.65 | Z14: 0.09074511621 | AA14: NHS Fife | AB14: 27077 | AC14: 359995 | AD14: 0.07521493354 | AE14: NHS Fife | AF14: 32336 | AG14: 363474.4419 | AH14: 0.08896361414
B15: NHS Grampian | C15: =VLOOKUP($B15 & $A$6, Tab3Data!$A$2:$E$43, C$7, FALSE) -> 43535 | D15: =VLOOKUP($B15 & $A$6, Tab3Data!$A$2:$E$43, D$7, FALSE) -> 542489 | E15: 0.08025047512 | Q15: NHS Ayrshire & Arran | R15: 42831 | S15: 455119 | T15: 0.09410945269 | U15: 0.9058905473 | V15: 0.08464035762 | W15: NHS Tayside | X15: 41437 | Y15: 446303.75 | Z15: 0.09284483942 | AA15: NHS Forth Valley | AB15: 26220 | AC15: 336577 | AD15: 0.07790193626 | AE15: NHS Ayrshire & Arran | AF15: 42831 | AG15: 455119 | AH15: 0.09410945269
B16: NHS Greater Glasgow & Clyde | C16: =VLOOKUP($B16 & $A$6, Tab3Data!$A$2:$E$43, C$7, FALSE) -> 67852 | D16: =VLOOKUP($B16 & $A$6, Tab3Data!$A$2:$E$43, D$7, FALSE) -> 1720665 | E16: 0.03943359108 | Q16: NHS Forth Valley | R16: 32174 | S16: 330795 | T16: 0.09726265512 | U16: 0.9027373449 | V16: 0.08464035762 | W16: NHS Fife | X16: 35465 | Y16: 375621.5 | Z16: 0.09441685314 | AA16: NHS Grampian | AB16: 47791 | AC16: 562158 | AD16: 0.08501346597 | AE16: NHS Forth Valley | AF16: 32174 | AG16: 330795 | AH16: 0.09726265512
B17: NHS Highland | C17: =VLOOKUP($B17 & $A$6, Tab3Data!$A$2:$E$43, C$7, FALSE) -> 45534 | D17: =VLOOKUP($B17 & $A$6, Tab3Data!$A$2:$E$43, D$7, FALSE) -> 294373 | E17: 0.1546813057 | Q17: NHS Borders | R17: 12644 | S17: 124757 | T17: 0.1013490225 | U17: 0.8986509775 | V17: 0.08464035762 | W17: NHS Shetland | X17: 1057 | Y17: 10840.5 | Z17: 0.09750472764 | AA17: NHS Borders | AB17: 13853 | AC17: 130382 | AD17: 0.1062493289 | AE17: NHS Borders | AF17: 12644 | AG17: 124757 | AH17: 0.1013490225
B18: NHS Lanarkshire | C18: =VLOOKUP($B18 & $A$6, Tab3Data!$A$2:$E$43, C$7, FALSE) -> 66302 | D18: =VLOOKUP($B18 & $A$6, Tab3Data!$A$2:$E$43, D$7, FALSE) -> 607557.4543 | E18: 0.1091287738 | Q18: NHS Lanarkshire | R18: 66302 | S18: 607557.4543 | T18: 0.1091287738 | U18: 0.8908712262 | V18: 0.08464035762 | W18: NHS Grampian | X18: 59096 | Y18: 590219.6 | Z18: 0.1001254448 | AA18: NHS Shetland | AB18: 1103 | AC18: 9800 | AD18: 0.1125510204 | AE18: NHS Lanarkshire | AF18: 66302 | AG18: 607557.4543 | AH18: 0.1091287738
B19: NHS Lothian | C19: =VLOOKUP($B19 & $A$6, Tab3Data!$A$2:$E$43, C$7, FALSE) -> 124048 | D19: =VLOOKUP($B19 & $A$6, Tab3Data!$A$2:$E$43, D$7, FALSE) -> 1028292.082 | E19: 0.1206349851 | Q19: NHS Lothian | R19: 124048 | S19: 1028292.082 | T19: 0.1206349851 | U19: 0.8793650149 | V19: 0.08464035762 | W19: NHS Lothian | X19: 110786 | Y19: 1070461.05 | Z19: 0.1034937236 | AA19: NHS Lothian | AB19: 120210 | AC19: 1042925.65 | AD19: 0.1152622912 | AE19: NHS Lothian | AF19: 124048 | AG19: 1028292.082 | AH19: 0.1206349851
B20: NHS Orkney | C20: =VLOOKUP($B20 & $A$6, Tab3Data!$A$2:$E$43, C$7, FALSE) -> 235 | D20: =VLOOKUP($B20 & $A$6, Tab3Data!$A$2:$E$43, D$7, FALSE) -> 14915 | E20: 0.01575595039 | Q20: NHS Shetland | R20: 1375 | S20: 9875 | T20: 0.1392405063 | U20: 0.8607594937 | V20: 0.08464035762 | W20: NHS Lanarkshire | X20: 74785 | Y20: 655540 | Z20: 0.1140815206 | AA20: NHS Lanarkshire | AB20: 72285 | AC20: 623512.8557 | AD20: 0.1159318518 | AE20: NHS Shetland | AF20: 1375 | AG20: 9875 | AH20: 0.1392405063
B21: NHS Shetland | C21: =VLOOKUP($B21 & $A$6, Tab3Data!$A$2:$E$43, C$7, FALSE) -> 1375 | D21: =VLOOKUP($B21 & $A$6, Tab3Data!$A$2:$E$43, D$7, FALSE) -> 9875 | E21: 0.1392405063 | Q21: NHS Highland | R21: 45534 | S21: 294373 | T21: 0.1546813057 | U21: 0.8453186943 | V21: 0.08464035762 | W21: NHS Highland | X21: 48457 | Y21: 310552.95 | Z21: 0.1560345828 | AA21: NHS Highland | AB21: 42953 | AC21: 298436 | AD21: 0.1439270061 | AE21: NHS Highland | AF21: 45534 | AG21: 294373 | AH21: 0.1546813057
B22: NHS Tayside | C22: =VLOOKUP($B22 & $A$6, Tab3Data!$A$2:$E$43, C$7, FALSE) -> 30170 | D22: =VLOOKUP($B22 & $A$6, Tab3Data!$A$2:$E$43, D$7, FALSE) -> 468623 | E22: 0.06438010938 | Q22: NHS Western Isles | R22: 7163 | S22: 28274 | T22: 0.2533422933 | U22: 0.7466577067 | V22: 0.08464035762 | W22: NHS Western Isles | X22: 8896 | Y22: 31057.85 | Z22: 0.2864332206 | AA22: NHS Western Isles | AB22: 5823 | AC22: 30745 | AD22: 0.1893966499 | AE22: NHS Western Isles | AF22: 7163 | AG22: 28274 | AH22: 0.2533422933
B23: NHS Western Isles | C23: =VLOOKUP($B23 & $A$6, Tab3Data!$A$2:$E$43, C$7, FALSE) -> 7163 | D23: =VLOOKUP($B23 & $A$6, Tab3Data!$A$2:$E$43, D$7, FALSE) -> 28274 | E23: 0.2533422933
B24: Scotland (adjusted to reflect revised definitions across the whole year)5,6&7 | C24: 527099 | D24: 6491561.5 | E24: 0.08119756703
B25: =IF(A7 = 4, "Please note that occupied bed figures are provisional (p) for ", "Please note that some occupied bed figures have been revised (r) for ") & A6 -> Please note that some occupied bed figures have been revised (r) for 2018/19
B26: Source: Public Health Scotland Delayed Discharge Data; ISD(S)1 beds information
B29: Notes:
B30: 1. Health Board figures are based on NHS Board area of treatment; Local Authority figures are based on Local Authority of residence.
B31: 2. Delayed discharge bed days are the number of days people spend delayed in hospital following their ready for discharge date. Bed days occupied by delayed discharges are reported by calendar month; these figures have been summed to produce the annual figures above.
B32: 3. The average daily number of beds occupied by delayed discharges is calculated by dividing the total number of delayed discharge bed days in the financial year by the number of days in the year.
B33: 4. Age is calculated as at the Ready for Discharge date.
B34: 5. Reasons for delay reflect the integration of health and social care in April 2016. All bed days are assigned to the latest reason code recorded at the end of each monthly reporting period.
B35: 6. The Scotland-adjusted figure for 2016/17 consists of a 4% reduction applied to the April-June 2016 bed days to allow comparability with other financial years. This figure should be used when drawing any comparisons with the data (See note 7).
B36: 7. Revised data definitions and national data requirements were introduced on 1 July 2016. As part of the revision, the following patients are no longer recorded as delayed discharges: - Delays in non-hospital locations (e.g. care homes) - Delays for healthcare reasons. At Scotland level, the definitional changes are estimated to have resulted in a 4% reduction in bed days from July 2016 onwards. An adjusted Scotland figure has been included for 2016/17 which includes a 4% reduction applied to April-June 2016 bed days figures. Health Board figures have not been adjusted for the definitional change. NB: The impact of these changes varied between partnerships, with some being more affected than others; therefore comparisons before and after July 2016 may not be possible at partnership level.
B37: 8. Annual Bed Days Occupied (All Specialties) extracted from ISD(S)1; published 10 September 2019:
B38: https://www.isdscotland.org/Health-Topics/Hospital-Care/Publications/
B40: Link to Glossary

Sheet Tab 4
B1: =Guide!B1 -> 
B2: ="Table 4: Delayed discharge bed days attributed to mental health specialties, " & A4 & ", " & VLOOKUP(A7, lookups!E2:H4, 4, FALSE) & ", " & VLOOKUP(A8, lookups!E10:G13, 3, FALSE) -> Table 4: Delayed discharge bed days attributed to mental health specialties, April 2019 - March 2020, Age 18+, All delay reasons
B3: =IF($A$6=1,"Figures for 2016/17 are based on July 2016 - March 2017 data only."," " ) -> 
A4: =VLOOKUP(A6, lookups!A7:C10, 3, FALSE) -> April 2019 - March 2020 | C4: Select year: | E4: Select age group: | G4: Select reason for delay:
A5: =VLOOKUP(A6, lookups!A7:B10, 2, FALSE) -> 2019/20 | B5: 1
A6: 4 | B6: 1 | C6: 2 | I6: 15
A7: 1 | C7: 3 | D7: 1 | E7: 2 | J7: 72 hour
A8: 1 | C8: =A4 -> April 2019 - March 2020
A9: =VLOOKUP(A7, lookups!E2:G4, 3, FALSE) -> All | C9: Delayed discharge bed days | F9: Percentages
A10: =VLOOKUP(A8, lookups!E10:F13, 2, FALSE) -> All
A11: ="Delayed discharge bed days by specialty grouping and Healthboard of treatment - " & A4 & ", " & VLOOKUP(A7, lookups!E2:H4, 4, FALSE) & ", " & VLOOKUP(A8, lookups!E10:G13, 3, FALSE) -> Delayed discharge bed days by specialty grouping and Healthboard of treatment - April 2019 - March 2020, Age 18+, All delay reasons | B11: NHS Board of treatment | C11: All delayed discharge occupied bed days in the time period | D11: Delayed bed days attributed to mental health specialties | E11: Delayed bed days attributed to other specialties (not including mental health) | F11: Percentage of delayed bed days attributed to mental health specialties | G11: Percentage of delayed bed days attributed to other specialties (not including mental health)
A12: ="Delayed discharge bed days by specialty grouping and Local Authority of residence - " & A4 & ", " & VLOOKUP(A7, lookups!E2:H4, 4, FALSE) & ", " & VLOOKUP(A8, lookups!E10:G13, 3, FALSE) -> Delayed discharge bed days by specialty grouping and Local Authority of residence - April 2019 - March 2020, Age 18+, All delay reasons | B12: Scotland | C12: =_xlfn.IFNA(VLOOKUP(CONCATENATE($A$5, $B12, $A$10, $A$9, C$7), Tab4Data!$A$2:$G$6344, 7, FALSE), "-") -> 542204 | D12: =_xlfn.IFNA(VLOOKUP(CONCATENATE($A$5, $B12, $A$10, $A$9, D$7), Tab4Data!$A$2:$G$6344, 7, FALSE), "-") -> 100746 | E12: =_xlfn.IFNA(VLOOKUP(CONCATENATE($A$5, $B12, $A$10, $A$9, E$7), Tab4Data!$A$2:$G$6344, 7, FALSE), "-") -> 441458 | F12: =IFERROR(D12/$C12, "-") -> 0.1858082936 | G12: =IFERROR(E12/$C12, "-") -> 0.8141917064
B13: NHS Ayrshire & Arran | C13: =_xlfn.IFNA(VLOOKUP(CONCATENATE($A$5, $B13, $A$10, $A$9, C$7), Tab4Data!$A$2:$G$6351, 7, FALSE), "-") -> 53821 | D13: =_xlfn.IFNA(VLOOKUP(CONCATENATE($A$5, $B13, $A$10, $A$9, D$7), Tab4Data!$A$2:$G$6351, 7, FALSE), "-") -> 7613 | E13: =_xlfn.IFNA(VLOOKUP(CONCATENATE($A$5, $B13, $A$10, $A$9, E$7), Tab4Data!$A$2:$G$6351, 7, FALSE), "-") -> 46208 | F13: =IFERROR(D13/$C13, "-") -> 0.1414503632 | G13: =IFERROR(E13/$C13, "-") -> 0.8585496368
B14: NHS Borders | C14: =_xlfn.IFNA(VLOOKUP(CONCATENATE($A$5, $B14, $A$10, $A$9, C$7), Tab4Data!$A$2:$G$6351, 7, FALSE), "-") -> 11860 | D14: =_xlfn.IFNA(VLOOKUP(CONCATENATE($A$5, $B14, $A$10, $A$9, D$7), Tab4Data!$A$2:$G$6351, 7, FALSE), "-") -> 1951 | E14: =_xlfn.IFNA(VLOOKUP(CONCATENATE($A$5, $B14, $A$10, $A$9, E$7), Tab4Data!$A$2:$G$6351, 7, FALSE), "-") -> 9909 | F14: 0.1645025295 | G14: 0.8354974705
B15: NHS Dumfries & Galloway | C15: =_xlfn.IFNA(VLOOKUP(CONCATENATE($A$5, $B15, $A$10, $A$9, C$7), Tab4Data!$A$2:$G$6351, 7, FALSE), "-") -> 19610 | D15: =_xlfn.IFNA(VLOOKUP(CONCATENATE($A$5, $B15, $A$10, $A$9, D$7), Tab4Data!$A$2:$G$6351, 7, FALSE), "-") -> 3824 | E15: =_xlfn.IFNA(VLOOKUP(CONCATENATE($A$5, $B15, $A$10, $A$9, E$7), Tab4Data!$A$2:$G$6351, 7, FALSE), "-") -> 15786 | F15: 0.1950025497 | G15: 0.8049974503
B16: NHS Fife | C16: =_xlfn.IFNA(VLOOKUP(CONCATENATE($A$5, $B16, $A$10, $A$9, C$7), Tab4Data!$A$2:$G$6351, 7, FALSE), "-") -> 39805 | D16: =_xlfn.IFNA(VLOOKUP(CONCATENATE($A$5, $B16, $A$10, $A$9, D$7), Tab4Data!$A$2:$G$6351, 7, FALSE), "-") -> 9995 | E16: =_xlfn.IFNA(VLOOKUP(CONCATENATE($A$5, $B16, $A$10, $A$9, E$7), Tab4Data!$A$2:$G$6351, 7, FALSE), "-") -> 29810 | F16: 0.2510991082 | G16: 0.7489008918
B17: NHS Forth Valley | C17: =_xlfn.IFNA(VLOOKUP(CONCATENATE($A$5, $B17, $A$10, $A$9, C$7), Tab4Data!$A$2:$G$6351, 7, FALSE), "-") -> 32590 | D17: =_xlfn.IFNA(VLOOKUP(CONCATENATE($A$5, $B17, $A$10, $A$9, D$7), Tab4Data!$A$2:$G$6351, 7, FALSE), "-") -> 7092 | E17: =_xlfn.IFNA(VLOOKUP(CONCATENATE($A$5, $B17, $A$10, $A$9, E$7), Tab4Data!$A$2:$G$6351, 7, FALSE), "-") -> 25498 | F17: 0.2176127647 | G17: 0.7823872353
B18: NHS Grampian | C18: =_xlfn.IFNA(VLOOKUP(CONCATENATE($A$5, $B18, $A$10, $A$9, C$7), Tab4Data!$A$2:$G$6351, 7, FALSE), "-") -> 40709 | D18: =_xlfn.IFNA(VLOOKUP(CONCATENATE($A$5, $B18, $A$10, $A$9, D$7), Tab4Data!$A$2:$G$6351, 7, FALSE), "-") -> 8857 | E18: =_xlfn.IFNA(VLOOKUP(CONCATENATE($A$5, $B18, $A$10, $A$9, E$7), Tab4Data!$A$2:$G$6351, 7, FALSE), "-") -> 31852 | F18: 0.2175685966 | G18: 0.7824314034
B19: NHS Greater Glasgow & Clyde | C19: =_xlfn.IFNA(VLOOKUP(CONCATENATE($A$5, $B19, $A$10, $A$9, C$7), Tab4Data!$A$2:$G$6351, 7, FALSE), "-") -> 82540 | D19: =_xlfn.IFNA(VLOOKUP(CONCATENATE($A$5, $B19, $A$10, $A$9, D$7), Tab4Data!$A$2:$G$6351, 7, FALSE), "-") -> 20020 | E19: =_xlfn.IFNA(VLOOKUP(CONCATENATE($A$5, $B19, $A$10, $A$9, E$7), Tab4Data!$A$2:$G$6351, 7, FALSE), "-") -> 62520 | F19: 0.2425490671 | G19: 0.7574509329
B20: NHS Highland | C20: =_xlfn.IFNA(VLOOKUP(CONCATENATE($A$5, $B20, $A$10, $A$9, C$7), Tab4Data!$A$2:$G$6351, 7, FALSE), "-") -> 48722 | D20: =_xlfn.IFNA(VLOOKUP(CONCATENATE($A$5, $B20, $A$10, $A$9, D$7), Tab4Data!$A$2:$G$6351, 7, FALSE), "-") -> 8160 | E20: =_xlfn.IFNA(VLOOKUP(CONCATENATE($A$5, $B20, $A$10, $A$9, E$7), Tab4Data!$A$2:$G$6351, 7, FALSE), "-") -> 40562 | F20: 0.1674808095 | G20: 0.8325191905
B21: NHS Lanarkshire | C21: =_xlfn.IFNA(VLOOKUP(CONCATENATE($A$5, $B21, $A$10, $A$9, C$7), Tab4Data!$A$2:$G$6351, 7, FALSE), "-") -> 80772 | D21: =_xlfn.IFNA(VLOOKUP(CONCATENATE($A$5, $B21, $A$10, $A$9, D$7), Tab4Data!$A$2:$G$6351, 7, FALSE), "-") -> 11202 | E21: =_xlfn.IFNA(VLOOKUP(CONCATENATE($A$5, $B21, $A$10, $A$9, E$7), Tab4Data!$A$2:$G$6351, 7, FALSE), "-") -> 69570 | F21: 0.1386866736 | G21: 0.8613133264
B22: NHS Lothian | C22: =_xlfn.IFNA(VLOOKUP(CONCATENATE($A$5, $B22, $A$10, $A$9, C$7), Tab4Data!$A$2:$G$6351, 7, FALSE), "-") -> 93809 | D22: =_xlfn.IFNA(VLOOKUP(CONCATENATE($A$5, $B22, $A$10, $A$9, D$7), Tab4Data!$A$2:$G$6351, 7, FALSE), "-") -> 12010 | E22: =_xlfn.IFNA(VLOOKUP(CONCATENATE($A$5, $B22, $A$10, $A$9, E$7), Tab4Data!$A$2:$G$6351, 7, FALSE), "-") -> 81799 | F22: 0.1280260956 | G22: 0.8719739044
B23: NHS Orkney | C23: =_xlfn.IFNA(VLOOKUP(CONCATENATE($A$5, $B23, $A$10, $A$9, C$7), Tab4Data!$A$2:$G$6351, 7, FALSE), "-") -> 593 | D23: =_xlfn.IFNA(VLOOKUP(CONCATENATE($A$5, $B23, $A$10, $A$9, D$7), Tab4Data!$A$2:$G$6351, 7, FALSE), "-") -> - | E23: =_xlfn.IFNA(VLOOKUP(CONCATENATE($A$5, $B23, $A$10, $A$9, E$7), Tab4Data!$A$2:$G$6351, 7, FALSE), "-") -> 593 | F23: - | G23: 1
B24: NHS Shetland | C24: =_xlfn.IFNA(VLOOKUP(CONCATENATE($A$5, $B24, $A$10, $A$9, C$7), Tab4Data!$A$2:$G$6351, 7, FALSE), "-") -> 1505 | D24: =_xlfn.IFNA(VLOOKUP(CONCATENATE($A$5, $B24, $A$10, $A$9, D$7), Tab4Data!$A$2:$G$6351, 7, FALSE), "-") -> - | E24: =_xlfn.IFNA(VLOOKUP(CONCATENATE($A$5, $B24, $A$10, $A$9, E$7), Tab4Data!$A$2:$G$6351, 7, FALSE), "-") -> 1505 | F24: - | G24: 1
B25: NHS Tayside | C25: =_xlfn.IFNA(VLOOKUP(CONCATENATE($A$5, $B25, $A$10, $A$9, C$7), Tab4Data!$A$2:$G$6351, 7, FALSE), "-") -> 29280 | D25: =_xlfn.IFNA(VLOOKUP(CONCATENATE($A$5, $B25, $A$10, $A$9, D$7), Tab4Data!$A$2:$G$6351, 7, FALSE), "-") -> 9709 | E25: =_xlfn.IFNA(VLOOKUP(CONCATENATE($A$5, $B25, $A$10, $A$9, E$7), Tab4Data!$A$2:$G$6351, 7, FALSE), "-") -> 19571 | F25: 0.3315915301 | G25: 0.6684084699
B26: NHS Western Isles | C26: =_xlfn.IFNA(VLOOKUP(CONCATENATE($A$5, $B26, $A$10, $A$9, C$7), Tab4Data!$A$2:$G$6351, 7, FALSE), "-") -> 6588 | D26: =_xlfn.IFNA(VLOOKUP(CONCATENATE($A$5, $B26, $A$10, $A$9, D$7), Tab4Data!$A$2:$G$6351, 7, FALSE), "-") -> 313 | E26: =_xlfn.IFNA(VLOOKUP(CONCATENATE($A$5, $B26, $A$10, $A$9, E$7), Tab4Data!$A$2:$G$6351, 7, FALSE), "-") -> 6275 | F26: 0.04751062538 | G26: 0.9524893746 | J26: ="Delayed discharge bed days by specialty grouping and board of treatment - "&#REF!&", "&A9&", "&A10&"" -> 
B27: Local authority of residence
B28: Scotland | C28: =_xlfn.IFNA(VLOOKUP(CONCATENATE($A$5, $B28, $A$10, $A$9, C$7), Tab4Data!$A$2:$G$6344, 7, FALSE), "-") -> 542204 | D28: =_xlfn.IFNA(VLOOKUP(CONCATENATE($A$5, $B28, $A$10, $A$9, D$7), Tab4Data!$A$2:$G$6344, 7, FALSE), "-") -> 100746 | E28: =_xlfn.IFNA(VLOOKUP(CONCATENATE($A$5, $B28, $A$10, $A$9, E$7), Tab4Data!$A$2:$G$6344, 7, FALSE), "-") -> 441458 | F28: =IFERROR(D28/$C28, "-") -> 0.1858082936 | G28: =IFERROR(E28/$C28, "-") -> 0.8141917064
B29: Aberdeen City | C29: =_xlfn.IFNA(VLOOKUP(CONCATENATE($A$5, $B29, $A$10, $A$9, C$7), Tab4Data!$A$2:$G$6351, 7, FALSE), "-") -> 12272 | D29: =_xlfn.IFNA(VLOOKUP(CONCATENATE($A$5, $B29, $A$10, $A$9, D$7), Tab4Data!$A$2:$G$6351, 7, FALSE), "-") -> 1867 | E29: =_xlfn.IFNA(VLOOKUP(CONCATENATE($A$5, $B29, $A$10, $A$9, E$7), Tab4Data!$A$2:$G$6351, 7, FALSE), "-") -> 10405 | F29: =IFERROR(D29/$C29, "-") -> 0.1521349413 | G29: =IFERROR(E29/$C29, "-") -> 0.8478650587
B30: Aberdeenshire | C30: =_xlfn.IFNA(VLOOKUP(CONCATENATE($A$5, $B30, $A$10, $A$9, C$7), Tab4Data!$A$2:$G$6351, 7, FALSE), "-") -> 16381 | D30: =_xlfn.IFNA(VLOOKUP(CONCATENATE($A$5, $B30, $A$10, $A$9, D$7), Tab4Data!$A$2:$G$6351, 7, FALSE), "-") -> 3963 | E30: =_xlfn.IFNA(VLOOKUP(CONCATENATE($A$5, $B30, $A$10, $A$9, E$7), Tab4Data!$A$2:$G$6351, 7, FALSE), "-") -> 12418 | F30: 0.2419266223 | G30: 0.7580733777
B31: Angus | C31: =_xlfn.IFNA(VLOOKUP(CONCATENATE($A$5, $B31, $A$10, $A$9, C$7), Tab4Data!$A$2:$G$6351, 7, FALSE), "-") -> 5731 | D31: =_xlfn.IFNA(VLOOKUP(CONCATENATE($A$5, $B31, $A$10, $A$9, D$7), Tab4Data!$A$2:$G$6351, 7, FALSE), "-") -> 1883 | E31: =_xlfn.IFNA(VLOOKUP(CONCATENATE($A$5, $B31, $A$10, $A$9, E$7), Tab4Data!$A$2:$G$6351, 7, FALSE), "-") -> 3848 | F31: 0.3285639504 | G31: 0.6714360496
B32: Argyll & Bute | C32: =_xlfn.IFNA(VLOOKUP(CONCATENATE($A$5, $B32, $A$10, $A$9, C$7), Tab4Data!$A$2:$G$6351, 7, FALSE), "-") -> 7863 | D32: =_xlfn.IFNA(VLOOKUP(CONCATENATE($A$5, $B32, $A$10, $A$9, D$7), Tab4Data!$A$2:$G$6351, 7, FALSE), "-") -> 1886 | E32: =_xlfn.IFNA(VLOOKUP(CONCATENATE($A$5, $B32, $A$10, $A$9, E$7), Tab4Data!$A$2:$G$6351, 7, FALSE), "-") -> 5977 | F32: 0.2398575607 | G32: 0.7601424393
B33: City of Edinburgh | C33: =_xlfn.IFNA(VLOOKUP(CONCATENATE($A$5, $B33, $A$10, $A$9, C$7), Tab4Data!$A$2:$G$6351, 7, FALSE), "-") -> 62120 | D33: =_xlfn.IFNA(VLOOKUP(CONCATENATE($A$5, $B33, $A$10, $A$9, D$7), Tab4Data!$A$2:$G$6351, 7, FALSE), "-") -> 8909 | E33: =_xlfn.IFNA(VLOOKUP(CONCATENATE($A$5, $B33, $A$10, $A$9, E$7), Tab4Data!$A$2:$G$6351, 7, FALSE), "-") -> 53211 | F33: 0.1434159691 | G33: 0.8565840309
B34: Clackmannanshire | C34: =_xlfn.IFNA(VLOOKUP(CONCATENATE($A$5, $B34, $A$10, $A$9, C$7), Tab4Data!$A$2:$G$6351, 7, FALSE), "-") -> 2412 | D34: =_xlfn.IFNA(VLOOKUP(CONCATENATE($A$5, $B34, $A$10, $A$9, D$7), Tab4Data!$A$2:$G$6351, 7, FALSE), "-") -> 454 | E34: =_xlfn.IFNA(VLOOKUP(CONCATENATE($A$5, $B34, $A$10, $A$9, E$7), Tab4Data!$A$2:$G$6351, 7, FALSE), "-") -> 1958 | F34: 0.188225539 | G34: 0.811774461
B35: Comhairle nan Eilean Siar | C35: =_xlfn.IFNA(VLOOKUP(CONCATENATE($A$5, $B35, $A$10, $A$9, C$7), Tab4Data!$A$2:$G$6351, 7, FALSE), "-") -> 6782 | D35: =_xlfn.IFNA(VLOOKUP(CONCATENATE($A$5, $B35, $A$10, $A$9, D$7), Tab4Data!$A$2:$G$6351, 7, FALSE), "-") -> 507 | E35: =_xlfn.IFNA(VLOOKUP(CONCATENATE($A$5, $B35, $A$10, $A$9, E$7), Tab4Data!$A$2:$G$6351, 7, FALSE), "-") -> 6275 | F35: 0.07475670894 | G35: 0.9252432911
B36: Dumfries & Galloway | C36: =_xlfn.IFNA(VLOOKUP(CONCATENATE($A$5, $B36, $A$10, $A$9, C$7), Tab4Data!$A$2:$G$6351, 7, FALSE), "-") -> 19506 | D36: =_xlfn.IFNA(VLOOKUP(CONCATENATE($A$5, $B36, $A$10, $A$9, D$7), Tab4Data!$A$2:$G$6351, 7, FALSE), "-") -> 3816 | E36: =_xlfn.IFNA(VLOOKUP(CONCATENATE($A$5, $B36, $A$10, $A$9, E$7), Tab4Data!$A$2:$G$6351, 7, FALSE), "-") -> 15690 | F36: 0.1956321132 | G36: 0.8043678868
B37: Dundee City | C37: =_xlfn.IFNA(VLOOKUP(CONCATENATE($A$5, $B37, $A$10, $A$9, C$7), Tab4Data!$A$2:$G$6351, 7, FALSE), "-") -> 9861 | D37: =_xlfn.IFNA(VLOOKUP(CONCATENATE($A$5, $B37, $A$10, $A$9, D$7), Tab4Data!$A$2:$G$6351, 7, FALSE), "-") -> 3761 | E37: =_xlfn.IFNA(VLOOKUP(CONCATENATE($A$5, $B37, $A$10, $A$9, E$7), Tab4Data!$A$2:$G$6351, 7, FALSE), "-") -> 6100 | F37: 0.3814014806 | G37: 0.6185985194
B38: East Ayrshire | C38: =_xlfn.IFNA(VLOOKUP(CONCATENATE($A$5, $B38, $A$10, $A$9, C$7), Tab4Data!$A$2:$G$6351, 7, FALSE), "-") -> 3701 | D38: =_xlfn.IFNA(VLOOKUP(CONCATENATE($A$5, $B38, $A$10, $A$9, D$7), Tab4Data!$A$2:$G$6351, 7, FALSE), "-") -> 722 | E38: =_xlfn.IFNA(VLOOKUP(CONCATENATE($A$5, $B38, $A$10, $A$9, E$7), Tab4Data!$A$2:$G$6351, 7, FALSE), "-") -> 2979 | F38: 0.1950824102 | G38: 0.8049175898
B39: East Dunbartonshire | C39: =_xlfn.IFNA(VLOOKUP(CONCATENATE($A$5, $B39, $A$10, $A$9, C$7), Tab4Data!$A$2:$G$6351, 7, FALSE), "-") -> 5458 | D39: =_xlfn.IFNA(VLOOKUP(CONCATENATE($A$5, $B39, $A$10, $A$9, D$7), Tab4Data!$A$2:$G$6351, 7, FALSE), "-") -> 736 | E39: =_xlfn.IFNA(VLOOKUP(CONCATENATE($A$5, $B39, $A$10, $A$9, E$7), Tab4Data!$A$2:$G$6351, 7, FALSE), "-") -> 4722 | F39: 0.1348479296 | G39: 0.8651520704
B40: East Lothian | C40: =_xlfn.IFNA(VLOOKUP(CONCATENATE($A$5, $B40, $A$10, $A$9, C$7), Tab4Data!$A$2:$G$6351, 7, FALSE), "-") -> 4781 | D40: =_xlfn.IFNA(VLOOKUP(CONCATENATE($A$5, $B40, $A$10, $A$9, D$7), Tab4Data!$A$2:$G$6351, 7, FALSE), "-") -> 1341 | E40: =_xlfn.IFNA(VLOOKUP(CONCATENATE($A$5, $B40, $A$10, $A$9, E$7), Tab4Data!$A$2:$G$6351, 7, FALSE), "-") -> 3440 | F40: 0.2804852541 | G40: 0.7195147459
B41: East Renfrewshire | C41: =_xlfn.IFNA(VLOOKUP(CONCATENATE($A$5, $B41, $A$10, $A$9, C$7), Tab4Data!$A$2:$G$6351, 7, FALSE), "-") -> 1788 | D41: =_xlfn.IFNA(VLOOKUP(CONCATENATE($A$5, $B41, $A$10, $A$9, D$7), Tab4Data!$A$2:$G$6351, 7, FALSE), "-") -> 102 | E41: =_xlfn.IFNA(VLOOKUP(CONCATENATE($A$5, $B41, $A$10, $A$9, E$7), Tab4Data!$A$2:$G$6351, 7, FALSE), "-") -> 1686 | F41: 0.05704697987 | G41: 0.9429530201
B42: Falkirk | C42: =_xlfn.IFNA(VLOOKUP(CONCATENATE($A$5, $B42, $A$10, $A$9, C$7), Tab4Data!$A$2:$G$6351, 7, FALSE), "-") -> 19081 | D42: =_xlfn.IFNA(VLOOKUP(CONCATENATE($A$5, $B42, $A$10, $A$9, D$7), Tab4Data!$A$2:$G$6351, 7, FALSE), "-") -> 4132 | E42: =_xlfn.IFNA(VLOOKUP(CONCATENATE($A$5, $B42, $A$10, $A$9, E$7), Tab4Data!$A$2:$G$6351, 7, FALSE), "-") -> 14949 | F42: 0.2165504953 | G42: 0.7834495047
B43: Fife | C43: =_xlfn.IFNA(VLOOKUP(CONCATENATE($A$5, $B43, $A$10, $A$9, C$7), Tab4Data!$A$2:$G$6351, 7, FALSE), "-") -> 41735 | D43: =_xlfn.IFNA(VLOOKUP(CONCATENATE($A$5, $B43, $A$10, $A$9, D$7), Tab4Data!$A$2:$G$6351, 7, FALSE), "-") -> 10045 | E43: =_xlfn.IFNA(VLOOKUP(CONCATENATE($A$5, $B43, $A$10, $A$9, E$7), Tab4Data!$A$2:$G$6351, 7, FALSE), "-") -> 31690 | F43: 0.2406852761 | G43: 0.7593147239
B44: Glasgow City | C44: =_xlfn.IFNA(VLOOKUP(CONCATENATE($A$5, $B44, $A$10, $A$9, C$7), Tab4Data!$A$2:$G$6351, 7, FALSE), "-") -> 45318 | D44: =_xlfn.IFNA(VLOOKUP(CONCATENATE($A$5, $B44, $A$10, $A$9, D$7), Tab4Data!$A$2:$G$6351, 7, FALSE), "-") -> 16255 | E44: =_xlfn.IFNA(VLOOKUP(CONCATENATE($A$5, $B44, $A$10, $A$9, E$7), Tab4Data!$A$2:$G$6351, 7, FALSE), "-") -> 29063 | F44: 0.3586874972 | G44: 0.6413125028
B45: Highland | C45: =_xlfn.IFNA(VLOOKUP(CONCATENATE($A$5, $B45, $A$10, $A$9, C$7), Tab4Data!$A$2:$G$6351, 7, FALSE), "-") -> 42611 | D45: =_xlfn.IFNA(VLOOKUP(CONCATENATE($A$5, $B45, $A$10, $A$9, D$7), Tab4Data!$A$2:$G$6351, 7, FALSE), "-") -> 6809 | E45: =_xlfn.IFNA(VLOOKUP(CONCATENATE($A$5, $B45, $A$10, $A$9, E$7), Tab4Data!$A$2:$G$6351, 7, FALSE), "-") -> 35802 | F45: 0.1597944193 | G45: 0.8402055807
B46: Inverclyde | C46: =_xlfn.IFNA(VLOOKUP(CONCATENATE($A$5, $B46, $A$10, $A$9, C$7), Tab4Data!$A$2:$G$6351, 7, FALSE), "-") -> 1499 | D46: =_xlfn.IFNA(VLOOKUP(CONCATENATE($A$5, $B46, $A$10, $A$9, D$7), Tab4Data!$A$2:$G$6351, 7, FALSE), "-") -> 43 | E46: =_xlfn.IFNA(VLOOKUP(CONCATENATE($A$5, $B46, $A$10, $A$9, E$7), Tab4Data!$A$2:$G$6351, 7, FALSE), "-") -> 1456 | F46: 0.02868579053 | G46: 0.9713142095
B47: Midlothian | C47: =_xlfn.IFNA(VLOOKUP(CONCATENATE($A$5, $B47, $A$10, $A$9, C$7), Tab4Data!$A$2:$G$6351, 7, FALSE), "-") -> 10412 | D47: =_xlfn.IFNA(VLOOKUP(CONCATENATE($A$5, $B47, $A$10, $A$9, D$7), Tab4Data!$A$2:$G$6351, 7, FALSE), "-") -> 1280 | E47: =_xlfn.IFNA(VLOOKUP(CONCATENATE($A$5, $B47, $A$10, $A$9, E$7), Tab4Data!$A$2:$G$6351, 7, FALSE), "-") -> 9132 | F47: 0.1229350749 | G47: 0.8770649251
B48: Moray | C48: =_xlfn.IFNA(VLOOKUP(CONCATENATE($A$5, $B48, $A$10, $A$9, C$7), Tab4Data!$A$2:$G$6351, 7, FALSE), "-") -> 11046 | D48: =_xlfn.IFNA(VLOOKUP(CONCATENATE($A$5, $B48, $A$10, $A$9, D$7), Tab4Data!$A$2:$G$6351, 7, FALSE), "-") -> 2064 | E48: =_xlfn.IFNA(VLOOKUP(CONCATENATE($A$5, $B48, $A$10, $A$9, E$7), Tab4Data!$A$2:$G$6351, 7, FALSE), "-") -> 8982 | F48: 0.1868549701 | G48: 0.8131450299
B49: North Ayrshire | C49: =_xlfn.IFNA(VLOOKUP(CONCATENATE($A$5, $B49, $A$10, $A$9, C$7), Tab4Data!$A$2:$G$6351, 7, FALSE), "-") -> 24339 | D49: =_xlfn.IFNA(VLOOKUP(CONCATENATE($A$5, $B49, $A$10, $A$9, D$7), Tab4Data!$A$2:$G$6351, 7, FALSE), "-") -> 3164 | E49: =_xlfn.IFNA(VLOOKUP(CONCATENATE($A$5, $B49, $A$10, $A$9, E$7), Tab4Data!$A$2:$G$6351, 7, FALSE), "-") -> 21175 | F49: 0.129997124 | G49: 0.870002876
B50: North Lanarkshire | C50: =_xlfn.IFNA(VLOOKUP(CONCATENATE($A$5, $B50, $A$10, $A$9, C$7), Tab4Data!$A$2:$G$6351, 7, FALSE), "-") -> 42124 | D50: =_xlfn.IFNA(VLOOKUP(CONCATENATE($A$5, $B50, $A$10, $A$9, D$7), Tab4Data!$A$2:$G$6351, 7, FALSE), "-") -> 6296 | E50: =_xlfn.IFNA(VLOOKUP(CONCATENATE($A$5, $B50, $A$10, $A$9, E$7), Tab4Data!$A$2:$G$6351, 7, FALSE), "-") -> 35828 | F50: 0.1494634887 | G50: 0.8505365113
B51: Orkney | C51: =_xlfn.IFNA(VLOOKUP(CONCATENATE($A$5, $B51, $A$10, $A$9, C$7), Tab4Data!$A$2:$G$6351, 7, FALSE), "-") -> 1375 | D51: =_xlfn.IFNA(VLOOKUP(CONCATENATE($A$5, $B51, $A$10, $A$9, D$7), Tab4Data!$A$2:$G$6351, 7, FALSE), "-") -> 782 | E51: =_xlfn.IFNA(VLOOKUP(CONCATENATE($A$5, $B51, $A$10, $A$9, E$7), Tab4Data!$A$2:$G$6351, 7, FALSE), "-") -> 593 | F51: 0.5687272727 | G51: 0.4312727273
B52: Other | C52: =_xlfn.IFNA(VLOOKUP(CONCATENATE($A$5, $B52, $A$10, $A$9, C$7), Tab4Data!$A$2:$G$6351, 7, FALSE), "-") -> 642 | D52: =_xlfn.IFNA(VLOOKUP(CONCATENATE($A$5, $B52, $A$10, $A$9, D$7), Tab4Data!$A$2:$G$6351, 7, FALSE), "-") -> 306 | E52: =_xlfn.IFNA(VLOOKUP(CONCATENATE($A$5, $B52, $A$10, $A$9, E$7), Tab4Data!$A$2:$G$6351, 7, FALSE), "-") -> 336 | F52: 0.476635514 | G52: 0.523364486
B53: Perth & Kinross | C53: =_xlfn.IFNA(VLOOKUP(CONCATENATE($A$5, $B53, $A$10, $A$9, C$7), Tab4Data!$A$2:$G$6351, 7, FALSE), "-") -> 12414 | D53: =_xlfn.IFNA(VLOOKUP(CONCATENATE($A$5, $B53, $A$10, $A$9, D$7), Tab4Data!$A$2:$G$6351, 7, FALSE), "-") -> 4054 | E53: =_xlfn.IFNA(VLOOKUP(CONCATENATE($A$5, $B53, $A$10, $A$9, E$7), Tab4Data!$A$2:$G$6351, 7, FALSE), "-") -> 8360 | F53: 0.3265667794 | G53: 0.6734332206
B54: Renfrewshire | C54: =_xlfn.IFNA(VLOOKUP(CONCATENATE($A$5, $B54, $A$10, $A$9, C$7), Tab4Data!$A$2:$G$6351, 7, FALSE), "-") -> 9221 | D54: =_xlfn.IFNA(VLOOKUP(CONCATENATE($A$5, $B54, $A$10, $A$9, D$7), Tab4Data!$A$2:$G$6351, 7, FALSE), "-") -> 1582 | E54: =_xlfn.IFNA(VLOOKUP(CONCATENATE($A$5, $B54, $A$10, $A$9, E$7), Tab4Data!$A$2:$G$6351, 7, FALSE), "-") -> 7639 | F54: 0.1715649062 | G54: 0.8284350938 | J54: ="Delayed discharge bed days by specialty grouping and LA of residence - "&#REF!&", "&A9&", "&A10&"" -> 
B55: Scottish Borders | C55: =_xlfn.IFNA(VLOOKUP(CONCATENATE($A$5, $B55, $A$10, $A$9, C$7), Tab4Data!$A$2:$G$6351, 7, FALSE), "-") -> 11811 | D55: =_xlfn.IFNA(VLOOKUP(CONCATENATE($A$5, $B55, $A$10, $A$9, D$7), Tab4Data!$A$2:$G$6351, 7, FALSE), "-") -> 1779 | E55: =_xlfn.IFNA(VLOOKUP(CONCATENATE($A$5, $B55, $A$10, $A$9, E$7), Tab4Data!$A$2:$G$6351, 7, FALSE), "-") -> 10032 | F55: 0.1506223012 | G55: 0.8493776988
B56: Shetland | C56: =_xlfn.IFNA(VLOOKUP(CONCATENATE($A$5, $B56, $A$10, $A$9, C$7), Tab4Data!$A$2:$G$6351, 7, FALSE), "-") -> 1533 | D56: =_xlfn.IFNA(VLOOKUP(CONCATENATE($A$5, $B56, $A$10, $A$9, D$7), Tab4Data!$A$2:$G$6351, 7, FALSE), "-") -> 28 | E56: =_xlfn.IFNA(VLOOKUP(CONCATENATE($A$5, $B56, $A$10, $A$9, E$7), Tab4Data!$A$2:$G$6351, 7, FALSE), "-") -> 1505 | F56: 0.01826484018 | G56: 0.9817351598
B57: South Ayrshire | C57: =_xlfn.IFNA(VLOOKUP(CONCATENATE($A$5, $B57, $A$10, $A$9, C$7), Tab4Data!$A$2:$G$6351, 7, FALSE), "-") -> 29458 | D57: =_xlfn.IFNA(VLOOKUP(CONCATENATE($A$5, $B57, $A$10, $A$9, D$7), Tab4Data!$A$2:$G$6351, 7, FALSE), "-") -> 3777 | E57: =_xlfn.IFNA(VLOOKUP(CONCATENATE($A$5, $B57, $A$10, $A$9, E$7), Tab4Data!$A$2:$G$6351, 7, FALSE), "-") -> 25681 | F57: 0.1282164438 | G57: 0.8717835562
B58: South Lanarkshire | C58: =_xlfn.IFNA(VLOOKUP(CONCATENATE($A$5, $B58, $A$10, $A$9, C$7), Tab4Data!$A$2:$G$6351, 7, FALSE), "-") -> 46570 | D58: =_xlfn.IFNA(VLOOKUP(CONCATENATE($A$5, $B58, $A$10, $A$9, D$7), Tab4Data!$A$2:$G$6351, 7, FALSE), "-") -> 5221 | E58: =_xlfn.IFNA(VLOOKUP(CONCATENATE($A$5, $B58, $A$10, $A$9, E$7), Tab4Data!$A$2:$G$6351, 7, FALSE), "-") -> 41349 | F58: 0.1121108009 | G58: 0.8878891991
B59: Stirling | C59: =_xlfn.IFNA(VLOOKUP(CONCATENATE($A$5, $B59, $A$10, $A$9, C$7), Tab4Data!$A$2:$G$6351, 7, FALSE), "-") -> 10218 | D59: =_xlfn.IFNA(VLOOKUP(CONCATENATE($A$5, $B59, $A$10, $A$9, D$7), Tab4Data!$A$2:$G$6351, 7, FALSE), "-") -> 1963 | E59: =_xlfn.IFNA(VLOOKUP(CONCATENATE($A$5, $B59, $A$10, $A$9, E$7), Tab4Data!$A$2:$G$6351, 7, FALSE), "-") -> 8255 | F59: 0.1921119593 | G59: 0.8078880407
B60: West Dunbartonshire | C60: =_xlfn.IFNA(VLOOKUP(CONCATENATE($A$5, $B60, $A$10, $A$9, C$7), Tab4Data!$A$2:$G$6351, 7, FALSE), "-") -> 5839 | D60: =_xlfn.IFNA(VLOOKUP(CONCATENATE($A$5, $B60, $A$10, $A$9, D$7), Tab4Data!$A$2:$G$6351, 7, FALSE), "-") -> 812 | E60: =_xlfn.IFNA(VLOOKUP(CONCATENATE($A$5, $B60, $A$10, $A$9, E$7), Tab4Data!$A$2:$G$6351, 7, FALSE), "-") -> 5027 | F60: 0.1390649084 | G60: 0.8609350916
B61: West Lothian | C61: =_xlfn.IFNA(VLOOKUP(CONCATENATE($A$5, $B61, $A$10, $A$9, C$7), Tab4Data!$A$2:$G$6351, 7, FALSE), "-") -> 16302 | D61: =_xlfn.IFNA(VLOOKUP(CONCATENATE($A$5, $B61, $A$10, $A$9, D$7), Tab4Data!$A$2:$G$6351, 7, FALSE), "-") -> 407 | E61: =_xlfn.IFNA(VLOOKUP(CONCATENATE($A$5, $B61, $A$10, $A$9, E$7), Tab4Data!$A$2:$G$6351, 7, FALSE), "-") -> 15895 | F61: 0.02496626181 | G61: 0.9750337382
B62: Source: Public Health Scotland Delayed Discharge Data
B64: Notes:
B65: 1. Health Board figures are based on NHS Board area of treatment; Local Authority figures are based on Local Authority of residence.
B66: 2. Delayed discharge bed days are the number of days people spend delayed in hospital following their ready for discharge date. Bed days occupied by delayed discharges are reported by calendar month; these figures have been summed to produce the annual figures above.
B67: 3. The average daily number of beds occupied by delayed discharges is calculated by dividing the total number of delayed discharge bed days in the financial year by the number of days in the year.
B68: 4. Age is calculated as at the Ready for Discharge date.
B69: 5. Reasons for delay reflect the integration of health and social care in April 2016. All bed days are assigned to the latest reason code recorded at the end of each monthly reporting period.
B70: 6. Figures are provided from July 2016 onwards. Figures prior to this are not directly comparable due to definitional changes and different reason groupings introduced at this point.
B71: 7. The specialty of delay represents the specialty recorded at the monthly data submission date to which all bed days within the month are assigned.
B72: Link to Glossary

Sheet Tab4Data (hidden)
A1: lookup | B1: year | C1: Areaname | D1: reas1 | E1: AgeGrouping | F1: MH | G1: OBDs
A2: =B2&C2&D2&E2&F2 -> 2016/17ScotlandAll18-743 | B2: 2016/17 | C2: Scotland | D2: All | E2: 18-74 | F2: 3 | G2: 122102
A3: =B3&C3&D3&E3&F3 -> 2016/17ScotlandAll75+3 | B3: 2016/17 | C3: Scotland | D3: All | E3: 75+ | F3: 3 | G3: 277213
A4: 2016/17ScotlandAllAll3 | B4: 2016/17 | C4: Scotland | D4: All | E4: All | F4: 3 | G4: 399315
A5: 2016/17ScotlandCode 918-743 | B5: 2016/17 | C5: Scotland | D5: Code 9 | E5: 18-74 | F5: 3 | G5: 36156
A6: 2016/17ScotlandCode 975+3 | B6: 2016/17 | C6: Scotland | D6: Code 9 | E6: 75+ | F6: 3 | G6: 50575
A7: 2016/17ScotlandCode 9All3 | B7: 2016/17 | C7: Scotland | D7: Code 9 | E7: All | F7: 3 | G7: 86731
A8: 2016/17ScotlandHealth and Social Care Reasons18-743 | B8: 2016/17 | C8: Scotland | D8: Health and Social Care Reasons | E8: 18-74 | F8: 3 | G8: 82461
A9: 2016/17ScotlandHealth and Social Care Reasons75+3 | B9: 2016/17 | C9: Scotland | D9: Health and Social Care Reasons | E9: 75+ | F9: 3 | G9: 214615
A10: 2016/17ScotlandHealth and Social Care ReasonsAll3 | B10: 2016/17 | C10: Scotland | D10: Health and Social Care Reasons | E10: All | F10: 3 | G10: 297076
A11: 2016/17ScotlandPatient/Carer/Family-related reasons18-743 | B11: 2016/17 | C11: Scotland | D11: Patient/Carer/Family-related reasons | E11: 18-74 | F11: 3 | G11: 3485
A12: 2016/17ScotlandPatient/Carer/Family-related reasons75+3 | B12: 2016/17 | C12: Scotland | D12: Patient/Carer/Family-related reasons | E12: 75+ | F12: 3 | G12: 12023
A13: 2016/17ScotlandPatient/Carer/Family-related reasonsAll3 | B13: 2016/17 | C13: Scotland | D13: Patient/Carer/Family-related reasons | E13: All | F13: 3 | G13: 15508
A14: 2017/18ScotlandAll18-743 | B14: 2017/18 | C14: Scotland | D14: All | E14: 18-74 | F14: 3 | G14: 152685
A15: 2017/18ScotlandAll75+3 | B15: 2017/18 | C15: Scotland | D15: All | E15: 75+ | F15: 3 | G15: 341438
A16: 2017/18ScotlandAllAll3 | B16: 2017/18 | C16: Scotland | D16: All | E16: All | F16: 3 | G16: 494123
A17: 2017/18ScotlandCode 918-743 | B17: 2017/18 | C17: Scotland | D17: Code 9 | E17: 18-74 | F17: 3 | G17: 48386
A18: 2017/18ScotlandCode 975+3 | B18: 2017/18 | C18: Scotland | D18: Code 9 | E18: 75+ | F18: 3 | G18: 60279
A19: 2017/18ScotlandCode 9All3 | B19: 2017/18 | C19: Scotland | D19: Code 9 | E19: All | F19: 3 | G19: 108665
A20: 2017/18ScotlandHealth and Social Care Reasons18-743 | B20: 2017/18 | C20: Scotland | D20: Health and Social Care Reasons | E20: 18-74 | F20: 3 | G20: 99756
A21: 2017/18ScotlandHealth and Social Care Reasons75+3 | B21: 2017/18 | C21: Scotland | D21: Health and Social Care Reasons | E21: 75+ | F21: 3 | G21: 269052
A22: 2017/18ScotlandHealth and Social Care ReasonsAll3 | B22: 2017/18 | C22: Scotland | D22: Health and Social Care Reasons | E22: All | F22: 3 | G22: 368808
A23: 2017/18ScotlandPatient/Carer/Family-related reasons18-743 | B23: 2017/18 | C23: Scotland | D23: Patient/Carer/Family-related reasons | E23: 18-74 | F23: 3 | G23: 4543
A24: 2017/18ScotlandPatient/Carer/Family-related reasons75+3 | B24: 2017/18 | C24: Scotland | D24: Patient/Carer/Family-related reasons | E24: 75+ | F24: 3 | G24: 12107
A25: 2017/18ScotlandPatient/Carer/Family-related reasonsAll3 | B25: 2017/18 | C25: Scotland | D25: Patient/Carer/Family-related reasons | E25: All | F25: 3 | G25: 16650
A26: 2016/17Aberdeen CityAll18-743 | B26: 2016/17 | C26: Aberdeen City | D26: All | E26: 18-74 | F26: 3 | G26: 6215
A27: 2016/17Aberdeen CityAll75+3 | B27: 2016/17 | C27: Aberdeen City | D27: All | E27: 75+ | F27: 3 | G27: 12924
A28: 2016/17Aberdeen CityAllAll3 | B28: 2016/17 | C28: Aberdeen City | D28: All | E28: All | F28: 3 | G28: 19139
A29: 2016/17Aberdeen CityCode 918-743 | B29: 2016/17 | C29: Aberdeen City | D29: Code 9 | E29: 18-74 | F29: 3 | G29: 1233
A30: 2016/17Aberdeen CityCode 975+3 | B30: 2016/17 | C30: Aberdeen City | D30: Code 9 | E30: 75+ | F30: 3 | G30: 1100
A31: 2016/17Aberdeen CityCode 9All3 | B31: 2016/17 | C31: Aberdeen City | D31: Code 9 | E31: All | F31: 3 | G31: 2333
A32: 2016/17Aberdeen CityHealth and Social Care Reasons18-743 | B32: 2016/17 | C32: Aberdeen City | D32: Health and Social Care Reasons | E32: 18-74 | F32: 3 | G32: 4886
A33: 2016/17Aberdeen CityHealth and Social Care Reasons75+3 | B33: 2016/17 | C33: Aberdeen City | D33: Health and Social Care Reasons | E33: 75+ | F33: 3 | G33: 11412
A34: 2016/17Aberdeen CityHealth and Social Care ReasonsAll3 | B34: 2016/17 | C34: Aberdeen City | D34: Health and Social Care Reasons | E34: All | F34: 3 | G34: 16298
A35: 2016/17Aberdeen CityPatient/Carer/Family-related reasons18-743 | B35: 2016/17 | C35: Aberdeen City | D35: Patient/Carer/Family-related reasons | E35: 18-74 | F35: 3 | G35: 96
A36: 2016/17Aberdeen CityPatient/Carer/Family-related reasons75+3 | B36: 2016/17 | C36: Aberdeen City | D36: Patient/Carer/Family-related reasons | E36: 75+ | F36: 3 | G36: 412
A37: 2016/17Aberdeen CityPatient/Carer/Family-related reasonsAll3 | B37: 2016/17 | C37: Aberdeen City | D37: Patient/Carer/Family-related reasons | E37: All | F37: 3 | G37: 508
A38: 2016/17AberdeenshireAll18-743 | B38: 2016/17 | C38: Aberdeenshire | D38: All | E38: 18-74 | F38: 3 | G38: 3443
A39: 2016/17AberdeenshireAll75+3 | B39: 2016/17 | C39: Aberdeenshire | D39: All | E39: 75+ | F39: 3 | G39: 9909
A40: 2016/17AberdeenshireAllAll3 | B40: 2016/17 | C40: Aberdeenshire | D40: All | E40: All | F40: 3 | G40: 13352
A41: 2016/17AberdeenshireCode 918-743 | B41: 2016/17 | C41: Aberdeenshire | D41: Code 9 | E41: 18-74 | F41: 3 | G41: 969
A42: 2016/17AberdeenshireCode 975+3 | B42: 2016/17 | C42: Aberdeenshire | D42: Code 9 | E42: 75+ | F42: 3 | G42: 1581
A43: 2016/17AberdeenshireCode 9All3 | B43: 2016/17 | C43: Aberdeenshire | D43: Code 9 | E43: All | F43: 3 | G43: 2550
A44: 2016/17AberdeenshireHealth and Social Care Reasons18-743 | B44: 2016/17 | C44: Aberdeenshire | D44: Health and Social Care Reasons | E44: 18-74 | F44: 3 | G44: 2335
A45: 2016/17AberdeenshireHealth and Social Care Reasons75+3 | B45: 2016/17 | C45: Aberdeenshire | D45: Health and Social Care Reasons | E45: 75+ | F45: 3 | G45: 7976
A46: 2016/17AberdeenshireHealth and Social Care ReasonsAll3 | B46: 2016/17 | C46: Aberdeenshire | D46: Health and Social Care Reasons | E46: All | F46: 3 | G46: 10311
A47: 2016/17AberdeenshirePatient/Carer/Family-related reasons18-743 | B47: 2016/17 | C47: Aberdeenshire | D47: Patient/Carer/Family-related reasons | E47: 18-74 | F47: 3 | G47: 139
A48: 2016/17AberdeenshirePatient/Carer/Family-related reasons75+3 | B48: 2016/17 | C48: Aberdeenshire | D48: Patient/Carer/Family-related reasons | E48: 75+ | F48: 3 | G48: 352
A49: 2016/17AberdeenshirePatient/Carer/Family-related reasonsAll3 | B49: 2016/17 | C49: Aberdeenshire | D49: Patient/Carer/Family-related reasons | E49: All | F49: 3 | G49: 491
A50: 2016/17AngusAll18-743 | B50: 2016/17 | C50: Angus | D50: All | E50: 18-74 | F50: 3 | G50: 1619
A51: 2016/17AngusAll75+3 | B51: 2016/17 | C51: Angus | D51: All | E51: 75+ | F51: 3 | G51: 3115
A52: 2016/17AngusAllAll3 | B52: 2016/17 | C52: Angus | D52: All | E52: All | F52: 3 | G52: 4734
A53: 2016/17AngusCode 918-743 | B53: 2016/17 | C53: Angus | D53: Code 9 | E53: 18-74 | F53: 3 | G53: 986
A54: 2016/17AngusCode 975+3 | B54: 2016/17 | C54: Angus | D54: Code 9 | E54: 75+ | F54: 3 | G54: 821
A55: 2016/17AngusCode 9All3 | B55: 2016/17 | C55: Angus | D55: Code 9 | E55: All | F55: 3 | G55: 1807
A56: 2016/17AngusHealth and Social Care Reasons18-743 | B56: 2016/17 | C56: Angus | D56: Health and Social Care Reasons | E56: 18-74 | F56: 3 | G56: 502
A57: 2016/17AngusHealth and Social Care Reasons75+3 | B57: 2016/17 | C57: Angus | D57: Health and Social Care Reasons | E57: 75+ | F57: 3 | G57: 2260
A58: 2016/17AngusHealth and Social Care ReasonsAll3 | B58: 2016/17 | C58: Angus | D58: Health and Social Care Reasons | E58: All | F58: 3 | G58: 2762
A59: 2016/17AngusPatient/Carer/Family-related reasons18-743 | B59: 2016/17 | C59: Angus | D59: Patient/Carer/Family-related reasons | E59: 18-74 | F59: 3 | G59: 131
A60: 2016/17AngusPatient/Carer/Family-related reasons75+3 | B60: 2016/17 | C60: Angus | D60: Patient/Carer/Family-related reasons | E60: 75+ | F60: 3 | G60: 34
A61: 2016/17AngusPatient/Carer/Family-related reasonsAll3 | B61: 2016/17 | C61: Angus | D61: Patient/Carer/Family-related reasons | E61: All | F61: 3 | G61: 165
A62: 2016/17Argyll & ButeAll18-743 | B62: 2016/17 | C62: Argyll & Bute | D62: All | E62: 18-74 | F62: 3 | G62: 1048
A63: 2016/17Argyll & ButeAll75+3 | B63: 2016/17 | C63: Argyll & Bute | D63: All | E63: 75+ | F63: 3 | G63: 3937
A64: 2016/17Argyll & ButeAllAll3 | B64: 2016/17 | C64: Argyll & Bute | D64: All | E64: All | F64: 3 | G64: 4985
A65: 2016/17Argyll & ButeCode 918-743 | B65: 2016/17 | C65: Argyll & Bute | D65: Code 9 | E65: 18-74 | F65: 3 | G65: 119
A66: 2016/17Argyll & ButeCode 975+3 | B66: 2016/17 | C66: Argyll & Bute | D66: Code 9 | E66: 75+ | F66: 3 | G66: 550
A67: =B67&C67&D67&E67&F67 -> 2016/17Argyll & ButeCode 9All3 | B67: 2016/17 | C67: Argyll & Bute | D67: Code 9 | E67: All | F67: 3 | G67: 669
A68: 2016/17Argyll & ButeHealth and Social Care Reasons18-743 | B68: 2016/17 | C68: Argyll & Bute | D68: Health and Social Care Reasons | E68: 18-74 | F68: 3 | G68: 796
A69: 2016/17Argyll & ButeHealth and Social Care Reasons75+3 | B69: 2016/17 | C69: Argyll & Bute | D69: Health and Social Care Reasons | E69: 75+ | F69: 3 | G69: 2795
A70: 2016/17Argyll & ButeHealth and Social Care ReasonsAll3 | B70: 2016/17 | C70: Argyll & Bute | D70: Health and Social Care Reasons | E70: All | F70: 3 | G70: 3591
A71: 2016/17Argyll & ButePatient/Carer/Family-related reasons18-743 | B71: 2016/17 | C71: Argyll & Bute | D71: Patient/Carer/Family-related reasons | E71: 18-74 | F71: 3 | G71: 133
A72: 2016/17Argyll & ButePatient/Carer/Family-related reasons75+3 | B72: 2016/17 | C72: Argyll & Bute | D72: Patient/Carer/Family-related reasons | E72: 75+ | F72: 3 | G72: 592
A73: 2016/17Argyll & ButePatient/Carer/Family-related reasonsAll3 | B73: 2016/17 | C73: Argyll & Bute | D73: Patient/Carer/Family-related reasons | E73: All | F73: 3 | G73: 725
A74: 2016/17City of EdinburghAll18-743 | B74: 2016/17 | C74: City of Edinburgh | D74: All | E74: 18-74 | F74: 3 | G74: 18193
A75: 2016/17City of EdinburghAll75+3 | B75: 2016/17 | C75: City of Edinburgh | D75: All | E75: 75+ | F75: 3 | G75: 38033
A76: 2016/17City of EdinburghAllAll3 | B76: 2016/17 | C76: City of Edinburgh | D76: All | E76: All | F76: 3 | G76: 56226
A77: 2016/17City of EdinburghCode 918-743 | B77: 2016/17 | C77: City of Edinburgh | D77: Code 9 | E77: 18-74 | F77: 3 | G77: 2282
A78: 2016/17City of EdinburghCode 975+3 | B78: 2016/17 | C78: City of Edinburgh | D78: Code 9 | E78: 75+ | F78: 3 | G78: 3201
A79: 2016/17City of EdinburghCode 9All3 | B79: 2016/17 | C79: City of Edinburgh | D79: Code 9 | E79: All | F79: 3 | G79: 5483
A80: 2016/17City of EdinburghHealth and Social Care Reasons18-743 | B80: 2016/17 | C80: City of Edinburgh | D80: Health and Social Care Reasons | E80: 18-74 | F80: 3 | G80: 15815
A81: 2016/17City of EdinburghHealth and Social Care Reasons75+3 | B81: 2016/17 | C81: City of Edinburgh | D81: Health and Social Care Reasons | E81: 75+ | F81: 3 | G81: 34343
A82: 2016/17City of EdinburghHealth and Social Care ReasonsAll3 | B82: 2016/17 | C82: City of Edinburgh | D82: Health and Social Care Reasons | E82: All | F82: 3 | G82: 50158
A83: 2016/17City of EdinburghPatient/Carer/Family-related reasons18-743 | B83: 2016/17 | C83: City of Edinburgh | D83: Patient/Carer/Family-related reasons | E83: 18-74 | F83: 3 | G83: 96
A84: 2016/17City of EdinburghPatient/Carer/Family-related reasons75+3 | B84: 2016/17 | C84: City of Edinburgh | D84: Patient/Carer/Family-related reasons | E84: 75+ | F84: 3 | G84: 489
A85: 2016/17City of EdinburghPatient/Carer/Family-related reasonsAll3 | B85: 2016/17 | C85: City of Edinburgh | D85: Patient/Carer/Family-related reasons | E85: All | F85: 3 | G85: 585
A86: 2016/17ClackmannanshireAll18-743 | B86: 2016/17 | C86: Clackmannanshire | D86: All | E86: 18-74 | F86: 3 | G86: 562
A87: 2016/17ClackmannanshireAll75+3 | B87: 2016/17 | C87: Clackmannanshire | D87: All | E87: 75+ | F87: 3 | G87: 1936
A88: 2016/17ClackmannanshireAllAll3 | B88: 2016/17 | C88: Clackmannanshire | D88: All | E88: All | F88: 3 | G88: 2498
A89: 2016/17ClackmannanshireCode 918-743 | B89: 2016/17 | C89: Clackmannanshire | D89: Code 9 | E89: 18-74 | F89: 3 | G89: 409
A90: 2016/17ClackmannanshireCode 975+3 | B90: 2016/17 | C90: Clackmannanshire | D90: Code 9 | E90: 75+ | F90: 3 | G90: 581
A91: 2016/17ClackmannanshireCode 9All3 | B91: 2016/17 | C91: Clackmannanshire | D91: Code 9 | E91: All | F91: 3 | G91: 990
A92: 2016/17ClackmannanshireHealth and Social Care Reasons18-743 | B92: 2016/17 | C92: Clackmannanshire | D92: Health and Social Care Reasons | E92: 18-74 | F92: 3 | G92: 116
A93: 2016/17ClackmannanshireHealth and Social Care Reasons75+3 | B93: 2016/17 | C93: Clackmannanshire | D93: Health and Social Care Reasons | E93: 75+ | F93: 3 | G93: 1288
A94: 2016/17ClackmannanshireHealth and Social Care ReasonsAll3 | B94: 2016/17 | C94: Clackmannanshire | D94: Health and Social Care Reasons | E94: All | F94: 3 | G94: 1404
A95: 2016/17ClackmannanshirePatient/Carer/Family-related reasons18-743 | B95: 2016/17 | C95: Clackmannanshire | D95: Patient/Carer/Family-related reasons | E95: 18-74 | F95: 3 | G95: 37
A96: 2016/17ClackmannanshirePatient/Carer/Family-related reasons75+3 | B96: 2016/17 | C96: Clackmannanshire | D96: Patient/Carer/Family-related reasons | E96: 75+ | F96: 3 | G96: 67
A97: 2016/17ClackmannanshirePatient/Carer/Family-related reasonsAll3 | B97: 2016/17 | C97: Clackmannanshire | D97: Patient/Carer/Family-related reasons | E97: All | F97: 3 | G97: 104
A98: 2016/17Comhairle nan Eilean SiarAll18-743 | B98: 2016/17 | C98: Comhairle nan Eilean Siar | D98: All | E98: 18-74 | F98: 3 | G98: 2106
A99: 2016/17Comhairle nan Eilean SiarAll75+3 | B99: 2016/17 | C99: Comhairle nan Eilean Siar | D99: All | E99: 75+ | F99: 3 | G99: 5259
A100: 2016/17Comhairle nan Eilean SiarAllAll3 | B100: 2016/17 | C100: Comhairle nan Eilean Siar | D100: All | E100: All | F100: 3 | G100: 7365
A101: 2016/17Comhairle nan Eilean SiarCode 918-743 | B101: 2016/17 | C101: Comhairle nan Eilean Siar | D101: Code 9 | E101: 18-74 | F101: 3 | G101: 408
A102: 2016/17Comhairle nan Eilean SiarCode 975+3 | B102: 2016/17 | C102: Comhairle nan Eilean Siar | D102: Code 9 | E102: 75+ | F102: 3 | G102: 3426
A103: 2016/17Comhairle nan Eilean SiarCode 9All3 | B103: 2016/17 | C103: Comhairle nan Eilean Siar | D103: Code 9 | E103: All | F103: 3 | G103: 3834
A104: 2016/17Comhairle nan Eilean SiarHealth and Social Care Reasons18-743 | B104: 2016/17 | C104: Comhairle nan Eilean Siar | D104: Health and Social Care Reasons | E104: 18-74 | F104: 3 | G104: 1698
A105: 2016/17Comhairle nan Eilean SiarHealth and Social Care Reasons75+3 | B105: 2016/17 | C105: Comhairle nan Eilean Siar | D105: Health and Social Care Reasons | E105: 75+ | F105: 3 | G105: 1801
A106: 2016/17Comhairle nan Eilean SiarHealth and Social Care ReasonsAll3 | B106: 2016/17 | C106: Comhairle nan Eilean Siar | D106: Health and Social Care Reasons | E106: All | F106: 3 | G106: 3499
A107: 2016/17Comhairle nan Eilean SiarPatient/Carer/Family-related reasons75+3 | B107: 2016/17 | C107: Comhairle nan Eilean Siar | D107: Patient/Carer/Family-related reasons | E107: 75+ | F107: 3 | G107: 32
A108: 2016/17Comhairle nan Eilean SiarPatient/Carer/Family-related reasonsAll3 | B108: 2016/17 | C108: Comhairle nan Eilean Siar | D108: Patient/Carer/Family-related reasons | E108: All | F108: 3 | G108: 32
A109: 2016/17Dumfries & GallowayAll18-743 | B109: 2016/17 | C109: Dumfries & Galloway | D109: All | E109: 18-74 | F109: 3 | G109: 2172
A110: 2016/17Dumfries & GallowayAll75+3 | B110: 2016/17 | C110: Dumfries & Galloway | D110: All | E110: 75+ | F110: 3 | G110: 7264
A111: 2016/17Dumfries & GallowayAllAll3 | B111: 2016/17 | C111: Dumfries & Galloway | D111: All | E111: All | F111: 3 | G111: 9436
A112: 2016/17Dumfries & GallowayCode 918-743 | B112: 2016/17 | C112: Dumfries & Galloway | D112: Code 9 | E112: 18-74 | F112: 3 | G112: 510
A113: 2016/17Dumfries & GallowayCode 975+3 | B113: 2016/17 | C113: Dumfries & Galloway | D113: Code 9 | E113: 75+ | F113: 3 | G113: 1575
A114: 2016/17Dumfries & GallowayCode 9All3 | B114: 2016/17 | C114: Dumfries & Galloway | D114: Code 9 | E114: All | F114: 3 | G114: 2085
A115: 2016/17Dumfries & GallowayHealth and Social Care Reasons18-743 | B115: 2016/17 | C115: Dumfries & Galloway | D115: Health and Social Care Reasons | E115: 18-74 | F115: 3 | G115: 1547
A116: 2016/17Dumfries & GallowayHealth and Social Care Reasons75+3 | B116: 2016/17 | C116: Dumfries & Galloway | D116: Health and Social Care Reasons | E116: 75+ | F116: 3 | G116: 5689
A117: 2016/17Dumfries & GallowayHealth and Social Care ReasonsAll3 | B117: 2016/17 | C117: Dumfries & Galloway | D117: Health and Social Care Reasons | E117: All | F117: 3 | G117: 7236
A118: 2016/17Dumfries & GallowayPatient/Carer/Family-related reasons18-743 | B118: 2016/17 | C118: Dumfries & Galloway | D118: Patient/Carer/Family-related reasons | E118: 18-74 | F118: 3 | G118: 115
A119: 2016/17Dumfries & GallowayPatient/Carer/Family-related reasonsAll3 | B119: 2016/17 | C119: Dumfries & Galloway | D119: Patient/Carer/Family-related reasons | E119: All | F119: 3 | G119: 115
A120: 2016/17Dundee CityAll18-743 | B120: 2016/17 | C120: Dundee City | D120: All | E120: 18-74 | F120: 3 | G120: 3962
A121: 2016/17Dundee CityAll75+3 | B121: 2016/17 | C121: Dundee City | D121: All | E121: 75+ | F121: 3 | G121: 6611
A122: 2016/17Dundee CityAllAll3 | B122: 2016/17 | C122: Dundee City | D122: All | E122: All | F122: 3 | G122: 10573
A123: 2016/17Dundee CityCode 918-743 | B123: 2016/17 | C123: Dundee City | D123: Code 9 | E123: 18-74 | F123: 3 | G123: 2543
A124: 2016/17Dundee CityCode 975+3 | B124: 2016/17 | C124: Dundee City | D124: Code 9 | E124: 75+ | F124: 3 | G124: 1962
A125: 2016/17Dundee CityCode 9All3 | B125: 2016/17 | C125: Dundee City | D125: Code 9 | E125: All | F125: 3 | G125: 4505
A126: 2016/17Dundee CityHealth and Social Care Reasons18-743 | B126: 2016/17 | C126: Dundee City | D126: Health and Social Care Reasons | E126: 18-74 | F126: 3 | G126: 1261
A127: 2016/17Dundee CityHealth and Social Care Reasons75+3 | B127: 2016/17 | C127: Dundee City | D127: Health and Social Care Reasons | E127: 75+ | F127: 3 | G127: 4194
A128: 2016/17Dundee CityHealth and Social Care ReasonsAll3 | B128: 2016/17 | C128: Dundee City | D128: Health and Social Care Reasons | E128: All | F128: 3 | G128: 5455
A129: 2016/17Dundee CityPatient/Carer/Family-related reasons18-743 | B129: 2016/17 | C129: Dundee City | D129: Patient/Carer/Family-related reasons | E129: 18-74 | F129: 3 | G129: 158
A130: 2016/17Dundee CityPatient/Carer/Family-related reasons75+3 | B130: 2016/17 | C130: Dundee City | D130: Patient/Carer/Family-related reasons | E130: 75+ | F130: 3 | G130: 455
A131: =B131&C131&D131&E131&F131 -> 2016/17Dundee CityPatient/Carer/Family-related reasonsAll3 | B131: 2016/17 | C131: Dundee City | D131: Patient/Carer/Family-related reasons | E131: All | F131: 3 | G131: 613
A132: 2016/17East AyrshireAll18-743 | B132: 2016/17 | C132: East Ayrshire | D132: All | E132: 18-74 | F132: 3 | G132: 906
A133: 2016/17East AyrshireAll75+3 | B133: 2016/17 | C133: East Ayrshire | D133: All | E133: 75+ | F133: 3 | G133: 3638
A134: 2016/17East AyrshireAllAll3 | B134: 2016/17 | C134: East Ayrshire | D134: All | E134: All | F134: 3 | G134: 4544
A135: 2016/17East AyrshireCode 918-743 | B135: 2016/17 | C135: East Ayrshire | D135: Code 9 | E135: 18-74 | F135: 3 | G135: 771
A136: 2016/17East AyrshireCode 975+3 | B136: 2016/17 | C136: East Ayrshire | D136: Code 9 | E136: 75+ | F136: 3 | G136: 2514
A137: 2016/17East AyrshireCode 9All3 | B137: 2016/17 | C137: East Ayrshire | D137: Code 9 | E137: All | F137: 3 | G137: 3285
A138: 2016/17East AyrshireHealth and Social Care Reasons18-743 | B138: 2016/17 | C138: East Ayrshire | D138: Health and Social Care Reasons | E138: 18-74 | F138: 3 | G138: 135
A139: 2016/17East AyrshireHealth and Social Care Reasons75+3 | B139: 2016/17 | C139: East Ayrshire | D139: Health and Social Care Reasons | E139: 75+ | F139: 3 | G139: 1121
A140: 2016/17East AyrshireHealth and Social Care ReasonsAll3 | B140: 2016/17 | C140: East Ayrshire | D140: Health and Social Care Reasons | E140: All | F140: 3 | G140: 1256
A141: 2016/17East AyrshirePatient/Carer/Family-related reasons75+3 | B141: 2016/17 | C141: East Ayrshire | D141: Patient/Carer/Family-related reasons | E141: 75+ | F141: 3 | G141: 3
A142: 2016/17East AyrshirePatient/Carer/Family-related reasonsAll3 | B142: 2016/17 | C142: East Ayrshire | D142: Patient/Carer/Family-related reasons | E142: All | F142: 3 | G142: 3
A143: 2016/17East DunbartonshireAll18-743 | B143: 2016/17 | C143: East Dunbartonshire | D143: All | E143: 18-74 | F143: 3 | G143: 727
A144: 2016/17East DunbartonshireAll75+3 | B144: 2016/17 | C144: East Dunbartonshire | D144: All | E144: 75+ | F144: 3 | G144: 1570
A145: 2016/17East DunbartonshireAllAll3 | B145: 2016/17 | C145: East Dunbartonshire | D145: All | E145: All | F145: 3 | G145: 2297
A146: 2016/17East DunbartonshireCode 918-743 | B146: 2016/17 | C146: East Dunbartonshire | D146: Code 9 | E146: 18-74 | F146: 3 | G146: 293
A147: 2016/17East DunbartonshireCode 975+3 | B147: 2016/17 | C147: East Dunbartonshire | D147: Code 9 | E147: 75+ | F147: 3 | G147: 28
A148: 2016/17East DunbartonshireCode 9All3 | B148: 2016/17 | C148: East Dunbartonshire | D148: Code 9 | E148: All | F148: 3 | G148: 321
A149: 2016/17East DunbartonshireHealth and Social Care Reasons18-743 | B149: 2016/17 | C149: East Dunbartonshire | D149: Health and Social Care Reasons | E149: 18-74 | F149: 3 | G149: 434
A150: 2016/17East DunbartonshireHealth and Social Care Reasons75+3 | B150: 2016/17 | C150: East Dunbartonshire | D150: Health and Social Care Reasons | E150: 75+ | F150: 3 | G150: 1511
A151: 2016/17East DunbartonshireHealth and Social Care ReasonsAll3 | B151: 2016/17 | C151: East Dunbartonshire | D151: Health and Social Care Reasons | E151: All | F151: 3 | G151: 1945
A152: 2016/17East DunbartonshirePatient/Carer/Family-related reasons75+3 | B152: 2016/17 | C152: East Dunbartonshire | D152: Patient/Carer/Family-related reasons | E152: 75+ | F152: 3 | G152: 31
A153: 2016/17East DunbartonshirePatient/Carer/Family-related reasonsAll3 | B153: 2016/17 | C153: East Dunbartonshire | D153: Patient/Carer/Family-related reasons | E153: All | F153: 3 | G153: 31
A154: 2016/17East LothianAll18-743 | B154: 2016/17 | C154: East Lothian | D154: All | E154: 18-74 | F154: 3 | G154: 3249
A155: 2016/17East LothianAll75+3 | B155: 2016/17 | C155: East Lothian | D155: All | E155: 75+ | F155: 3 | G155: 8381
A156: 2016/17East LothianAllAll3 | B156: 2016/17 | C156: East Lothian | D156: All | E156: All | F156: 3 | G156: 11630
A157: 2016/17East LothianCode 918-743 | B157: 2016/17 | C157: East Lothian | D157: Code 9 | E157: 18-74 | F157: 3 | G157: 336
A158: 2016/17East LothianCode 975+3 | B158: 2016/17 | C158: East Lothian | D158: Code 9 | E158: 75+ | F158: 3 | G158: 53
A159: 2016/17East LothianCode 9All3 | B159: 2016/17 | C159: East Lothian | D159: Code 9 | E159: All | F159: 3 | G159: 389
A160: 2016/17East LothianHealth and Social Care Reasons18-743 | B160: 2016/17 | C160: East Lothian | D160: Health and Social Care Reasons | E160: 18-74 | F160: 3 | G160: 2863
A161: 2016/17East LothianHealth and Social Care Reasons75+3 | B161: 2016/17 | C161: East Lothian | D161: Health and Social Care Reasons | E161: 75+ | F161: 3 | G161: 8321
A162: 2016/17East LothianHealth and Social Care ReasonsAll3 | B162: 2016/17 | C162: East Lothian | D162: Health and Social Care Reasons | E162: All | F162: 3 | G162: 11184
A163: 2016/17East LothianPatient/Carer/Family-related reasons18-743 | B163: 2016/17 | C163: East Lothian | D163: Patient/Carer/Family-related reasons | E163: 18-74 | F163: 3 | G163: 50
A164: 2016/17East LothianPatient/Carer/Family-related reasons75+3 | B164: 2016/17 | C164: East Lothian | D164: Patient/Carer/Family-related reasons | E164: 75+ | F164: 3 | G164: 7
A165: 2016/17East LothianPatient/Carer/Family-related reasonsAll3 | B165: 2016/17 | C165: East Lothian | D165: Patient/Carer/Family-related reasons | E165: All | F165: 3 | G165: 57
A166: 2016/17East RenfrewshireAll18-743 | B166: 2016/17 | C166: East Renfrewshire | D166: All | E166: 18-74 | F166: 3 | G166: 609
A167: 2016/17East RenfrewshireAll75+3 | B167: 2016/17 | C167: East Renfrewshire | D167: All | E167: 75+ | F167: 3 | G167: 1144
A168: 2016/17East RenfrewshireAllAll3 | B168: 2016/17 | C168: East Renfrewshire | D168: All | E168: All | F168: 3 | G168: 1753
A169: 2016/17East RenfrewshireCode 918-743 | B169: 2016/17 | C169: East Renfrewshire | D169: Code 9 | E169: 18-74 | F169: 3 | G169: 368
A170: 2016/17East RenfrewshireCode 975+3 | B170: 2016/17 | C170: East Renfrewshire | D170: Code 9 | E170: 75+ | F170: 3 | G170: 129
A171: 2016/17East RenfrewshireCode 9All3 | B171: 2016/17 | C171: East Renfrewshire | D171: Code 9 | E171: All | F171: 3 | G171: 497
A172: 2016/17East RenfrewshireHealth and Social Care Reasons18-743 | B172: 2016/17 | C172: East Renfrewshire | D172: Health and Social Care Reasons | E172: 18-74 | F172: 3 | G172: 240
A173: 2016/17East RenfrewshireHealth and Social Care Reasons75+3 | B173: 2016/17 | C173: East Renfrewshire | D173: Health and Social Care Reasons | E173: 75+ | F173: 3 | G173: 990
A174: 2016/17East RenfrewshireHealth and Social Care ReasonsAll3 | B174: 2016/17 | C174: East Renfrewshire | D174: Health and Social Care Reasons | E174: All | F174: 3 | G174: 1230
A175: 2016/17East RenfrewshirePatient/Carer/Family-related reasons18-743 | B175: 2016/17 | C175: East Renfrewshire | D175: Patient/Carer/Family-related reasons | E175: 18-74 | F175: 3 | G175: 1
A176: 2016/17East RenfrewshirePatient/Carer/Family-related reasons75+3 | B176: 2016/17 | C176: East Renfrewshire | D176: Patient/Carer/Family-related reasons | E176: 75+ | F176: 3 | G176: 25
A177: 2016/17East RenfrewshirePatient/Carer/Family-related reasonsAll3 | B177: 2016/17 | C177: East Renfrewshire | D177: Patient/Carer/Family-related reasons | E177: All | F177: 3 | G177: 26
A178: 2016/17FalkirkAll18-743 | B178: 2016/17 | C178: Falkirk | D178: All | E178: 18-74 | F178: 3 | G178: 4866
A179: 2016/17FalkirkAll75+3 | B179: 2016/17 | C179: Falkirk | D179: All | E179: 75+ | F179: 3 | G179: 10200
A180: 2016/17FalkirkAllAll3 | B180: 2016/17 | C180: Falkirk | D180: All | E180: All | F180: 3 | G180: 15066
A181: 2016/17FalkirkCode 918-743 | B181: 2016/17 | C181: Falkirk | D181: Code 9 | E181: 18-74 | F181: 3 | G181: 1663
A182: 2016/17FalkirkCode 975+3 | B182: 2016/17 | C182: Falkirk | D182: Code 9 | E182: 75+ | F182: 3 | G182: 1577
A183: 2016/17FalkirkCode 9All3 | B183: 2016/17 | C183: Falkirk | D183: Code 9 | E183: All | F183: 3 | G183: 3240
A184: 2016/17FalkirkHealth and Social Care Reasons18-743 | B184: 2016/17 | C184: Falkirk | D184: Health and Social Care Reasons | E184: 18-74 | F184: 3 | G184: 2870
A185: 2016/17FalkirkHealth and Social Care Reasons75+3 | B185: 2016/17 | C185: Falkirk | D185: Health and Social Care Reasons | E185: 75+ | F185: 3 | G185: 7835
A186: 2016/17FalkirkHealth and Social Care ReasonsAll3 | B186: 2016/17 | C186: Falkirk | D186: Health and Social Care Reasons | E186: All | F186: 3 | G186: 10705
A187: 2016/17FalkirkPatient/Carer/Family-related reasons18-743 | B187: 2016/17 | C187: Falkirk | D187: Patient/Carer/Family-related reasons | E187: 18-74 | F187: 3 | G187: 333
A188: 2016/17FalkirkPatient/Carer/Family-related reasons75+3 | B188: 2016/17 | C188: Falkirk | D188: Patient/Carer/Family-related reasons | E188: 75+ | F188: 3 | G188: 788
A189: 2016/17FalkirkPatient/Carer/Family-related reasonsAll3 | B189: 2016/17 | C189: Falkirk | D189: Patient/Carer/Family-related reasons | E189: All | F189: 3 | G189: 1121
A190: 2016/17FifeAll18-743 | B190: 2016/17 | C190: Fife | D190: All | E190: 18-74 | F190: 3 | G190: 9484
A191: 2016/17FifeAll75+3 | B191: 2016/17 | C191: Fife | D191: All | E191: 75+ | F191: 3 | G191: 18908
A192: 2016/17FifeAllAll3 | B192: 2016/17 | C192: Fife | D192: All | E192: All | F192: 3 | G192: 28392
A193: 2016/17FifeCode 918-743 | B193: 2016/17 | C193: Fife | D193: Code 9 | E193: 18-74 | F193: 3 | G193: 2779
A194: 2016/17FifeCode 975+3 | B194: 2016/17 | C194: Fife | D194: Code 9 | E194: 75+ | F194: 3 | G194: 4749
A195: =B195&C195&D195&E195&F195 -> 2016/17FifeCode 9All3 | B195: 2016/17 | C195: Fife | D195: Code 9 | E195: All | F195: 3 | G195: 7528
A196: 2016/17FifeHealth and Social Care Reasons18-743 | B196: 2016/17 | C196: Fife | D196: Health and Social Care Reasons | E196: 18-74 | F196: 3 | G196: 6528
A197: 2016/17FifeHealth and Social Care Reasons75+3 | B197: 2016/17 | C197: Fife | D197: Health and Social Care Reasons | E197: 75+ | F197: 3 | G197: 14001
A198: 2016/17FifeHealth and Social Care ReasonsAll3 | B198: 2016/17 | C198: Fife | D198: Health and Social Care Reasons | E198: All | F198: 3 | G198: 20529
A199: 2016/17FifePatient/Carer/Family-related reasons18-743 | B199: 2016/17 | C199: Fife | D199: Patient/Carer/Family-related reasons | E199: 18-74 | F199: 3 | G199: 177
A200: 2016/17FifePatient/Carer/Family-related reasons75+3 | B200: 2016/17 | C200: Fife | D200: Patient/Carer/Family-related reasons | E200: 75+ | F200: 3 | G200: 158
... 6151 more rows

Sheet Tab 5
B1: =Guide!B1 -> 
A2: =LEFT(A3, 4) -> 2019 | B2: ="Table 5. Delayed discharge bed day rate per 1,000 population (Age 75+): "&$A$5 -> Table 5. Delayed discharge bed day rate per 1,000 population (Age 75+): April 2019 - March 2020
A3: =VLOOKUP(A6, lookups!A2:C5, 2, FALSE) -> 2019/20 | B3: =IF($A$6=1, "Healthboard and local authority figures have not been adjusted for the definitional changes therefore it is not possible to compare 2016/17 with other financial years at this level.", " ") -> 
A5: =VLOOKUP(A6, lookups!A2:C5, 3, FALSE) -> April 2019 - March 2020 | B5: Select year:
A6: 4 | B6: 2 | C6: 4 | D6: 5
B7: Local authority of residence1 | C7: ="Delayed discharge bed days " & $A$3 & " aged 75+" -> Delayed discharge bed days 2019/20 aged 75+ | D7: ="Population ("& $A$2 & " mid year estimates)" & " aged 75+" -> Population (2019 mid year estimates) aged 75+ | E7: Delayed discharge bed days per 1,000 population aged 75+ | P7: Local authority of residence | Q7: Annual number of bed days occupied by delayed discharges aged 75+ | R7: Population aged 75+ (mid year estimates) | S7: Delayed Discharge bed day rate per 1,000 population aged 75+ | T7: 2016/17 | X7: 2017/18 | AB7: 2018/19 | AF7: 2019/20
B8: Scotland | C8: =SUM(C9:C41) -> 360733 | D8: =SUM(D9:D41) -> 465845 | E8: =C8/D8*1000 -> 774.3627172 | P8: =IF($A$6=1,T8,IF($A$6=2,X8,IF($A$6=3,AB8,AF8))) -> East Renfrewshire | Q8: =IF($A$6=1,U8,IF($A$6=2,Y8,IF($A$6=3,AC8,AG8))) -> 1435 | R8: 9213 | S8: 155.7581678 | T8: Renfrewshire | U8: 1559 | V8: 14542 | W8: 107.2067116 | X8: East Renfrewshire | Y8: 1049 | Z8: 8934 | AA8: 117.4166107 | AB8: Inverclyde | AC8: 641 | AD8: 7395 | AE8: 86.68018932 | AF8: East Renfrewshire | AG8: 1435 | AH8: 9213 | AI8: 155.7581678
B9: Aberdeen City | C9: =VLOOKUP($A$3 & $B9, Tab5Data!$A$2:$E$137, 4, FALSE) -> 9488 | D9: =VLOOKUP($A$3 & $B9, Tab5Data!$A$2:$E$137, 5, FALSE) -> 16377 | E9: 579.3490871 | P9: =IF($A$6=1,T9,IF($A$6=2,X9,IF($A$6=3,AB9,AF9))) -> Inverclyde | Q9: =IF($A$6=1,U9,IF($A$6=2,Y9,IF($A$6=3,AC9,AG9))) -> 1224 | R9: =IF($A$6=1,V9,IF($A$6=2,Z9,IF($A$6=3,AD9,AH9))) -> 7545 | S9: =IF($A$6=1,W9,IF($A$6=2,AA9,IF($A$6=3,AE9,AI9))) -> 162.2266402 | T9: East Dunbartonshire | U9: 2061 | V9: 11055 | W9: 186.431479 | X9: Inverclyde | Y9: 1255 | Z9: 7293 | AA9: 172.0828191 | AB9: Orkney | AC9: 260 | AD9: 2345 | AE9: 110.8742004 | AF9: Inverclyde | AG9: 1224 | AH9: 7545 | AI9: 162.2266402
B10: Aberdeenshire | C10: =VLOOKUP($A$3 & $B10, Tab5Data!$A$2:$E$137, 4, FALSE) -> 11291 | D10: =VLOOKUP($A$3 & $B10, Tab5Data!$A$2:$E$137, 5, FALSE) -> 21622 | E10: 522.1996115 | P10: East Ayrshire | Q10: 2567 | R10: 10689 | S10: 240.1534288 | T10: East Renfrewshire | U10: 2011 | V10: 8825 | W10: 227.8753541 | X10: Renfrewshire | Y10: 2789 | Z10: 14687 | AA10: 189.8958262 | AB10: East Renfrewshire | AC10: 1532 | AD10: 8987 | AE10: 170.4684544 | AF10: East Ayrshire | AG10: 2567 | AH10: 10689 | AI10: 240.1534288
B11: Angus | C11: =VLOOKUP($A$3 & $B11, Tab5Data!$A$2:$E$137, 4, FALSE) -> 3164 | D11: =VLOOKUP($A$3 & $B11, Tab5Data!$A$2:$E$137, 5, FALSE) -> 12551 | E11: 252.0914668 | P11: Angus | Q11: 3164 | R11: 12551 | S11: 252.0914668 | T11: Inverclyde | U11: 1921 | V11: 7298 | W11: 263.2228008 | X11: East Dunbartonshire | Y11: 2554 | Z11: 11208 | AA11: 227.8729479 | AB11: Renfrewshire | AC11: 3650 | AD11: 14842 | AE11: 245.92373 | AF11: Angus | AG11: 3164 | AH11: 12551 | AI11: 252.0914668
B12: Argyll & Bute | C12: =VLOOKUP($A$3 & $B12, Tab5Data!$A$2:$E$137, 4, FALSE) -> 5348 | D12: =VLOOKUP($A$3 & $B12, Tab5Data!$A$2:$E$137, 5, FALSE) -> 9911 | E12: 539.6024619 | P12: Clackmannanshire | Q12: 1339 | R12: 4323 | S12: 309.7386074 | T12: Angus | U12: 4173 | V12: 11761 | W12: 354.8167673 | X12: Glasgow City | Y12: 12533 | Z12: 38645 | AA12: 324.3110364 | AB12: Angus | AC12: 3827 | AD12: 12173 | AE12: 314.3842931 | AF12: Clackmannanshire | AG12: 1339 | AH12: 4323 | AI12: 309.7386074
B13: City of Edinburgh | C13: =VLOOKUP($A$3 & $B13, Tab5Data!$A$2:$E$137, 4, FALSE) -> 42861 | D13: =VLOOKUP($A$3 & $B13, Tab5Data!$A$2:$E$137, 5, FALSE) -> 36473 | E13: 1175.143257 | P13: East Dunbartonshire | Q13: 3806 | R13: 11726 | S13: 324.5778612 | T13: Orkney | U13: 930 | V13: 2141 | W13: 434.3764596 | X13: West Dunbartonshire | Y13: 2360 | Z13: 7066 | AA13: 333.993773 | AB13: West Dunbartonshire | AC13: 2342 | AD13: 7055 | AE13: 331.9631467 | AF13: East Dunbartonshire | AG13: 3806 | AH13: 11726 | AI13: 324.5778612
B14: Clackmannanshire | C14: =VLOOKUP($A$3 & $B14, Tab5Data!$A$2:$E$137, 4, FALSE) -> 1339 | D14: =VLOOKUP($A$3 & $B14, Tab5Data!$A$2:$E$137, 5, FALSE) -> 4323 | E14: 309.7386074 | P14: East Lothian | Q14: 3227 | R14: 9869 | S14: 326.9834836 | T14: East Ayrshire | U14: 4672 | V14: 10216 | W14: 457.3218481 | X14: East Ayrshire | Y14: 3450 | Z14: 10242 | AA14: 336.8482718 | AB14: East Dunbartonshire | AC14: 4072 | AD14: 11412 | AE14: 356.8173852 | AF14: East Lothian | AG14: 3227 | AH14: 9869 | AI14: 326.9834836
B15: Comhairle nan Eilean Siar | C15: =VLOOKUP($A$3 & $B15, Tab5Data!$A$2:$E$137, 4, FALSE) -> 4877 | D15: =VLOOKUP($A$3 & $B15, Tab5Data!$A$2:$E$137, 5, FALSE) -> 3229 | E15: 1510.374729 | P15: Renfrewshire | Q15: 5852 | R15: 15296 | S15: 382.583682 | T15: Glasgow City | U15: 18092 | V15: 39009 | W15: 463.7904073 | X15: Dundee City | Y15: 4302 | Z15: 12319 | AA15: 349.2166572 | AB15: Dundee City | AC15: 4551 | AD15: 12228 | AE15: 372.1786065 | AF15: Renfrewshire | AG15: 5852 | AH15: 15296 | AI15: 382.583682
B16: Dumfries & Galloway | C16: =VLOOKUP($A$3 & $B16, Tab5Data!$A$2:$E$137, 4, FALSE) -> 13792 | D16: =VLOOKUP($A$3 & $B16, Tab5Data!$A$2:$E$137, 5, FALSE) -> 17527 | E16: 786.9002111 | P16: Dundee City | Q16: 5438 | R16: 12268 | S16: 443.2670362 | T16: West Dunbartonshire | U16: 3374 | V16: 7051 | W16: 478.513686 | X16: Clackmannanshire | Y16: 1529 | Z16: 4034 | AA16: 379.0282598 | AB16: East Ayrshire | AC16: 4013 | AD16: 10382 | AE16: 386.5343864 | AF16: Dundee City | AG16: 5438 | AH16: 12268 | AI16: 443.2670362
B17: Dundee City | C17: =VLOOKUP($A$3 & $B17, Tab5Data!$A$2:$E$137, 4, FALSE) -> 5438 | D17: =VLOOKUP($A$3 & $B17, Tab5Data!$A$2:$E$137, 5, FALSE) -> 12268 | E17: 443.2670362 | P17: Orkney | Q17: 1135 | R17: 2432 | S17: 466.6940789 | T17: Shetland | U17: 967 | V17: 1831 | W17: 528.1267067 | X17: Orkney | Y17: 855 | Z17: 2244 | AA17: 381.0160428 | AB17: Glasgow City | AC17: 17618 | AD17: 38462 | AE17: 458.0625032 | AF17: Orkney | AG17: 1135 | AH17: 2432 | AI17: 466.6940789
B18: East Ayrshire | C18: =VLOOKUP($A$3 & $B18, Tab5Data!$A$2:$E$137, 4, FALSE) -> 2567 | D18: =VLOOKUP($A$3 & $B18, Tab5Data!$A$2:$E$137, 5, FALSE) -> 10689 | E18: 240.1534288 | P18: Shetland | Q18: 1024 | R18: 2052 | S18: 499.0253411 | T18: Dumfries & Galloway | U18: 9719 | V18: 16445 | W18: 591.000304 | X18: Angus | Y18: 5005 | Z18: 11953 | AA18: 418.7233331 | AB18: Stirling | AC18: 4400 | AD18: 8143 | AE18: 540.3413975 | AF18: Shetland | AG18: 1024 | AH18: 2052 | AI18: 499.0253411
B19: East Dunbartonshire | C19: =VLOOKUP($A$3 & $B19, Tab5Data!$A$2:$E$137, 4, FALSE) -> 3806 | D19: =VLOOKUP($A$3 & $B19, Tab5Data!$A$2:$E$137, 5, FALSE) -> 11726 | E19: 324.5778612 | P19: Perth & Kinross | Q19: 8369 | R19: 16659 | S19: 502.3710907 | T19: Argyll & Bute | U19: 5569 | V19: 9335 | W19: 596.5720407 | X19: Shetland | Y19: 952 | Z19: 1885 | AA19: 505.0397878 | AB19: Perth & Kinross | AC19: 8906 | AD19: 16262 | AE19: 547.6571147 | AF19: Perth & Kinross | AG19: 8369 | AH19: 16659 | AI19: 502.3710907
B20: East Lothian | C20: =VLOOKUP($A$3 & $B20, Tab5Data!$A$2:$E$137, 4, FALSE) -> 3227 | D20: =VLOOKUP($A$3 & $B20, Tab5Data!$A$2:$E$137, 5, FALSE) -> 9869 | E20: 326.9834836 | P20: Aberdeenshire | Q20: 11291 | R20: 21622 | S20: 522.1996115 | T20: North Ayrshire | U20: 7823 | V20: 12529 | W20: 624.3914119 | X20: Dumfries & Galloway | Y20: 9281 | Z20: 16746 | AA20: 554.2219037 | AB20: Shetland | AC20: 1126 | AD20: 1966 | AE20: 572.7365209 | AF20: Aberdeenshire | AG20: 11291 | AH20: 21622 | AI20: 522.1996115
B21: East Renfrewshire | C21: =VLOOKUP($A$3 & $B21, Tab5Data!$A$2:$E$137, 4, FALSE) -> 1435 | D21: =VLOOKUP($A$3 & $B21, Tab5Data!$A$2:$E$137, 5, FALSE) -> 9213 | E21: 155.7581678 | P21: Argyll & Bute | Q21: 5348 | R21: 9911 | S21: 539.6024619 | T21: Clackmannanshire | U21: 2518 | V21: 3928 | W21: 641.0386965 | X21: Stirling | Y21: 4508 | Z21: 7969 | AA21: 565.6920567 | AB21: Aberdeen City | AC21: 9807 | AD21: 16235 | AE21: 604.065291 | AF21: Argyll & Bute | AG21: 5348 | AH21: 9911 | AI21: 539.6024619
B22: Falkirk | C22: =VLOOKUP($A$3 & $B22, Tab5Data!$A$2:$E$137, 4, FALSE) -> 13524 | D22: =VLOOKUP($A$3 & $B22, Tab5Data!$A$2:$E$137, 5, FALSE) -> 13257 | E22: 1020.140303 | P22: West Dunbartonshire | Q22: 3872 | R22: 7157 | S22: 541.0088026 | T22: Scottish Borders | U22: 7631 | V22: 11792 | W22: 647.1336499 | X22: Aberdeenshire | Y22: 12176 | Z22: 20443 | AA22: 595.6072983 | AB22: Dumfries & Galloway | AC22: 10351 | AD22: 17038 | AE22: 607.5243573 | AF22: West Dunbartonshire | AG22: 3872 | AH22: 7157 | AI22: 541.0088026
B23: Fife | C23: =VLOOKUP($A$3 & $B23, Tab5Data!$A$2:$E$137, 4, FALSE) -> 24153 | D23: =VLOOKUP($A$3 & $B23, Tab5Data!$A$2:$E$137, 5, FALSE) -> 33793 | E23: 714.7338206 | P23: Glasgow City | Q23: 21125 | R23: 38580 | S23: 547.5635044 | T23: Aberdeenshire | U23: 13527 | V23: 19990 | W23: 676.6883442 | X23: Fife | Y23: 19638 | Z23: 32089 | AA23: 611.9854156 | AB23: Aberdeenshire | AC23: 12880 | AD23: 20993 | AE23: 613.5378459 | AF23: Glasgow City | AG23: 21125 | AH23: 38580 | AI23: 547.5635044
B24: Glasgow City | C24: =VLOOKUP($A$3 & $B24, Tab5Data!$A$2:$E$137, 4, FALSE) -> 21125 | D24: =VLOOKUP($A$3 & $B24, Tab5Data!$A$2:$E$137, 5, FALSE) -> 38580 | E24: 547.5635044 | P24: Aberdeen City | Q24: 9488 | R24: 16377 | S24: 579.3490871 | T24: Dundee City | U24: 9352 | V24: 12408 | W24: 753.7072856 | X24: Argyll & Bute | Y24: 5918 | Z24: 9467 | AA24: 625.1188338 | AB24: Fife | AC24: 20570 | AD24: 32754 | AE24: 628.0148989 | AF24: Aberdeen City | AG24: 9488 | AH24: 16377 | AI24: 579.3490871
B25: Highland | C25: =VLOOKUP($A$3 & $B25, Tab5Data!$A$2:$E$137, 4, FALSE) -> 29902 | D25: =VLOOKUP($A$3 & $B25, Tab5Data!$A$2:$E$137, 5, FALSE) -> 23398 | E25: 1277.972476 | P25: Scottish Borders | Q25: 8269 | R25: 12614 | S25: 655.5414619 | T25: Stirling | U25: 5938 | V25: 7774 | W25: 763.8281451 | X25: Perth & Kinross | Y25: 10479 | Z25: 15923 | AA25: 658.1046285 | AB25: Argyll & Bute | AC25: 6169 | AD25: 9636 | AE25: 640.2034039 | AF25: Scottish Borders | AG25: 8269 | AH25: 12614 | AI25: 655.5414619
B26: Inverclyde | C26: =VLOOKUP($A$3 & $B26, Tab5Data!$A$2:$E$137, 4, FALSE) -> 1224 | D26: =VLOOKUP($A$3 & $B26, Tab5Data!$A$2:$E$137, 5, FALSE) -> 7545 | E26: 162.2266402 | P26: Fife | Q26: 24153 | R26: 33793 | S26: 714.7338206 | T26: Fife | U26: 24559 | V26: 31543 | W26: 778.5879593 | X26: Scotland | Y26: 341438 | Z26: 447971 | AA26: 762.1877309 | AB26: East Lothian | AC26: 6046 | AD26: 9437 | AE26: 640.6697044 | AF26: Fife | AG26: 24153 | AH26: 33793 | AI26: 714.7338206
B27: Midlothian | C27: =VLOOKUP($A$3 & $B27, Tab5Data!$A$2:$E$137, 4, FALSE) -> 7106 | D27: =VLOOKUP($A$3 & $B27, Tab5Data!$A$2:$E$137, 5, FALSE) -> 7359 | E27: 965.6203288 | P27: Moray | Q27: 7234 | R27: 9423 | S27: 767.6960628 | T27: West Lothian | U27: 9536 | V27: 11597 | W27: 822.2816246 | X27: East Lothian | Y27: 7231 | Z27: 9332 | AA27: 774.8606944 | AB27: Clackmannanshire | AC27: 2723 | AD27: 4162 | AE27: 654.2527631 | AF27: Moray | AG27: 7234 | AH27: 9423 | AI27: 767.6960628
B28: Moray | C28: =VLOOKUP($A$3 & $B28, Tab5Data!$A$2:$E$137, 4, FALSE) -> 7234 | D28: =VLOOKUP($A$3 & $B28, Tab5Data!$A$2:$E$137, 5, FALSE) -> 9423 | E28: 767.6960628 | P28: Scotland | Q28: 360733 | R28: 465845 | S28: 774.3627172 | T28: Scotland | U28: 371791 | V28: 442309 | W28: 840.5684714 | X28: Aberdeen City | Y28: 13587 | Z28: 16210 | AA28: 838.1863048 | AB28: Scottish Borders | AC28: 9312 | AD28: 12240 | AE28: 760.7843137 | AF28: Scotland | AG28: 360733 | AH28: 465845 | AI28: 774.3627172
B29: North Ayrshire | C29: =VLOOKUP($A$3 & $B29, Tab5Data!$A$2:$E$137, 4, FALSE) -> 17737 | D29: =VLOOKUP($A$3 & $B29, Tab5Data!$A$2:$E$137, 5, FALSE) -> 13349 | E29: 1328.713761 | P29: Dumfries & Galloway | Q29: 13792 | R29: 17527 | S29: 786.9002111 | T29: Perth & Kinross | U29: 13456 | V29: 15540 | W29: 865.8944659 | X29: Scottish Borders | Y29: 10252 | Z29: 11984 | AA29: 855.4739653 | AB29: Scotland | AC29: 360582 | AD29: 454736 | AE29: 792.9479962 | AF29: Dumfries & Galloway | AG29: 13792 | AH29: 17527 | AI29: 786.9002111
B30: North Lanarkshire | C30: =VLOOKUP($A$3 & $B30, Tab5Data!$A$2:$E$137, 4, FALSE) -> 27941 | D30: =VLOOKUP($A$3 & $B30, Tab5Data!$A$2:$E$137, 5, FALSE) -> 25201 | E30: 1108.725844 | P30: Stirling | Q30: 7106 | R30: 8372 | S30: 848.7816531 | T30: North Lanarkshire | U30: 23009 | V30: 23933 | W30: 961.3922199 | X30: Falkirk | Y30: 11563 | Z30: 12704 | AA30: 910.1857683 | AB30: North Lanarkshire | AC30: 24484 | AD30: 24574 | AE30: 996.3375926 | AF30: Stirling | AG30: 7106 | AH30: 8372 | AI30: 848.7816531
B31: Orkney | C31: =VLOOKUP($A$3 & $B31, Tab5Data!$A$2:$E$137, 4, FALSE) -> 1135 | D31: =VLOOKUP($A$3 & $B31, Tab5Data!$A$2:$E$137, 5, FALSE) -> 2432 | E31: 466.6940789 | P31: West Lothian | Q31: 11955 | R31: 12794 | S31: 934.4223855 | T31: Midlothian | U31: 6608 | V31: 6804 | W31: 971.1934156 | X31: Moray | Y31: 8362 | Z31: 8933 | AA31: 936.0797045 | AB31: South Lanarkshire | AC31: 27554 | AD31: 26891 | AE31: 1024.655089 | AF31: West Lothian | AG31: 11955 | AH31: 12794 | AI31: 934.4223855
B32: Other | C32: =VLOOKUP($A$3 & $B32, Tab5Data!$A$2:$E$137, 4, FALSE) -> 270 | D32: =VLOOKUP($A$3 & $B32, Tab5Data!$A$2:$E$137, 5, FALSE) -> 0 | E32: =VLOOKUP($A$3 & $B32, Tab5Data!$A$2:$E$137, 5, FALSE) -> 0 | P32: Midlothian | Q32: 7106 | R32: 7359 | S32: 965.6203288 | T32: Falkirk | U32: 12839 | V32: 12553 | W32: 1022.783398 | X32: South Ayrshire | Y32: 12076 | Z32: 12484 | AA32: 967.3181673 | AB32: Moray | AC32: 9765 | AD32: 9184 | AE32: 1063.262195 | AF32: Midlothian | AG32: 7106 | AH32: 7359 | AI32: 965.6203288
B33: Perth & Kinross | C33: =VLOOKUP($A$3 & $B33, Tab5Data!$A$2:$E$137, 4, FALSE) -> 8369 | D33: =VLOOKUP($A$3 & $B33, Tab5Data!$A$2:$E$137, 5, FALSE) -> 16659 | E33: =C33/D33*1000 -> 502.3710907 | P33: Falkirk | Q33: 13524 | R33: 13257 | S33: 1020.140303 | T33: Moray | U33: 9593 | V33: 8759 | W33: 1095.216349 | X33: North Lanarkshire | Y33: 24438 | Z33: 24221 | AA33: 1008.959168 | AB33: North Ayrshire | AC33: 14619 | AD33: 12981 | AE33: 1126.184423 | AF33: Falkirk | AG33: 13524 | AH33: 13257 | AI33: 1020.140303
B34: Renfrewshire | C34: =VLOOKUP($A$3 & $B34, Tab5Data!$A$2:$E$137, 4, FALSE) -> 5852 | D34: =VLOOKUP($A$3 & $B34, Tab5Data!$A$2:$E$137, 5, FALSE) -> 15296 | E34: 382.583682 | P34: North Lanarkshire | Q34: 27941 | R34: 25201 | S34: 1108.725844 | T34: Aberdeen City | U34: 18587 | V34: 16094 | W34: 1154.902448 | X34: North Ayrshire | Y34: 12946 | Z34: 12779 | AA34: 1013.068315 | AB34: Falkirk | AC34: 15262 | AD34: 12957 | AE34: 1177.896118 | AF34: North Lanarkshire | AG34: 27941 | AH34: 25201 | AI34: 1108.725844
B35: Scottish Borders | C35: =VLOOKUP($A$3 & $B35, Tab5Data!$A$2:$E$137, 4, FALSE) -> 8269 | D35: =VLOOKUP($A$3 & $B35, Tab5Data!$A$2:$E$137, 5, FALSE) -> 12614 | E35: 655.5414619 | P35: South Lanarkshire | Q35: 31905 | R35: 27607 | S35: 1155.685152 | T35: East Lothian | U35: 10556 | V35: 9115 | W35: 1158.091059 | X35: South Lanarkshire | Y35: 29572 | Z35: 26449 | AA35: 1118.076298 | AB35: West Lothian | AC35: 15064 | AD35: 12406 | AE35: 1214.251169 | AF35: South Lanarkshire | AG35: 31905 | AH35: 27607 | AI35: 1155.685152
B36: Shetland | C36: =VLOOKUP($A$3 & $B36, Tab5Data!$A$2:$E$137, 4, FALSE) -> 1024 | D36: =VLOOKUP($A$3 & $B36, Tab5Data!$A$2:$E$137, 5, FALSE) -> 2052 | E36: 499.0253411 | P36: City of Edinburgh | Q36: 42861 | R36: 36473 | S36: 1175.143257 | T36: South Ayrshire | U36: 15521 | V36: 12188 | W36: 1273.465704 | X36: West Lothian | Y36: 13647 | Z36: 11981 | AA36: 1139.053501 | AB36: Highland | AC36: 28219 | AD36: 22604 | AE36: 1248.407362 | AF36: City of Edinburgh | AG36: 42861 | AH36: 36473 | AI36: 1175.143257
B37: South Ayrshire | C37: =VLOOKUP($A$3 & $B37, Tab5Data!$A$2:$E$137, 4, FALSE) -> 22397 | D37: =VLOOKUP($A$3 & $B37, Tab5Data!$A$2:$E$137, 5, FALSE) -> 13179 | E37: 1699.446088 | P37: Highland | Q37: 29902 | R37: 23398 | S37: 1277.972476 | T37: South Lanarkshire | U37: 34977 | V37: 26086 | W37: 1340.834164 | X37: Highland | Y37: 28582 | Z37: 21980 | AA37: 1300.363967 | AB37: Midlothian | AC37: 9381 | AD37: 7089 | AE37: 1323.317816 | AF37: Highland | AG37: 29902 | AH37: 23398 | AI37: 1277.972476
B38: South Lanarkshire | C38: =VLOOKUP($A$3 & $B38, Tab5Data!$A$2:$E$137, 4, FALSE) -> 31905 | D38: =VLOOKUP($A$3 & $B38, Tab5Data!$A$2:$E$137, 5, FALSE) -> 27607 | E38: 1155.685152 | P38: North Ayrshire | Q38: 17737 | R38: 13349 | S38: 1328.713761 | T38: City of Edinburgh | U38: 49702 | V38: 35621 | W38: 1395.300525 | X38: Midlothian | Y38: 9802 | Z38: 6893 | AA38: 1422.022342 | AB38: South Ayrshire | AC38: 17260 | AD38: 12752 | AE38: 1353.513174 | AF38: North Ayrshire | AG38: 17737 | AH38: 13349 | AI38: 1328.713761
B39: Stirling | C39: =VLOOKUP($A$3 & $B39, Tab5Data!$A$2:$E$137, 4, FALSE) -> 7106 | D39: =VLOOKUP($A$3 & $B39, Tab5Data!$A$2:$E$137, 5, FALSE) -> 8372 | E39: 848.7816531 | P39: Comhairle nan Eilean Siar | Q39: 4877 | R39: 3229 | S39: 1510.374729 | T39: Highland | U39: 33953 | V39: 21494 | W39: 1579.650135 | X39: City of Edinburgh | Y39: 53749 | Z39: 35784 | AA39: 1502.040018 | AB39: City of Edinburgh | AC39: 58328 | AD39: 35991 | AE39: 1620.627379 | AF39: Comhairle nan Eilean Siar | AG39: 4877 | AH39: 3229 | AI39: 1510.374729
B40: West Dunbartonshire | C40: =VLOOKUP($A$3 & $B40, Tab5Data!$A$2:$E$137, 4, FALSE) -> 3872 | D40: =VLOOKUP($A$3 & $B40, Tab5Data!$A$2:$E$137, 5, FALSE) -> 7157 | E40: 541.0088026 | P40: South Ayrshire | Q40: 22397 | R40: 13179 | S40: 1699.446088 | T40: Comhairle nan Eilean Siar | U40: 6697 | V40: 3052 | W40: 2194.29882 | X40: Comhairle nan Eilean Siar | Y40: 4799 | Z40: 3090 | AA40: 1553.074434 | AB40: Comhairle nan Eilean Siar | AC40: 5719 | AD40: 3160 | AE40: 1809.810127 | AF40: South Ayrshire | AG40: 22397 | AH40: 13179 | AI40: 1699.446088
B41: West Lothian | C41: =VLOOKUP($A$3 & $B41, Tab5Data!$A$2:$E$137, 4, FALSE) -> 11955 | D41: =VLOOKUP($A$3 & $B41, Tab5Data!$A$2:$E$137, 5, FALSE) -> 12794 | E41: 934.4223855 | P41: Other | Q41: 270 | R41: 0 | S41: 0 | T41: Other | U41: 361 | V41: 0 | X41: Other | Y41: 199 | Z41: 0 | AB41: Other | AC41: 131 | AD41: 0 | AF41: Other | AG41: 270 | AH41: 0
B42: Scotland (adjusted to reflect revised definitions across the whole year)5,6&7 | C42: 368008 | D42: 442309 | E42: =C42/D42*1000 -> 832.0156271
B43: Source: Public Health Scotland Delayed Discharge Data; National Records of Scotland (NRS) mid year population estimates
B44: Notes:
B45: 1. Health Board figures are based on NHS Board area of treatment; Local Authority figures are based on Local Authority of residence.
B46: 2. Delayed discharge bed days are the number of days people spend delayed in hospital following their ready for discharge date. Bed days occupied by delayed discharges are reported by calendar month; these figures have been summed to produce the annual figures above.
B47: 3. The average daily number of beds occupied by delayed discharges is calculated by dividing the total number of delayed discharge bed days in the financial year by the number of days in the year.
B48: 4. Age is calculated as at the Ready for Discharge date.
B49: 5. Reasons for delay reflect the integration of health and social care in April 2016. All bed days are assigned to the latest reason code recorded at the end of each monthly reporting period.
B50: 6. The Scotland-adjusted figure for 2016/17 consists of a 4% reduction applied to the April-June 2016 bed days to allow comparability with other financial years. This figure should be used when drawing any comparisons with the data (See note 7).
B51: 7. Revised data definitions and national data requirements were introduced on 1 July 2016. As part of the revision, the following patients are no longer recorded as delayed discharges: - Delays in non-hospital locations (e.g. care homes) - Delays for healthcare reasons. At Scotland level, the definitional changes are estimated to have resulted in a 4% reduction in bed days from July 2016 onwards and a decrease of approximately 1% in the 2016/17 bed day rate for people aged 75+. An adjusted Scotland figure has been included for 2016/17 which includes a 4% reduction applied to April-June 2016 bed days figures. Local Authority figures have not been adjusted for the definitional change. NB: The impact of these changes varied between partnerships, with some being more affected than others; therefore comparisons before and after July 2016 may not be possible at partnership level.
B52: 8. Population data sourced from National Records of Scotland (NRS) Mid Year Estimates for 2016, 2017, 2018 and 2019.
B53: https://www.nrscotland.gov.uk/files//statistics/population-estimates/mid-year-2016/tables/16-mid-year-pe-alltabs.xlsx
B55: https://www.nrscotland.gov.uk/files//statistics/population-estimates/mid-17/tables/mid-year-pop-est-17-tab-2.xlsx
B56: https://www.nrscotland.gov.uk/files//statistics/population-estimates/mid-18/mid-year-pop-est-18-tabs.xlsx
B57: https://www.nrscotland.gov.uk/files//statistics/population-estimates/mid-19/mid-year-pop-est-19-data.xlsx
B59: Link to Glossary

Sheet Tab5Data (hidden)
A1: lookup | B1: year | C1: areaname | D1: bed days | E1: population
A2: =B2&C2 -> 2016/17Scotland | B2: 2016/17 | C2: Scotland | D2: 371791 | E2: 442309
A3: 2016/17Aberdeen City | B3: 2016/17 | C3: Aberdeen City | D3: 18587 | E3: 16094
A4: 2016/17Aberdeenshire | B4: 2016/17 | C4: Aberdeenshire | D4: 13527 | E4: 19990
A5: 2016/17Angus | B5: 2016/17 | C5: Angus | D5: 4173 | E5: 11761
A6: 2016/17Argyll & Bute | B6: 2016/17 | C6: Argyll & Bute | D6: 5569 | E6: 9335
A7: 2016/17City of Edinburgh | B7: 2016/17 | C7: City of Edinburgh | D7: 49702 | E7: 35621
A8: 2016/17Clackmannanshire | B8: 2016/17 | C8: Clackmannanshire | D8: 2518 | E8: 3928
A9: 2016/17Comhairle nan Eilean Siar | B9: 2016/17 | C9: Comhairle nan Eilean Siar | D9: 6697 | E9: 3052
A10: 2016/17Dumfries & Galloway | B10: 2016/17 | C10: Dumfries & Galloway | D10: 9719 | E10: 16445
A11: 2016/17Dundee City | B11: 2016/17 | C11: Dundee City | D11: 9352 | E11: 12408
A12: 2016/17East Ayrshire | B12: 2016/17 | C12: East Ayrshire | D12: 4672 | E12: 10216
A13: 2016/17East Dunbartonshire | B13: 2016/17 | C13: East Dunbartonshire | D13: 2061 | E13: 11055
A14: 2016/17East Lothian | B14: 2016/17 | C14: East Lothian | D14: 10556 | E14: 9115
A15: 2016/17East Renfrewshire | B15: 2016/17 | C15: East Renfrewshire | D15: 2011 | E15: 8825
A16: 2016/17Falkirk | B16: 2016/17 | C16: Falkirk | D16: 12839 | E16: 12553
A17: 2016/17Fife | B17: 2016/17 | C17: Fife | D17: 24559 | E17: 31543
A18: 2016/17Glasgow City | B18: 2016/17 | C18: Glasgow City | D18: 18092 | E18: 39009
A19: 2016/17Highland | B19: 2016/17 | C19: Highland | D19: 33953 | E19: 21494
A20: 2016/17Inverclyde | B20: 2016/17 | C20: Inverclyde | D20: 1921 | E20: 7298
A21: 2016/17Midlothian | B21: 2016/17 | C21: Midlothian | D21: 6608 | E21: 6804
A22: 2016/17Moray | B22: 2016/17 | C22: Moray | D22: 9593 | E22: 8759
A23: 2016/17North Ayrshire | B23: 2016/17 | C23: North Ayrshire | D23: 7823 | E23: 12529
A24: 2016/17North Lanarkshire | B24: 2016/17 | C24: North Lanarkshire | D24: 23009 | E24: 23933
A25: 2016/17Orkney | B25: 2016/17 | C25: Orkney | D25: 930 | E25: 2141
A26: 2016/17Other | B26: 2016/17 | C26: Other | D26: 361
A27: 2016/17Perth & Kinross | B27: 2016/17 | C27: Perth & Kinross | D27: 13456 | E27: 15540
A28: 2016/17Renfrewshire | B28: 2016/17 | C28: Renfrewshire | D28: 1559 | E28: 14542
A29: 2016/17Scottish Borders | B29: 2016/17 | C29: Scottish Borders | D29: 7631 | E29: 11792
A30: 2016/17Shetland | B30: 2016/17 | C30: Shetland | D30: 967 | E30: 1831
A31: 2016/17South Ayrshire | B31: 2016/17 | C31: South Ayrshire | D31: 15521 | E31: 12188
A32: 2016/17South Lanarkshire | B32: 2016/17 | C32: South Lanarkshire | D32: 34977 | E32: 26086
A33: 2016/17Stirling | B33: 2016/17 | C33: Stirling | D33: 5938 | E33: 7774
A34: =B34&C34 -> 2016/17West Dunbartonshire | B34: 2016/17 | C34: West Dunbartonshire | D34: 3374 | E34: 7051
A35: 2016/17West Lothian | B35: 2016/17 | C35: West Lothian | D35: 9536 | E35: 11597
A36: 2017/18Scotland | B36: 2017/18 | C36: Scotland | D36: 341438 | E36: 447971
A37: 2017/18Aberdeen City | B37: 2017/18 | C37: Aberdeen City | D37: 13587 | E37: 16210
A38: 2017/18Aberdeenshire | B38: 2017/18 | C38: Aberdeenshire | D38: 12176 | E38: 20443
A39: 2017/18Angus | B39: 2017/18 | C39: Angus | D39: 5005 | E39: 11953
A40: 2017/18Argyll & Bute | B40: 2017/18 | C40: Argyll & Bute | D40: 5918 | E40: 9467
A41: 2017/18City of Edinburgh | B41: 2017/18 | C41: City of Edinburgh | D41: 53749 | E41: 35784
A42: 2017/18Clackmannanshire | B42: 2017/18 | C42: Clackmannanshire | D42: 1529 | E42: 4034
A43: 2017/18Comhairle nan Eilean Siar | B43: 2017/18 | C43: Comhairle nan Eilean Siar | D43: 4799 | E43: 3090
A44: 2017/18Dumfries & Galloway | B44: 2017/18 | C44: Dumfries & Galloway | D44: 9281 | E44: 16746
A45: 2017/18Dundee City | B45: 2017/18 | C45: Dundee City | D45: 4302 | E45: 12319
A46: 2017/18East Ayrshire | B46: 2017/18 | C46: East Ayrshire | D46: 3450 | E46: 10242
A47: 2017/18East Dunbartonshire | B47: 2017/18 | C47: East Dunbartonshire | D47: 2554 | E47: 11208
A48: 2017/18East Lothian | B48: 2017/18 | C48: East Lothian | D48: 7231 | E48: 9332
A49: 2017/18East Renfrewshire | B49: 2017/18 | C49: East Renfrewshire | D49: 1049 | E49: 8934
A50: 2017/18Falkirk | B50: 2017/18 | C50: Falkirk | D50: 11563 | E50: 12704
A51: 2017/18Fife | B51: 2017/18 | C51: Fife | D51: 19638 | E51: 32089
A52: 2017/18Glasgow City | B52: 2017/18 | C52: Glasgow City | D52: 12533 | E52: 38645
A53: 2017/18Highland | B53: 2017/18 | C53: Highland | D53: 28582 | E53: 21980
A54: 2017/18Inverclyde | B54: 2017/18 | C54: Inverclyde | D54: 1255 | E54: 7293
A55: 2017/18Midlothian | B55: 2017/18 | C55: Midlothian | D55: 9802 | E55: 6893
A56: 2017/18Moray | B56: 2017/18 | C56: Moray | D56: 8362 | E56: 8933
A57: 2017/18North Ayrshire | B57: 2017/18 | C57: North Ayrshire | D57: 12946 | E57: 12779
A58: 2017/18North Lanarkshire | B58: 2017/18 | C58: North Lanarkshire | D58: 24438 | E58: 24221
A59: 2017/18Orkney | B59: 2017/18 | C59: Orkney | D59: 855 | E59: 2244
A60: 2017/18Other | B60: 2017/18 | C60: Other | D60: 199
A61: 2017/18Perth & Kinross | B61: 2017/18 | C61: Perth & Kinross | D61: 10479 | E61: 15923
A62: 2017/18Renfrewshire | B62: 2017/18 | C62: Renfrewshire | D62: 2789 | E62: 14687
A63: 2017/18Scottish Borders | B63: 2017/18 | C63: Scottish Borders | D63: 10252 | E63: 11984
A64: 2017/18Shetland | B64: 2017/18 | C64: Shetland | D64: 952 | E64: 1885
A65: 2017/18South Ayrshire | B65: 2017/18 | C65: South Ayrshire | D65: 12076 | E65: 12484
A66: =B66&C66 -> 2017/18South Lanarkshire | B66: 2017/18 | C66: South Lanarkshire | D66: 29572 | E66: 26449
A67: 2017/18Stirling | B67: 2017/18 | C67: Stirling | D67: 4508 | E67: 7969
A68: 2017/18West Dunbartonshire | B68: 2017/18 | C68: West Dunbartonshire | D68: 2360 | E68: 7066
A69: 2017/18West Lothian | B69: 2017/18 | C69: West Lothian | D69: 13647 | E69: 11981
A70: 2018/19Scotland | B70: 2018/19 | C70: Scotland | D70: 360582 | E70: 454736
A71: 2018/19Aberdeen City | B71: 2018/19 | C71: Aberdeen City | D71: 9807 | E71: 16235
A72: 2018/19Aberdeenshire | B72: 2018/19 | C72: Aberdeenshire | D72: 12880 | E72: 20993
A73: 2018/19Angus | B73: 2018/19 | C73: Angus | D73: 3827 | E73: 12173
A74: 2018/19Argyll & Bute | B74: 2018/19 | C74: Argyll & Bute | D74: 6169 | E74: 9636
A75: 2018/19City of Edinburgh | B75: 2018/19 | C75: City of Edinburgh | D75: 58328 | E75: 35991
A76: 2018/19Clackmannanshire | B76: 2018/19 | C76: Clackmannanshire | D76: 2723 | E76: 4162
A77: 2018/19Comhairle nan Eilean Siar | B77: 2018/19 | C77: Comhairle nan Eilean Siar | D77: 5719 | E77: 3160
A78: 2018/19Dumfries & Galloway | B78: 2018/19 | C78: Dumfries & Galloway | D78: 10351 | E78: 17038
A79: 2018/19Dundee City | B79: 2018/19 | C79: Dundee City | D79: 4551 | E79: 12228
A80: 2018/19East Ayrshire | B80: 2018/19 | C80: East Ayrshire | D80: 4013 | E80: 10382
A81: 2018/19East Dunbartonshire | B81: 2018/19 | C81: East Dunbartonshire | D81: 4072 | E81: 11412
A82: 2018/19East Lothian | B82: 2018/19 | C82: East Lothian | D82: 6046 | E82: 9437
A83: 2018/19East Renfrewshire | B83: 2018/19 | C83: East Renfrewshire | D83: 1532 | E83: 8987
A84: 2018/19Falkirk | B84: 2018/19 | C84: Falkirk | D84: 15262 | E84: 12957
A85: 2018/19Fife | B85: 2018/19 | C85: Fife | D85: 20570 | E85: 32754
A86: 2018/19Glasgow City | B86: 2018/19 | C86: Glasgow City | D86: 17618 | E86: 38462
A87: 2018/19Highland | B87: 2018/19 | C87: Highland | D87: 28219 | E87: 22604
A88: 2018/19Inverclyde | B88: 2018/19 | C88: Inverclyde | D88: 641 | E88: 7395
A89: 2018/19Midlothian | B89: 2018/19 | C89: Midlothian | D89: 9381 | E89: 7089
A90: 2018/19Moray | B90: 2018/19 | C90: Moray | D90: 9765 | E90: 9184
A91: 2018/19North Ayrshire | B91: 2018/19 | C91: North Ayrshire | D91: 14619 | E91: 12981
A92: 2018/19North Lanarkshire | B92: 2018/19 | C92: North Lanarkshire | D92: 24484 | E92: 24574
A93: 2018/19Orkney | B93: 2018/19 | C93: Orkney | D93: 260 | E93: 2345
A94: 2018/19Other | B94: 2018/19 | C94: Other | D94: 131
A95: 2018/19Perth & Kinross | B95: 2018/19 | C95: Perth & Kinross | D95: 8906 | E95: 16262
A96: 2018/19Renfrewshire | B96: 2018/19 | C96: Renfrewshire | D96: 3650 | E96: 14842
A97: 2018/19Scottish Borders | B97: 2018/19 | C97: Scottish Borders | D97: 9312 | E97: 12240
A98: =B98&C98 -> 2018/19Shetland | B98: 2018/19 | C98: Shetland | D98: 1126 | E98: 1966
A99: 2018/19South Ayrshire | B99: 2018/19 | C99: South Ayrshire | D99: 17260 | E99: 12752
A100: 2018/19South Lanarkshire | B100: 2018/19 | C100: South Lanarkshire | D100: 27554 | E100: 26891
A101: 2018/19Stirling | B101: 2018/19 | C101: Stirling | D101: 4400 | E101: 8143
A102: 2018/19West Dunbartonshire | B102: 2018/19 | C102: West Dunbartonshire | D102: 2342 | E102: 7055
A103: 2018/19West Lothian | B103: 2018/19 | C103: West Lothian | D103: 15064 | E103: 12406
A104: 2019/20Scotland | B104: 2019/20 | C104: Scotland | D104: 360733 | E104: 465845
A105: 2019/20Aberdeen City | B105: 2019/20 | C105: Aberdeen City | D105: 9488 | E105: 16377
A106: 2019/20Aberdeenshire | B106: 2019/20 | C106: Aberdeenshire | D106: 11291 | E106: 21622
A107: 2019/20Angus | B107: 2019/20 | C107: Angus | D107: 3164 | E107: 12551
A108: 2019/20Argyll & Bute | B108: 2019/20 | C108: Argyll & Bute | D108: 5348 | E108: 9911
A109: 2019/20City of Edinburgh | B109: 2019/20 | C109: City of Edinburgh | D109: 42861 | E109: 36473
A110: 2019/20Clackmannanshire | B110: 2019/20 | C110: Clackmannanshire | D110: 1339 | E110: 4323
A111: 2019/20Comhairle nan Eilean Siar | B111: 2019/20 | C111: Comhairle nan Eilean Siar | D111: 4877 | E111: 3229
A112: 2019/20Dumfries & Galloway | B112: 2019/20 | C112: Dumfries & Galloway | D112: 13792 | E112: 17527
A113: 2019/20Dundee City | B113: 2019/20 | C113: Dundee City | D113: 5438 | E113: 12268
A114: 2019/20East Ayrshire | B114: 2019/20 | C114: East Ayrshire | D114: 2567 | E114: 10689
A115: 2019/20East Dunbartonshire | B115: 2019/20 | C115: East Dunbartonshire | D115: 3806 | E115: 11726
A116: 2019/20East Lothian | B116: 2019/20 | C116: East Lothian | D116: 3227 | E116: 9869
A117: 2019/20East Renfrewshire | B117: 2019/20 | C117: East Renfrewshire | D117: 1435 | E117: 9213
A118: 2019/20Falkirk | B118: 2019/20 | C118: Falkirk | D118: 13524 | E118: 13257
A119: 2019/20Fife | B119: 2019/20 | C119: Fife | D119: 24153 | E119: 33793
A120: 2019/20Glasgow City | B120: 2019/20 | C120: Glasgow City | D120: 21125 | E120: 38580
A121: 2019/20Highland | B121: 2019/20 | C121: Highland | D121: 29902 | E121: 23398
A122: 2019/20Inverclyde | B122: 2019/20 | C122: Inverclyde | D122: 1224 | E122: 7545
A123: 2019/20Midlothian | B123: 2019/20 | C123: Midlothian | D123: 7106 | E123: 7359
A124: 2019/20Moray | B124: 2019/20 | C124: Moray | D124: 7234 | E124: 9423
A125: 2019/20North Ayrshire | B125: 2019/20 | C125: North Ayrshire | D125: 17737 | E125: 13349
A126: 2019/20North Lanarkshire | B126: 2019/20 | C126: North Lanarkshire | D126: 27941 | E126: 25201
A127: 2019/20Orkney | B127: 2019/20 | C127: Orkney | D127: 1135 | E127: 2432
A128: 2019/20Other | B128: 2019/20 | C128: Other | D128: 270
A129: 2019/20Perth & Kinross | B129: 2019/20 | C129: Perth & Kinross | D129: 8369 | E129: 16659
A130: =B130&C130 -> 2019/20Renfrewshire | B130: 2019/20 | C130: Renfrewshire | D130: 5852 | E130: 15296
A131: 2019/20Scottish Borders | B131: 2019/20 | C131: Scottish Borders | D131: 8269 | E131: 12614
A132: 2019/20Shetland | B132: 2019/20 | C132: Shetland | D132: 1024 | E132: 2052
A133: 2019/20South Ayrshire | B133: 2019/20 | C133: South Ayrshire | D133: 22397 | E133: 13179
A134: 2019/20South Lanarkshire | B134: 2019/20 | C134: South Lanarkshire | D134: 31905 | E134: 27607
A135: 2019/20Stirling | B135: 2019/20 | C135: Stirling | D135: 7106 | E135: 8372
A136: 2019/20West Dunbartonshire | B136: 2019/20 | C136: West Dunbartonshire | D136: 3872 | E136: 7157
A137: 2019/20West Lothian | B137: 2019/20 | C137: West Lothian | D137: 11955 | E137: 12794

Sheet Tab 6
B1: =Guide!B1 -> 
B2: Table 6. Delayed discharge bed days: Monthly and average daily number of beds (unadjusted for definitional changes); 2012/13 - 2019/20
B3: =$A$7&" - "&$A$11 -> Scotland - All Delays
B5: Select NHS Board or Local Authority3: | I5: Select reason for delay:
C6: 5 | D6: 6 | E6: 7 | F6: 8 | G6: 9 | H6: 10 | I6: 11 | J6: 12 | K6: 13 | L6: 14 | M6: 15 | N6: 16
A7: =VLOOKUP(A8, lookups!J2:K48, 2, FALSE) -> Scotland | B7: Delayed discharge bed days1 | C7: Month
A8: 1 | B8: Year | C8: Apr | D8: May | E8: Jun | F8: Jul | G8: Aug | H8: Sep | I8: Oct | J8: Nov | K8: Dec | L8: Jan | M8: Feb | N8: Mar
A9: 1 | B9: 2012-13 | C9: =VLOOKUP($A$7 & $B9 & $A$10, Tab6Data!$A$2:$P$1249, C$6, FALSE) -> 38744 | D9: =VLOOKUP($A$7 & $B9 & $A$10, Tab6Data!$A$2:$P$1249, D$6, FALSE) -> 40034 | E9: =VLOOKUP($A$7 & $B9 & $A$10, Tab6Data!$A$2:$P$1249, E$6, FALSE) -> 40494 | F9: =VLOOKUP($A$7 & $B9 & $A$10, Tab6Data!$A$2:$P$1249, F$6, FALSE) -> 39904 | G9: =VLOOKUP($A$7 & $B9 & $A$10, Tab6Data!$A$2:$P$1249, G$6, FALSE) -> 40705 | H9: =VLOOKUP($A$7 & $B9 & $A$10, Tab6Data!$A$2:$P$1249, H$6, FALSE) -> 41339 | I9: =VLOOKUP($A$7 & $B9 & $A$10, Tab6Data!$A$2:$P$1249, I$6, FALSE) -> 43373 | J9: =VLOOKUP($A$7 & $B9 & $A$10, Tab6Data!$A$2:$P$1249, J$6, FALSE) -> 41897 | K9: =VLOOKUP($A$7 & $B9 & $A$10, Tab6Data!$A$2:$P$1249, K$6, FALSE) -> 39821 | L9: =VLOOKUP($A$7 & $B9 & $A$10, Tab6Data!$A$2:$P$1249, L$6, FALSE) -> 40819 | M9: =VLOOKUP($A$7 & $B9 & $A$10, Tab6Data!$A$2:$P$1249, M$6, FALSE) -> 40392 | N9: =VLOOKUP($A$7 & $B9 & $A$10, Tab6Data!$A$2:$P$1249, N$6, FALSE) -> 44199
A10: =VLOOKUP(A9, lookups!E7:G10, 3, FALSE) -> All | B10: 2013-14 | C10: =VLOOKUP($A$7 & $B10 & $A$10, Tab6Data!$A$2:$P$1249, C$6, FALSE) -> 39747 | D10: =VLOOKUP($A$7 & $B10 & $A$10, Tab6Data!$A$2:$P$1249, D$6, FALSE) -> 42140 | E10: =VLOOKUP($A$7 & $B10 & $A$10, Tab6Data!$A$2:$P$1249, E$6, FALSE) -> 41024 | F10: =VLOOKUP($A$7 & $B10 & $A$10, Tab6Data!$A$2:$P$1249, F$6, FALSE) -> 40404 | G10: =VLOOKUP($A$7 & $B10 & $A$10, Tab6Data!$A$2:$P$1249, G$6, FALSE) -> 42777 | H10: =VLOOKUP($A$7 & $B10 & $A$10, Tab6Data!$A$2:$P$1249, H$6, FALSE) -> 43350 | I10: =VLOOKUP($A$7 & $B10 & $A$10, Tab6Data!$A$2:$P$1249, I$6, FALSE) -> 45551 | J10: =VLOOKUP($A$7 & $B10 & $A$10, Tab6Data!$A$2:$P$1249, J$6, FALSE) -> 44000 | K10: =VLOOKUP($A$7 & $B10 & $A$10, Tab6Data!$A$2:$P$1249, K$6, FALSE) -> 45427 | L10: =VLOOKUP($A$7 & $B10 & $A$10, Tab6Data!$A$2:$P$1249, L$6, FALSE) -> 49029 | M10: =VLOOKUP($A$7 & $B10 & $A$10, Tab6Data!$A$2:$P$1249, M$6, FALSE) -> 47414 | N10: =VLOOKUP($A$7 & $B10 & $A$10, Tab6Data!$A$2:$P$1249, N$6, FALSE) -> 51636
A11: =VLOOKUP(A9, lookups!E7:G10, 2, FALSE) -> All Delays | B11: 2014-15 | C11: =VLOOKUP($A$7 & $B11 & $A$10, Tab6Data!$A$2:$P$1249, C$6, FALSE) -> 47553 | D11: =VLOOKUP($A$7 & $B11 & $A$10, Tab6Data!$A$2:$P$1249, D$6, FALSE) -> 51595 | E11: =VLOOKUP($A$7 & $B11 & $A$10, Tab6Data!$A$2:$P$1249, E$6, FALSE) -> 50078 | F11: =VLOOKUP($A$7 & $B11 & $A$10, Tab6Data!$A$2:$P$1249, F$6, FALSE) -> 49525 | G11: =VLOOKUP($A$7 & $B11 & $A$10, Tab6Data!$A$2:$P$1249, G$6, FALSE) -> 52544 | H11: =VLOOKUP($A$7 & $B11 & $A$10, Tab6Data!$A$2:$P$1249, H$6, FALSE) -> 52519 | I11: =VLOOKUP($A$7 & $B11 & $A$10, Tab6Data!$A$2:$P$1249, I$6, FALSE) -> 56122 | J11: =VLOOKUP($A$7 & $B11 & $A$10, Tab6Data!$A$2:$P$1249, J$6, FALSE) -> 55217 | K11: =VLOOKUP($A$7 & $B11 & $A$10, Tab6Data!$A$2:$P$1249, K$6, FALSE) -> 57187 | L11: =VLOOKUP($A$7 & $B11 & $A$10, Tab6Data!$A$2:$P$1249, L$6, FALSE) -> 54207 | M11: =VLOOKUP($A$7 & $B11 & $A$10, Tab6Data!$A$2:$P$1249, M$6, FALSE) -> 46873 | N11: =VLOOKUP($A$7 & $B11 & $A$10, Tab6Data!$A$2:$P$1249, N$6, FALSE) -> 50018
A12: ="Delayed discharge bed days - average per day: "&$A$10&", "&$A$7&": 2012/13 - 2019/20" -> Delayed discharge bed days - average per day: All, Scotland: 2012/13 - 2019/20 | B12: 2015-16 | C12: =VLOOKUP($A$7 & $B12 & $A$10, Tab6Data!$A$2:$P$1249, C$6, FALSE) -> 47476 | D12: =VLOOKUP($A$7 & $B12 & $A$10, Tab6Data!$A$2:$P$1249, D$6, FALSE) -> 46890 | E12: =VLOOKUP($A$7 & $B12 & $A$10, Tab6Data!$A$2:$P$1249, E$6, FALSE) -> 45356 | F12: =VLOOKUP($A$7 & $B12 & $A$10, Tab6Data!$A$2:$P$1249, F$6, FALSE) -> 47797 | G12: =VLOOKUP($A$7 & $B12 & $A$10, Tab6Data!$A$2:$P$1249, G$6, FALSE) -> 48526 | H12: =VLOOKUP($A$7 & $B12 & $A$10, Tab6Data!$A$2:$P$1249, H$6, FALSE) -> 48091 | I12: =VLOOKUP($A$7 & $B12 & $A$10, Tab6Data!$A$2:$P$1249, I$6, FALSE) -> 50945 | J12: =VLOOKUP($A$7 & $B12 & $A$10, Tab6Data!$A$2:$P$1249, J$6, FALSE) -> 47862 | K12: =VLOOKUP($A$7 & $B12 & $A$10, Tab6Data!$A$2:$P$1249, K$6, FALSE) -> 46878 | L12: =VLOOKUP($A$7 & $B12 & $A$10, Tab6Data!$A$2:$P$1249, L$6, FALSE) -> 47827 | M12: =VLOOKUP($A$7 & $B12 & $A$10, Tab6Data!$A$2:$P$1249, M$6, FALSE) -> 43896 | N12: =VLOOKUP($A$7 & $B12 & $A$10, Tab6Data!$A$2:$P$1249, N$6, FALSE) -> 46309
B13: 2016-17 | C13: =VLOOKUP($A$7 & $B13 & $A$10, Tab6Data!$A$2:$P$1249, C$6, FALSE) -> 43980 | D13: =VLOOKUP($A$7 & $B13 & $A$10, Tab6Data!$A$2:$P$1249, D$6, FALSE) -> 44305 | E13: =VLOOKUP($A$7 & $B13 & $A$10, Tab6Data!$A$2:$P$1249, E$6, FALSE) -> 44823 | F13: =VLOOKUP($A$7 & $B13 & $A$10, Tab6Data!$A$2:$P$1249, F$6, FALSE) -> 43919 | G13: =VLOOKUP($A$7 & $B13 & $A$10, Tab6Data!$A$2:$P$1249, G$6, FALSE) -> 45551 | H13: =VLOOKUP($A$7 & $B13 & $A$10, Tab6Data!$A$2:$P$1249, H$6, FALSE) -> 45074 | I13: =VLOOKUP($A$7 & $B13 & $A$10, Tab6Data!$A$2:$P$1249, I$6, FALSE) -> 48104 | J13: =VLOOKUP($A$7 & $B13 & $A$10, Tab6Data!$A$2:$P$1249, J$6, FALSE) -> 45639 | K13: =VLOOKUP($A$7 & $B13 & $A$10, Tab6Data!$A$2:$P$1249, K$6, FALSE) -> 45067 | L13: =VLOOKUP($A$7 & $B13 & $A$10, Tab6Data!$A$2:$P$1249, L$6, FALSE) -> 44222 | M13: =VLOOKUP($A$7 & $B13 & $A$10, Tab6Data!$A$2:$P$1249, M$6, FALSE) -> 40246 | N13: =VLOOKUP($A$7 & $B13 & $A$10, Tab6Data!$A$2:$P$1249, N$6, FALSE) -> 41493
B14: 2016-17 - revised definitions | F14: =F13 -> 43919 | G14: =G13 -> 45551 | H14: 45074 | I14: 48104 | J14: 45639 | K14: 45067 | L14: 44222 | M14: 40246 | N14: 41493
B15: 2017-18 | C15: =VLOOKUP($A$7 & $B15 & $A$10, Tab6Data!$A$2:$P$1249, C$6, FALSE) -> 40925 | D15: =VLOOKUP($A$7 & $B15 & $A$10, Tab6Data!$A$2:$P$1249, D$6, FALSE) -> 39651 | E15: =VLOOKUP($A$7 & $B15 & $A$10, Tab6Data!$A$2:$P$1249, E$6, FALSE) -> 39252 | F15: =VLOOKUP($A$7 & $B15 & $A$10, Tab6Data!$A$2:$P$1249, F$6, FALSE) -> 40667 | G15: =VLOOKUP($A$7 & $B15 & $A$10, Tab6Data!$A$2:$P$1249, G$6, FALSE) -> 41632 | H15: =VLOOKUP($A$7 & $B15 & $A$10, Tab6Data!$A$2:$P$1249, H$6, FALSE) -> 42110 | I15: =VLOOKUP($A$7 & $B15 & $A$10, Tab6Data!$A$2:$P$1249, I$6, FALSE) -> 44494 | J15: =VLOOKUP($A$7 & $B15 & $A$10, Tab6Data!$A$2:$P$1249, J$6, FALSE) -> 42320 | K15: =VLOOKUP($A$7 & $B15 & $A$10, Tab6Data!$A$2:$P$1249, K$6, FALSE) -> 41898 | L15: =VLOOKUP($A$7 & $B15 & $A$10, Tab6Data!$A$2:$P$1249, L$6, FALSE) -> 40152 | M15: =VLOOKUP($A$7 & $B15 & $A$10, Tab6Data!$A$2:$P$1249, M$6, FALSE) -> 38394 | N15: =VLOOKUP($A$7 & $B15 & $A$10, Tab6Data!$A$2:$P$1249, N$6, FALSE) -> 42628
B16: 2018-19 | C16: =VLOOKUP($A$7 & $B16 & $A$10, Tab6Data!$A$2:$P$1249, C$6, FALSE) -> 41453 | D16: =VLOOKUP($A$7 & $B16 & $A$10, Tab6Data!$A$2:$P$1249, D$6, FALSE) -> 43244 | E16: =VLOOKUP($A$7 & $B16 & $A$10, Tab6Data!$A$2:$P$1249, E$6, FALSE) -> 42375 | F16: =VLOOKUP($A$7 & $B16 & $A$10, Tab6Data!$A$2:$P$1249, F$6, FALSE) -> 43511 | G16: =VLOOKUP($A$7 & $B16 & $A$10, Tab6Data!$A$2:$P$1249, G$6, FALSE) -> 43672 | H16: =VLOOKUP($A$7 & $B16 & $A$10, Tab6Data!$A$2:$P$1249, H$6, FALSE) -> 45470 | I16: =VLOOKUP($A$7 & $B16 & $A$10, Tab6Data!$A$2:$P$1249, I$6, FALSE) -> 47302 | J16: =VLOOKUP($A$7 & $B16 & $A$10, Tab6Data!$A$2:$P$1249, J$6, FALSE) -> 43918 | K16: =VLOOKUP($A$7 & $B16 & $A$10, Tab6Data!$A$2:$P$1249, K$6, FALSE) -> 42732 | L16: =VLOOKUP($A$7 & $B16 & $A$10, Tab6Data!$A$2:$P$1249, L$6, FALSE) -> 43863 | M16: =VLOOKUP($A$7 & $B16 & $A$10, Tab6Data!$A$2:$P$1249, M$6, FALSE) -> 40813 | N16: =VLOOKUP($A$7 & $B16 & $A$10, Tab6Data!$A$2:$P$1249, N$6, FALSE) -> 43419
B17: 2019-20 | C17: =VLOOKUP($A$7 & $B17 & $A$10, Tab6Data!$A$2:$P$1249, C$6, FALSE) -> 40994 | D17: =VLOOKUP($A$7 & $B17 & $A$10, Tab6Data!$A$2:$P$1249, D$6, FALSE) -> 45061 | E17: =VLOOKUP($A$7 & $B17 & $A$10, Tab6Data!$A$2:$P$1249, E$6, FALSE) -> 42252 | F17: =VLOOKUP($A$7 & $B17 & $A$10, Tab6Data!$A$2:$P$1249, F$6, FALSE) -> 45396 | G17: =VLOOKUP($A$7 & $B17 & $A$10, Tab6Data!$A$2:$P$1249, G$6, FALSE) -> 46897 | H17: =VLOOKUP($A$7 & $B17 & $A$10, Tab6Data!$A$2:$P$1249, H$6, FALSE) -> 45632 | I17: =VLOOKUP($A$7 & $B17 & $A$10, Tab6Data!$A$2:$P$1249, I$6, FALSE) -> 46240 | J17: =VLOOKUP($A$7 & $B17 & $A$10, Tab6Data!$A$2:$P$1249, J$6, FALSE) -> 44915 | K17: =VLOOKUP($A$7 & $B17 & $A$10, Tab6Data!$A$2:$P$1249, K$6, FALSE) -> 45404 | L17: =VLOOKUP($A$7 & $B17 & $A$10, Tab6Data!$A$2:$P$1249, L$6, FALSE) -> 47529 | M17: =VLOOKUP($A$7 & $B17 & $A$10, Tab6Data!$A$2:$P$1249, M$6, FALSE) -> 46875 | N17: =VLOOKUP($A$7 & $B17 & $A$10, Tab6Data!$A$2:$P$1249, N$6, FALSE) -> 45009
B19: Delayed discharge bed days - average per day2 | C19: Month
B20: Year | C20: Apr | D20: May | E20: Jun | F20: Jul | G20: Aug | H20: Sep | I20: Oct | J20: Nov | K20: Dec | L20: Jan | M20: Feb | N20: Mar | S20: =B20 -> Year | T20: =C20 -> Apr | U20: May | V20: Jun | W20: Jul | X20: Aug | Y20: Sep | Z20: Oct | AA20: Nov | AB20: Dec | AC20: Jan | AD20: Feb | AE20: Mar
B21: 2012-13 | C21: =C9/30 -> 1291.466667 | D21: =D9/31 -> 1291.419355 | E21: =E9/30 -> 1349.8 | F21: =F9/31 -> 1287.225806 | G21: 1313.064516 | H21: =H9/30 -> 1377.966667 | I21: =I9/31 -> 1399.129032 | J21: =J9/30 -> 1396.566667 | K21: =K9/31 -> 1284.548387 | L21: 1316.741935 | M21: =M9/28 -> 1442.571429 | N21: =N9/31 -> 1425.774194 | S21: =B21 -> 2012-13 | T21: =C21 -> 1291.466667 | U21: 1291.419355 | V21: 1349.8 | W21: 1287.225806 | X21: 1313.064516 | Y21: 1377.966667 | Z21: 1399.129032 | AA21: 1396.566667 | AB21: 1284.548387 | AC21: 1316.741935 | AD21: 1442.571429 | AE21: 1425.774194
B22: 2013-14 | C22: =C10/30 -> 1324.9 | D22: =D10/31 -> 1359.354839 | E22: =E10/30 -> 1367.466667 | F22: 1303.354839 | G22: 1379.903226 | H22: =H10/30 -> 1445 | I22: =I10/31 -> 1469.387097 | J22: =J10/30 -> 1466.666667 | K22: 1465.387097 | L22: 1581.580645 | M22: =M10/28 -> 1693.357143 | N22: =N10/31 -> 1665.677419 | S22: =B22 -> 2013-14 | T22: 1324.9 | U22: 1359.354839 | V22: 1367.466667 | W22: 1303.354839 | X22: 1379.903226 | Y22: 1445 | Z22: 1469.387097 | AA22: 1466.666667 | AB22: 1465.387097 | AC22: 1581.580645 | AD22: 1693.357143 | AE22: 1665.677419
B23: 2014-15 | C23: =C11/30 -> 1585.1 | D23: =D11/31 -> 1664.354839 | E23: =E11/30 -> 1669.266667 | F23: 1597.580645 | G23: 1694.967742 | H23: =H11/30 -> 1750.633333 | I23: =I11/31 -> 1810.387097 | J23: =J11/30 -> 1840.566667 | K23: 1844.741935 | L23: 1748.612903 | M23: =M11/28 -> 1674.035714 | N23: =N11/31 -> 1613.483871 | S23: 2014-15 | T23: 1585.1 | U23: 1664.354839 | V23: 1669.266667 | W23: 1597.580645 | X23: 1694.967742 | Y23: 1750.633333 | Z23: 1810.387097 | AA23: 1840.566667 | AB23: 1844.741935 | AC23: 1748.612903 | AD23: 1674.035714 | AE23: 1613.483871
B24: 2015-16 | C24: =C12/30 -> 1582.533333 | D24: =D12/31 -> 1512.580645 | E24: =E12/30 -> 1511.866667 | F24: 1541.83871 | G24: 1565.354839 | H24: =H12/30 -> 1603.033333 | I24: =I12/31 -> 1643.387097 | J24: =J12/30 -> 1595.4 | K24: 1512.193548 | L24: 1542.806452 | M24: =M12/29 -> 1513.655172 | N24: =N12/31 -> 1493.83871 | S24: 2015-16 | T24: 1582.533333 | U24: 1512.580645 | V24: 1511.866667 | W24: 1541.83871 | X24: 1565.354839 | Y24: 1603.033333 | Z24: 1643.387097 | AA24: 1595.4 | AB24: 1512.193548 | AC24: 1542.806452 | AD24: 1513.655172 | AE24: 1493.83871
B25: 2016-17 | C25: =C13/30 -> 1466 | D25: =D13/31 -> 1429.193548 | E25: =E13/30 -> 1494.1 | S25: 2016-17 | T25: 1466 | U25: 1429.193548 | V25: 1494.1
B26: 2016-17 - revised definitions | F26: =F14/31 -> 1416.741935 | G26: 1469.387097 | H26: =H14/30 -> 1502.466667 | I26: =I14/31 -> 1551.741935 | J26: =J14/30 -> 1521.3 | K26: =K14/31 -> 1453.774194 | L26: 1426.516129 | M26: =M14/28 -> 1437.357143 | N26: =N14/31 -> 1338.483871 | S26: =B26 -> 2016-17 - revised definitions | W26: =F26 -> 1416.741935 | X26: =G26 -> 1469.387097 | Y26: 1502.466667 | Z26: 1551.741935 | AA26: 1521.3 | AB26: 1453.774194 | AC26: 1426.516129 | AD26: 1437.357143 | AE26: 1338.483871
B27: 2017-18 | C27: =C15/30 -> 1364.166667 | D27: =D15/31 -> 1279.064516 | E27: =E15/30 -> 1308.4 | F27: 1311.83871 | G27: 1342.967742 | H27: =H15/30 -> 1403.666667 | I27: =I15/31 -> 1435.290323 | J27: =J15/30 -> 1410.666667 | K27: 1351.548387 | L27: 1295.225806 | M27: =M15/28 -> 1371.214286 | N27: =N15/31 -> 1375.096774
B28: 2018-19 | C28: =C16/30 -> 1381.766667 | D28: =D16/31 -> 1394.967742 | E28: =E16/30 -> 1412.5 | F28: 1403.580645 | G28: 1408.774194 | H28: =H16/30 -> 1515.666667 | I28: =I16/31 -> 1525.870968 | J28: =J16/30 -> 1463.933333 | K28: 1378.451613 | L28: 1414.935484 | M28: =M16/28 -> 1457.607143 | N28: =N16/31 -> 1400.612903
B29: 2019-20 | C29: =C17/30 -> 1366.466667 | D29: =D17/31 -> 1453.580645 | E29: =E17/30 -> 1408.4 | F29: 1464.387097 | G29: 1512.806452 | H29: =H17/30 -> 1521.066667 | I29: =I17/31 -> 1491.612903 | J29: 1497.166667 | K29: 1464.645161 | L29: 1533.193548 | M29: =M17/29 -> 1616.37931 | N29: =N17/31 -> 1451.903226
B30: Please select healthboard / local authority to view chart:
B56: Source: Public Health Scotland Delayed Discharge Data
B58: Notes:
B60: 1. Revised data definitions and national data requirements were introduced on 1 July 2016. In this tab no adjustment has been made to account for the definitional changes during the year 2016/17, although the change is marked by a red line. It is estimated that, at Scotland level, the definitional changes account for a reduction of around 4% of bed days across previous months up to June 2016, and a decrease of approximately 1% in the 2016/17 bed day rate for people aged 75+. NB: The impact of these changes varied between partnerships, with some being more affected than others; therefore comparisons before and after July 2016 may not be possible at partnership level.
B61: 2. PHS considers the daily average a better statistic for comparing month on month differences as the number of days in a month varies.
B62: 3. Health Board figures are based on NHS Board area of treatment. Local Authority figures are based on Local Authority of residence.
B63: Link to Glossary
B64: Troubleshooting: Problems viewing chart | Q64: Please see note below regarding the impact of the definitional changes pre/post July 2016 on figures provided
B66: =IF((OR($A$8=7,$A$8=8,$A$8=15,$A$8=16,$A$8=30,$A$8=40,$A$8=46)),Q66," ") ->  | Q66: The following HBs/LAs contributed mostly when estimating the impact of the definitional changes pre/post July 2016.
Q68: NHS Greater Glasgow and Clyde
Q69: NHS Grampian
Q71: Glasgow City
Q72: Aberdeen
Q73: Aberdeenshire
Q74: West Dunbartonshire
Q75: Renfrewshire

Sheet Tab 7
B1: =Guide!B1 -> 
B2: ="Table 7. Reason for delay as reported at monthly census points: average number of delays across censuses: "&$A$8 -> Table 7. Reason for delay as reported at monthly census points: average number of delays across censuses: April 2019 - March 2020
B3: (based on monthly census figures)
B4: =IF($A$6=1,"Figures for 2016/17 are based on July 2016-March 2017 data only", " ") ->  | O4: July 2016 - March 2017 average figures are based on July 2016 definitions
B5: 2 | C5: Select year:
A6: 4 | C6: 5 | D6: 6 | E6: 7 | F6: 8 | G6: 9 | H6: 11 | I6: 12 | J6: 13 | K6: 14 | L6: 15 | M6: 16
A7: =VLOOKUP(A6, lookups!A7:C10, 2, FALSE) -> 2019/20 | C7: Principal reason for delay3 | M7: All delay reasons4
A8: =VLOOKUP(A6, lookups!A7:C10, 3, FALSE) -> April 2019 - March 2020 | C8: Health and social care reasons | I8: Patient and family related reasons | J8: Code 9 reasons
C9: Assessment | D9: Funding | E9: Awaiting place availability | F9: Awaiting completion of care arrangements | G9: Transport | H9: Total health and social care reasons | J9: Adults with incapacity (AWI) | K9: Other code 9 reasons (not AWI) | L9: Total code 9 reasons
B10: Scotland | C10: =_xlfn.IFNA(VLOOKUP($B10 & $A$7, Tab7Data!$A$2:$P$193, C$6, FALSE), "-") -> 249.5 | D10: =_xlfn.IFNA(VLOOKUP($B10 & $A$7, Tab7Data!$A$2:$P$193, D$6, FALSE), "-") -> 33.58333333 | E10: =_xlfn.IFNA(VLOOKUP($B10 & $A$7, Tab7Data!$A$2:$P$193, E$6, FALSE), "-") -> 342.9166667 | F10: =_xlfn.IFNA(VLOOKUP($B10 & $A$7, Tab7Data!$A$2:$P$193, F$6, FALSE), "-") -> 516.1666667 | G10: =_xlfn.IFNA(VLOOKUP($B10 & $A$7, Tab7Data!$A$2:$P$193, G$6, FALSE), "-") -> 1.909090909 | H10: =_xlfn.IFNA(VLOOKUP($B10 & $A$7, Tab7Data!$A$2:$P$193, H$6, FALSE), "-") -> 1143.916667 | I10: =_xlfn.IFNA(VLOOKUP($B10 & $A$7, Tab7Data!$A$2:$P$193, I$6, FALSE), "-") -> 37.41666667 | J10: =_xlfn.IFNA(VLOOKUP($B10 & $A$7, Tab7Data!$A$2:$P$193, J$6, FALSE), "-") -> 204.8333333 | K10: =_xlfn.IFNA(VLOOKUP($B10 & $A$7, Tab7Data!$A$2:$P$193, K$6, FALSE), "-") -> 77.33333333 | L10: =_xlfn.IFNA(VLOOKUP($B10 & $A$7, Tab7Data!$A$2:$P$193, L$6, FALSE), "-") -> 282.1666667 | M10: =_xlfn.IFNA(VLOOKUP($B10 & $A$7, Tab7Data!$A$2:$P$193, M$6, FALSE), "-") -> 1463.5
B11: NHS Board area of treatment
B12: NHS Ayrshire & Arran | C12: =_xlfn.IFNA(VLOOKUP($B12 & $A$7, Tab7Data!$A$2:$P$193, C$6, FALSE), "-") -> 42.25 | D12: =_xlfn.IFNA(VLOOKUP($B12 & $A$7, Tab7Data!$A$2:$P$193, D$6, FALSE), "-") -> 25 | E12: =_xlfn.IFNA(VLOOKUP($B12 & $A$7, Tab7Data!$A$2:$P$193, E$6, FALSE), "-") -> 16.83333333 | F12: =_xlfn.IFNA(VLOOKUP($B12 & $A$7, Tab7Data!$A$2:$P$193, F$6, FALSE), "-") -> 48.25 | G12: =_xlfn.IFNA(VLOOKUP($B12 & $A$7, Tab7Data!$A$2:$P$193, G$6, FALSE), "-") -> 4 | H12: =_xlfn.IFNA(VLOOKUP($B12 & $A$7, Tab7Data!$A$2:$P$193, H$6, FALSE), "-") -> 130.5833333 | I12: =_xlfn.IFNA(VLOOKUP($B12 & $A$7, Tab7Data!$A$2:$P$193, I$6, FALSE), "-") -> 1.571428571 | J12: =_xlfn.IFNA(VLOOKUP($B12 & $A$7, Tab7Data!$A$2:$P$193, J$6, FALSE), "-") -> 18 | K12: =_xlfn.IFNA(VLOOKUP($B12 & $A$7, Tab7Data!$A$2:$P$193, K$6, FALSE), "-") -> 4.666666667 | L12: =_xlfn.IFNA(VLOOKUP($B12 & $A$7, Tab7Data!$A$2:$P$193, L$6, FALSE), "-") -> 22.66666667 | M12: =_xlfn.IFNA(VLOOKUP($B12 & $A$7, Tab7Data!$A$2:$P$193, M$6, FALSE), "-") -> 154.1666667
B13: NHS Borders | C13: =_xlfn.IFNA(VLOOKUP($B13 & $A$7, Tab7Data!$A$2:$P$193, C$6, FALSE), "-") -> 4.166666667 | D13: =_xlfn.IFNA(VLOOKUP($B13 & $A$7, Tab7Data!$A$2:$P$193, D$6, FALSE), "-") -> - | E13: =_xlfn.IFNA(VLOOKUP($B13 & $A$7, Tab7Data!$A$2:$P$193, E$6, FALSE), "-") -> 11 | F13: =_xlfn.IFNA(VLOOKUP($B13 & $A$7, Tab7Data!$A$2:$P$193, F$6, FALSE), "-") -> 11.83333333 | G13: =_xlfn.IFNA(VLOOKUP($B13 & $A$7, Tab7Data!$A$2:$P$193, G$6, FALSE), "-") -> - | H13: =_xlfn.IFNA(VLOOKUP($B13 & $A$7, Tab7Data!$A$2:$P$193, H$6, FALSE), "-") -> 27 | I13: =_xlfn.IFNA(VLOOKUP($B13 & $A$7, Tab7Data!$A$2:$P$193, I$6, FALSE), "-") -> 1.909090909 | J13: =_xlfn.IFNA(VLOOKUP($B13 & $A$7, Tab7Data!$A$2:$P$193, J$6, FALSE), "-") -> 4 | K13: =_xlfn.IFNA(VLOOKUP($B13 & $A$7, Tab7Data!$A$2:$P$193, K$6, FALSE), "-") -> 1.5 | L13: =_xlfn.IFNA(VLOOKUP($B13 & $A$7, Tab7Data!$A$2:$P$193, L$6, FALSE), "-") -> 4.5 | M13: =_xlfn.IFNA(VLOOKUP($B13 & $A$7, Tab7Data!$A$2:$P$193, M$6, FALSE), "-") -> 33.25
B14: NHS Dumfries & Galloway | C14: =_xlfn.IFNA(VLOOKUP($B14 & $A$7, Tab7Data!$A$2:$P$193, C$6, FALSE), "-") -> 2.6 | D14: =_xlfn.IFNA(VLOOKUP($B14 & $A$7, Tab7Data!$A$2:$P$193, D$6, FALSE), "-") -> - | E14: =_xlfn.IFNA(VLOOKUP($B14 & $A$7, Tab7Data!$A$2:$P$193, E$6, FALSE), "-") -> 13.83333333 | F14: =_xlfn.IFNA(VLOOKUP($B14 & $A$7, Tab7Data!$A$2:$P$193, F$6, FALSE), "-") -> 28.08333333 | G14: =_xlfn.IFNA(VLOOKUP($B14 & $A$7, Tab7Data!$A$2:$P$193, G$6, FALSE), "-") -> - | H14: =_xlfn.IFNA(VLOOKUP($B14 & $A$7, Tab7Data!$A$2:$P$193, H$6, FALSE), "-") -> 44.08333333 | I14: =_xlfn.IFNA(VLOOKUP($B14 & $A$7, Tab7Data!$A$2:$P$193, I$6, FALSE), "-") -> 1.727272727 | J14: =_xlfn.IFNA(VLOOKUP($B14 & $A$7, Tab7Data!$A$2:$P$193, J$6, FALSE), "-") -> 6.166666667 | K14: =_xlfn.IFNA(VLOOKUP($B14 & $A$7, Tab7Data!$A$2:$P$193, K$6, FALSE), "-") -> 2.272727273 | L14: =_xlfn.IFNA(VLOOKUP($B14 & $A$7, Tab7Data!$A$2:$P$193, L$6, FALSE), "-") -> 8.25 | M14: =_xlfn.IFNA(VLOOKUP($B14 & $A$7, Tab7Data!$A$2:$P$193, M$6, FALSE), "-") -> 53.91666667
B15: NHS Fife | C15: =_xlfn.IFNA(VLOOKUP($B15 & $A$7, Tab7Data!$A$2:$P$193, C$6, FALSE), "-") -> 11.41666667 | D15: =_xlfn.IFNA(VLOOKUP($B15 & $A$7, Tab7Data!$A$2:$P$193, D$6, FALSE), "-") -> 3.818181818 | E15: =_xlfn.IFNA(VLOOKUP($B15 & $A$7, Tab7Data!$A$2:$P$193, E$6, FALSE), "-") -> 20.16666667 | F15: =_xlfn.IFNA(VLOOKUP($B15 & $A$7, Tab7Data!$A$2:$P$193, F$6, FALSE), "-") -> 33 | G15: =_xlfn.IFNA(VLOOKUP($B15 & $A$7, Tab7Data!$A$2:$P$193, G$6, FALSE), "-") -> - | H15: =_xlfn.IFNA(VLOOKUP($B15 & $A$7, Tab7Data!$A$2:$P$193, H$6, FALSE), "-") -> 68.08333333 | I15: =_xlfn.IFNA(VLOOKUP($B15 & $A$7, Tab7Data!$A$2:$P$193, I$6, FALSE), "-") -> 1.833333333 | J15: =_xlfn.IFNA(VLOOKUP($B15 & $A$7, Tab7Data!$A$2:$P$193, J$6, FALSE), "-") -> 23.75 | K15: =_xlfn.IFNA(VLOOKUP($B15 & $A$7, Tab7Data!$A$2:$P$193, K$6, FALSE), "-") -> 8.083333333 | L15: =_xlfn.IFNA(VLOOKUP($B15 & $A$7, Tab7Data!$A$2:$P$193, L$6, FALSE), "-") -> 31.83333333 | M15: =_xlfn.IFNA(VLOOKUP($B15 & $A$7, Tab7Data!$A$2:$P$193, M$6, FALSE), "-") -> 100.8333333
B16: NHS Forth Valley | C16: =_xlfn.IFNA(VLOOKUP($B16 & $A$7, Tab7Data!$A$2:$P$193, C$6, FALSE), "-") -> 13.41666667 | D16: =_xlfn.IFNA(VLOOKUP($B16 & $A$7, Tab7Data!$A$2:$P$193, D$6, FALSE), "-") -> - | E16: =_xlfn.IFNA(VLOOKUP($B16 & $A$7, Tab7Data!$A$2:$P$193, E$6, FALSE), "-") -> 19.83333333 | F16: =_xlfn.IFNA(VLOOKUP($B16 & $A$7, Tab7Data!$A$2:$P$193, F$6, FALSE), "-") -> 23.83333333 | G16: =_xlfn.IFNA(VLOOKUP($B16 & $A$7, Tab7Data!$A$2:$P$193, G$6, FALSE), "-") -> - | H16: =_xlfn.IFNA(VLOOKUP($B16 & $A$7, Tab7Data!$A$2:$P$193, H$6, FALSE), "-") -> 57.08333333 | I16: =_xlfn.IFNA(VLOOKUP($B16 & $A$7, Tab7Data!$A$2:$P$193, I$6, FALSE), "-") -> 1.666666667 | J16: =_xlfn.IFNA(VLOOKUP($B16 & $A$7, Tab7Data!$A$2:$P$193, J$6, FALSE), "-") -> 14.91666667 | K16: =_xlfn.IFNA(VLOOKUP($B16 & $A$7, Tab7Data!$A$2:$P$193, K$6, FALSE), "-") -> 7.083333333 | L16: =_xlfn.IFNA(VLOOKUP($B16 & $A$7, Tab7Data!$A$2:$P$193, L$6, FALSE), "-") -> 22 | M16: =_xlfn.IFNA(VLOOKUP($B16 & $A$7, Tab7Data!$A$2:$P$193, M$6, FALSE), "-") -> 80.33333333
B17: NHS Grampian | C17: =_xlfn.IFNA(VLOOKUP($B17 & $A$7, Tab7Data!$A$2:$P$193, C$6, FALSE), "-") -> 9.75 | D17: =_xlfn.IFNA(VLOOKUP($B17 & $A$7, Tab7Data!$A$2:$P$193, D$6, FALSE), "-") -> 3 | E17: =_xlfn.IFNA(VLOOKUP($B17 & $A$7, Tab7Data!$A$2:$P$193, E$6, FALSE), "-") -> 40.75 | F17: =_xlfn.IFNA(VLOOKUP($B17 & $A$7, Tab7Data!$A$2:$P$193, F$6, FALSE), "-") -> 39.41666667 | G17: =_xlfn.IFNA(VLOOKUP($B17 & $A$7, Tab7Data!$A$2:$P$193, G$6, FALSE), "-") -> - | H17: =_xlfn.IFNA(VLOOKUP($B17 & $A$7, Tab7Data!$A$2:$P$193, H$6, FALSE), "-") -> 90.16666667 | I17: =_xlfn.IFNA(VLOOKUP($B17 & $A$7, Tab7Data!$A$2:$P$193, I$6, FALSE), "-") -> 2.75 | J17: =_xlfn.IFNA(VLOOKUP($B17 & $A$7, Tab7Data!$A$2:$P$193, J$6, FALSE), "-") -> 13 | K17: =_xlfn.IFNA(VLOOKUP($B17 & $A$7, Tab7Data!$A$2:$P$193, K$6, FALSE), "-") -> 4.083333333 | L17: =_xlfn.IFNA(VLOOKUP($B17 & $A$7, Tab7Data!$A$2:$P$193, L$6, FALSE), "-") -> 17.08333333 | M17: =_xlfn.IFNA(VLOOKUP($B17 & $A$7, Tab7Data!$A$2:$P$193, M$6, FALSE), "-") -> 110
B18: NHS Greater Glasgow & Clyde | C18: =_xlfn.IFNA(VLOOKUP($B18 & $A$7, Tab7Data!$A$2:$P$193, C$6, FALSE), "-") -> 49.83333333 | D18: =_xlfn.IFNA(VLOOKUP($B18 & $A$7, Tab7Data!$A$2:$P$193, D$6, FALSE), "-") -> 2.2 | E18: =_xlfn.IFNA(VLOOKUP($B18 & $A$7, Tab7Data!$A$2:$P$193, E$6, FALSE), "-") -> 65.41666667 | F18: =_xlfn.IFNA(VLOOKUP($B18 & $A$7, Tab7Data!$A$2:$P$193, F$6, FALSE), "-") -> 44.08333333 | G18: =_xlfn.IFNA(VLOOKUP($B18 & $A$7, Tab7Data!$A$2:$P$193, G$6, FALSE), "-") -> 1.714285714 | H18: =_xlfn.IFNA(VLOOKUP($B18 & $A$7, Tab7Data!$A$2:$P$193, H$6, FALSE), "-") -> 162.1666667 | I18: =_xlfn.IFNA(VLOOKUP($B18 & $A$7, Tab7Data!$A$2:$P$193, I$6, FALSE), "-") -> 12.5 | J18: =_xlfn.IFNA(VLOOKUP($B18 & $A$7, Tab7Data!$A$2:$P$193, J$6, FALSE), "-") -> 43.5 | K18: =_xlfn.IFNA(VLOOKUP($B18 & $A$7, Tab7Data!$A$2:$P$193, K$6, FALSE), "-") -> 14.58333333 | L18: =_xlfn.IFNA(VLOOKUP($B18 & $A$7, Tab7Data!$A$2:$P$193, L$6, FALSE), "-") -> 58.08333333 | M18: =_xlfn.IFNA(VLOOKUP($B18 & $A$7, Tab7Data!$A$2:$P$193, M$6, FALSE), "-") -> 232.75
B19: NHS Highland | C19: =_xlfn.IFNA(VLOOKUP($B19 & $A$7, Tab7Data!$A$2:$P$193, C$6, FALSE), "-") -> 5.5 | D19: =_xlfn.IFNA(VLOOKUP($B19 & $A$7, Tab7Data!$A$2:$P$193, D$6, FALSE), "-") -> - | E19: =_xlfn.IFNA(VLOOKUP($B19 & $A$7, Tab7Data!$A$2:$P$193, E$6, FALSE), "-") -> 40.33333333 | F19: =_xlfn.IFNA(VLOOKUP($B19 & $A$7, Tab7Data!$A$2:$P$193, F$6, FALSE), "-") -> 52.16666667 | G19: =_xlfn.IFNA(VLOOKUP($B19 & $A$7, Tab7Data!$A$2:$P$193, G$6, FALSE), "-") -> 1 | H19: =_xlfn.IFNA(VLOOKUP($B19 & $A$7, Tab7Data!$A$2:$P$193, H$6, FALSE), "-") -> 98.08333333 | I19: =_xlfn.IFNA(VLOOKUP($B19 & $A$7, Tab7Data!$A$2:$P$193, I$6, FALSE), "-") -> 3 | J19: =_xlfn.IFNA(VLOOKUP($B19 & $A$7, Tab7Data!$A$2:$P$193, J$6, FALSE), "-") -> 21.83333333 | K19: =_xlfn.IFNA(VLOOKUP($B19 & $A$7, Tab7Data!$A$2:$P$193, K$6, FALSE), "-") -> 8.416666667 | L19: =_xlfn.IFNA(VLOOKUP($B19 & $A$7, Tab7Data!$A$2:$P$193, L$6, FALSE), "-") -> 30.25 | M19: =_xlfn.IFNA(VLOOKUP($B19 & $A$7, Tab7Data!$A$2:$P$193, M$6, FALSE), "-") -> 131.3333333
B20: NHS Lanarkshire | C20: =_xlfn.IFNA(VLOOKUP($B20 & $A$7, Tab7Data!$A$2:$P$193, C$6, FALSE), "-") -> 73.91666667 | D20: =_xlfn.IFNA(VLOOKUP($B20 & $A$7, Tab7Data!$A$2:$P$193, D$6, FALSE), "-") -> 7.75 | E20: =_xlfn.IFNA(VLOOKUP($B20 & $A$7, Tab7Data!$A$2:$P$193, E$6, FALSE), "-") -> 22.66666667 | F20: =_xlfn.IFNA(VLOOKUP($B20 & $A$7, Tab7Data!$A$2:$P$193, F$6, FALSE), "-") -> 89.66666667 | G20: =_xlfn.IFNA(VLOOKUP($B20 & $A$7, Tab7Data!$A$2:$P$193, G$6, FALSE), "-") -> 1 | H20: =_xlfn.IFNA(VLOOKUP($B20 & $A$7, Tab7Data!$A$2:$P$193, H$6, FALSE), "-") -> 188.9166667 | I20: =_xlfn.IFNA(VLOOKUP($B20 & $A$7, Tab7Data!$A$2:$P$193, I$6, FALSE), "-") -> 3.6 | J20: =_xlfn.IFNA(VLOOKUP($B20 & $A$7, Tab7Data!$A$2:$P$193, J$6, FALSE), "-") -> 22.33333333 | K20: =_xlfn.IFNA(VLOOKUP($B20 & $A$7, Tab7Data!$A$2:$P$193, K$6, FALSE), "-") -> 7.5 | L20: =_xlfn.IFNA(VLOOKUP($B20 & $A$7, Tab7Data!$A$2:$P$193, L$6, FALSE), "-") -> 29.83333333 | M20: =_xlfn.IFNA(VLOOKUP($B20 & $A$7, Tab7Data!$A$2:$P$193, M$6, FALSE), "-") -> 221.75
B21: NHS Lothian | C21: =_xlfn.IFNA(VLOOKUP($B21 & $A$7, Tab7Data!$A$2:$P$193, C$6, FALSE), "-") -> 27.58333333 | D21: =_xlfn.IFNA(VLOOKUP($B21 & $A$7, Tab7Data!$A$2:$P$193, D$6, FALSE), "-") -> 1 | E21: =_xlfn.IFNA(VLOOKUP($B21 & $A$7, Tab7Data!$A$2:$P$193, E$6, FALSE), "-") -> 78.91666667 | F21: =_xlfn.IFNA(VLOOKUP($B21 & $A$7, Tab7Data!$A$2:$P$193, F$6, FALSE), "-") -> 103.4166667 | G21: =_xlfn.IFNA(VLOOKUP($B21 & $A$7, Tab7Data!$A$2:$P$193, G$6, FALSE), "-") -> - | H21: =_xlfn.IFNA(VLOOKUP($B21 & $A$7, Tab7Data!$A$2:$P$193, H$6, FALSE), "-") -> 210 | I21: =_xlfn.IFNA(VLOOKUP($B21 & $A$7, Tab7Data!$A$2:$P$193, I$6, FALSE), "-") -> 7.666666667 | J21: =_xlfn.IFNA(VLOOKUP($B21 & $A$7, Tab7Data!$A$2:$P$193, J$6, FALSE), "-") -> 29.16666667 | K21: =_xlfn.IFNA(VLOOKUP($B21 & $A$7, Tab7Data!$A$2:$P$193, K$6, FALSE), "-") -> 2.272727273 | L21: =_xlfn.IFNA(VLOOKUP($B21 & $A$7, Tab7Data!$A$2:$P$193, L$6, FALSE), "-") -> 31.25 | M21: =_xlfn.IFNA(VLOOKUP($B21 & $A$7, Tab7Data!$A$2:$P$193, M$6, FALSE), "-") -> 248.9166667
B22: NHS Orkney | C22: =_xlfn.IFNA(VLOOKUP($B22 & $A$7, Tab7Data!$A$2:$P$193, C$6, FALSE), "-") -> - | D22: =_xlfn.IFNA(VLOOKUP($B22 & $A$7, Tab7Data!$A$2:$P$193, D$6, FALSE), "-") -> - | E22: =_xlfn.IFNA(VLOOKUP($B22 & $A$7, Tab7Data!$A$2:$P$193, E$6, FALSE), "-") -> 1.142857143 | F22: =_xlfn.IFNA(VLOOKUP($B22 & $A$7, Tab7Data!$A$2:$P$193, F$6, FALSE), "-") -> 2 | G22: =_xlfn.IFNA(VLOOKUP($B22 & $A$7, Tab7Data!$A$2:$P$193, G$6, FALSE), "-") -> - | H22: =_xlfn.IFNA(VLOOKUP($B22 & $A$7, Tab7Data!$A$2:$P$193, H$6, FALSE), "-") -> 2 | I22: =_xlfn.IFNA(VLOOKUP($B22 & $A$7, Tab7Data!$A$2:$P$193, I$6, FALSE), "-") -> - | J22: =_xlfn.IFNA(VLOOKUP($B22 & $A$7, Tab7Data!$A$2:$P$193, J$6, FALSE), "-") -> 1 | K22: =_xlfn.IFNA(VLOOKUP($B22 & $A$7, Tab7Data!$A$2:$P$193, K$6, FALSE), "-") -> 1 | L22: =_xlfn.IFNA(VLOOKUP($B22 & $A$7, Tab7Data!$A$2:$P$193, L$6, FALSE), "-") -> 1.2 | M22: =_xlfn.IFNA(VLOOKUP($B22 & $A$7, Tab7Data!$A$2:$P$193, M$6, FALSE), "-") -> 2.2
B23: NHS Shetland | C23: =_xlfn.IFNA(VLOOKUP($B23 & $A$7, Tab7Data!$A$2:$P$193, C$6, FALSE), "-") -> 1 | D23: =_xlfn.IFNA(VLOOKUP($B23 & $A$7, Tab7Data!$A$2:$P$193, D$6, FALSE), "-") -> - | E23: =_xlfn.IFNA(VLOOKUP($B23 & $A$7, Tab7Data!$A$2:$P$193, E$6, FALSE), "-") -> 3 | F23: =_xlfn.IFNA(VLOOKUP($B23 & $A$7, Tab7Data!$A$2:$P$193, F$6, FALSE), "-") -> 1.333333333 | G23: =_xlfn.IFNA(VLOOKUP($B23 & $A$7, Tab7Data!$A$2:$P$193, G$6, FALSE), "-") -> 1 | H23: =_xlfn.IFNA(VLOOKUP($B23 & $A$7, Tab7Data!$A$2:$P$193, H$6, FALSE), "-") -> 3.583333333 | I23: =_xlfn.IFNA(VLOOKUP($B23 & $A$7, Tab7Data!$A$2:$P$193, I$6, FALSE), "-") -> - | J23: =_xlfn.IFNA(VLOOKUP($B23 & $A$7, Tab7Data!$A$2:$P$193, J$6, FALSE), "-") -> - | K23: =_xlfn.IFNA(VLOOKUP($B23 & $A$7, Tab7Data!$A$2:$P$193, K$6, FALSE), "-") -> - | L23: =_xlfn.IFNA(VLOOKUP($B23 & $A$7, Tab7Data!$A$2:$P$193, L$6, FALSE), "-") -> - | M23: =_xlfn.IFNA(VLOOKUP($B23 & $A$7, Tab7Data!$A$2:$P$193, M$6, FALSE), "-") -> 3.583333333
B24: NHS Tayside | C24: =_xlfn.IFNA(VLOOKUP($B24 & $A$7, Tab7Data!$A$2:$P$193, C$6, FALSE), "-") -> 7.25 | D24: =_xlfn.IFNA(VLOOKUP($B24 & $A$7, Tab7Data!$A$2:$P$193, D$6, FALSE), "-") -> 4.142857143 | E24: =_xlfn.IFNA(VLOOKUP($B24 & $A$7, Tab7Data!$A$2:$P$193, E$6, FALSE), "-") -> 9.5 | F24: =_xlfn.IFNA(VLOOKUP($B24 & $A$7, Tab7Data!$A$2:$P$193, F$6, FALSE), "-") -> 35 | G24: =_xlfn.IFNA(VLOOKUP($B24 & $A$7, Tab7Data!$A$2:$P$193, G$6, FALSE), "-") -> 2 | H24: =_xlfn.IFNA(VLOOKUP($B24 & $A$7, Tab7Data!$A$2:$P$193, H$6, FALSE), "-") -> 54.33333333 | I24: =_xlfn.IFNA(VLOOKUP($B24 & $A$7, Tab7Data!$A$2:$P$193, I$6, FALSE), "-") -> 2.181818182 | J24: =_xlfn.IFNA(VLOOKUP($B24 & $A$7, Tab7Data!$A$2:$P$193, J$6, FALSE), "-") -> 7.583333333 | K24: =_xlfn.IFNA(VLOOKUP($B24 & $A$7, Tab7Data!$A$2:$P$193, K$6, FALSE), "-") -> 10.66666667 | L24: =_xlfn.IFNA(VLOOKUP($B24 & $A$7, Tab7Data!$A$2:$P$193, L$6, FALSE), "-") -> 18.25 | M24: =_xlfn.IFNA(VLOOKUP($B24 & $A$7, Tab7Data!$A$2:$P$193, M$6, FALSE), "-") -> 74.58333333
B25: NHS Western Isles | C25: =_xlfn.IFNA(VLOOKUP($B25 & $A$7, Tab7Data!$A$2:$P$193, C$6, FALSE), "-") -> 2.5 | D25: =_xlfn.IFNA(VLOOKUP($B25 & $A$7, Tab7Data!$A$2:$P$193, D$6, FALSE), "-") -> - | E25: =_xlfn.IFNA(VLOOKUP($B25 & $A$7, Tab7Data!$A$2:$P$193, E$6, FALSE), "-") -> - | F25: =_xlfn.IFNA(VLOOKUP($B25 & $A$7, Tab7Data!$A$2:$P$193, F$6, FALSE), "-") -> 6.416666667 | G25: =_xlfn.IFNA(VLOOKUP($B25 & $A$7, Tab7Data!$A$2:$P$193, G$6, FALSE), "-") -> - | H25: =_xlfn.IFNA(VLOOKUP($B25 & $A$7, Tab7Data!$A$2:$P$193, H$6, FALSE), "-") -> 8.5 | I25: =_xlfn.IFNA(VLOOKUP($B25 & $A$7, Tab7Data!$A$2:$P$193, I$6, FALSE), "-") -> 1 | J25: =_xlfn.IFNA(VLOOKUP($B25 & $A$7, Tab7Data!$A$2:$P$193, J$6, FALSE), "-") -> 1 | K25: =_xlfn.IFNA(VLOOKUP($B25 & $A$7, Tab7Data!$A$2:$P$193, K$6, FALSE), "-") -> 7.5 | L25: =_xlfn.IFNA(VLOOKUP($B25 & $A$7, Tab7Data!$A$2:$P$193, L$6, FALSE), "-") -> 7.666666667 | M25: =_xlfn.IFNA(VLOOKUP($B25 & $A$7, Tab7Data!$A$2:$P$193, M$6, FALSE), "-") -> 16.25
B26: Local authority of residence
B27: Aberdeen City | C27: =_xlfn.IFNA(VLOOKUP($B27 & $A$7, Tab7Data!$A$2:$P$193, C$6, FALSE), "-") -> 2.1 | D27: =_xlfn.IFNA(VLOOKUP($B27 & $A$7, Tab7Data!$A$2:$P$193, D$6, FALSE), "-") -> - | E27: =_xlfn.IFNA(VLOOKUP($B27 & $A$7, Tab7Data!$A$2:$P$193, E$6, FALSE), "-") -> 16.25 | F27: =_xlfn.IFNA(VLOOKUP($B27 & $A$7, Tab7Data!$A$2:$P$193, F$6, FALSE), "-") -> 12.41666667 | G27: =_xlfn.IFNA(VLOOKUP($B27 & $A$7, Tab7Data!$A$2:$P$193, G$6, FALSE), "-") -> - | H27: =_xlfn.IFNA(VLOOKUP($B27 & $A$7, Tab7Data!$A$2:$P$193, H$6, FALSE), "-") -> 30.41666667 | I27: =_xlfn.IFNA(VLOOKUP($B27 & $A$7, Tab7Data!$A$2:$P$193, I$6, FALSE), "-") -> 1 | J27: =_xlfn.IFNA(VLOOKUP($B27 & $A$7, Tab7Data!$A$2:$P$193, J$6, FALSE), "-") -> 2.583333333 | K27: =_xlfn.IFNA(VLOOKUP($B27 & $A$7, Tab7Data!$A$2:$P$193, K$6, FALSE), "-") -> 1 | L27: =_xlfn.IFNA(VLOOKUP($B27 & $A$7, Tab7Data!$A$2:$P$193, L$6, FALSE), "-") -> 2.666666667 | M27: =_xlfn.IFNA(VLOOKUP($B27 & $A$7, Tab7Data!$A$2:$P$193, M$6, FALSE), "-") -> 33.25
B28: Aberdeenshire | C28: =_xlfn.IFNA(VLOOKUP($B28 & $A$7, Tab7Data!$A$2:$P$193, C$6, FALSE), "-") -> 2.857142857 | D28: =_xlfn.IFNA(VLOOKUP($B28 & $A$7, Tab7Data!$A$2:$P$193, D$6, FALSE), "-") -> 3 | E28: =_xlfn.IFNA(VLOOKUP($B28 & $A$7, Tab7Data!$A$2:$P$193, E$6, FALSE), "-") -> 19.16666667 | F28: =_xlfn.IFNA(VLOOKUP($B28 & $A$7, Tab7Data!$A$2:$P$193, F$6, FALSE), "-") -> 11.75 | G28: =_xlfn.IFNA(VLOOKUP($B28 & $A$7, Tab7Data!$A$2:$P$193, G$6, FALSE), "-") -> - | H28: =_xlfn.IFNA(VLOOKUP($B28 & $A$7, Tab7Data!$A$2:$P$193, H$6, FALSE), "-") -> 32.83333333 | I28: =_xlfn.IFNA(VLOOKUP($B28 & $A$7, Tab7Data!$A$2:$P$193, I$6, FALSE), "-") -> 1.666666667 | J28: =_xlfn.IFNA(VLOOKUP($B28 & $A$7, Tab7Data!$A$2:$P$193, J$6, FALSE), "-") -> 6.166666667 | K28: =_xlfn.IFNA(VLOOKUP($B28 & $A$7, Tab7Data!$A$2:$P$193, K$6, FALSE), "-") -> 2.833333333 | L28: =_xlfn.IFNA(VLOOKUP($B28 & $A$7, Tab7Data!$A$2:$P$193, L$6, FALSE), "-") -> 9 | M28: =_xlfn.IFNA(VLOOKUP($B28 & $A$7, Tab7Data!$A$2:$P$193, M$6, FALSE), "-") -> 43.5
B29: Angus | C29: =_xlfn.IFNA(VLOOKUP($B29 & $A$7, Tab7Data!$A$2:$P$193, C$6, FALSE), "-") -> 3.75 | D29: =_xlfn.IFNA(VLOOKUP($B29 & $A$7, Tab7Data!$A$2:$P$193, D$6, FALSE), "-") -> - | E29: =_xlfn.IFNA(VLOOKUP($B29 & $A$7, Tab7Data!$A$2:$P$193, E$6, FALSE), "-") -> 1.571428571 | F29: =_xlfn.IFNA(VLOOKUP($B29 & $A$7, Tab7Data!$A$2:$P$193, F$6, FALSE), "-") -> 7 | G29: =_xlfn.IFNA(VLOOKUP($B29 & $A$7, Tab7Data!$A$2:$P$193, G$6, FALSE), "-") -> - | H29: =_xlfn.IFNA(VLOOKUP($B29 & $A$7, Tab7Data!$A$2:$P$193, H$6, FALSE), "-") -> 11.66666667 | I29: =_xlfn.IFNA(VLOOKUP($B29 & $A$7, Tab7Data!$A$2:$P$193, I$6, FALSE), "-") -> 1.5 | J29: =_xlfn.IFNA(VLOOKUP($B29 & $A$7, Tab7Data!$A$2:$P$193, J$6, FALSE), "-") -> 2.25 | K29: =_xlfn.IFNA(VLOOKUP($B29 & $A$7, Tab7Data!$A$2:$P$193, K$6, FALSE), "-") -> 1 | L29: =_xlfn.IFNA(VLOOKUP($B29 & $A$7, Tab7Data!$A$2:$P$193, L$6, FALSE), "-") -> 2 | M29: =_xlfn.IFNA(VLOOKUP($B29 & $A$7, Tab7Data!$A$2:$P$193, M$6, FALSE), "-") -> 14.16666667
B30: Argyll & Bute | C30: =_xlfn.IFNA(VLOOKUP($B30 & $A$7, Tab7Data!$A$2:$P$193, C$6, FALSE), "-") -> 3 | D30: =_xlfn.IFNA(VLOOKUP($B30 & $A$7, Tab7Data!$A$2:$P$193, D$6, FALSE), "-") -> - | E30: =_xlfn.IFNA(VLOOKUP($B30 & $A$7, Tab7Data!$A$2:$P$193, E$6, FALSE), "-") -> 5.083333333 | F30: =_xlfn.IFNA(VLOOKUP($B30 & $A$7, Tab7Data!$A$2:$P$193, F$6, FALSE), "-") -> 6.916666667 | G30: =_xlfn.IFNA(VLOOKUP($B30 & $A$7, Tab7Data!$A$2:$P$193, G$6, FALSE), "-") -> 1 | H30: =_xlfn.IFNA(VLOOKUP($B30 & $A$7, Tab7Data!$A$2:$P$193, H$6, FALSE), "-") -> 15 | I30: =_xlfn.IFNA(VLOOKUP($B30 & $A$7, Tab7Data!$A$2:$P$193, I$6, FALSE), "-") -> 1.727272727 | J30: =_xlfn.IFNA(VLOOKUP($B30 & $A$7, Tab7Data!$A$2:$P$193, J$6, FALSE), "-") -> 2.916666667 | K30: =_xlfn.IFNA(VLOOKUP($B30 & $A$7, Tab7Data!$A$2:$P$193, K$6, FALSE), "-") -> 2.5 | L30: =_xlfn.IFNA(VLOOKUP($B30 & $A$7, Tab7Data!$A$2:$P$193, L$6, FALSE), "-") -> 4.166666667 | M30: =_xlfn.IFNA(VLOOKUP($B30 & $A$7, Tab7Data!$A$2:$P$193, M$6, FALSE), "-") -> 20.75
B31: City of Edinburgh | C31: =_xlfn.IFNA(VLOOKUP($B31 & $A$7, Tab7Data!$A$2:$P$193, C$6, FALSE), "-") -> 16.75 | D31: =_xlfn.IFNA(VLOOKUP($B31 & $A$7, Tab7Data!$A$2:$P$193, D$6, FALSE), "-") -> - | E31: =_xlfn.IFNA(VLOOKUP($B31 & $A$7, Tab7Data!$A$2:$P$193, E$6, FALSE), "-") -> 56.25 | F31: =_xlfn.IFNA(VLOOKUP($B31 & $A$7, Tab7Data!$A$2:$P$193, F$6, FALSE), "-") -> 64.75 | G31: =_xlfn.IFNA(VLOOKUP($B31 & $A$7, Tab7Data!$A$2:$P$193, G$6, FALSE), "-") -> - | H31: =_xlfn.IFNA(VLOOKUP($B31 & $A$7, Tab7Data!$A$2:$P$193, H$6, FALSE), "-") -> 137.75 | I31: =_xlfn.IFNA(VLOOKUP($B31 & $A$7, Tab7Data!$A$2:$P$193, I$6, FALSE), "-") -> 6.583333333 | J31: =_xlfn.IFNA(VLOOKUP($B31 & $A$7, Tab7Data!$A$2:$P$193, J$6, FALSE), "-") -> 21 | K31: =_xlfn.IFNA(VLOOKUP($B31 & $A$7, Tab7Data!$A$2:$P$193, K$6, FALSE), "-") -> 2.444444444 | L31: =_xlfn.IFNA(VLOOKUP($B31 & $A$7, Tab7Data!$A$2:$P$193, L$6, FALSE), "-") -> 22.83333333 | M31: =_xlfn.IFNA(VLOOKUP($B31 & $A$7, Tab7Data!$A$2:$P$193, M$6, FALSE), "-") -> 167.1666667
B32: Clackmannanshire | C32: =_xlfn.IFNA(VLOOKUP($B32 & $A$7, Tab7Data!$A$2:$P$193, C$6, FALSE), "-") -> 1.5 | D32: =_xlfn.IFNA(VLOOKUP($B32 & $A$7, Tab7Data!$A$2:$P$193, D$6, FALSE), "-") -> - | E32: =_xlfn.IFNA(VLOOKUP($B32 & $A$7, Tab7Data!$A$2:$P$193, E$6, FALSE), "-") -> 2 | F32: =_xlfn.IFNA(VLOOKUP($B32 & $A$7, Tab7Data!$A$2:$P$193, F$6, FALSE), "-") -> 2 | G32: =_xlfn.IFNA(VLOOKUP($B32 & $A$7, Tab7Data!$A$2:$P$193, G$6, FALSE), "-") -> - | H32: =_xlfn.IFNA(VLOOKUP($B32 & $A$7, Tab7Data!$A$2:$P$193, H$6, FALSE), "-") -> 3.545454545 | I32: =_xlfn.IFNA(VLOOKUP($B32 & $A$7, Tab7Data!$A$2:$P$193, I$6, FALSE), "-") -> 1 | J32: =_xlfn.IFNA(VLOOKUP($B32 & $A$7, Tab7Data!$A$2:$P$193, J$6, FALSE), "-") -> 1 | K32: =_xlfn.IFNA(VLOOKUP($B32 & $A$7, Tab7Data!$A$2:$P$193, K$6, FALSE), "-") -> 2.125 | L32: =_xlfn.IFNA(VLOOKUP($B32 & $A$7, Tab7Data!$A$2:$P$193, L$6, FALSE), "-") -> 2.375 | M32: =_xlfn.IFNA(VLOOKUP($B32 & $A$7, Tab7Data!$A$2:$P$193, M$6, FALSE), "-") -> 4.916666667
B33: Comhairle nan Eilean Siar | C33: =_xlfn.IFNA(VLOOKUP($B33 & $A$7, Tab7Data!$A$2:$P$193, C$6, FALSE), "-") -> 2.416666667 | D33: =_xlfn.IFNA(VLOOKUP($B33 & $A$7, Tab7Data!$A$2:$P$193, D$6, FALSE), "-") -> - | E33: =_xlfn.IFNA(VLOOKUP($B33 & $A$7, Tab7Data!$A$2:$P$193, E$6, FALSE), "-") -> - | F33: =_xlfn.IFNA(VLOOKUP($B33 & $A$7, Tab7Data!$A$2:$P$193, F$6, FALSE), "-") -> 6.416666667 | G33: =_xlfn.IFNA(VLOOKUP($B33 & $A$7, Tab7Data!$A$2:$P$193, G$6, FALSE), "-") -> - | H33: =_xlfn.IFNA(VLOOKUP($B33 & $A$7, Tab7Data!$A$2:$P$193, H$6, FALSE), "-") -> 8.833333333 | I33: =_xlfn.IFNA(VLOOKUP($B33 & $A$7, Tab7Data!$A$2:$P$193, I$6, FALSE), "-") -> 1 | J33: =_xlfn.IFNA(VLOOKUP($B33 & $A$7, Tab7Data!$A$2:$P$193, J$6, FALSE), "-") -> 1 | K33: =_xlfn.IFNA(VLOOKUP($B33 & $A$7, Tab7Data!$A$2:$P$193, K$6, FALSE), "-") -> 7.666666667 | L33: =_xlfn.IFNA(VLOOKUP($B33 & $A$7, Tab7Data!$A$2:$P$193, L$6, FALSE), "-") -> 7.833333333 | M33: =_xlfn.IFNA(VLOOKUP($B33 & $A$7, Tab7Data!$A$2:$P$193, M$6, FALSE), "-") -> 16.75
B34: Dumfries & Galloway | C34: =_xlfn.IFNA(VLOOKUP($B34 & $A$7, Tab7Data!$A$2:$P$193, C$6, FALSE), "-") -> 2.6 | D34: =_xlfn.IFNA(VLOOKUP($B34 & $A$7, Tab7Data!$A$2:$P$193, D$6, FALSE), "-") -> - | E34: =_xlfn.IFNA(VLOOKUP($B34 & $A$7, Tab7Data!$A$2:$P$193, E$6, FALSE), "-") -> 13.5 | F34: =_xlfn.IFNA(VLOOKUP($B34 & $A$7, Tab7Data!$A$2:$P$193, F$6, FALSE), "-") -> 28.25 | G34: =_xlfn.IFNA(VLOOKUP($B34 & $A$7, Tab7Data!$A$2:$P$193, G$6, FALSE), "-") -> - | H34: =_xlfn.IFNA(VLOOKUP($B34 & $A$7, Tab7Data!$A$2:$P$193, H$6, FALSE), "-") -> 43.91666667 | I34: =_xlfn.IFNA(VLOOKUP($B34 & $A$7, Tab7Data!$A$2:$P$193, I$6, FALSE), "-") -> 1.636363636 | J34: =_xlfn.IFNA(VLOOKUP($B34 & $A$7, Tab7Data!$A$2:$P$193, J$6, FALSE), "-") -> 6 | K34: =_xlfn.IFNA(VLOOKUP($B34 & $A$7, Tab7Data!$A$2:$P$193, K$6, FALSE), "-") -> 2.272727273 | L34: =_xlfn.IFNA(VLOOKUP($B34 & $A$7, Tab7Data!$A$2:$P$193, L$6, FALSE), "-") -> 8.083333333 | M34: =_xlfn.IFNA(VLOOKUP($B34 & $A$7, Tab7Data!$A$2:$P$193, M$6, FALSE), "-") -> 53.5
B35: Dundee City | C35: =_xlfn.IFNA(VLOOKUP($B35 & $A$7, Tab7Data!$A$2:$P$193, C$6, FALSE), "-") -> 1.5 | D35: =_xlfn.IFNA(VLOOKUP($B35 & $A$7, Tab7Data!$A$2:$P$193, D$6, FALSE), "-") -> - | E35: =_xlfn.IFNA(VLOOKUP($B35 & $A$7, Tab7Data!$A$2:$P$193, E$6, FALSE), "-") -> 1.857142857 | F35: =_xlfn.IFNA(VLOOKUP($B35 & $A$7, Tab7Data!$A$2:$P$193, F$6, FALSE), "-") -> 13.41666667 | G35: =_xlfn.IFNA(VLOOKUP($B35 & $A$7, Tab7Data!$A$2:$P$193, G$6, FALSE), "-") -> - | H35: =_xlfn.IFNA(VLOOKUP($B35 & $A$7, Tab7Data!$A$2:$P$193, H$6, FALSE), "-") -> 15.5 | I35: =_xlfn.IFNA(VLOOKUP($B35 & $A$7, Tab7Data!$A$2:$P$193, I$6, FALSE), "-") -> 1.25 | J35: =_xlfn.IFNA(VLOOKUP($B35 & $A$7, Tab7Data!$A$2:$P$193, J$6, FALSE), "-") -> 2.818181818 | K35: =_xlfn.IFNA(VLOOKUP($B35 & $A$7, Tab7Data!$A$2:$P$193, K$6, FALSE), "-") -> 7 | L35: =_xlfn.IFNA(VLOOKUP($B35 & $A$7, Tab7Data!$A$2:$P$193, L$6, FALSE), "-") -> 9.583333333 | M35: =_xlfn.IFNA(VLOOKUP($B35 & $A$7, Tab7Data!$A$2:$P$193, M$6, FALSE), "-") -> 25.91666667
B36: East Ayrshire | C36: =_xlfn.IFNA(VLOOKUP($B36 & $A$7, Tab7Data!$A$2:$P$193, C$6, FALSE), "-") -> 2.666666667 | D36: =_xlfn.IFNA(VLOOKUP($B36 & $A$7, Tab7Data!$A$2:$P$193, D$6, FALSE), "-") -> - | E36: =_xlfn.IFNA(VLOOKUP($B36 & $A$7, Tab7Data!$A$2:$P$193, E$6, FALSE), "-") -> 2 | F36: =_xlfn.IFNA(VLOOKUP($B36 & $A$7, Tab7Data!$A$2:$P$193, F$6, FALSE), "-") -> 4.1 | G36: =_xlfn.IFNA(VLOOKUP($B36 & $A$7, Tab7Data!$A$2:$P$193, G$6, FALSE), "-") -> - | H36: =_xlfn.IFNA(VLOOKUP($B36 & $A$7, Tab7Data!$A$2:$P$193, H$6, FALSE), "-") -> 5.363636364 | I36: =_xlfn.IFNA(VLOOKUP($B36 & $A$7, Tab7Data!$A$2:$P$193, I$6, FALSE), "-") -> 1 | J36: =_xlfn.IFNA(VLOOKUP($B36 & $A$7, Tab7Data!$A$2:$P$193, J$6, FALSE), "-") -> 2.833333333 | K36: =_xlfn.IFNA(VLOOKUP($B36 & $A$7, Tab7Data!$A$2:$P$193, K$6, FALSE), "-") -> 2.5 | L36: =_xlfn.IFNA(VLOOKUP($B36 & $A$7, Tab7Data!$A$2:$P$193, L$6, FALSE), "-") -> 5.333333333 | M36: =_xlfn.IFNA(VLOOKUP($B36 & $A$7, Tab7Data!$A$2:$P$193, M$6, FALSE), "-") -> 10.33333333
B37: East Dunbartonshire | C37: =_xlfn.IFNA(VLOOKUP($B37 & $A$7, Tab7Data!$A$2:$P$193, C$6, FALSE), "-") -> 2.333333333 | D37: =_xlfn.IFNA(VLOOKUP($B37 & $A$7, Tab7Data!$A$2:$P$193, D$6, FALSE), "-") -> - | E37: =_xlfn.IFNA(VLOOKUP($B37 & $A$7, Tab7Data!$A$2:$P$193, E$6, FALSE), "-") -> 7 | F37: =_xlfn.IFNA(VLOOKUP($B37 & $A$7, Tab7Data!$A$2:$P$193, F$6, FALSE), "-") -> 2.5 | G37: =_xlfn.IFNA(VLOOKUP($B37 & $A$7, Tab7Data!$A$2:$P$193, G$6, FALSE), "-") -> - | H37: =_xlfn.IFNA(VLOOKUP($B37 & $A$7, Tab7Data!$A$2:$P$193, H$6, FALSE), "-") -> 10.41666667 | I37: =_xlfn.IFNA(VLOOKUP($B37 & $A$7, Tab7Data!$A$2:$P$193, I$6, FALSE), "-") -> 1.5 | J37: =_xlfn.IFNA(VLOOKUP($B37 & $A$7, Tab7Data!$A$2:$P$193, J$6, FALSE), "-") -> 2.916666667 | K37: =_xlfn.IFNA(VLOOKUP($B37 & $A$7, Tab7Data!$A$2:$P$193, K$6, FALSE), "-") -> 1.5 | L37: =_xlfn.IFNA(VLOOKUP($B37 & $A$7, Tab7Data!$A$2:$P$193, L$6, FALSE), "-") -> 3.666666667 | M37: =_xlfn.IFNA(VLOOKUP($B37 & $A$7, Tab7Data!$A$2:$P$193, M$6, FALSE), "-") -> 14.83333333
B38: East Lothian | C38: =_xlfn.IFNA(VLOOKUP($B38 & $A$7, Tab7Data!$A$2:$P$193, C$6, FALSE), "-") -> 3.75 | D38: =_xlfn.IFNA(VLOOKUP($B38 & $A$7, Tab7Data!$A$2:$P$193, D$6, FALSE), "-") -> - | E38: =_xlfn.IFNA(VLOOKUP($B38 & $A$7, Tab7Data!$A$2:$P$193, E$6, FALSE), "-") -> 1.714285714 | F38: =_xlfn.IFNA(VLOOKUP($B38 & $A$7, Tab7Data!$A$2:$P$193, F$6, FALSE), "-") -> 4.916666667 | G38: =_xlfn.IFNA(VLOOKUP($B38 & $A$7, Tab7Data!$A$2:$P$193, G$6, FALSE), "-") -> - | H38: =_xlfn.IFNA(VLOOKUP($B38 & $A$7, Tab7Data!$A$2:$P$193, H$6, FALSE), "-") -> 9.666666667 | I38: =_xlfn.IFNA(VLOOKUP($B38 & $A$7, Tab7Data!$A$2:$P$193, I$6, FALSE), "-") -> - | J38: =_xlfn.IFNA(VLOOKUP($B38 & $A$7, Tab7Data!$A$2:$P$193, J$6, FALSE), "-") -> 1 | K38: =_xlfn.IFNA(VLOOKUP($B38 & $A$7, Tab7Data!$A$2:$P$193, K$6, FALSE), "-") -> 1 | L38: =_xlfn.IFNA(VLOOKUP($B38 & $A$7, Tab7Data!$A$2:$P$193, L$6, FALSE), "-") -> 1.111111111 | M38: =_xlfn.IFNA(VLOOKUP($B38 & $A$7, Tab7Data!$A$2:$P$193, M$6, FALSE), "-") -> 10.5
B39: East Renfrewshire | C39: =_xlfn.IFNA(VLOOKUP($B39 & $A$7, Tab7Data!$A$2:$P$193, C$6, FALSE), "-") -> 1.571428571 | D39: =_xlfn.IFNA(VLOOKUP($B39 & $A$7, Tab7Data!$A$2:$P$193, D$6, FALSE), "-") -> - | E39: =_xlfn.IFNA(VLOOKUP($B39 & $A$7, Tab7Data!$A$2:$P$193, E$6, FALSE), "-") -> 2.125 | F39: =_xlfn.IFNA(VLOOKUP($B39 & $A$7, Tab7Data!$A$2:$P$193, F$6, FALSE), "-") -> 2.5 | G39: =_xlfn.IFNA(VLOOKUP($B39 & $A$7, Tab7Data!$A$2:$P$193, G$6, FALSE), "-") -> 1 | H39: =_xlfn.IFNA(VLOOKUP($B39 & $A$7, Tab7Data!$A$2:$P$193, H$6, FALSE), "-") -> 3.75 | I39: =_xlfn.IFNA(VLOOKUP($B39 & $A$7, Tab7Data!$A$2:$P$193, I$6, FALSE), "-") -> 1 | J39: =_xlfn.IFNA(VLOOKUP($B39 & $A$7, Tab7Data!$A$2:$P$193, J$6, FALSE), "-") -> 1.571428571 | K39: =_xlfn.IFNA(VLOOKUP($B39 & $A$7, Tab7Data!$A$2:$P$193, K$6, FALSE), "-") -> - | L39: =_xlfn.IFNA(VLOOKUP($B39 & $A$7, Tab7Data!$A$2:$P$193, L$6, FALSE), "-") -> 1.571428571 | M39: =_xlfn.IFNA(VLOOKUP($B39 & $A$7, Tab7Data!$A$2:$P$193, M$6, FALSE), "-") -> 4.75
B40: Falkirk | C40: =_xlfn.IFNA(VLOOKUP($B40 & $A$7, Tab7Data!$A$2:$P$193, C$6, FALSE), "-") -> 12.08333333 | D40: =_xlfn.IFNA(VLOOKUP($B40 & $A$7, Tab7Data!$A$2:$P$193, D$6, FALSE), "-") -> - | E40: =_xlfn.IFNA(VLOOKUP($B40 & $A$7, Tab7Data!$A$2:$P$193, E$6, FALSE), "-") -> 14.58333333 | F40: =_xlfn.IFNA(VLOOKUP($B40 & $A$7, Tab7Data!$A$2:$P$193, F$6, FALSE), "-") -> 7.25 | G40: =_xlfn.IFNA(VLOOKUP($B40 & $A$7, Tab7Data!$A$2:$P$193, G$6, FALSE), "-") -> - | H40: =_xlfn.IFNA(VLOOKUP($B40 & $A$7, Tab7Data!$A$2:$P$193, H$6, FALSE), "-") -> 33.91666667 | I40: =_xlfn.IFNA(VLOOKUP($B40 & $A$7, Tab7Data!$A$2:$P$193, I$6, FALSE), "-") -> 1.555555556 | J40: =_xlfn.IFNA(VLOOKUP($B40 & $A$7, Tab7Data!$A$2:$P$193, J$6, FALSE), "-") -> 10.83333333 | K40: =_xlfn.IFNA(VLOOKUP($B40 & $A$7, Tab7Data!$A$2:$P$193, K$6, FALSE), "-") -> 3.25 | L40: =_xlfn.IFNA(VLOOKUP($B40 & $A$7, Tab7Data!$A$2:$P$193, L$6, FALSE), "-") -> 14.08333333 | M40: =_xlfn.IFNA(VLOOKUP($B40 & $A$7, Tab7Data!$A$2:$P$193, M$6, FALSE), "-") -> 49.16666667
B41: Fife | C41: =_xlfn.IFNA(VLOOKUP($B41 & $A$7, Tab7Data!$A$2:$P$193, C$6, FALSE), "-") -> 12.58333333 | D41: =_xlfn.IFNA(VLOOKUP($B41 & $A$7, Tab7Data!$A$2:$P$193, D$6, FALSE), "-") -> 3.818181818 | E41: =_xlfn.IFNA(VLOOKUP($B41 & $A$7, Tab7Data!$A$2:$P$193, E$6, FALSE), "-") -> 20.25 | F41: =_xlfn.IFNA(VLOOKUP($B41 & $A$7, Tab7Data!$A$2:$P$193, F$6, FALSE), "-") -> 36.33333333 | G41: =_xlfn.IFNA(VLOOKUP($B41 & $A$7, Tab7Data!$A$2:$P$193, G$6, FALSE), "-") -> - | H41: =_xlfn.IFNA(VLOOKUP($B41 & $A$7, Tab7Data!$A$2:$P$193, H$6, FALSE), "-") -> 72.66666667 | I41: =_xlfn.IFNA(VLOOKUP($B41 & $A$7, Tab7Data!$A$2:$P$193, I$6, FALSE), "-") -> 1.833333333 | J41: =_xlfn.IFNA(VLOOKUP($B41 & $A$7, Tab7Data!$A$2:$P$193, J$6, FALSE), "-") -> 23.75 | K41: =_xlfn.IFNA(VLOOKUP($B41 & $A$7, Tab7Data!$A$2:$P$193, K$6, FALSE), "-") -> 8.083333333 | L41: =_xlfn.IFNA(VLOOKUP($B41 & $A$7, Tab7Data!$A$2:$P$193, L$6, FALSE), "-") -> 31.83333333 | M41: =_xlfn.IFNA(VLOOKUP($B41 & $A$7, Tab7Data!$A$2:$P$193, M$6, FALSE), "-") -> 105.4166667
B42: Glasgow City | C42: =_xlfn.IFNA(VLOOKUP($B42 & $A$7, Tab7Data!$A$2:$P$193, C$6, FALSE), "-") -> 30 | D42: =_xlfn.IFNA(VLOOKUP($B42 & $A$7, Tab7Data!$A$2:$P$193, D$6, FALSE), "-") -> - | E42: =_xlfn.IFNA(VLOOKUP($B42 & $A$7, Tab7Data!$A$2:$P$193, E$6, FALSE), "-") -> 36.66666667 | F42: =_xlfn.IFNA(VLOOKUP($B42 & $A$7, Tab7Data!$A$2:$P$193, F$6, FALSE), "-") -> 12.16666667 | G42: =_xlfn.IFNA(VLOOKUP($B42 & $A$7, Tab7Data!$A$2:$P$193, G$6, FALSE), "-") -> - | H42: =_xlfn.IFNA(VLOOKUP($B42 & $A$7, Tab7Data!$A$2:$P$193, H$6, FALSE), "-") -> 78.83333333 | I42: =_xlfn.IFNA(VLOOKUP($B42 & $A$7, Tab7Data!$A$2:$P$193, I$6, FALSE), "-") -> 9.666666667 | J42: =_xlfn.IFNA(VLOOKUP($B42 & $A$7, Tab7Data!$A$2:$P$193, J$6, FALSE), "-") -> 30.5 | K42: =_xlfn.IFNA(VLOOKUP($B42 & $A$7, Tab7Data!$A$2:$P$193, K$6, FALSE), "-") -> 9 | L42: =_xlfn.IFNA(VLOOKUP($B42 & $A$7, Tab7Data!$A$2:$P$193, L$6, FALSE), "-") -> 39.5 | M42: =_xlfn.IFNA(VLOOKUP($B42 & $A$7, Tab7Data!$A$2:$P$193, M$6, FALSE), "-") -> 128
B43: Highland | C43: =_xlfn.IFNA(VLOOKUP($B43 & $A$7, Tab7Data!$A$2:$P$193, C$6, FALSE), "-") -> 3.916666667 | D43: =_xlfn.IFNA(VLOOKUP($B43 & $A$7, Tab7Data!$A$2:$P$193, D$6, FALSE), "-") -> - | E43: =_xlfn.IFNA(VLOOKUP($B43 & $A$7, Tab7Data!$A$2:$P$193, E$6, FALSE), "-") -> 36.66666667 | F43: =_xlfn.IFNA(VLOOKUP($B43 & $A$7, Tab7Data!$A$2:$P$193, F$6, FALSE), "-") -> 46.66666667 | G43: =_xlfn.IFNA(VLOOKUP($B43 & $A$7, Tab7Data!$A$2:$P$193, G$6, FALSE), "-") -> - | H43: =_xlfn.IFNA(VLOOKUP($B43 & $A$7, Tab7Data!$A$2:$P$193, H$6, FALSE), "-") -> 87.25 | I43: =_xlfn.IFNA(VLOOKUP($B43 & $A$7, Tab7Data!$A$2:$P$193, I$6, FALSE), "-") -> 2.111111111 | J43: =_xlfn.IFNA(VLOOKUP($B43 & $A$7, Tab7Data!$A$2:$P$193, J$6, FALSE), "-") -> 19.16666667 | K43: =_xlfn.IFNA(VLOOKUP($B43 & $A$7, Tab7Data!$A$2:$P$193, K$6, FALSE), "-") -> 7.416666667 | L43: =_xlfn.IFNA(VLOOKUP($B43 & $A$7, Tab7Data!$A$2:$P$193, L$6, FALSE), "-") -> 26.58333333 | M43: =_xlfn.IFNA(VLOOKUP($B43 & $A$7, Tab7Data!$A$2:$P$193, M$6, FALSE), "-") -> 115.4166667
B44: Inverclyde | C44: =_xlfn.IFNA(VLOOKUP($B44 & $A$7, Tab7Data!$A$2:$P$193, C$6, FALSE), "-") -> 1 | D44: =_xlfn.IFNA(VLOOKUP($B44 & $A$7, Tab7Data!$A$2:$P$193, D$6, FALSE), "-") -> - | E44: =_xlfn.IFNA(VLOOKUP($B44 & $A$7, Tab7Data!$A$2:$P$193, E$6, FALSE), "-") -> 1.857142857 | F44: =_xlfn.IFNA(VLOOKUP($B44 & $A$7, Tab7Data!$A$2:$P$193, F$6, FALSE), "-") -> 2.25 | G44: =_xlfn.IFNA(VLOOKUP($B44 & $A$7, Tab7Data!$A$2:$P$193, G$6, FALSE), "-") -> 1 | H44: =_xlfn.IFNA(VLOOKUP($B44 & $A$7, Tab7Data!$A$2:$P$193, H$6, FALSE), "-") -> 3.272727273 | I44: =_xlfn.IFNA(VLOOKUP($B44 & $A$7, Tab7Data!$A$2:$P$193, I$6, FALSE), "-") -> - | J44: =_xlfn.IFNA(VLOOKUP($B44 & $A$7, Tab7Data!$A$2:$P$193, J$6, FALSE), "-") -> 1 | K44: =_xlfn.IFNA(VLOOKUP($B44 & $A$7, Tab7Data!$A$2:$P$193, K$6, FALSE), "-") -> - | L44: =_xlfn.IFNA(VLOOKUP($B44 & $A$7, Tab7Data!$A$2:$P$193, L$6, FALSE), "-") -> 1 | M44: =_xlfn.IFNA(VLOOKUP($B44 & $A$7, Tab7Data!$A$2:$P$193, M$6, FALSE), "-") -> 3.909090909
B45: Midlothian | C45: =_xlfn.IFNA(VLOOKUP($B45 & $A$7, Tab7Data!$A$2:$P$193, C$6, FALSE), "-") -> 3 | D45: =_xlfn.IFNA(VLOOKUP($B45 & $A$7, Tab7Data!$A$2:$P$193, D$6, FALSE), "-") -> - | E45: =_xlfn.IFNA(VLOOKUP($B45 & $A$7, Tab7Data!$A$2:$P$193, E$6, FALSE), "-") -> 4.833333333 | F45: =_xlfn.IFNA(VLOOKUP($B45 & $A$7, Tab7Data!$A$2:$P$193, F$6, FALSE), "-") -> 15.66666667 | G45: =_xlfn.IFNA(VLOOKUP($B45 & $A$7, Tab7Data!$A$2:$P$193, G$6, FALSE), "-") -> - | H45: =_xlfn.IFNA(VLOOKUP($B45 & $A$7, Tab7Data!$A$2:$P$193, H$6, FALSE), "-") -> 23.25 | I45: =_xlfn.IFNA(VLOOKUP($B45 & $A$7, Tab7Data!$A$2:$P$193, I$6, FALSE), "-") -> 1.4 | J45: =_xlfn.IFNA(VLOOKUP($B45 & $A$7, Tab7Data!$A$2:$P$193, J$6, FALSE), "-") -> 3.083333333 | K45: =_xlfn.IFNA(VLOOKUP($B45 & $A$7, Tab7Data!$A$2:$P$193, K$6, FALSE), "-") -> 1 | L45: =_xlfn.IFNA(VLOOKUP($B45 & $A$7, Tab7Data!$A$2:$P$193, L$6, FALSE), "-") -> 3.416666667 | M45: =_xlfn.IFNA(VLOOKUP($B45 & $A$7, Tab7Data!$A$2:$P$193, M$6, FALSE), "-") -> 27.25
B46: Moray | C46: =_xlfn.IFNA(VLOOKUP($B46 & $A$7, Tab7Data!$A$2:$P$193, C$6, FALSE), "-") -> 5.333333333 | D46: =_xlfn.IFNA(VLOOKUP($B46 & $A$7, Tab7Data!$A$2:$P$193, D$6, FALSE), "-") -> - | E46: =_xlfn.IFNA(VLOOKUP($B46 & $A$7, Tab7Data!$A$2:$P$193, E$6, FALSE), "-") -> 4.083333333 | F46: =_xlfn.IFNA(VLOOKUP($B46 & $A$7, Tab7Data!$A$2:$P$193, F$6, FALSE), "-") -> 15 | G46: =_xlfn.IFNA(VLOOKUP($B46 & $A$7, Tab7Data!$A$2:$P$193, G$6, FALSE), "-") -> - | H46: =_xlfn.IFNA(VLOOKUP($B46 & $A$7, Tab7Data!$A$2:$P$193, H$6, FALSE), "-") -> 24.41666667 | I46: =_xlfn.IFNA(VLOOKUP($B46 & $A$7, Tab7Data!$A$2:$P$193, I$6, FALSE), "-") -> 1.375 | J46: =_xlfn.IFNA(VLOOKUP($B46 & $A$7, Tab7Data!$A$2:$P$193, J$6, FALSE), "-") -> 4.25 | K46: =_xlfn.IFNA(VLOOKUP($B46 & $A$7, Tab7Data!$A$2:$P$193, K$6, FALSE), "-") -> 1.75 | L46: =_xlfn.IFNA(VLOOKUP($B46 & $A$7, Tab7Data!$A$2:$P$193, L$6, FALSE), "-") -> 5.416666667 | M46: =_xlfn.IFNA(VLOOKUP($B46 & $A$7, Tab7Data!$A$2:$P$193, M$6, FALSE), "-") -> 30.75
B47: North Ayrshire | C47: =_xlfn.IFNA(VLOOKUP($B47 & $A$7, Tab7Data!$A$2:$P$193, C$6, FALSE), "-") -> 24.91666667 | D47: =_xlfn.IFNA(VLOOKUP($B47 & $A$7, Tab7Data!$A$2:$P$193, D$6, FALSE), "-") -> 8.545454545 | E47: =_xlfn.IFNA(VLOOKUP($B47 & $A$7, Tab7Data!$A$2:$P$193, E$6, FALSE), "-") -> 6.083333333 | F47: =_xlfn.IFNA(VLOOKUP($B47 & $A$7, Tab7Data!$A$2:$P$193, F$6, FALSE), "-") -> 26.33333333 | G47: =_xlfn.IFNA(VLOOKUP($B47 & $A$7, Tab7Data!$A$2:$P$193, G$6, FALSE), "-") -> - | H47: =_xlfn.IFNA(VLOOKUP($B47 & $A$7, Tab7Data!$A$2:$P$193, H$6, FALSE), "-") -> 65.16666667 | I47: =_xlfn.IFNA(VLOOKUP($B47 & $A$7, Tab7Data!$A$2:$P$193, I$6, FALSE), "-") -> 2 | J47: =_xlfn.IFNA(VLOOKUP($B47 & $A$7, Tab7Data!$A$2:$P$193, J$6, FALSE), "-") -> 5.916666667 | K47: =_xlfn.IFNA(VLOOKUP($B47 & $A$7, Tab7Data!$A$2:$P$193, K$6, FALSE), "-") -> 1.909090909 | L47: =_xlfn.IFNA(VLOOKUP($B47 & $A$7, Tab7Data!$A$2:$P$193, L$6, FALSE), "-") -> 7.666666667 | M47: =_xlfn.IFNA(VLOOKUP($B47 & $A$7, Tab7Data!$A$2:$P$193, M$6, FALSE), "-") -> 73.33333333
B48: North Lanarkshire | C48: =_xlfn.IFNA(VLOOKUP($B48 & $A$7, Tab7Data!$A$2:$P$193, C$6, FALSE), "-") -> 44 | D48: =_xlfn.IFNA(VLOOKUP($B48 & $A$7, Tab7Data!$A$2:$P$193, D$6, FALSE), "-") -> 8.25 | E48: =_xlfn.IFNA(VLOOKUP($B48 & $A$7, Tab7Data!$A$2:$P$193, E$6, FALSE), "-") -> 16.25 | F48: =_xlfn.IFNA(VLOOKUP($B48 & $A$7, Tab7Data!$A$2:$P$193, F$6, FALSE), "-") -> 34.33333333 | G48: =_xlfn.IFNA(VLOOKUP($B48 & $A$7, Tab7Data!$A$2:$P$193, G$6, FALSE), "-") -> - | H48: =_xlfn.IFNA(VLOOKUP($B48 & $A$7, Tab7Data!$A$2:$P$193, H$6, FALSE), "-") -> 97.33333333 | I48: =_xlfn.IFNA(VLOOKUP($B48 & $A$7, Tab7Data!$A$2:$P$193, I$6, FALSE), "-") -> 1.2 | J48: =_xlfn.IFNA(VLOOKUP($B48 & $A$7, Tab7Data!$A$2:$P$193, J$6, FALSE), "-") -> 12.25 | K48: =_xlfn.IFNA(VLOOKUP($B48 & $A$7, Tab7Data!$A$2:$P$193, K$6, FALSE), "-") -> 4.5 | L48: =_xlfn.IFNA(VLOOKUP($B48 & $A$7, Tab7Data!$A$2:$P$193, L$6, FALSE), "-") -> 16.75 | M48: =_xlfn.IFNA(VLOOKUP($B48 & $A$7, Tab7Data!$A$2:$P$193, M$6, FALSE), "-") -> 115.0833333
B49: Orkney | C49: =_xlfn.IFNA(VLOOKUP($B49 & $A$7, Tab7Data!$A$2:$P$193, C$6, FALSE), "-") -> 1.454545455 | D49: =_xlfn.IFNA(VLOOKUP($B49 & $A$7, Tab7Data!$A$2:$P$193, D$6, FALSE), "-") -> - | E49: =_xlfn.IFNA(VLOOKUP($B49 & $A$7, Tab7Data!$A$2:$P$193, E$6, FALSE), "-") -> 1.8 | F49: =_xlfn.IFNA(VLOOKUP($B49 & $A$7, Tab7Data!$A$2:$P$193, F$6, FALSE), "-") -> 2 | G49: =_xlfn.IFNA(VLOOKUP($B49 & $A$7, Tab7Data!$A$2:$P$193, G$6, FALSE), "-") -> - | H49: =_xlfn.IFNA(VLOOKUP($B49 & $A$7, Tab7Data!$A$2:$P$193, H$6, FALSE), "-") -> 3.5 | I49: =_xlfn.IFNA(VLOOKUP($B49 & $A$7, Tab7Data!$A$2:$P$193, I$6, FALSE), "-") -> - | J49: =_xlfn.IFNA(VLOOKUP($B49 & $A$7, Tab7Data!$A$2:$P$193, J$6, FALSE), "-") -> 1 | K49: =_xlfn.IFNA(VLOOKUP($B49 & $A$7, Tab7Data!$A$2:$P$193, K$6, FALSE), "-") -> 1 | L49: =_xlfn.IFNA(VLOOKUP($B49 & $A$7, Tab7Data!$A$2:$P$193, L$6, FALSE), "-") -> 1.2 | M49: =_xlfn.IFNA(VLOOKUP($B49 & $A$7, Tab7Data!$A$2:$P$193, M$6, FALSE), "-") -> 4
B50: Other | C50: =_xlfn.IFNA(VLOOKUP($B50 & $A$7, Tab7Data!$A$2:$P$193, C$6, FALSE), "-") -> 1.4 | D50: =_xlfn.IFNA(VLOOKUP($B50 & $A$7, Tab7Data!$A$2:$P$193, D$6, FALSE), "-") -> - | E50: =_xlfn.IFNA(VLOOKUP($B50 & $A$7, Tab7Data!$A$2:$P$193, E$6, FALSE), "-") -> 2 | F50: =_xlfn.IFNA(VLOOKUP($B50 & $A$7, Tab7Data!$A$2:$P$193, F$6, FALSE), "-") -> 1 | G50: =_xlfn.IFNA(VLOOKUP($B50 & $A$7, Tab7Data!$A$2:$P$193, G$6, FALSE), "-") -> - | H50: =_xlfn.IFNA(VLOOKUP($B50 & $A$7, Tab7Data!$A$2:$P$193, H$6, FALSE), "-") -> 2.142857143 | I50: =_xlfn.IFNA(VLOOKUP($B50 & $A$7, Tab7Data!$A$2:$P$193, I$6, FALSE), "-") -> 1 | J50: =_xlfn.IFNA(VLOOKUP($B50 & $A$7, Tab7Data!$A$2:$P$193, J$6, FALSE), "-") -> 1.4 | K50: =_xlfn.IFNA(VLOOKUP($B50 & $A$7, Tab7Data!$A$2:$P$193, K$6, FALSE), "-") -> - | L50: =_xlfn.IFNA(VLOOKUP($B50 & $A$7, Tab7Data!$A$2:$P$193, L$6, FALSE), "-") -> 1.4 | M50: =_xlfn.IFNA(VLOOKUP($B50 & $A$7, Tab7Data!$A$2:$P$193, M$6, FALSE), "-") -> 2.875
B51: Perth & Kinross | C51: =_xlfn.IFNA(VLOOKUP($B51 & $A$7, Tab7Data!$A$2:$P$193, C$6, FALSE), "-") -> 1.5 | D51: =_xlfn.IFNA(VLOOKUP($B51 & $A$7, Tab7Data!$A$2:$P$193, D$6, FALSE), "-") -> 4.142857143 | E51: =_xlfn.IFNA(VLOOKUP($B51 & $A$7, Tab7Data!$A$2:$P$193, E$6, FALSE), "-") -> 8.090909091 | F51: =_xlfn.IFNA(VLOOKUP($B51 & $A$7, Tab7Data!$A$2:$P$193, F$6, FALSE), "-") -> 12.83333333 | G51: =_xlfn.IFNA(VLOOKUP($B51 & $A$7, Tab7Data!$A$2:$P$193, G$6, FALSE), "-") -> 2 | H51: =_xlfn.IFNA(VLOOKUP($B51 & $A$7, Tab7Data!$A$2:$P$193, H$6, FALSE), "-") -> 23.33333333 | I51: =_xlfn.IFNA(VLOOKUP($B51 & $A$7, Tab7Data!$A$2:$P$193, I$6, FALSE), "-") -> 2 | J51: =_xlfn.IFNA(VLOOKUP($B51 & $A$7, Tab7Data!$A$2:$P$193, J$6, FALSE), "-") -> 4.333333333 | K51: =_xlfn.IFNA(VLOOKUP($B51 & $A$7, Tab7Data!$A$2:$P$193, K$6, FALSE), "-") -> 3.083333333 | L51: =_xlfn.IFNA(VLOOKUP($B51 & $A$7, Tab7Data!$A$2:$P$193, L$6, FALSE), "-") -> 7.416666667 | M51: =_xlfn.IFNA(VLOOKUP($B51 & $A$7, Tab7Data!$A$2:$P$193, M$6, FALSE), "-") -> 31.41666667
B52: Renfrewshire | C52: =_xlfn.IFNA(VLOOKUP($B52 & $A$7, Tab7Data!$A$2:$P$193, C$6, FALSE), "-") -> 2.4 | D52: =_xlfn.IFNA(VLOOKUP($B52 & $A$7, Tab7Data!$A$2:$P$193, D$6, FALSE), "-") -> - | E52: =_xlfn.IFNA(VLOOKUP($B52 & $A$7, Tab7Data!$A$2:$P$193, E$6, FALSE), "-") -> 4.916666667 | F52: =_xlfn.IFNA(VLOOKUP($B52 & $A$7, Tab7Data!$A$2:$P$193, F$6, FALSE), "-") -> 13.58333333 | G52: =_xlfn.IFNA(VLOOKUP($B52 & $A$7, Tab7Data!$A$2:$P$193, G$6, FALSE), "-") -> 1.5 | H52: =_xlfn.IFNA(VLOOKUP($B52 & $A$7, Tab7Data!$A$2:$P$193, H$6, FALSE), "-") -> 20 | I52: =_xlfn.IFNA(VLOOKUP($B52 & $A$7, Tab7Data!$A$2:$P$193, I$6, FALSE), "-") -> 1.444444444 | J52: =_xlfn.IFNA(VLOOKUP($B52 & $A$7, Tab7Data!$A$2:$P$193, J$6, FALSE), "-") -> 2.3 | K52: =_xlfn.IFNA(VLOOKUP($B52 & $A$7, Tab7Data!$A$2:$P$193, K$6, FALSE), "-") -> 3.25 | L52: =_xlfn.IFNA(VLOOKUP($B52 & $A$7, Tab7Data!$A$2:$P$193, L$6, FALSE), "-") -> 5.166666667 | M52: =_xlfn.IFNA(VLOOKUP($B52 & $A$7, Tab7Data!$A$2:$P$193, M$6, FALSE), "-") -> 26.25
B53: Scottish Borders | C53: =_xlfn.IFNA(VLOOKUP($B53 & $A$7, Tab7Data!$A$2:$P$193, C$6, FALSE), "-") -> 4.333333333 | D53: =_xlfn.IFNA(VLOOKUP($B53 & $A$7, Tab7Data!$A$2:$P$193, D$6, FALSE), "-") -> - | E53: =_xlfn.IFNA(VLOOKUP($B53 & $A$7, Tab7Data!$A$2:$P$193, E$6, FALSE), "-") -> 10.91666667 | F53: =_xlfn.IFNA(VLOOKUP($B53 & $A$7, Tab7Data!$A$2:$P$193, F$6, FALSE), "-") -> 11.83333333 | G53: =_xlfn.IFNA(VLOOKUP($B53 & $A$7, Tab7Data!$A$2:$P$193, G$6, FALSE), "-") -> - | H53: =_xlfn.IFNA(VLOOKUP($B53 & $A$7, Tab7Data!$A$2:$P$193, H$6, FALSE), "-") -> 27.08333333 | I53: =_xlfn.IFNA(VLOOKUP($B53 & $A$7, Tab7Data!$A$2:$P$193, I$6, FALSE), "-") -> 1.909090909 | J53: =_xlfn.IFNA(VLOOKUP($B53 & $A$7, Tab7Data!$A$2:$P$193, J$6, FALSE), "-") -> 3.583333333 | K53: =_xlfn.IFNA(VLOOKUP($B53 & $A$7, Tab7Data!$A$2:$P$193, K$6, FALSE), "-") -> 1.5 | L53: =_xlfn.IFNA(VLOOKUP($B53 & $A$7, Tab7Data!$A$2:$P$193, L$6, FALSE), "-") -> 4.083333333 | M53: =_xlfn.IFNA(VLOOKUP($B53 & $A$7, Tab7Data!$A$2:$P$193, M$6, FALSE), "-") -> 32.91666667
B54: Shetland | C54: =_xlfn.IFNA(VLOOKUP($B54 & $A$7, Tab7Data!$A$2:$P$193, C$6, FALSE), "-") -> 1 | D54: =_xlfn.IFNA(VLOOKUP($B54 & $A$7, Tab7Data!$A$2:$P$193, D$6, FALSE), "-") -> - | E54: =_xlfn.IFNA(VLOOKUP($B54 & $A$7, Tab7Data!$A$2:$P$193, E$6, FALSE), "-") -> 3 | F54: =_xlfn.IFNA(VLOOKUP($B54 & $A$7, Tab7Data!$A$2:$P$193, F$6, FALSE), "-") -> 1.333333333 | G54: =_xlfn.IFNA(VLOOKUP($B54 & $A$7, Tab7Data!$A$2:$P$193, G$6, FALSE), "-") -> 1 | H54: =_xlfn.IFNA(VLOOKUP($B54 & $A$7, Tab7Data!$A$2:$P$193, H$6, FALSE), "-") -> 3.666666667 | I54: =_xlfn.IFNA(VLOOKUP($B54 & $A$7, Tab7Data!$A$2:$P$193, I$6, FALSE), "-") -> - | J54: =_xlfn.IFNA(VLOOKUP($B54 & $A$7, Tab7Data!$A$2:$P$193, J$6, FALSE), "-") -> - | K54: =_xlfn.IFNA(VLOOKUP($B54 & $A$7, Tab7Data!$A$2:$P$193, K$6, FALSE), "-") -> - | L54: =_xlfn.IFNA(VLOOKUP($B54 & $A$7, Tab7Data!$A$2:$P$193, L$6, FALSE), "-") -> - | M54: =_xlfn.IFNA(VLOOKUP($B54 & $A$7, Tab7Data!$A$2:$P$193, M$6, FALSE), "-") -> 3.666666667
B55: South Ayrshire | C55: =_xlfn.IFNA(VLOOKUP($B55 & $A$7, Tab7Data!$A$2:$P$193, C$6, FALSE), "-") -> 18.83333333 | D55: =_xlfn.IFNA(VLOOKUP($B55 & $A$7, Tab7Data!$A$2:$P$193, D$6, FALSE), "-") -> 18.36363636 | E55: =_xlfn.IFNA(VLOOKUP($B55 & $A$7, Tab7Data!$A$2:$P$193, E$6, FALSE), "-") -> 11 | F55: =_xlfn.IFNA(VLOOKUP($B55 & $A$7, Tab7Data!$A$2:$P$193, F$6, FALSE), "-") -> 22.83333333 | G55: =_xlfn.IFNA(VLOOKUP($B55 & $A$7, Tab7Data!$A$2:$P$193, G$6, FALSE), "-") -> 4 | H55: =_xlfn.IFNA(VLOOKUP($B55 & $A$7, Tab7Data!$A$2:$P$193, H$6, FALSE), "-") -> 69.83333333 | I55: =_xlfn.IFNA(VLOOKUP($B55 & $A$7, Tab7Data!$A$2:$P$193, I$6, FALSE), "-") -> 1 | J55: =_xlfn.IFNA(VLOOKUP($B55 & $A$7, Tab7Data!$A$2:$P$193, J$6, FALSE), "-") -> 9.5 | K55: =_xlfn.IFNA(VLOOKUP($B55 & $A$7, Tab7Data!$A$2:$P$193, K$6, FALSE), "-") -> 1.4 | L55: =_xlfn.IFNA(VLOOKUP($B55 & $A$7, Tab7Data!$A$2:$P$193, L$6, FALSE), "-") -> 10.08333333 | M55: =_xlfn.IFNA(VLOOKUP($B55 & $A$7, Tab7Data!$A$2:$P$193, M$6, FALSE), "-") -> 80.41666667
B56: South Lanarkshire | C56: =_xlfn.IFNA(VLOOKUP($B56 & $A$7, Tab7Data!$A$2:$P$193, C$6, FALSE), "-") -> 36.58333333 | D56: =_xlfn.IFNA(VLOOKUP($B56 & $A$7, Tab7Data!$A$2:$P$193, D$6, FALSE), "-") -> - | E56: =_xlfn.IFNA(VLOOKUP($B56 & $A$7, Tab7Data!$A$2:$P$193, E$6, FALSE), "-") -> 11.75 | F56: =_xlfn.IFNA(VLOOKUP($B56 & $A$7, Tab7Data!$A$2:$P$193, F$6, FALSE), "-") -> 61.33333333 | G56: =_xlfn.IFNA(VLOOKUP($B56 & $A$7, Tab7Data!$A$2:$P$193, G$6, FALSE), "-") -> 1 | H56: =_xlfn.IFNA(VLOOKUP($B56 & $A$7, Tab7Data!$A$2:$P$193, H$6, FALSE), "-") -> 109.75 | I56: =_xlfn.IFNA(VLOOKUP($B56 & $A$7, Tab7Data!$A$2:$P$193, I$6, FALSE), "-") -> 3.222222222 | J56: =_xlfn.IFNA(VLOOKUP($B56 & $A$7, Tab7Data!$A$2:$P$193, J$6, FALSE), "-") -> 15 | K56: =_xlfn.IFNA(VLOOKUP($B56 & $A$7, Tab7Data!$A$2:$P$193, K$6, FALSE), "-") -> 2.916666667 | L56: =_xlfn.IFNA(VLOOKUP($B56 & $A$7, Tab7Data!$A$2:$P$193, L$6, FALSE), "-") -> 17.91666667 | M56: =_xlfn.IFNA(VLOOKUP($B56 & $A$7, Tab7Data!$A$2:$P$193, M$6, FALSE), "-") -> 130.0833333
B57: Stirling | C57: =_xlfn.IFNA(VLOOKUP($B57 & $A$7, Tab7Data!$A$2:$P$193, C$6, FALSE), "-") -> 2.142857143 | D57: =_xlfn.IFNA(VLOOKUP($B57 & $A$7, Tab7Data!$A$2:$P$193, D$6, FALSE), "-") -> - | E57: =_xlfn.IFNA(VLOOKUP($B57 & $A$7, Tab7Data!$A$2:$P$193, E$6, FALSE), "-") -> 4.333333333 | F57: =_xlfn.IFNA(VLOOKUP($B57 & $A$7, Tab7Data!$A$2:$P$193, F$6, FALSE), "-") -> 13.66666667 | G57: =_xlfn.IFNA(VLOOKUP($B57 & $A$7, Tab7Data!$A$2:$P$193, G$6, FALSE), "-") -> - | H57: =_xlfn.IFNA(VLOOKUP($B57 & $A$7, Tab7Data!$A$2:$P$193, H$6, FALSE), "-") -> 19.25 | I57: =_xlfn.IFNA(VLOOKUP($B57 & $A$7, Tab7Data!$A$2:$P$193, I$6, FALSE), "-") -> - | J57: =_xlfn.IFNA(VLOOKUP($B57 & $A$7, Tab7Data!$A$2:$P$193, J$6, FALSE), "-") -> 3.083333333 | K57: =_xlfn.IFNA(VLOOKUP($B57 & $A$7, Tab7Data!$A$2:$P$193, K$6, FALSE), "-") -> 1.666666667 | L57: =_xlfn.IFNA(VLOOKUP($B57 & $A$7, Tab7Data!$A$2:$P$193, L$6, FALSE), "-") -> 4.75 | M57: =_xlfn.IFNA(VLOOKUP($B57 & $A$7, Tab7Data!$A$2:$P$193, M$6, FALSE), "-") -> 24
B58: West Dunbartonshire | C58: =_xlfn.IFNA(VLOOKUP($B58 & $A$7, Tab7Data!$A$2:$P$193, C$6, FALSE), "-") -> 5.416666667 | D58: =_xlfn.IFNA(VLOOKUP($B58 & $A$7, Tab7Data!$A$2:$P$193, D$6, FALSE), "-") -> - | E58: =_xlfn.IFNA(VLOOKUP($B58 & $A$7, Tab7Data!$A$2:$P$193, E$6, FALSE), "-") -> 7.5 | F58: =_xlfn.IFNA(VLOOKUP($B58 & $A$7, Tab7Data!$A$2:$P$193, F$6, FALSE), "-") -> 1.375 | G58: =_xlfn.IFNA(VLOOKUP($B58 & $A$7, Tab7Data!$A$2:$P$193, G$6, FALSE), "-") -> 1 | H58: =_xlfn.IFNA(VLOOKUP($B58 & $A$7, Tab7Data!$A$2:$P$193, H$6, FALSE), "-") -> 13.91666667 | I58: =_xlfn.IFNA(VLOOKUP($B58 & $A$7, Tab7Data!$A$2:$P$193, I$6, FALSE), "-") -> 1.5 | J58: =_xlfn.IFNA(VLOOKUP($B58 & $A$7, Tab7Data!$A$2:$P$193, J$6, FALSE), "-") -> 3.142857143 | K58: =_xlfn.IFNA(VLOOKUP($B58 & $A$7, Tab7Data!$A$2:$P$193, K$6, FALSE), "-") -> 1.1 | L58: =_xlfn.IFNA(VLOOKUP($B58 & $A$7, Tab7Data!$A$2:$P$193, L$6, FALSE), "-") -> 2.75 | M58: =_xlfn.IFNA(VLOOKUP($B58 & $A$7, Tab7Data!$A$2:$P$193, M$6, FALSE), "-") -> 16.91666667
B59: West Lothian | C59: =_xlfn.IFNA(VLOOKUP($B59 & $A$7, Tab7Data!$A$2:$P$193, C$6, FALSE), "-") -> 3.727272727 | D59: =_xlfn.IFNA(VLOOKUP($B59 & $A$7, Tab7Data!$A$2:$P$193, D$6, FALSE), "-") -> - | E59: =_xlfn.IFNA(VLOOKUP($B59 & $A$7, Tab7Data!$A$2:$P$193, E$6, FALSE), "-") -> 16.08333333 | F59: =_xlfn.IFNA(VLOOKUP($B59 & $A$7, Tab7Data!$A$2:$P$193, F$6, FALSE), "-") -> 19.08333333 | G59: =_xlfn.IFNA(VLOOKUP($B59 & $A$7, Tab7Data!$A$2:$P$193, G$6, FALSE), "-") -> - | H59: =_xlfn.IFNA(VLOOKUP($B59 & $A$7, Tab7Data!$A$2:$P$193, H$6, FALSE), "-") -> 38.58333333 | I59: =_xlfn.IFNA(VLOOKUP($B59 & $A$7, Tab7Data!$A$2:$P$193, I$6, FALSE), "-") -> 1.666666667 | J59: =_xlfn.IFNA(VLOOKUP($B59 & $A$7, Tab7Data!$A$2:$P$193, J$6, FALSE), "-") -> 4.25 | K59: =_xlfn.IFNA(VLOOKUP($B59 & $A$7, Tab7Data!$A$2:$P$193, K$6, FALSE), "-") -> 1 | L59: =_xlfn.IFNA(VLOOKUP($B59 & $A$7, Tab7Data!$A$2:$P$193, L$6, FALSE), "-") -> 4.583333333 | M59: =_xlfn.IFNA(VLOOKUP($B59 & $A$7, Tab7Data!$A$2:$P$193, M$6, FALSE), "-") -> 43.58333333
B61: Source: Public Health Scotland Delayed Discharge Data
B63: Notes:
B64: 1. Revised data definitions and national data requirements were introduced on 1 July 2016 from when: The following patients are no longer recorded as delayed discharges: - Delays in non-hospital locations (e.g. care homes) - Delays for healthcare reasons And: The following patients are now included in the monthly census: - Discharges occuring within 3 working days of monthly census (these were previously excluded from census figures from July 2006).
B65: 2. Due to definitional changes described above, April - June figures for 2016/17 are not comparable and have not been included in the data shown.
B66: 3. Delay reason shown is the principal reason for delay recorded at each monthly census point (note that reason can change during course of delay).
B67: 4. Reasons for delay reflect the integration of health and social care in April 2016.
B68: 5. Average numbers of census delays are calculated by taking the average number of delays across all census points in the time period. The census date reflects the position as at the last Thursday of the month.
B69: Link to Glossary

Sheet Tab 8
B1: =Guide!B1 -> 
B2: ="Table 8. Reason for delay as reported at monthly census points: average number of delays across censuses: "&$A$7 -> Table 8. Reason for delay as reported at monthly census points: average number of delays across censuses: April 2019 - March 2020
B3: (based on monthly census figures) | S3: April 2016 - June 2016 average figures are based on May 2012 definitions
B4: =IF($A$5=1, "Figures for 2016/17 are based on July 2016-March 2017 data only", " ") -> 
A5: 4 | C5: Select year:
A6: =VLOOKUP(A5, lookups!A7:C10, 2, FALSE) -> 2019/20
A7: =VLOOKUP(A5, lookups!A7:C10, 3, FALSE) -> April 2019 - March 2020
N9: Principal reason for delay
N10: Health and social care reasons | S10: Patient and family related reasons
N11: Assessment | O11: Funding | P11: Awaiting place availability | Q11: Awaiting completion of care arrangements | R11: Transport | S11: Patient and family related reasons | T11: Total code 9 reasons
N12: =VLOOKUP("Scotland" & $A$6, Tab7Data!$A$2:$P$193, 5, FALSE) -> 249.5 | O12: =VLOOKUP("Scotland" & $A$6, Tab7Data!$A$2:$P$193, 6, FALSE) -> 33.58333333 | P12: =VLOOKUP("Scotland" & $A$6, Tab7Data!$A$2:$P$193, 7, FALSE) -> 342.9166667 | Q12: =VLOOKUP("Scotland" & $A$6, Tab7Data!$A$2:$P$193, 8, FALSE) -> 516.1666667 | R12: =VLOOKUP("Scotland" & $A$6, Tab7Data!$A$2:$P$193, 9, FALSE) -> 1.909090909 | S12: =VLOOKUP("Scotland" & $A$6, Tab7Data!$A$2:$P$193, 12, FALSE) -> 37.41666667 | T12: =VLOOKUP("Scotland" & $A$6, Tab7Data!$A$2:$P$193, 15, FALSE) -> 282.1666667
B27: Source: Public Health Scotland Delayed Discharge Data
B29: Notes:
B30: 1. Revised data definitions and national data requirements were introduced on 1 July 2016 from when: The following patients are no longer recorded as delayed discharges: - Delays in non-hospital locations (e.g. care homes) - Delays for healthcare reasons And: The following patients are now included in the monthly census: - Discharges occuring within 3 working days of monthly census (these were previously excluded from census figures from July 2006).
B31: 2. Due to definitional changes described above, April - June figures for 2016/17 are not comparable and have not been included in the data shown.
B32: 3. Delay reason shown is the principal reason for delay recorded at each monthly census point (note that reason can change during course of delay).
B33: 4. Reasons for delay reflect the integration of health and social care in April 2016.
B34: 5. Average numbers of census delays are calculated by taking the average number of delays across all census points in the time period. The census date reflects the position as at the last Thursday of the month.
B35: Link to Glossary

Sheet Tab 9
C1: =Guide!B1 -> 
C2: ="Table 9. Length of delay at census point: Scotland; "& A8 -> Table 9. Length of delay at census point: Scotland; April 2019 - March 2020
C3: (based on length of delay as at monthly census4)
C4: =IF($A$6=1, "Figures for 2016/17 are shown from July 2016 onwards due to definitional changes", " ") -> 
D5: Select year:
A6: 4
A7: =VLOOKUP(A6, lookups!A7:C10, 2, FALSE) -> 2019/20 | D7: Apr | E7: May | F7: Jun | G7: Jul | H7: Aug | I7: Sep | J7: Oct | K7: Nov | L7: Dec | M7: Jan | N7: Feb | O7: Mar
A8: =VLOOKUP(A6, lookups!A7:C10, 3, FALSE) -> April 2019 - March 2020 | D8: Census month
C9: Principal reason and length of delay3,4 | D9: =D$7 & " " & LEFT($A$7, 4) -> Apr 2019 | E9: May 2019 | F9: Jun 2019 | G9: Jul 2019 | H9: Aug 2019 | I9: Sep 2019 | J9: Oct 2019 | K9: Nov 2019 | L9: Dec 2019 | M9: =M$7 & " " & RIGHT($A$8, 4) -> Jan 2020 | N9: =N$7 & " " & RIGHT($A$8, 4) -> Feb 2020 | O9: =O$7 & " " & RIGHT($A$8, 4) -> Mar 2020
A10: 6 | B10: All | C10: All delay reasons | D10: =_xlfn.IFNA(VLOOKUP(D$9 & "ScotlandAll" & $B10, Tab9Data!$A$2:$AB$57710, $A10, FALSE), "-") -> 1365 | E10: =_xlfn.IFNA(VLOOKUP(E$9 & "ScotlandAll" & $B10, Tab9Data!$A$2:$AB$57710, $A10, FALSE), "-") -> 1451 | F10: =_xlfn.IFNA(VLOOKUP(F$9 & "ScotlandAll" & $B10, Tab9Data!$A$2:$AB$57710, $A10, FALSE), "-") -> 1442 | G10: =_xlfn.IFNA(VLOOKUP(G$9 & "ScotlandAll" & $B10, Tab9Data!$A$2:$AB$57710, $A10, FALSE), "-") -> 1511 | H10: =_xlfn.IFNA(VLOOKUP(H$9 & "ScotlandAll" & $B10, Tab9Data!$A$2:$AB$57710, $A10, FALSE), "-") -> 1469 | I10: =_xlfn.IFNA(VLOOKUP(I$9 & "ScotlandAll" & $B10, Tab9Data!$A$2:$AB$57710, $A10, FALSE), "-") -> 1497 | J10: =_xlfn.IFNA(VLOOKUP(J$9 & "ScotlandAll" & $B10, Tab9Data!$A$2:$AB$57710, $A10, FALSE), "-") -> 1525 | K10: =_xlfn.IFNA(VLOOKUP(K$9 & "ScotlandAll" & $B10, Tab9Data!$A$2:$AB$57710, $A10, FALSE), "-") -> 1485 | L10: =_xlfn.IFNA(VLOOKUP(L$9 & "ScotlandAll" & $B10, Tab9Data!$A$2:$AB$57710, $A10, FALSE), "-") -> 1379 | M10: =_xlfn.IFNA(VLOOKUP(M$9 & "ScotlandAll" & $B10, Tab9Data!$A$2:$AB$57710, $A10, FALSE), "-") -> 1640 | N10: =_xlfn.IFNA(VLOOKUP(N$9 & "ScotlandAll" & $B10, Tab9Data!$A$2:$AB$57710, $A10, FALSE), "-") -> 1627 | O10: =_xlfn.IFNA(VLOOKUP(O$9 & "ScotlandAll" & $B10, Tab9Data!$A$2:$AB$57710, $A10, FALSE), "-") -> 1171
A11: 7 | B11: All | C11: More than 3 days | D11: =_xlfn.IFNA(VLOOKUP(D$9 & "ScotlandAll" & $B11, Tab9Data!$A$2:$AB$57710, $A11, FALSE), "-") -> 1145 | E11: =_xlfn.IFNA(VLOOKUP(E$9 & "ScotlandAll" & $B11, Tab9Data!$A$2:$AB$57710, $A11, FALSE), "-") -> 1181 | F11: =_xlfn.IFNA(VLOOKUP(F$9 & "ScotlandAll" & $B11, Tab9Data!$A$2:$AB$57710, $A11, FALSE), "-") -> 1187 | G11: =_xlfn.IFNA(VLOOKUP(G$9 & "ScotlandAll" & $B11, Tab9Data!$A$2:$AB$57710, $A11, FALSE), "-") -> 1249 | H11: =_xlfn.IFNA(VLOOKUP(H$9 & "ScotlandAll" & $B11, Tab9Data!$A$2:$AB$57710, $A11, FALSE), "-") -> 1193 | I11: =_xlfn.IFNA(VLOOKUP(I$9 & "ScotlandAll" & $B11, Tab9Data!$A$2:$AB$57710, $A11, FALSE), "-") -> 1249 | J11: =_xlfn.IFNA(VLOOKUP(J$9 & "ScotlandAll" & $B11, Tab9Data!$A$2:$AB$57710, $A11, FALSE), "-") -> 1238 | K11: =_xlfn.IFNA(VLOOKUP(K$9 & "ScotlandAll" & $B11, Tab9Data!$A$2:$AB$57710, $A11, FALSE), "-") -> 1176 | L11: =_xlfn.IFNA(VLOOKUP(L$9 & "ScotlandAll" & $B11, Tab9Data!$A$2:$AB$57710, $A11, FALSE), "-") -> 1199 | M11: =_xlfn.IFNA(VLOOKUP(M$9 & "ScotlandAll" & $B11, Tab9Data!$A$2:$AB$57710, $A11, FALSE), "-") -> 1308 | N11: =_xlfn.IFNA(VLOOKUP(N$9 & "ScotlandAll" & $B11, Tab9Data!$A$2:$AB$57710, $A11, FALSE), "-") -> 1290 | O11: =_xlfn.IFNA(VLOOKUP(O$9 & "ScotlandAll" & $B11, Tab9Data!$A$2:$AB$57710, $A11, FALSE), "-") -> 923
A12: 8 | B12: All | C12: More than 2 weeks | D12: =_xlfn.IFNA(VLOOKUP(D$9 & "ScotlandAll" & $B12, Tab9Data!$A$2:$AB$57710, $A12, FALSE), "-") -> 786 | E12: =_xlfn.IFNA(VLOOKUP(E$9 & "ScotlandAll" & $B12, Tab9Data!$A$2:$AB$57710, $A12, FALSE), "-") -> 866 | F12: =_xlfn.IFNA(VLOOKUP(F$9 & "ScotlandAll" & $B12, Tab9Data!$A$2:$AB$57710, $A12, FALSE), "-") -> 871 | G12: =_xlfn.IFNA(VLOOKUP(G$9 & "ScotlandAll" & $B12, Tab9Data!$A$2:$AB$57710, $A12, FALSE), "-") -> 890 | H12: =_xlfn.IFNA(VLOOKUP(H$9 & "ScotlandAll" & $B12, Tab9Data!$A$2:$AB$57710, $A12, FALSE), "-") -> 874 | I12: =_xlfn.IFNA(VLOOKUP(I$9 & "ScotlandAll" & $B12, Tab9Data!$A$2:$AB$57710, $A12, FALSE), "-") -> 916 | J12: =_xlfn.IFNA(VLOOKUP(J$9 & "ScotlandAll" & $B12, Tab9Data!$A$2:$AB$57710, $A12, FALSE), "-") -> 866 | K12: =_xlfn.IFNA(VLOOKUP(K$9 & "ScotlandAll" & $B12, Tab9Data!$A$2:$AB$57710, $A12, FALSE), "-") -> 845 | L12: =_xlfn.IFNA(VLOOKUP(L$9 & "ScotlandAll" & $B12, Tab9Data!$A$2:$AB$57710, $A12, FALSE), "-") -> 810 | M12: =_xlfn.IFNA(VLOOKUP(M$9 & "ScotlandAll" & $B12, Tab9Data!$A$2:$AB$57710, $A12, FALSE), "-") -> 834 | N12: =_xlfn.IFNA(VLOOKUP(N$9 & "ScotlandAll" & $B12, Tab9Data!$A$2:$AB$57710, $A12, FALSE), "-") -> 878 | O12: =_xlfn.IFNA(VLOOKUP(O$9 & "ScotlandAll" & $B12, Tab9Data!$A$2:$AB$57710, $A12, FALSE), "-") -> 663
A13: 9 | B13: All | C13: More than 4 weeks | D13: =_xlfn.IFNA(VLOOKUP(D$9 & "ScotlandAll" & $B13, Tab9Data!$A$2:$AB$57710, $A13, FALSE), "-") -> 519 | E13: =_xlfn.IFNA(VLOOKUP(E$9 & "ScotlandAll" & $B13, Tab9Data!$A$2:$AB$57710, $A13, FALSE), "-") -> 603 | F13: =_xlfn.IFNA(VLOOKUP(F$9 & "ScotlandAll" & $B13, Tab9Data!$A$2:$AB$57710, $A13, FALSE), "-") -> 584 | G13: =_xlfn.IFNA(VLOOKUP(G$9 & "ScotlandAll" & $B13, Tab9Data!$A$2:$AB$57710, $A13, FALSE), "-") -> 577 | H13: =_xlfn.IFNA(VLOOKUP(H$9 & "ScotlandAll" & $B13, Tab9Data!$A$2:$AB$57710, $A13, FALSE), "-") -> 608 | I13: =_xlfn.IFNA(VLOOKUP(I$9 & "ScotlandAll" & $B13, Tab9Data!$A$2:$AB$57710, $A13, FALSE), "-") -> 604 | J13: =_xlfn.IFNA(VLOOKUP(J$9 & "ScotlandAll" & $B13, Tab9Data!$A$2:$AB$57710, $A13, FALSE), "-") -> 593 | K13: =_xlfn.IFNA(VLOOKUP(K$9 & "ScotlandAll" & $B13, Tab9Data!$A$2:$AB$57710, $A13, FALSE), "-") -> 569 | L13: =_xlfn.IFNA(VLOOKUP(L$9 & "ScotlandAll" & $B13, Tab9Data!$A$2:$AB$57710, $A13, FALSE), "-") -> 552 | M13: =_xlfn.IFNA(VLOOKUP(M$9 & "ScotlandAll" & $B13, Tab9Data!$A$2:$AB$57710, $A13, FALSE), "-") -> 516 | N13: =_xlfn.IFNA(VLOOKUP(N$9 & "ScotlandAll" & $B13, Tab9Data!$A$2:$AB$57710, $A13, FALSE), "-") -> 580 | O13: =_xlfn.IFNA(VLOOKUP(O$9 & "ScotlandAll" & $B13, Tab9Data!$A$2:$AB$57710, $A13, FALSE), "-") -> 463
A14: 10 | B14: All | C14: More than 6 weeks | D14: =_xlfn.IFNA(VLOOKUP(D$9 & "ScotlandAll" & $B14, Tab9Data!$A$2:$AB$57710, $A14, FALSE), "-") -> 384 | E14: =_xlfn.IFNA(VLOOKUP(E$9 & "ScotlandAll" & $B14, Tab9Data!$A$2:$AB$57710, $A14, FALSE), "-") -> 443 | F14: =_xlfn.IFNA(VLOOKUP(F$9 & "ScotlandAll" & $B14, Tab9Data!$A$2:$AB$57710, $A14, FALSE), "-") -> 437 | G14: =_xlfn.IFNA(VLOOKUP(G$9 & "ScotlandAll" & $B14, Tab9Data!$A$2:$AB$57710, $A14, FALSE), "-") -> 448 | H14: =_xlfn.IFNA(VLOOKUP(H$9 & "ScotlandAll" & $B14, Tab9Data!$A$2:$AB$57710, $A14, FALSE), "-") -> 477 | I14: =_xlfn.IFNA(VLOOKUP(I$9 & "ScotlandAll" & $B14, Tab9Data!$A$2:$AB$57710, $A14, FALSE), "-") -> 460 | J14: =_xlfn.IFNA(VLOOKUP(J$9 & "ScotlandAll" & $B14, Tab9Data!$A$2:$AB$57710, $A14, FALSE), "-") -> 457 | K14: =_xlfn.IFNA(VLOOKUP(K$9 & "ScotlandAll" & $B14, Tab9Data!$A$2:$AB$57710, $A14, FALSE), "-") -> 437 | L14: =_xlfn.IFNA(VLOOKUP(L$9 & "ScotlandAll" & $B14, Tab9Data!$A$2:$AB$57710, $A14, FALSE), "-") -> 400 | M14: =_xlfn.IFNA(VLOOKUP(M$9 & "ScotlandAll" & $B14, Tab9Data!$A$2:$AB$57710, $A14, FALSE), "-") -> 428 | N14: =_xlfn.IFNA(VLOOKUP(N$9 & "ScotlandAll" & $B14, Tab9Data!$A$2:$AB$57710, $A14, FALSE), "-") -> 407 | O14: =_xlfn.IFNA(VLOOKUP(O$9 & "ScotlandAll" & $B14, Tab9Data!$A$2:$AB$57710, $A14, FALSE), "-") -> 354
A15: 6 | B15: Health and Social Care Reasons | C15: Health and social care reasons | D15: =_xlfn.IFNA(VLOOKUP(D$9 & "ScotlandAll" & $B15, Tab9Data!$A$2:$AB$57710, $A15, FALSE), "-") -> 1062 | E15: =_xlfn.IFNA(VLOOKUP(E$9 & "ScotlandAll" & $B15, Tab9Data!$A$2:$AB$57710, $A15, FALSE), "-") -> 1136 | F15: =_xlfn.IFNA(VLOOKUP(F$9 & "ScotlandAll" & $B15, Tab9Data!$A$2:$AB$57710, $A15, FALSE), "-") -> 1141 | G15: =_xlfn.IFNA(VLOOKUP(G$9 & "ScotlandAll" & $B15, Tab9Data!$A$2:$AB$57710, $A15, FALSE), "-") -> 1182 | H15: =_xlfn.IFNA(VLOOKUP(H$9 & "ScotlandAll" & $B15, Tab9Data!$A$2:$AB$57710, $A15, FALSE), "-") -> 1162 | I15: =_xlfn.IFNA(VLOOKUP(I$9 & "ScotlandAll" & $B15, Tab9Data!$A$2:$AB$57710, $A15, FALSE), "-") -> 1163 | J15: =_xlfn.IFNA(VLOOKUP(J$9 & "ScotlandAll" & $B15, Tab9Data!$A$2:$AB$57710, $A15, FALSE), "-") -> 1217 | K15: =_xlfn.IFNA(VLOOKUP(K$9 & "ScotlandAll" & $B15, Tab9Data!$A$2:$AB$57710, $A15, FALSE), "-") -> 1180 | L15: =_xlfn.IFNA(VLOOKUP(L$9 & "ScotlandAll" & $B15, Tab9Data!$A$2:$AB$57710, $A15, FALSE), "-") -> 1069 | M15: =_xlfn.IFNA(VLOOKUP(M$9 & "ScotlandAll" & $B15, Tab9Data!$A$2:$AB$57710, $A15, FALSE), "-") -> 1314 | N15: =_xlfn.IFNA(VLOOKUP(N$9 & "ScotlandAll" & $B15, Tab9Data!$A$2:$AB$57710, $A15, FALSE), "-") -> 1275 | O15: =_xlfn.IFNA(VLOOKUP(O$9 & "ScotlandAll" & $B15, Tab9Data!$A$2:$AB$57710, $A15, FALSE), "-") -> 826
A16: 7 | B16: Health and Social Care Reasons | C16: More than 3 days | D16: =_xlfn.IFNA(VLOOKUP(D$9 & "ScotlandAll" & $B16, Tab9Data!$A$2:$AB$57710, $A16, FALSE), "-") -> 852 | E16: =_xlfn.IFNA(VLOOKUP(E$9 & "ScotlandAll" & $B16, Tab9Data!$A$2:$AB$57710, $A16, FALSE), "-") -> 884 | F16: =_xlfn.IFNA(VLOOKUP(F$9 & "ScotlandAll" & $B16, Tab9Data!$A$2:$AB$57710, $A16, FALSE), "-") -> 893 | G16: =_xlfn.IFNA(VLOOKUP(G$9 & "ScotlandAll" & $B16, Tab9Data!$A$2:$AB$57710, $A16, FALSE), "-") -> 945 | H16: =_xlfn.IFNA(VLOOKUP(H$9 & "ScotlandAll" & $B16, Tab9Data!$A$2:$AB$57710, $A16, FALSE), "-") -> 903 | I16: =_xlfn.IFNA(VLOOKUP(I$9 & "ScotlandAll" & $B16, Tab9Data!$A$2:$AB$57710, $A16, FALSE), "-") -> 927 | J16: =_xlfn.IFNA(VLOOKUP(J$9 & "ScotlandAll" & $B16, Tab9Data!$A$2:$AB$57710, $A16, FALSE), "-") -> 940 | K16: =_xlfn.IFNA(VLOOKUP(K$9 & "ScotlandAll" & $B16, Tab9Data!$A$2:$AB$57710, $A16, FALSE), "-") -> 892 | L16: =_xlfn.IFNA(VLOOKUP(L$9 & "ScotlandAll" & $B16, Tab9Data!$A$2:$AB$57710, $A16, FALSE), "-") -> 897 | M16: =_xlfn.IFNA(VLOOKUP(M$9 & "ScotlandAll" & $B16, Tab9Data!$A$2:$AB$57710, $A16, FALSE), "-") -> 995 | N16: =_xlfn.IFNA(VLOOKUP(N$9 & "ScotlandAll" & $B16, Tab9Data!$A$2:$AB$57710, $A16, FALSE), "-") -> 956 | O16: =_xlfn.IFNA(VLOOKUP(O$9 & "ScotlandAll" & $B16, Tab9Data!$A$2:$AB$57710, $A16, FALSE), "-") -> 585
A17: 8 | B17: Health and Social Care Reasons | C17: More than 2 weeks | D17: =_xlfn.IFNA(VLOOKUP(D$9 & "ScotlandAll" & $B17, Tab9Data!$A$2:$AB$57710, $A17, FALSE), "-") -> 531 | E17: =_xlfn.IFNA(VLOOKUP(E$9 & "ScotlandAll" & $B17, Tab9Data!$A$2:$AB$57710, $A17, FALSE), "-") -> 600 | F17: =_xlfn.IFNA(VLOOKUP(F$9 & "ScotlandAll" & $B17, Tab9Data!$A$2:$AB$57710, $A17, FALSE), "-") -> 605 | G17: =_xlfn.IFNA(VLOOKUP(G$9 & "ScotlandAll" & $B17, Tab9Data!$A$2:$AB$57710, $A17, FALSE), "-") -> 623 | H17: =_xlfn.IFNA(VLOOKUP(H$9 & "ScotlandAll" & $B17, Tab9Data!$A$2:$AB$57710, $A17, FALSE), "-") -> 606 | I17: =_xlfn.IFNA(VLOOKUP(I$9 & "ScotlandAll" & $B17, Tab9Data!$A$2:$AB$57710, $A17, FALSE), "-") -> 620 | J17: =_xlfn.IFNA(VLOOKUP(J$9 & "ScotlandAll" & $B17, Tab9Data!$A$2:$AB$57710, $A17, FALSE), "-") -> 596 | K17: =_xlfn.IFNA(VLOOKUP(K$9 & "ScotlandAll" & $B17, Tab9Data!$A$2:$AB$57710, $A17, FALSE), "-") -> 584 | L17: =_xlfn.IFNA(VLOOKUP(L$9 & "ScotlandAll" & $B17, Tab9Data!$A$2:$AB$57710, $A17, FALSE), "-") -> 549 | M17: =_xlfn.IFNA(VLOOKUP(M$9 & "ScotlandAll" & $B17, Tab9Data!$A$2:$AB$57710, $A17, FALSE), "-") -> 549 | N17: =_xlfn.IFNA(VLOOKUP(N$9 & "ScotlandAll" & $B17, Tab9Data!$A$2:$AB$57710, $A17, FALSE), "-") -> 575 | O17: =_xlfn.IFNA(VLOOKUP(O$9 & "ScotlandAll" & $B17, Tab9Data!$A$2:$AB$57710, $A17, FALSE), "-") -> 372
A18: 9 | B18: Health and Social Care Reasons | C18: More than 4 weeks | D18: =_xlfn.IFNA(VLOOKUP(D$9 & "ScotlandAll" & $B18, Tab9Data!$A$2:$AB$57710, $A18, FALSE), "-") -> 302 | E18: =_xlfn.IFNA(VLOOKUP(E$9 & "ScotlandAll" & $B18, Tab9Data!$A$2:$AB$57710, $A18, FALSE), "-") -> 373 | F18: =_xlfn.IFNA(VLOOKUP(F$9 & "ScotlandAll" & $B18, Tab9Data!$A$2:$AB$57710, $A18, FALSE), "-") -> 359 | G18: =_xlfn.IFNA(VLOOKUP(G$9 & "ScotlandAll" & $B18, Tab9Data!$A$2:$AB$57710, $A18, FALSE), "-") -> 356 | H18: =_xlfn.IFNA(VLOOKUP(H$9 & "ScotlandAll" & $B18, Tab9Data!$A$2:$AB$57710, $A18, FALSE), "-") -> 375 | I18: =_xlfn.IFNA(VLOOKUP(I$9 & "ScotlandAll" & $B18, Tab9Data!$A$2:$AB$57710, $A18, FALSE), "-") -> 358 | J18: =_xlfn.IFNA(VLOOKUP(J$9 & "ScotlandAll" & $B18, Tab9Data!$A$2:$AB$57710, $A18, FALSE), "-") -> 353 | K18: =_xlfn.IFNA(VLOOKUP(K$9 & "ScotlandAll" & $B18, Tab9Data!$A$2:$AB$57710, $A18, FALSE), "-") -> 348 | L18: =_xlfn.IFNA(VLOOKUP(L$9 & "ScotlandAll" & $B18, Tab9Data!$A$2:$AB$57710, $A18, FALSE), "-") -> 329 | M18: =_xlfn.IFNA(VLOOKUP(M$9 & "ScotlandAll" & $B18, Tab9Data!$A$2:$AB$57710, $A18, FALSE), "-") -> 286 | N18: =_xlfn.IFNA(VLOOKUP(N$9 & "ScotlandAll" & $B18, Tab9Data!$A$2:$AB$57710, $A18, FALSE), "-") -> 325 | O18: =_xlfn.IFNA(VLOOKUP(O$9 & "ScotlandAll" & $B18, Tab9Data!$A$2:$AB$57710, $A18, FALSE), "-") -> 230
A19: 10 | B19: Health and Social Care Reasons | C19: More than 6 weeks | D19: =_xlfn.IFNA(VLOOKUP(D$9 & "ScotlandAll" & $B19, Tab9Data!$A$2:$AB$57710, $A19, FALSE), "-") -> 199 | E19: =_xlfn.IFNA(VLOOKUP(E$9 & "ScotlandAll" & $B19, Tab9Data!$A$2:$AB$57710, $A19, FALSE), "-") -> 240 | F19: =_xlfn.IFNA(VLOOKUP(F$9 & "ScotlandAll" & $B19, Tab9Data!$A$2:$AB$57710, $A19, FALSE), "-") -> 239 | G19: =_xlfn.IFNA(VLOOKUP(G$9 & "ScotlandAll" & $B19, Tab9Data!$A$2:$AB$57710, $A19, FALSE), "-") -> 252 | H19: =_xlfn.IFNA(VLOOKUP(H$9 & "ScotlandAll" & $B19, Tab9Data!$A$2:$AB$57710, $A19, FALSE), "-") -> 275 | I19: =_xlfn.IFNA(VLOOKUP(I$9 & "ScotlandAll" & $B19, Tab9Data!$A$2:$AB$57710, $A19, FALSE), "-") -> 252 | J19: =_xlfn.IFNA(VLOOKUP(J$9 & "ScotlandAll" & $B19, Tab9Data!$A$2:$AB$57710, $A19, FALSE), "-") -> 242 | K19: =_xlfn.IFNA(VLOOKUP(K$9 & "ScotlandAll" & $B19, Tab9Data!$A$2:$AB$57710, $A19, FALSE), "-") -> 239 | L19: =_xlfn.IFNA(VLOOKUP(L$9 & "ScotlandAll" & $B19, Tab9Data!$A$2:$AB$57710, $A19, FALSE), "-") -> 210 | M19: =_xlfn.IFNA(VLOOKUP(M$9 & "ScotlandAll" & $B19, Tab9Data!$A$2:$AB$57710, $A19, FALSE), "-") -> 220 | N19: =_xlfn.IFNA(VLOOKUP(N$9 & "ScotlandAll" & $B19, Tab9Data!$A$2:$AB$57710, $A19, FALSE), "-") -> 191 | O19: =_xlfn.IFNA(VLOOKUP(O$9 & "ScotlandAll" & $B19, Tab9Data!$A$2:$AB$57710, $A19, FALSE), "-") -> 155
A20: 6 | B20: Patient/Carer/Family-related reasons | C20: Patient, carer and family related reasons | D20: =_xlfn.IFNA(VLOOKUP(D$9 & "ScotlandAll" & $B20, Tab9Data!$A$2:$AB$57710, $A20, FALSE), "-") -> 49 | E20: =_xlfn.IFNA(VLOOKUP(E$9 & "ScotlandAll" & $B20, Tab9Data!$A$2:$AB$57710, $A20, FALSE), "-") -> 43 | F20: =_xlfn.IFNA(VLOOKUP(F$9 & "ScotlandAll" & $B20, Tab9Data!$A$2:$AB$57710, $A20, FALSE), "-") -> 26 | G20: =_xlfn.IFNA(VLOOKUP(G$9 & "ScotlandAll" & $B20, Tab9Data!$A$2:$AB$57710, $A20, FALSE), "-") -> 36 | H20: =_xlfn.IFNA(VLOOKUP(H$9 & "ScotlandAll" & $B20, Tab9Data!$A$2:$AB$57710, $A20, FALSE), "-") -> 30 | I20: =_xlfn.IFNA(VLOOKUP(I$9 & "ScotlandAll" & $B20, Tab9Data!$A$2:$AB$57710, $A20, FALSE), "-") -> 40 | J20: =_xlfn.IFNA(VLOOKUP(J$9 & "ScotlandAll" & $B20, Tab9Data!$A$2:$AB$57710, $A20, FALSE), "-") -> 31 | K20: =_xlfn.IFNA(VLOOKUP(K$9 & "ScotlandAll" & $B20, Tab9Data!$A$2:$AB$57710, $A20, FALSE), "-") -> 37 | L20: =_xlfn.IFNA(VLOOKUP(L$9 & "ScotlandAll" & $B20, Tab9Data!$A$2:$AB$57710, $A20, FALSE), "-") -> 44 | M20: =_xlfn.IFNA(VLOOKUP(M$9 & "ScotlandAll" & $B20, Tab9Data!$A$2:$AB$57710, $A20, FALSE), "-") -> 38 | N20: =_xlfn.IFNA(VLOOKUP(N$9 & "ScotlandAll" & $B20, Tab9Data!$A$2:$AB$57710, $A20, FALSE), "-") -> 38 | O20: =_xlfn.IFNA(VLOOKUP(O$9 & "ScotlandAll" & $B20, Tab9Data!$A$2:$AB$57710, $A20, FALSE), "-") -> 37
A21: 7 | B21: Patient/Carer/Family-related reasons | C21: More than 3 days | D21: =_xlfn.IFNA(VLOOKUP(D$9 & "ScotlandAll" & $B21, Tab9Data!$A$2:$AB$57710, $A21, FALSE), "-") -> 42 | E21: =_xlfn.IFNA(VLOOKUP(E$9 & "ScotlandAll" & $B21, Tab9Data!$A$2:$AB$57710, $A21, FALSE), "-") -> 33 | F21: =_xlfn.IFNA(VLOOKUP(F$9 & "ScotlandAll" & $B21, Tab9Data!$A$2:$AB$57710, $A21, FALSE), "-") -> 25 | G21: =_xlfn.IFNA(VLOOKUP(G$9 & "ScotlandAll" & $B21, Tab9Data!$A$2:$AB$57710, $A21, FALSE), "-") -> 30 | H21: =_xlfn.IFNA(VLOOKUP(H$9 & "ScotlandAll" & $B21, Tab9Data!$A$2:$AB$57710, $A21, FALSE), "-") -> 21 | I21: =_xlfn.IFNA(VLOOKUP(I$9 & "ScotlandAll" & $B21, Tab9Data!$A$2:$AB$57710, $A21, FALSE), "-") -> 36 | J21: =_xlfn.IFNA(VLOOKUP(J$9 & "ScotlandAll" & $B21, Tab9Data!$A$2:$AB$57710, $A21, FALSE), "-") -> 26 | K21: =_xlfn.IFNA(VLOOKUP(K$9 & "ScotlandAll" & $B21, Tab9Data!$A$2:$AB$57710, $A21, FALSE), "-") -> 28 | L21: =_xlfn.IFNA(VLOOKUP(L$9 & "ScotlandAll" & $B21, Tab9Data!$A$2:$AB$57710, $A21, FALSE), "-") -> 42 | M21: =_xlfn.IFNA(VLOOKUP(M$9 & "ScotlandAll" & $B21, Tab9Data!$A$2:$AB$57710, $A21, FALSE), "-") -> 32 | N21: =_xlfn.IFNA(VLOOKUP(N$9 & "ScotlandAll" & $B21, Tab9Data!$A$2:$AB$57710, $A21, FALSE), "-") -> 32 | O21: =_xlfn.IFNA(VLOOKUP(O$9 & "ScotlandAll" & $B21, Tab9Data!$A$2:$AB$57710, $A21, FALSE), "-") -> 34
A22: 8 | B22: Patient/Carer/Family-related reasons | C22: More than 2 weeks | D22: =_xlfn.IFNA(VLOOKUP(D$9 & "ScotlandAll" & $B22, Tab9Data!$A$2:$AB$57710, $A22, FALSE), "-") -> 27 | E22: =_xlfn.IFNA(VLOOKUP(E$9 & "ScotlandAll" & $B22, Tab9Data!$A$2:$AB$57710, $A22, FALSE), "-") -> 22 | F22: =_xlfn.IFNA(VLOOKUP(F$9 & "ScotlandAll" & $B22, Tab9Data!$A$2:$AB$57710, $A22, FALSE), "-") -> 18 | G22: =_xlfn.IFNA(VLOOKUP(G$9 & "ScotlandAll" & $B22, Tab9Data!$A$2:$AB$57710, $A22, FALSE), "-") -> 19 | H22: =_xlfn.IFNA(VLOOKUP(H$9 & "ScotlandAll" & $B22, Tab9Data!$A$2:$AB$57710, $A22, FALSE), "-") -> 15 | I22: =_xlfn.IFNA(VLOOKUP(I$9 & "ScotlandAll" & $B22, Tab9Data!$A$2:$AB$57710, $A22, FALSE), "-") -> 24 | J22: =_xlfn.IFNA(VLOOKUP(J$9 & "ScotlandAll" & $B22, Tab9Data!$A$2:$AB$57710, $A22, FALSE), "-") -> 17 | K22: =_xlfn.IFNA(VLOOKUP(K$9 & "ScotlandAll" & $B22, Tab9Data!$A$2:$AB$57710, $A22, FALSE), "-") -> 22 | L22: =_xlfn.IFNA(VLOOKUP(L$9 & "ScotlandAll" & $B22, Tab9Data!$A$2:$AB$57710, $A22, FALSE), "-") -> 27 | M22: =_xlfn.IFNA(VLOOKUP(M$9 & "ScotlandAll" & $B22, Tab9Data!$A$2:$AB$57710, $A22, FALSE), "-") -> 27 | N22: =_xlfn.IFNA(VLOOKUP(N$9 & "ScotlandAll" & $B22, Tab9Data!$A$2:$AB$57710, $A22, FALSE), "-") -> 24 | O22: =_xlfn.IFNA(VLOOKUP(O$9 & "ScotlandAll" & $B22, Tab9Data!$A$2:$AB$57710, $A22, FALSE), "-") -> 19
A23: 9 | B23: Patient/Carer/Family-related reasons | C23: More than 4 weeks | D23: =_xlfn.IFNA(VLOOKUP(D$9 & "ScotlandAll" & $B23, Tab9Data!$A$2:$AB$57710, $A23, FALSE), "-") -> 17 | E23: =_xlfn.IFNA(VLOOKUP(E$9 & "ScotlandAll" & $B23, Tab9Data!$A$2:$AB$57710, $A23, FALSE), "-") -> 17 | F23: =_xlfn.IFNA(VLOOKUP(F$9 & "ScotlandAll" & $B23, Tab9Data!$A$2:$AB$57710, $A23, FALSE), "-") -> 9 | G23: =_xlfn.IFNA(VLOOKUP(G$9 & "ScotlandAll" & $B23, Tab9Data!$A$2:$AB$57710, $A23, FALSE), "-") -> 12 | H23: =_xlfn.IFNA(VLOOKUP(H$9 & "ScotlandAll" & $B23, Tab9Data!$A$2:$AB$57710, $A23, FALSE), "-") -> 12 | I23: =_xlfn.IFNA(VLOOKUP(I$9 & "ScotlandAll" & $B23, Tab9Data!$A$2:$AB$57710, $A23, FALSE), "-") -> 12 | J23: =_xlfn.IFNA(VLOOKUP(J$9 & "ScotlandAll" & $B23, Tab9Data!$A$2:$AB$57710, $A23, FALSE), "-") -> 10 | K23: =_xlfn.IFNA(VLOOKUP(K$9 & "ScotlandAll" & $B23, Tab9Data!$A$2:$AB$57710, $A23, FALSE), "-") -> 16 | L23: =_xlfn.IFNA(VLOOKUP(L$9 & "ScotlandAll" & $B23, Tab9Data!$A$2:$AB$57710, $A23, FALSE), "-") -> 19 | M23: =_xlfn.IFNA(VLOOKUP(M$9 & "ScotlandAll" & $B23, Tab9Data!$A$2:$AB$57710, $A23, FALSE), "-") -> 18 | N23: =_xlfn.IFNA(VLOOKUP(N$9 & "ScotlandAll" & $B23, Tab9Data!$A$2:$AB$57710, $A23, FALSE), "-") -> 16 | O23: =_xlfn.IFNA(VLOOKUP(O$9 & "ScotlandAll" & $B23, Tab9Data!$A$2:$AB$57710, $A23, FALSE), "-") -> 11
A24: 10 | B24: Patient/Carer/Family-related reasons | C24: More than 6 weeks | D24: =_xlfn.IFNA(VLOOKUP(D$9 & "ScotlandAll" & $B24, Tab9Data!$A$2:$AB$57710, $A24, FALSE), "-") -> 14 | E24: =_xlfn.IFNA(VLOOKUP(E$9 & "ScotlandAll" & $B24, Tab9Data!$A$2:$AB$57710, $A24, FALSE), "-") -> 12 | F24: =_xlfn.IFNA(VLOOKUP(F$9 & "ScotlandAll" & $B24, Tab9Data!$A$2:$AB$57710, $A24, FALSE), "-") -> 8 | G24: =_xlfn.IFNA(VLOOKUP(G$9 & "ScotlandAll" & $B24, Tab9Data!$A$2:$AB$57710, $A24, FALSE), "-") -> 9 | H24: =_xlfn.IFNA(VLOOKUP(H$9 & "ScotlandAll" & $B24, Tab9Data!$A$2:$AB$57710, $A24, FALSE), "-") -> 7 | I24: =_xlfn.IFNA(VLOOKUP(I$9 & "ScotlandAll" & $B24, Tab9Data!$A$2:$AB$57710, $A24, FALSE), "-") -> 7 | J24: =_xlfn.IFNA(VLOOKUP(J$9 & "ScotlandAll" & $B24, Tab9Data!$A$2:$AB$57710, $A24, FALSE), "-") -> 9 | K24: =_xlfn.IFNA(VLOOKUP(K$9 & "ScotlandAll" & $B24, Tab9Data!$A$2:$AB$57710, $A24, FALSE), "-") -> 10 | L24: =_xlfn.IFNA(VLOOKUP(L$9 & "ScotlandAll" & $B24, Tab9Data!$A$2:$AB$57710, $A24, FALSE), "-") -> 12 | M24: =_xlfn.IFNA(VLOOKUP(M$9 & "ScotlandAll" & $B24, Tab9Data!$A$2:$AB$57710, $A24, FALSE), "-") -> 16 | N24: =_xlfn.IFNA(VLOOKUP(N$9 & "ScotlandAll" & $B24, Tab9Data!$A$2:$AB$57710, $A24, FALSE), "-") -> 11 | O24: =_xlfn.IFNA(VLOOKUP(O$9 & "ScotlandAll" & $B24, Tab9Data!$A$2:$AB$57710, $A24, FALSE), "-") -> 8
A25: 6 | B25: Code 9 | C25: Code 9 reasons | D25: =_xlfn.IFNA(VLOOKUP(D$9 & "ScotlandAll" & $B25, Tab9Data!$A$2:$AB$57710, $A25, FALSE), "-") -> 254 | E25: =_xlfn.IFNA(VLOOKUP(E$9 & "ScotlandAll" & $B25, Tab9Data!$A$2:$AB$57710, $A25, FALSE), "-") -> 272 | F25: =_xlfn.IFNA(VLOOKUP(F$9 & "ScotlandAll" & $B25, Tab9Data!$A$2:$AB$57710, $A25, FALSE), "-") -> 275 | G25: =_xlfn.IFNA(VLOOKUP(G$9 & "ScotlandAll" & $B25, Tab9Data!$A$2:$AB$57710, $A25, FALSE), "-") -> 293 | H25: =_xlfn.IFNA(VLOOKUP(H$9 & "ScotlandAll" & $B25, Tab9Data!$A$2:$AB$57710, $A25, FALSE), "-") -> 277 | I25: =_xlfn.IFNA(VLOOKUP(I$9 & "ScotlandAll" & $B25, Tab9Data!$A$2:$AB$57710, $A25, FALSE), "-") -> 294 | J25: =_xlfn.IFNA(VLOOKUP(J$9 & "ScotlandAll" & $B25, Tab9Data!$A$2:$AB$57710, $A25, FALSE), "-") -> 277 | K25: =_xlfn.IFNA(VLOOKUP(K$9 & "ScotlandAll" & $B25, Tab9Data!$A$2:$AB$57710, $A25, FALSE), "-") -> 268 | L25: =_xlfn.IFNA(VLOOKUP(L$9 & "ScotlandAll" & $B25, Tab9Data!$A$2:$AB$57710, $A25, FALSE), "-") -> 266 | M25: =_xlfn.IFNA(VLOOKUP(M$9 & "ScotlandAll" & $B25, Tab9Data!$A$2:$AB$57710, $A25, FALSE), "-") -> 288 | N25: =_xlfn.IFNA(VLOOKUP(N$9 & "ScotlandAll" & $B25, Tab9Data!$A$2:$AB$57710, $A25, FALSE), "-") -> 314 | O25: =_xlfn.IFNA(VLOOKUP(O$9 & "ScotlandAll" & $B25, Tab9Data!$A$2:$AB$57710, $A25, FALSE), "-") -> 308
A26: 7 | B26: Code 9 | C26: More than 3 days | D26: =_xlfn.IFNA(VLOOKUP(D$9 & "ScotlandAll" & $B26, Tab9Data!$A$2:$AB$57710, $A26, FALSE), "-") -> 251 | E26: =_xlfn.IFNA(VLOOKUP(E$9 & "ScotlandAll" & $B26, Tab9Data!$A$2:$AB$57710, $A26, FALSE), "-") -> 264 | F26: =_xlfn.IFNA(VLOOKUP(F$9 & "ScotlandAll" & $B26, Tab9Data!$A$2:$AB$57710, $A26, FALSE), "-") -> 269 | G26: =_xlfn.IFNA(VLOOKUP(G$9 & "ScotlandAll" & $B26, Tab9Data!$A$2:$AB$57710, $A26, FALSE), "-") -> 274 | H26: =_xlfn.IFNA(VLOOKUP(H$9 & "ScotlandAll" & $B26, Tab9Data!$A$2:$AB$57710, $A26, FALSE), "-") -> 269 | I26: =_xlfn.IFNA(VLOOKUP(I$9 & "ScotlandAll" & $B26, Tab9Data!$A$2:$AB$57710, $A26, FALSE), "-") -> 286 | J26: =_xlfn.IFNA(VLOOKUP(J$9 & "ScotlandAll" & $B26, Tab9Data!$A$2:$AB$57710, $A26, FALSE), "-") -> 272 | K26: =_xlfn.IFNA(VLOOKUP(K$9 & "ScotlandAll" & $B26, Tab9Data!$A$2:$AB$57710, $A26, FALSE), "-") -> 256 | L26: =_xlfn.IFNA(VLOOKUP(L$9 & "ScotlandAll" & $B26, Tab9Data!$A$2:$AB$57710, $A26, FALSE), "-") -> 260 | M26: =_xlfn.IFNA(VLOOKUP(M$9 & "ScotlandAll" & $B26, Tab9Data!$A$2:$AB$57710, $A26, FALSE), "-") -> 281 | N26: =_xlfn.IFNA(VLOOKUP(N$9 & "ScotlandAll" & $B26, Tab9Data!$A$2:$AB$57710, $A26, FALSE), "-") -> 302 | O26: =_xlfn.IFNA(VLOOKUP(O$9 & "ScotlandAll" & $B26, Tab9Data!$A$2:$AB$57710, $A26, FALSE), "-") -> 304
A27: 8 | B27: Code 9 | C27: More than 2 weeks | D27: =_xlfn.IFNA(VLOOKUP(D$9 & "ScotlandAll" & $B27, Tab9Data!$A$2:$AB$57710, $A27, FALSE), "-") -> 228 | E27: =_xlfn.IFNA(VLOOKUP(E$9 & "ScotlandAll" & $B27, Tab9Data!$A$2:$AB$57710, $A27, FALSE), "-") -> 244 | F27: =_xlfn.IFNA(VLOOKUP(F$9 & "ScotlandAll" & $B27, Tab9Data!$A$2:$AB$57710, $A27, FALSE), "-") -> 248 | G27: =_xlfn.IFNA(VLOOKUP(G$9 & "ScotlandAll" & $B27, Tab9Data!$A$2:$AB$57710, $A27, FALSE), "-") -> 248 | H27: =_xlfn.IFNA(VLOOKUP(H$9 & "ScotlandAll" & $B27, Tab9Data!$A$2:$AB$57710, $A27, FALSE), "-") -> 253 | I27: =_xlfn.IFNA(VLOOKUP(I$9 & "ScotlandAll" & $B27, Tab9Data!$A$2:$AB$57710, $A27, FALSE), "-") -> 272 | J27: =_xlfn.IFNA(VLOOKUP(J$9 & "ScotlandAll" & $B27, Tab9Data!$A$2:$AB$57710, $A27, FALSE), "-") -> 253 | K27: =_xlfn.IFNA(VLOOKUP(K$9 & "ScotlandAll" & $B27, Tab9Data!$A$2:$AB$57710, $A27, FALSE), "-") -> 239 | L27: =_xlfn.IFNA(VLOOKUP(L$9 & "ScotlandAll" & $B27, Tab9Data!$A$2:$AB$57710, $A27, FALSE), "-") -> 234 | M27: =_xlfn.IFNA(VLOOKUP(M$9 & "ScotlandAll" & $B27, Tab9Data!$A$2:$AB$57710, $A27, FALSE), "-") -> 258 | N27: =_xlfn.IFNA(VLOOKUP(N$9 & "ScotlandAll" & $B27, Tab9Data!$A$2:$AB$57710, $A27, FALSE), "-") -> 279 | O27: =_xlfn.IFNA(VLOOKUP(O$9 & "ScotlandAll" & $B27, Tab9Data!$A$2:$AB$57710, $A27, FALSE), "-") -> 272
A28: 9 | B28: Code 9 | C28: More than 4 weeks | D28: =_xlfn.IFNA(VLOOKUP(D$9 & "ScotlandAll" & $B28, Tab9Data!$A$2:$AB$57710, $A28, FALSE), "-") -> 200 | E28: =_xlfn.IFNA(VLOOKUP(E$9 & "ScotlandAll" & $B28, Tab9Data!$A$2:$AB$57710, $A28, FALSE), "-") -> 213 | F28: =_xlfn.IFNA(VLOOKUP(F$9 & "ScotlandAll" & $B28, Tab9Data!$A$2:$AB$57710, $A28, FALSE), "-") -> 216 | G28: =_xlfn.IFNA(VLOOKUP(G$9 & "ScotlandAll" & $B28, Tab9Data!$A$2:$AB$57710, $A28, FALSE), "-") -> 209 | H28: =_xlfn.IFNA(VLOOKUP(H$9 & "ScotlandAll" & $B28, Tab9Data!$A$2:$AB$57710, $A28, FALSE), "-") -> 221 | I28: =_xlfn.IFNA(VLOOKUP(I$9 & "ScotlandAll" & $B28, Tab9Data!$A$2:$AB$57710, $A28, FALSE), "-") -> 234 | J28: =_xlfn.IFNA(VLOOKUP(J$9 & "ScotlandAll" & $B28, Tab9Data!$A$2:$AB$57710, $A28, FALSE), "-") -> 230 | K28: =_xlfn.IFNA(VLOOKUP(K$9 & "ScotlandAll" & $B28, Tab9Data!$A$2:$AB$57710, $A28, FALSE), "-") -> 205 | L28: =_xlfn.IFNA(VLOOKUP(L$9 & "ScotlandAll" & $B28, Tab9Data!$A$2:$AB$57710, $A28, FALSE), "-") -> 204 | M28: =_xlfn.IFNA(VLOOKUP(M$9 & "ScotlandAll" & $B28, Tab9Data!$A$2:$AB$57710, $A28, FALSE), "-") -> 212 | N28: =_xlfn.IFNA(VLOOKUP(N$9 & "ScotlandAll" & $B28, Tab9Data!$A$2:$AB$57710, $A28, FALSE), "-") -> 239 | O28: =_xlfn.IFNA(VLOOKUP(O$9 & "ScotlandAll" & $B28, Tab9Data!$A$2:$AB$57710, $A28, FALSE), "-") -> 222
A29: 10 | B29: Code 9 | C29: More than 6 weeks | D29: =_xlfn.IFNA(VLOOKUP(D$9 & "ScotlandAll" & $B29, Tab9Data!$A$2:$AB$57710, $A29, FALSE), "-") -> 171 | E29: =_xlfn.IFNA(VLOOKUP(E$9 & "ScotlandAll" & $B29, Tab9Data!$A$2:$AB$57710, $A29, FALSE), "-") -> 191 | F29: =_xlfn.IFNA(VLOOKUP(F$9 & "ScotlandAll" & $B29, Tab9Data!$A$2:$AB$57710, $A29, FALSE), "-") -> 190 | G29: =_xlfn.IFNA(VLOOKUP(G$9 & "ScotlandAll" & $B29, Tab9Data!$A$2:$AB$57710, $A29, FALSE), "-") -> 187 | H29: =_xlfn.IFNA(VLOOKUP(H$9 & "ScotlandAll" & $B29, Tab9Data!$A$2:$AB$57710, $A29, FALSE), "-") -> 195 | I29: =_xlfn.IFNA(VLOOKUP(I$9 & "ScotlandAll" & $B29, Tab9Data!$A$2:$AB$57710, $A29, FALSE), "-") -> 201 | J29: =_xlfn.IFNA(VLOOKUP(J$9 & "ScotlandAll" & $B29, Tab9Data!$A$2:$AB$57710, $A29, FALSE), "-") -> 206 | K29: =_xlfn.IFNA(VLOOKUP(K$9 & "ScotlandAll" & $B29, Tab9Data!$A$2:$AB$57710, $A29, FALSE), "-") -> 188 | L29: =_xlfn.IFNA(VLOOKUP(L$9 & "ScotlandAll" & $B29, Tab9Data!$A$2:$AB$57710, $A29, FALSE), "-") -> 178 | M29: =_xlfn.IFNA(VLOOKUP(M$9 & "ScotlandAll" & $B29, Tab9Data!$A$2:$AB$57710, $A29, FALSE), "-") -> 192 | N29: =_xlfn.IFNA(VLOOKUP(N$9 & "ScotlandAll" & $B29, Tab9Data!$A$2:$AB$57710, $A29, FALSE), "-") -> 205 | O29: =_xlfn.IFNA(VLOOKUP(O$9 & "ScotlandAll" & $B29, Tab9Data!$A$2:$AB$57710, $A29, FALSE), "-") -> 191
C31: Source: Public Health Scotland Delayed Discharge Data
C33: Notes:
C34: 1. Revised data definitions and national data requirements were introduced on 1 July 2016 from when: The following patients are no longer recorded as delayed discharges: - Delays in non-hospital locations (e.g. care homes) - Delays for healthcare reasons And: The following patients are now included in the monthly census: - Discharges occuring within 3 working days of monthly census (these were previously excluded from census figures from July 2006).
C35: 2. Due to definitional changes described above, April - June figures for 2016/17 are not comparable and have not been included in the data shown.
C36: 3. Delay reason shown is the principal reason for delay recorded at each monthly census point.
C37: 4. Length of delay is calculated from the patient's ready for discharge date to the census date. The length of delay at the census point does not reflect the individual's full delay - they may go on to wait longer. The census date from July 2016 reflects the position as at the last Thursday of the month.
C38: Link to Glossary

Sheet Tab 10
B1: =Guide!B1 -> 
B2: Table 10. Estimated cost of delayed discharge; Scotland; 2012/13 - 2017/18
B3: The information in this tab has not been updated in this release. Please note that 2018/19 estimated costs will be available in a planned revision of this publication due to be released in October 2020.
B5: Year | C5: Total resource consumption (£million) | D5: Total delayed discharge bed days | E5: Average daily cost (£)
B6: 2012/13 | C6: 94 | D6: 491721 | E6: 190.39
B7: 2013/14 | C7: 114 | D7: 532499 | E7: 214.33
B8: 2014/15 | C8: 133 | D8: 623438 | E8: 213
B9: 2015/16 | C9: 132 | D9: 567853 | E9: 233
B10: 2016/17 | C10: 125 | D10: 532423 | E10: 234
B11: 2017/18 | C11: 122 | D11: 494123 | E11: 248
B12: Source: Public Health Scotland Delayed Discharge Data; NHS Costs book
B14: Notes:
B15: 1. The latest available estimated cost information for delayed discharges is for 2018/19.
B16: 2. Average daily cost and total resource consumption above have been rounded to the nearest whole number.
B17: 3. Delayed discharge costing is carried out based on the following steps:
B18: • Use the published number of delayed discharge bed days by local authority area • Use the daily cost for each specialty in each health board derived by Integrated Resource Framework (IRF)’s Patient Level Costing (PLICs methodology) based on the NHS costs book • Apply daily specialty costs to each local authority’s delayed bed days: o Prior to July 2016, delayed bed days are distributed across specialties based on the delayed discharge census specialty breakdown. o From July 2016 onwards, delayed bed days are distributed across specialties attributed to each delay record. o Delayed discharges are assumed to be in the health board within which the local authority sits and are costed at the health board rate. o Where specialty costs are unavailable at health board level, average Scotland figures are used.
B19: Total resource consumption - The number of delayed bed days attributed to each specialty multiplied by the daily cost of that specialty. Delayed discharge bed days – The annual number of delayed discharge bed days. Average cost per day - The total resource consumption divided by the number of delayed bed days attributed to that specialty.
B20: Further information regarding Integrated Resource Framework costing is available at:
B21: http://www.isdscotland.org/Tableau/IRF-Mapping-Summary-of-PLICS-costing-methodology.pdf
B22: Link to Glossary

Sheet lookups (hidden)
A1: Dates - Tabs 1, 3, 5 | E1: Age Groupings | J1: Health Board/Local Authority
A2: 1 | B2: 2016/17 | C2: April 2016 - March 2017 | E2: 1 | F2: 18+ | G2: All | H2: Age 18+ | J2: 1 | K2: Scotland
A3: 2 | B3: 2017/18 | C3: April 2017 - March 2018 | E3: 2 | F3: 18-74 | G3: 18-74 | H3: Age 18 - 74 | J3: 2 | K3: NHS Ayrshire & Arran
A4: 3 | B4: 2018/19 | C4: April 2018 - March 2019 | E4: 3 | F4: 75+ | G4: 75+ | H4: Age 75+ | J4: 3 | K4: NHS Borders
A5: 4 | B5: 2019/20 | C5: April 2019 - March 2020 | J5: 4 | K5: NHS Dumfries & Galloway
A6: Dates - Tabs 4, 7, 8, 9 | E6: Reason For Delay | J6: 5 | K6: NHS Fife
A7: 1 | B7: 2016/17 | C7: July 2016 - March 2017 | E7: 1 | F7: All Delays | G7: All | J7: 6 | K7: NHS Forth Valley
A8: 2 | B8: 2017/18 | C8: April 2017 - March 2018 | E8: 2 | F8: Health & Social Care/Patient & Family Related Reasons | G8: Standard | J8: 7 | K8: NHS Greater Glasgow & Clyde
A9: 3 | B9: 2018/19 | C9: April 2018 - March 2019 | E9: 3 | F9: Code 9 | G9: Code 9 | J9: 8 | K9: NHS Highland
A10: 4 | B10: 2019/20 | C10: April 2019 - March 2020 | E10: 1 | F10: All | G10: All delay reasons | J10: 9 | K10: NHS Lanarkshire
E11: 2 | F11: Health and Social Care Reasons | G11: Health and Social Care Reasons | J11: 10 | K11: NHS Lothian
E12: 3 | F12: Patient/Carer/Family-related reasons | G12: Patient/Carer/Family-related reasons | J12: 11 | K12: NHS Orkney
E13: 4 | F13: Code 9 | G13: Code 9 reasons | J13: 12 | K13: NHS Tayside
J14: 13 | K14: NHS Shetland
J15: 14 | K15: NHS Western Isles
J16: 15 | K16: Aberdeen City
J17: 16 | K17: Aberdeenshire
J18: 17 | K18: Angus
J19: 18 | K19: Argyll & Bute
J20: 19 | K20: City of Edinburgh
J21: 20 | K21: Clackmannanshire
J22: 21 | K22: Comhairle nan Eilean Siar
J23: 22 | K23: Dumfries & Galloway
J24: 23 | K24: Dundee City
J25: 24 | K25: East Ayrshire
J26: 25 | K26: East Dunbartonshire
J27: 26 | K27: East Lothian
J28: 27 | K28: East Renfrewshire
J29: 28 | K29: Falkirk
J30: 29 | K30: Fife
J31: 30 | K31: Glasgow City
J32: 31 | K32: Highland
J33: 32 | K33: Inverclyde
J34: 33 | K34: Midlothian
J35: 34 | K35: Moray
J36: 35 | K36: North Ayrshire
J37: 36 | K37: North Lanarkshire
J38: 37 | K38: Orkney
J39: 38 | K39: Other
J40: 39 | K40: Perth & Kinross
J41: 40 | K41: Renfrewshire
J42: 41 | K42: Scottish Borders
J43: 42 | K43: Shetland
J44: 43 | K44: South Ayrshire
J45: 44 | K45: South Lanarkshire
J46: 45 | K46: Stirling
J47: 46 | K47: West Dunbartonshire
J48: 47 | K48: West Lothian

Sheet Tab9Data (hidden)
A1: Lookup | B1: month | C1: areaname | D1: age | E1: reas1 | F1: totPats | G1: DelayOver3days | H1: DelayOver2wks | I1: DelayOver4wks | J1: DelayOver6wks
A2: =B2&C2&D2&E2 -> Apr 2016ScotlandAllAll | B2: Apr 2016 | C2: Scotland | D2: All | E2: All | F2: 1107 | G2: 0 | H2: 0 | I2: 0 | J2: 0
A3: Apr 2016ScotlandAllHealth and Social Care Reasons | B3: Apr 2016 | C3: Scotland | D3: All | E3: Health and Social Care Reasons | F3: 703 | G3: 0 | H3: 0 | I3: 0 | J3: 0
A4: Apr 2016ScotlandAllPatient/Carer/Family-related reasons | B4: Apr 2016 | C4: Scotland | D4: All | E4: Patient/Carer/Family-related reasons | F4: 37 | G4: 0 | H4: 0 | I4: 0 | J4: 0
A5: Apr 2016ScotlandAllAll Delays excl. Code 9 | B5: Apr 2016 | C5: Scotland | D5: All | E5: All Delays excl. Code 9 | F5: 740 | G5: 0 | H5: 0 | I5: 0 | J5: 0
A6: Apr 2016ScotlandAllCode 9 | B6: Apr 2016 | C6: Scotland | D6: All | E6: Code 9 | F6: 367 | G6: 0 | H6: 0 | I6: 0 | J6: 0
A7: Apr 2016NHS Ayrshire & ArranAllAll | B7: Apr 2016 | C7: NHS Ayrshire & Arran | D7: All | E7: All | F7: 71 | G7: 0 | H7: 0 | I7: 0 | J7: 0
A8: Apr 2016NHS Ayrshire & ArranAllHealth and Social Care Reasons | B8: Apr 2016 | C8: NHS Ayrshire & Arran | D8: All | E8: Health and Social Care Reasons | F8: 46 | G8: 0 | H8: 0 | I8: 0 | J8: 0
A9: Apr 2016NHS Ayrshire & ArranAllPatient/Carer/Family-related reasons | B9: Apr 2016 | C9: NHS Ayrshire & Arran | D9: All | E9: Patient/Carer/Family-related reasons | F9: 1 | G9: 0 | H9: 0 | I9: 0 | J9: 0
A10: Apr 2016NHS Ayrshire & ArranAllAll Delays excl. Code 9 | B10: Apr 2016 | C10: NHS Ayrshire & Arran | D10: All | E10: All Delays excl. Code 9 | F10: 47 | G10: 0 | H10: 0 | I10: 0 | J10: 0
A11: Apr 2016NHS Ayrshire & ArranAllCode 9 | B11: Apr 2016 | C11: NHS Ayrshire & Arran | D11: All | E11: Code 9 | F11: 24 | G11: 0 | H11: 0 | I11: 0 | J11: 0
A12: Apr 2016NHS BordersAllAll | B12: Apr 2016 | C12: NHS Borders | D12: All | E12: All | F12: 20 | G12: 0 | H12: 0 | I12: 0 | J12: 0
A13: Apr 2016NHS BordersAllHealth and Social Care Reasons | B13: Apr 2016 | C13: NHS Borders | D13: All | E13: Health and Social Care Reasons | F13: 11 | G13: 0 | H13: 0 | I13: 0 | J13: 0
A14: Apr 2016NHS BordersAllPatient/Carer/Family-related reasons | B14: Apr 2016 | C14: NHS Borders | D14: All | E14: Patient/Carer/Family-related reasons | F14: 2 | G14: 0 | H14: 0 | I14: 0 | J14: 0
A15: Apr 2016NHS BordersAllAll Delays excl. Code 9 | B15: Apr 2016 | C15: NHS Borders | D15: All | E15: All Delays excl. Code 9 | F15: 13 | G15: 0 | H15: 0 | I15: 0 | J15: 0
A16: Apr 2016NHS BordersAllCode 9 | B16: Apr 2016 | C16: NHS Borders | D16: All | E16: Code 9 | F16: 7 | G16: 0 | H16: 0 | I16: 0 | J16: 0
A17: Apr 2016NHS FifeAllAll | B17: Apr 2016 | C17: NHS Fife | D17: All | E17: All | F17: 73 | G17: 0 | H17: 0 | I17: 0 | J17: 0
A18: Apr 2016NHS FifeAllHealth and Social Care Reasons | B18: Apr 2016 | C18: NHS Fife | D18: All | E18: Health and Social Care Reasons | F18: 54 | G18: 0 | H18: 0 | I18: 0 | J18: 0
A19: Apr 2016NHS FifeAllPatient/Carer/Family-related reasons | B19: Apr 2016 | C19: NHS Fife | D19: All | E19: Patient/Carer/Family-related reasons | F19: 1 | G19: 0 | H19: 0 | I19: 0 | J19: 0
A20: Apr 2016NHS FifeAllAll Delays excl. Code 9 | B20: Apr 2016 | C20: NHS Fife | D20: All | E20: All Delays excl. Code 9 | F20: 55 | G20: 0 | H20: 0 | I20: 0 | J20: 0
A21: Apr 2016NHS FifeAllCode 9 | B21: Apr 2016 | C21: NHS Fife | D21: All | E21: Code 9 | F21: 18 | G21: 0 | H21: 0 | I21: 0 | J21: 0
A22: Apr 2016NHS Greater Glasgow & ClydeAllAll | B22: Apr 2016 | C22: NHS Greater Glasgow & Clyde | D22: All | E22: All | F22: 163 | G22: 0 | H22: 0 | I22: 0 | J22: 0
A23: Apr 2016NHS Greater Glasgow & ClydeAllHealth and Social Care Reasons | B23: Apr 2016 | C23: NHS Greater Glasgow & Clyde | D23: All | E23: Health and Social Care Reasons | F23: 58 | G23: 0 | H23: 0 | I23: 0 | J23: 0
A24: Apr 2016NHS Greater Glasgow & ClydeAllPatient/Carer/Family-related reasons | B24: Apr 2016 | C24: NHS Greater Glasgow & Clyde | D24: All | E24: Patient/Carer/Family-related reasons | F24: 7 | G24: 0 | H24: 0 | I24: 0 | J24: 0
A25: Apr 2016NHS Greater Glasgow & ClydeAllAll Delays excl. Code 9 | B25: Apr 2016 | C25: NHS Greater Glasgow & Clyde | D25: All | E25: All Delays excl. Code 9 | F25: 65 | G25: 0 | H25: 0 | I25: 0 | J25: 0
A26: Apr 2016NHS Greater Glasgow & ClydeAllCode 9 | B26: Apr 2016 | C26: NHS Greater Glasgow & Clyde | D26: All | E26: Code 9 | F26: 98 | G26: 0 | H26: 0 | I26: 0 | J26: 0
A27: Apr 2016NHS HighlandAllAll | B27: Apr 2016 | C27: NHS Highland | D27: All | E27: All | F27: 104 | G27: 0 | H27: 0 | I27: 0 | J27: 0
A28: Apr 2016NHS HighlandAllHealth and Social Care Reasons | B28: Apr 2016 | C28: NHS Highland | D28: All | E28: Health and Social Care Reasons | F28: 46 | G28: 0 | H28: 0 | I28: 0 | J28: 0
A29: Apr 2016NHS HighlandAllPatient/Carer/Family-related reasons | B29: Apr 2016 | C29: NHS Highland | D29: All | E29: Patient/Carer/Family-related reasons | F29: 11 | G29: 0 | H29: 0 | I29: 0 | J29: 0
A30: Apr 2016NHS HighlandAllAll Delays excl. Code 9 | B30: Apr 2016 | C30: NHS Highland | D30: All | E30: All Delays excl. Code 9 | F30: 57 | G30: 0 | H30: 0 | I30: 0 | J30: 0
A31: Apr 2016NHS HighlandAllCode 9 | B31: Apr 2016 | C31: NHS Highland | D31: All | E31: Code 9 | F31: 47 | G31: 0 | H31: 0 | I31: 0 | J31: 0
A32: Apr 2016NHS LanarkshireAllAll | B32: Apr 2016 | C32: NHS Lanarkshire | D32: All | E32: All | F32: 146 | G32: 0 | H32: 0 | I32: 0 | J32: 0
A33: Apr 2016NHS LanarkshireAllHealth and Social Care Reasons | B33: Apr 2016 | C33: NHS Lanarkshire | D33: All | E33: Health and Social Care Reasons | F33: 116 | G33: 0 | H33: 0 | I33: 0 | J33: 0
A34: Apr 2016NHS LanarkshireAllPatient/Carer/Family-related reasons | B34: Apr 2016 | C34: NHS Lanarkshire | D34: All | E34: Patient/Carer/Family-related reasons | F34: 7 | G34: 0 | H34: 0 | I34: 0 | J34: 0
A35: Apr 2016NHS LanarkshireAllAll Delays excl. Code 9 | B35: Apr 2016 | C35: NHS Lanarkshire | D35: All | E35: All Delays excl. Code 9 | F35: 123 | G35: 0 | H35: 0 | I35: 0 | J35: 0
A36: Apr 2016NHS LanarkshireAllCode 9 | B36: Apr 2016 | C36: NHS Lanarkshire | D36: All | E36: Code 9 | F36: 23 | G36: 0 | H36: 0 | I36: 0 | J36: 0
A37: Apr 2016NHS GrampianAllAll | B37: Apr 2016 | C37: NHS Grampian | D37: All | E37: All | F37: 157 | G37: 0 | H37: 0 | I37: 0 | J37: 0
A38: Apr 2016NHS GrampianAllHealth and Social Care Reasons | B38: Apr 2016 | C38: NHS Grampian | D38: All | E38: Health and Social Care Reasons | F38: 120 | G38: 0 | H38: 0 | I38: 0 | J38: 0
A39: Apr 2016NHS GrampianAllPatient/Carer/Family-related reasons | B39: Apr 2016 | C39: NHS Grampian | D39: All | E39: Patient/Carer/Family-related reasons | F39: 1 | G39: 0 | H39: 0 | I39: 0 | J39: 0
A40: Apr 2016NHS GrampianAllAll Delays excl. Code 9 | B40: Apr 2016 | C40: NHS Grampian | D40: All | E40: All Delays excl. Code 9 | F40: 121 | G40: 0 | H40: 0 | I40: 0 | J40: 0
A41: Apr 2016NHS GrampianAllCode 9 | B41: Apr 2016 | C41: NHS Grampian | D41: All | E41: Code 9 | F41: 36 | G41: 0 | H41: 0 | I41: 0 | J41: 0
A42: Apr 2016NHS OrkneyAllAll | B42: Apr 2016 | C42: NHS Orkney | D42: All | E42: All | F42: 3 | G42: 0 | H42: 0 | I42: 0 | J42: 0
A43: Apr 2016NHS OrkneyAllHealth and Social Care Reasons | B43: Apr 2016 | C43: NHS Orkney | D43: All | E43: Health and Social Care Reasons | F43: 1 | G43: 0 | H43: 0 | I43: 0 | J43: 0
A44: Apr 2016NHS OrkneyAllPatient/Carer/Family-related reasons | B44: Apr 2016 | C44: NHS Orkney | D44: All | E44: Patient/Carer/Family-related reasons | F44: 1 | G44: 0 | H44: 0 | I44: 0 | J44: 0
A45: Apr 2016NHS OrkneyAllAll Delays excl. Code 9 | B45: Apr 2016 | C45: NHS Orkney | D45: All | E45: All Delays excl. Code 9 | F45: 2 | G45: 0 | H45: 0 | I45: 0 | J45: 0
A46: Apr 2016NHS OrkneyAllCode 9 | B46: Apr 2016 | C46: NHS Orkney | D46: All | E46: Code 9 | F46: 1 | G46: 0 | H46: 0 | I46: 0 | J46: 0
A47: Apr 2016NHS LothianAllAll | B47: Apr 2016 | C47: NHS Lothian | D47: All | E47: All | F47: 152 | G47: 0 | H47: 0 | I47: 0 | J47: 0
A48: Apr 2016NHS LothianAllHealth and Social Care Reasons | B48: Apr 2016 | C48: NHS Lothian | D48: All | E48: Health and Social Care Reasons | F48: 108 | G48: 0 | H48: 0 | I48: 0 | J48: 0
A49: Apr 2016NHS LothianAllPatient/Carer/Family-related reasons | B49: Apr 2016 | C49: NHS Lothian | D49: All | E49: Patient/Carer/Family-related reasons | F49: 4 | G49: 0 | H49: 0 | I49: 0 | J49: 0
A50: Apr 2016NHS LothianAllAll Delays excl. Code 9 | B50: Apr 2016 | C50: NHS Lothian | D50: All | E50: All Delays excl. Code 9 | F50: 112 | G50: 0 | H50: 0 | I50: 0 | J50: 0
A51: Apr 2016NHS LothianAllCode 9 | B51: Apr 2016 | C51: NHS Lothian | D51: All | E51: Code 9 | F51: 40 | G51: 0 | H51: 0 | I51: 0 | J51: 0
A52: Apr 2016NHS TaysideAllAll | B52: Apr 2016 | C52: NHS Tayside | D52: All | E52: All | F52: 113 | G52: 0 | H52: 0 | I52: 0 | J52: 0
A53: Apr 2016NHS TaysideAllHealth and Social Care Reasons | B53: Apr 2016 | C53: NHS Tayside | D53: All | E53: Health and Social Care Reasons | F53: 70 | G53: 0 | H53: 0 | I53: 0 | J53: 0
A54: Apr 2016NHS TaysideAllPatient/Carer/Family-related reasons | B54: Apr 2016 | C54: NHS Tayside | D54: All | E54: Patient/Carer/Family-related reasons | F54: 2 | G54: 0 | H54: 0 | I54: 0 | J54: 0
A55: Apr 2016NHS TaysideAllAll Delays excl. Code 9 | B55: Apr 2016 | C55: NHS Tayside | D55: All | E55: All Delays excl. Code 9 | F55: 72 | G55: 0 | H55: 0 | I55: 0 | J55: 0
A56: Apr 2016NHS TaysideAllCode 9 | B56: Apr 2016 | C56: NHS Tayside | D56: All | E56: Code 9 | F56: 41 | G56: 0 | H56: 0 | I56: 0 | J56: 0
A57: Apr 2016NHS Forth ValleyAllAll | B57: Apr 2016 | C57: NHS Forth Valley | D57: All | E57: All | F57: 60 | G57: 0 | H57: 0 | I57: 0 | J57: 0
A58: Apr 2016NHS Forth ValleyAllHealth and Social Care Reasons | B58: Apr 2016 | C58: NHS Forth Valley | D58: All | E58: Health and Social Care Reasons | F58: 42 | G58: 0 | H58: 0 | I58: 0 | J58: 0
A59: Apr 2016NHS Forth ValleyAllAll Delays excl. Code 9 | B59: Apr 2016 | C59: NHS Forth Valley | D59: All | E59: All Delays excl. Code 9 | F59: 42 | G59: 0 | H59: 0 | I59: 0 | J59: 0
A60: Apr 2016NHS Forth ValleyAllCode 9 | B60: Apr 2016 | C60: NHS Forth Valley | D60: All | E60: Code 9 | F60: 18 | G60: 0 | H60: 0 | I60: 0 | J60: 0
A61: Apr 2016NHS Western IslesAllAll | B61: Apr 2016 | C61: NHS Western Isles | D61: All | E61: All | F61: 13 | G61: 0 | H61: 0 | I61: 0 | J61: 0
A62: Apr 2016NHS Western IslesAllHealth and Social Care Reasons | B62: Apr 2016 | C62: NHS Western Isles | D62: All | E62: Health and Social Care Reasons | F62: 7 | G62: 0 | H62: 0 | I62: 0 | J62: 0
A63: Apr 2016NHS Western IslesAllAll Delays excl. Code 9 | B63: Apr 2016 | C63: NHS Western Isles | D63: All | E63: All Delays excl. Code 9 | F63: 7 | G63: 0 | H63: 0 | I63: 0 | J63: 0
A64: Apr 2016NHS Western IslesAllCode 9 | B64: Apr 2016 | C64: NHS Western Isles | D64: All | E64: Code 9 | F64: 6 | G64: 0 | H64: 0 | I64: 0 | J64: 0
A65: Apr 2016NHS Dumfries & GallowayAllAll | B65: Apr 2016 | C65: NHS Dumfries & Galloway | D65: All | E65: All | F65: 32 | G65: 0 | H65: 0 | I65: 0 | J65: 0
A66: =B66&C66&D66&E66 -> Apr 2016NHS Dumfries & GallowayAllHealth and Social Care Reasons | B66: Apr 2016 | C66: NHS Dumfries & Galloway | D66: All | E66: Health and Social Care Reasons | F66: 24 | G66: 0 | H66: 0 | I66: 0 | J66: 0
A67: Apr 2016NHS Dumfries & GallowayAllAll Delays excl. Code 9 | B67: Apr 2016 | C67: NHS Dumfries & Galloway | D67: All | E67: All Delays excl. Code 9 | F67: 24 | G67: 0 | H67: 0 | I67: 0 | J67: 0
A68: Apr 2016NHS Dumfries & GallowayAllCode 9 | B68: Apr 2016 | C68: NHS Dumfries & Galloway | D68: All | E68: Code 9 | F68: 8 | G68: 0 | H68: 0 | I68: 0 | J68: 0
A69: Apr 2016Aberdeen CityAllAll | B69: Apr 2016 | C69: Aberdeen City | D69: All | E69: All | F69: 86 | G69: 0 | H69: 0 | I69: 0 | J69: 0
A70: Apr 2016Aberdeen CityAllHealth and Social Care Reasons | B70: Apr 2016 | C70: Aberdeen City | D70: All | E70: Health and Social Care Reasons | F70: 70 | G70: 0 | H70: 0 | I70: 0 | J70: 0
A71: Apr 2016Aberdeen CityAllAll Delays excl. Code 9 | B71: Apr 2016 | C71: Aberdeen City | D71: All | E71: All Delays excl. Code 9 | F71: 70 | G71: 0 | H71: 0 | I71: 0 | J71: 0
A72: Apr 2016Aberdeen CityAllCode 9 | B72: Apr 2016 | C72: Aberdeen City | D72: All | E72: Code 9 | F72: 16 | G72: 0 | H72: 0 | I72: 0 | J72: 0
A73: Apr 2016AberdeenshireAllAll | B73: Apr 2016 | C73: Aberdeenshire | D73: All | E73: All | F73: 44 | G73: 0 | H73: 0 | I73: 0 | J73: 0
A74: Apr 2016AberdeenshireAllHealth and Social Care Reasons | B74: Apr 2016 | C74: Aberdeenshire | D74: All | E74: Health and Social Care Reasons | F74: 32 | G74: 0 | H74: 0 | I74: 0 | J74: 0
A75: Apr 2016AberdeenshireAllPatient/Carer/Family-related reasons | B75: Apr 2016 | C75: Aberdeenshire | D75: All | E75: Patient/Carer/Family-related reasons | F75: 1 | G75: 0 | H75: 0 | I75: 0 | J75: 0
A76: Apr 2016AberdeenshireAllAll Delays excl. Code 9 | B76: Apr 2016 | C76: Aberdeenshire | D76: All | E76: All Delays excl. Code 9 | F76: 33 | G76: 0 | H76: 0 | I76: 0 | J76: 0
A77: Apr 2016AberdeenshireAllCode 9 | B77: Apr 2016 | C77: Aberdeenshire | D77: All | E77: Code 9 | F77: 11 | G77: 0 | H77: 0 | I77: 0 | J77: 0
A78: Apr 2016AngusAllAll | B78: Apr 2016 | C78: Angus | D78: All | E78: All | F78: 19 | G78: 0 | H78: 0 | I78: 0 | J78: 0
A79: Apr 2016AngusAllHealth and Social Care Reasons | B79: Apr 2016 | C79: Angus | D79: All | E79: Health and Social Care Reasons | F79: 13 | G79: 0 | H79: 0 | I79: 0 | J79: 0
A80: Apr 2016AngusAllAll Delays excl. Code 9 | B80: Apr 2016 | C80: Angus | D80: All | E80: All Delays excl. Code 9 | F80: 13 | G80: 0 | H80: 0 | I80: 0 | J80: 0
A81: Apr 2016AngusAllCode 9 | B81: Apr 2016 | C81: Angus | D81: All | E81: Code 9 | F81: 6 | G81: 0 | H81: 0 | I81: 0 | J81: 0
A82: Apr 2016Argyll & ButeAllAll | B82: Apr 2016 | C82: Argyll & Bute | D82: All | E82: All | F82: 12 | G82: 0 | H82: 0 | I82: 0 | J82: 0
A83: Apr 2016Argyll & ButeAllHealth and Social Care Reasons | B83: Apr 2016 | C83: Argyll & Bute | D83: All | E83: Health and Social Care Reasons | F83: 8 | G83: 0 | H83: 0 | I83: 0 | J83: 0
A84: Apr 2016Argyll & ButeAllPatient/Carer/Family-related reasons | B84: Apr 2016 | C84: Argyll & Bute | D84: All | E84: Patient/Carer/Family-related reasons | F84: 2 | G84: 0 | H84: 0 | I84: 0 | J84: 0
A85: Apr 2016Argyll & ButeAllAll Delays excl. Code 9 | B85: Apr 2016 | C85: Argyll & Bute | D85: All | E85: All Delays excl. Code 9 | F85: 10 | G85: 0 | H85: 0 | I85: 0 | J85: 0
A86: Apr 2016Argyll & ButeAllCode 9 | B86: Apr 2016 | C86: Argyll & Bute | D86: All | E86: Code 9 | F86: 2 | G86: 0 | H86: 0 | I86: 0 | J86: 0
A87: Apr 2016Scottish BordersAllAll | B87: Apr 2016 | C87: Scottish Borders | D87: All | E87: All | F87: 20 | G87: 0 | H87: 0 | I87: 0 | J87: 0
A88: Apr 2016Scottish BordersAllHealth and Social Care Reasons | B88: Apr 2016 | C88: Scottish Borders | D88: All | E88: Health and Social Care Reasons | F88: 11 | G88: 0 | H88: 0 | I88: 0 | J88: 0
A89: Apr 2016Scottish BordersAllPatient/Carer/Family-related reasons | B89: Apr 2016 | C89: Scottish Borders | D89: All | E89: Patient/Carer/Family-related reasons | F89: 2 | G89: 0 | H89: 0 | I89: 0 | J89: 0
A90: Apr 2016Scottish BordersAllAll Delays excl. Code 9 | B90: Apr 2016 | C90: Scottish Borders | D90: All | E90: All Delays excl. Code 9 | F90: 13 | G90: 0 | H90: 0 | I90: 0 | J90: 0
A91: Apr 2016Scottish BordersAllCode 9 | B91: Apr 2016 | C91: Scottish Borders | D91: All | E91: Code 9 | F91: 7 | G91: 0 | H91: 0 | I91: 0 | J91: 0
A92: Apr 2016ClackmannanshireAllAll | B92: Apr 2016 | C92: Clackmannanshire | D92: All | E92: All | F92: 9 | G92: 0 | H92: 0 | I92: 0 | J92: 0
A93: Apr 2016ClackmannanshireAllHealth and Social Care Reasons | B93: Apr 2016 | C93: Clackmannanshire | D93: All | E93: Health and Social Care Reasons | F93: 4 | G93: 0 | H93: 0 | I93: 0 | J93: 0
A94: Apr 2016ClackmannanshireAllAll Delays excl. Code 9 | B94: Apr 2016 | C94: Clackmannanshire | D94: All | E94: All Delays excl. Code 9 | F94: 4 | G94: 0 | H94: 0 | I94: 0 | J94: 0
A95: Apr 2016ClackmannanshireAllCode 9 | B95: Apr 2016 | C95: Clackmannanshire | D95: All | E95: Code 9 | F95: 5 | G95: 0 | H95: 0 | I95: 0 | J95: 0
A96: Apr 2016West DunbartonshireAllAll | B96: Apr 2016 | C96: West Dunbartonshire | D96: All | E96: All | F96: 13 | G96: 0 | H96: 0 | I96: 0 | J96: 0
A97: Apr 2016West DunbartonshireAllHealth and Social Care Reasons | B97: Apr 2016 | C97: West Dunbartonshire | D97: All | E97: Health and Social Care Reasons | F97: 2 | G97: 0 | H97: 0 | I97: 0 | J97: 0
A98: Apr 2016West DunbartonshireAllAll Delays excl. Code 9 | B98: Apr 2016 | C98: West Dunbartonshire | D98: All | E98: All Delays excl. Code 9 | F98: 2 | G98: 0 | H98: 0 | I98: 0 | J98: 0
A99: Apr 2016West DunbartonshireAllCode 9 | B99: Apr 2016 | C99: West Dunbartonshire | D99: All | E99: Code 9 | F99: 11 | G99: 0 | H99: 0 | I99: 0 | J99: 0
A100: Apr 2016Dumfries & GallowayAllAll | B100: Apr 2016 | C100: Dumfries & Galloway | D100: All | E100: All | F100: 32 | G100: 0 | H100: 0 | I100: 0 | J100: 0
A101: Apr 2016Dumfries & GallowayAllHealth and Social Care Reasons | B101: Apr 2016 | C101: Dumfries & Galloway | D101: All | E101: Health and Social Care Reasons | F101: 24 | G101: 0 | H101: 0 | I101: 0 | J101: 0
A102: Apr 2016Dumfries & GallowayAllAll Delays excl. Code 9 | B102: Apr 2016 | C102: Dumfries & Galloway | D102: All | E102: All Delays excl. Code 9 | F102: 24 | G102: 0 | H102: 0 | I102: 0 | J102: 0
A103: Apr 2016Dumfries & GallowayAllCode 9 | B103: Apr 2016 | C103: Dumfries & Galloway | D103: All | E103: Code 9 | F103: 8 | G103: 0 | H103: 0 | I103: 0 | J103: 0
A104: Apr 2016Dundee CityAllAll | B104: Apr 2016 | C104: Dundee City | D104: All | E104: All | F104: 39 | G104: 0 | H104: 0 | I104: 0 | J104: 0
A105: Apr 2016Dundee CityAllHealth and Social Care Reasons | B105: Apr 2016 | C105: Dundee City | D105: All | E105: Health and Social Care Reasons | F105: 17 | G105: 0 | H105: 0 | I105: 0 | J105: 0
A106: Apr 2016Dundee CityAllPatient/Carer/Family-related reasons | B106: Apr 2016 | C106: Dundee City | D106: All | E106: Patient/Carer/Family-related reasons | F106: 2 | G106: 0 | H106: 0 | I106: 0 | J106: 0
A107: Apr 2016Dundee CityAllAll Delays excl. Code 9 | B107: Apr 2016 | C107: Dundee City | D107: All | E107: All Delays excl. Code 9 | F107: 19 | G107: 0 | H107: 0 | I107: 0 | J107: 0
A108: Apr 2016Dundee CityAllCode 9 | B108: Apr 2016 | C108: Dundee City | D108: All | E108: Code 9 | F108: 20 | G108: 0 | H108: 0 | I108: 0 | J108: 0
A109: Apr 2016East AyrshireAllAll | B109: Apr 2016 | C109: East Ayrshire | D109: All | E109: All | F109: 17 | G109: 0 | H109: 0 | I109: 0 | J109: 0
A110: Apr 2016East AyrshireAllHealth and Social Care Reasons | B110: Apr 2016 | C110: East Ayrshire | D110: All | E110: Health and Social Care Reasons | F110: 5 | G110: 0 | H110: 0 | I110: 0 | J110: 0
A111: Apr 2016East AyrshireAllAll Delays excl. Code 9 | B111: Apr 2016 | C111: East Ayrshire | D111: All | E111: All Delays excl. Code 9 | F111: 5 | G111: 0 | H111: 0 | I111: 0 | J111: 0
A112: Apr 2016East AyrshireAllCode 9 | B112: Apr 2016 | C112: East Ayrshire | D112: All | E112: Code 9 | F112: 12 | G112: 0 | H112: 0 | I112: 0 | J112: 0
A113: Apr 2016East DunbartonshireAllAll | B113: Apr 2016 | C113: East Dunbartonshire | D113: All | E113: All | F113: 5 | G113: 0 | H113: 0 | I113: 0 | J113: 0
A114: Apr 2016East DunbartonshireAllHealth and Social Care Reasons | B114: Apr 2016 | C114: East Dunbartonshire | D114: All | E114: Health and Social Care Reasons | F114: 3 | G114: 0 | H114: 0 | I114: 0 | J114: 0
A115: Apr 2016East DunbartonshireAllAll Delays excl. Code 9 | B115: Apr 2016 | C115: East Dunbartonshire | D115: All | E115: All Delays excl. Code 9 | F115: 3 | G115: 0 | H115: 0 | I115: 0 | J115: 0
A116: Apr 2016East DunbartonshireAllCode 9 | B116: Apr 2016 | C116: East Dunbartonshire | D116: All | E116: Code 9 | F116: 2 | G116: 0 | H116: 0 | I116: 0 | J116: 0
A117: Apr 2016East LothianAllAll | B117: Apr 2016 | C117: East Lothian | D117: All | E117: All | F117: 18 | G117: 0 | H117: 0 | I117: 0 | J117: 0
A118: Apr 2016East LothianAllHealth and Social Care Reasons | B118: Apr 2016 | C118: East Lothian | D118: All | E118: Health and Social Care Reasons | F118: 14 | G118: 0 | H118: 0 | I118: 0 | J118: 0
A119: Apr 2016East LothianAllPatient/Carer/Family-related reasons | B119: Apr 2016 | C119: East Lothian | D119: All | E119: Patient/Carer/Family-related reasons | F119: 1 | G119: 0 | H119: 0 | I119: 0 | J119: 0
A120: Apr 2016East LothianAllAll Delays excl. Code 9 | B120: Apr 2016 | C120: East Lothian | D120: All | E120: All Delays excl. Code 9 | F120: 15 | G120: 0 | H120: 0 | I120: 0 | J120: 0
A121: Apr 2016East LothianAllCode 9 | B121: Apr 2016 | C121: East Lothian | D121: All | E121: Code 9 | F121: 3 | G121: 0 | H121: 0 | I121: 0 | J121: 0
A122: Apr 2016East RenfrewshireAllAll | B122: Apr 2016 | C122: East Renfrewshire | D122: All | E122: All | F122: 6 | G122: 0 | H122: 0 | I122: 0 | J122: 0
